Workbook

Sheet Startseite
H3: Futterberechnungsprogramm für Schweine in Anlehnung an die
H4: GfE- und DLG-Versorgungsempfehlungen von 2006, 2008, 2010 und 2014
F6: Entwickelt und programmiert von: | J6: Dipl.-Ing. agr. Kajo Hollmichel (LLH)
J7: Tel.: | K7: 0561 7299-257
J8: Mobil: | K8: 0160 4755166
J9: E-Mail: | K9: kajo.hollmichel@llh.hessen.de

Sheet Anleitung
K7: Ausgabe XXII Okt. 2016

Sheet Ausdruck
C4: Landesbetrieb Landwirtschaft (LLH)
C5: Zentrale Kassel
B10: Betrieb: | C10: =Futterberechnung!H5 -> Mustermann
B11: Futtermischung für: | C11: =IF(Futterberechnung!H7="","",Futterberechnung!H7) -> Anfangsmast ab 40 Kg LM für 850 g TZ* | H11: =IF(Futterberechnung!P7="","",Futterberechnung!P7) -> …………………………………………………………..
C12: =Futterberechnung!J8 -> 
B14: Futtermittel | C14: Preis / dt | D14: Anteile in % FM | E14: Anteile bei 88% TM | F14: in Mischer | H14: Inhaltsstoffe in 1 kg Futtermittel | L14: Soll | M14: Differenz
B15: =IF(Futterberechnung!C13="","",Futterberechnung!C13) -> eigener Weizen 11% RP Ø 2016 | C15: =IF(Futterberechnung!E13="","",Futterberechnung!E13) -> 12.68 € | D15: =IF(Futterberechnung!F13="","",Futterberechnung!F13) -> 52.00% | E15: =IF(Futterberechnung!G13="","",Futterberechnung!G13) -> 51.67% | F15: =IF(Futterberechnung!H13="","",Futterberechnung!H13) -> 520 kg | I15: in | J15: in der FM | K15: in 88% TM | L15: in 88% TM
B16: =IF(Futterberechnung!C14="","",Futterberechnung!C14) -> eigene Gerste 11% RP Ø 2016 | C16: =IF(Futterberechnung!E14="","",Futterberechnung!E14) -> 11.22 € | D16: =IF(Futterberechnung!F14="","",Futterberechnung!F14) -> 28.00% | E16: =IF(Futterberechnung!G14="","",Futterberechnung!G14) -> 27.82% | F16: =IF(Futterberechnung!H14="","",Futterberechnung!H14) -> 280 kg | H16: TM | I16: g | J16: =IF(Futterberechnung!I30="","",Futterberechnung!I30) -> 886 | K16: =IF(Futterberechnung!I31="","",Futterberechnung!I31) -> 880
B17: =IF(Futterberechnung!C15="","",Futterberechnung!C15) -> Sojaschrot HP 47% RP | C17: =IF(Futterberechnung!E15="","",Futterberechnung!E15) -> 35.50 € | D17: =IF(Futterberechnung!F15="","",Futterberechnung!F15) -> 15.50% | E17: =IF(Futterberechnung!G15="","",Futterberechnung!G15) -> 15.58% | F17: =IF(Futterberechnung!H15="","",Futterberechnung!H15) -> 155 kg | H17: MES EFF* | I17: MJ | J17: =IF(Futterberechnung!$M$30="","",Futterberechnung!$M$30) -> 13.27 | K17: =IF(Futterberechnung!$M$31="","",Futterberechnung!$M$31) -> 13.19 | L17: =IF(Futterberechnung!$M$33="","",Futterberechnung!$M$33) -> 13.20 | M17: =IF(Futterberechnung!$M$34="","",Futterberechnung!$M$34) -> -0.01
B18: =IF(Futterberechnung!C16="","",Futterberechnung!C16) -> Rapsöl / Pflanzenöl DLG 2014 | C18: =IF(Futterberechnung!E16="","",Futterberechnung!E16) -> 97.00 € | D18: =IF(Futterberechnung!F16="","",Futterberechnung!F16) -> 1.00% | E18: =IF(Futterberechnung!G16="","",Futterberechnung!G16) -> 1.13% | F18: =IF(Futterberechnung!H16="","",Futterberechnung!H16) -> 10 kg | H18: MES MFF* | I18: MJ | J18: =IF(Futterberechnung!$N$30="","",Futterberechnung!$N$30) -> 13.26 | K18: =IF(Futterberechnung!$N$31="","",Futterberechnung!$N$31) -> 13.18 | L18: =IF(Futterberechnung!$N$33="","",Futterberechnung!$N$33) -> 13.20 | M18: =IF(Futterberechnung!$N$34="","",Futterberechnung!$N$34) -> -0.02
B19: =IF(Futterberechnung!C17="","",Futterberechnung!C17) ->  | C19: =IF(Futterberechnung!E17="","",Futterberechnung!E17) ->  | D19: =IF(Futterberechnung!F17="","",Futterberechnung!F17) ->  | E19: =IF(Futterberechnung!G17="","",Futterberechnung!G17) ->  | F19: =IF(Futterberechnung!H17="","",Futterberechnung!H17) ->  | H19: Rohprotein (XP) | I19: g | J19: =IF(Futterberechnung!$J$30="","",Futterberechnung!$J$30) -> 164 | K19: =IF(Futterberechnung!$J$31="","",Futterberechnung!$J$31) -> 163 | L19: =IF(Futterberechnung!$J$33="","",Futterberechnung!$J$33) -> 163 | M19: =IF(Futterberechnung!$J$34="","",Futterberechnung!$J$34) -> 0
B20: =IF(Futterberechnung!C18="","",Futterberechnung!C18) ->  | C20: =IF(Futterberechnung!E18="","",Futterberechnung!E18) ->  | D20: =IF(Futterberechnung!F18="","",Futterberechnung!F18) ->  | E20: =IF(Futterberechnung!G18="","",Futterberechnung!G18) ->  | F20: =IF(Futterberechnung!H18="","",Futterberechnung!H18) ->  | H20: Lys | I20: g | J20: =IF(Futterberechnung!$O$30="","",Futterberechnung!$O$30) -> 10.1 | K20: =IF(Futterberechnung!$O$31="","",Futterberechnung!$O$31) -> 10.1 | L20: =IF(Futterberechnung!$O$33="","",Futterberechnung!$O$33) -> 10.2 | M20: =IF(Futterberechnung!$O$34="","",Futterberechnung!$O$34) -> -0.1
B21: =IF(Futterberechnung!C19="","",Futterberechnung!C19) ->  | C21: =IF(Futterberechnung!E19="","",Futterberechnung!E19) ->  | D21: =IF(Futterberechnung!F19="","",Futterberechnung!F19) ->  | E21: =IF(Futterberechnung!G19="","",Futterberechnung!G19) ->  | F21: =IF(Futterberechnung!H19="","",Futterberechnung!H19) ->  | H21: pcv Lys | I21: g | J21: =IF(Futterberechnung!$P$30="","",Futterberechnung!$P$30) -> 9.1 | K21: =IF(Futterberechnung!$P$31="","",Futterberechnung!$P$31) -> 9.0 | L21: =IF(Futterberechnung!$P$33="","",Futterberechnung!$P$33) -> 8.9 | M21: =IF(Futterberechnung!$P$34="","",Futterberechnung!$P$34) -> 0.1
B22: =IF(Futterberechnung!C20="","",Futterberechnung!C20) ->  | C22: =IF(Futterberechnung!E20="","",Futterberechnung!E20) ->  | D22: =IF(Futterberechnung!F20="","",Futterberechnung!F20) ->  | E22: =IF(Futterberechnung!G20="","",Futterberechnung!G20) ->  | F22: =IF(Futterberechnung!H20="","",Futterberechnung!H20) ->  | H22: Met | I22: g | J22: =IF(Futterberechnung!$G$63="","",Futterberechnung!$G$63) -> 2.9 | K22: =IF(Futterberechnung!$G$64="","",Futterberechnung!$G$64) -> 2.9 | L22: =IF(Futterberechnung!$G$66="","",Futterberechnung!$G$66) -> 2.9 | M22: =IF(Futterberechnung!$G67="","",Futterberechnung!$G$67) -> 0.0
B23: =IF(Futterberechnung!C21="","",Futterberechnung!C21) ->  | C23: =IF(Futterberechnung!E21="","",Futterberechnung!E21) ->  | D23: =IF(Futterberechnung!F21="","",Futterberechnung!F21) ->  | E23: =IF(Futterberechnung!G21="","",Futterberechnung!G21) ->  | F23: =IF(Futterberechnung!H21="","",Futterberechnung!H21) ->  | H23: pcv Met | I23: g | J23: =IF(Futterberechnung!$H$63="","",Futterberechnung!$H$63) -> 2.6 | K23: =IF(Futterberechnung!$H$64="","",Futterberechnung!$H$64) -> 2.6 | L23: =IF(Futterberechnung!$H$66="","",Futterberechnung!$H$66) -> 2.6 | M23: =IF(Futterberechnung!$H67="","",Futterberechnung!$H$67) -> 0.0
B24: =IF(Futterberechnung!C22="","",Futterberechnung!C22) ->  | C24: =IF(Futterberechnung!E22="","",Futterberechnung!E22) ->  | D24: =IF(Futterberechnung!F22="","",Futterberechnung!F22) ->  | E24: =IF(Futterberechnung!G22="","",Futterberechnung!G22) ->  | F24: =IF(Futterberechnung!H22="","",Futterberechnung!H22) ->  | H24: Met + Cys | I24: g | J24: =IF(Futterberechnung!$Q$30="","",Futterberechnung!$Q$30) -> 5.9 | K24: =IF(Futterberechnung!$Q$31="","",Futterberechnung!$Q$31) -> 5.8 | L24: =IF(Futterberechnung!$Q$33="","",Futterberechnung!$Q$33) -> 5.6 | M24: =IF(Futterberechnung!$Q$34="","",Futterberechnung!$Q$34) -> 0.2
B25: =IF(Futterberechnung!C23="","",Futterberechnung!C23) ->  | C25: =IF(Futterberechnung!E23="","",Futterberechnung!E23) ->  | D25: =IF(Futterberechnung!F23="","",Futterberechnung!F23) ->  | E25: =IF(Futterberechnung!G23="","",Futterberechnung!G23) ->  | F25: =IF(Futterberechnung!H23="","",Futterberechnung!H23) ->  | H25: pcv Met + Cys | I25: g | J25: =IF(Futterberechnung!$R$30="","",Futterberechnung!$R$30) -> 5.1 | K25: =IF(Futterberechnung!$R$31="","",Futterberechnung!$R$31) -> 5.1 | L25: =IF(Futterberechnung!$R$33="","",Futterberechnung!$R$33) -> 4.9 | M25: =IF(Futterberechnung!$R$34="","",Futterberechnung!$R$34) -> 0.2
B26: =IF(Futterberechnung!C24="","",Futterberechnung!C24) -> Ergänzungsfutter | C26: =IF(Futterberechnung!E24="","",Futterberechnung!E24) ->  | D26: =IF(Futterberechnung!F24="","",Futterberechnung!F24) ->  | E26: =IF(Futterberechnung!G24="","",Futterberechnung!G24) ->  | F26: =IF(Futterberechnung!H24="","",Futterberechnung!H24) ->  | H26: Thr | I26: g | J26: =IF(Futterberechnung!$S$30="","",Futterberechnung!$S$30) -> 6.7 | K26: =IF(Futterberechnung!$S$31="","",Futterberechnung!$S$31) -> 6.6 | L26: =IF(Futterberechnung!$S$33="","",Futterberechnung!$S$33) -> 6.6 | M26: =IF(Futterberechnung!$S$34="","",Futterberechnung!$S$34) -> 0.0
B27: =IF(Futterberechnung!C25="","",Futterberechnung!C25) ->  | C27: =IF(Futterberechnung!E25="","",Futterberechnung!E25) ->  | D27: =IF(Futterberechnung!F25="","",Futterberechnung!F25) ->  | E27: =IF(Futterberechnung!G25="","",Futterberechnung!G25) ->  | F27: =IF(Futterberechnung!H25="","",Futterberechnung!H25) ->  | H27: pcv Thr | I27: g | J27: =IF(Futterberechnung!$T$30="","",Futterberechnung!$T$30) -> 5.9 | K27: =IF(Futterberechnung!$T$31="","",Futterberechnung!$T$31) -> 5.8 | L27: =IF(Futterberechnung!$T$33="","",Futterberechnung!$T$33) -> 5.8 | M27: =IF(Futterberechnung!$T$34="","",Futterberechnung!$T$34) -> 0.0
B28: =IF(Futterberechnung!C26="","",Futterberechnung!C26) ->  | C28: =IF(Futterberechnung!E26="","",Futterberechnung!E26) ->  | D28: =IF(Futterberechnung!F26="","",Futterberechnung!F26) ->  | E28: =IF(Futterberechnung!G26="","",Futterberechnung!G26) ->  | F28: =IF(Futterberechnung!H26="","",Futterberechnung!H26) ->  | H28: Trp | I28: g | J28: =IF(Futterberechnung!$U$30="","",Futterberechnung!$U$30) -> 2.1 | K28: =IF(Futterberechnung!$U$31="","",Futterberechnung!$U$31) -> 2.1 | L28: =IF(Futterberechnung!$U$33="","",Futterberechnung!$U$33) -> 1.8 | M28: =IF(Futterberechnung!$U$34="","",Futterberechnung!$U$34) -> 0.3
B29: =IF(Futterberechnung!C27="","",Futterberechnung!C27) -> Mineralfutter | C29: =IF(Futterberechnung!E27="","",Futterberechnung!E27) ->  | D29: =IF(Futterberechnung!F27="","",Futterberechnung!F27) ->  | E29: =IF(Futterberechnung!G27="","",Futterberechnung!G27) ->  | F29: =IF(Futterberechnung!H27="","",Futterberechnung!H27) ->  | H29: pcv Trp | I29: g | J29: =IF(Futterberechnung!$V$30="","",Futterberechnung!$V$30) -> 1.8 | K29: =IF(Futterberechnung!$V$31="","",Futterberechnung!$V$31) -> 1.8 | L29: =IF(Futterberechnung!$V$33="","",Futterberechnung!$V$33) -> 1.6 | M29: =IF(Futterberechnung!$V$34="","",Futterberechnung!$V$34) -> 0.2
B30: =IF(Futterberechnung!C28="","",Futterberechnung!C28) -> Optimales MinFu AM 850g TZ 3,5% + Phytase | C30: =IF(Futterberechnung!E28="","",Futterberechnung!E28) -> 81.00 € | D30: =IF(Futterberechnung!F28="","",Futterberechnung!F28) -> 3.50% | E30: =IF(Futterberechnung!G28="","",Futterberechnung!G28) -> 3.79% | F30: =IF(Futterberechnung!H28="","",Futterberechnung!H28) -> 35 kg | H30: Rohfaser (XF) | I30: g | J30: =IF(Futterberechnung!$L$30="","",Futterberechnung!$L$30) -> 37 | K30: =IF(Futterberechnung!$L$31="","",Futterberechnung!$L$31) -> 37 | L30: =IF(Futterberechnung!$L$33="","",Futterberechnung!$L$33) -> 40 | M30: =IF(Futterberechnung!$L$34="","",Futterberechnung!$L$34) -> -3
B31: =IF(Futterberechnung!C29="","",Futterberechnung!C29) ->  | C31: =IF(Futterberechnung!E29="","",Futterberechnung!E29) ->  | D31: =IF(Futterberechnung!F29="","",Futterberechnung!F29) ->  | E31: =IF(Futterberechnung!G29="","",Futterberechnung!G29) ->  | F31: =IF(Futterberechnung!H29="","",Futterberechnung!H29) ->  | H31: NDFom | I31: g | J31: =IF(Futterberechnung!$V$63="","",Futterberechnung!$V$63) -> 210 | K31: =IF(Futterberechnung!$V$64="","",Futterberechnung!$V$64) -> 209 | L31: =IF(Futterberechnung!$V$66=0,"",Futterberechnung!$V$66) -> > 120 | M31: =IF($L$31="","",Futterberechnung!$V$67) -> 89
B32: Futterkosten / Summe / Mischergröße | C32: =IF(Futterberechnung!E30="","",Futterberechnung!E30) -> 19.04 € | D32: =IF(Futterberechnung!F30="","",Futterberechnung!F30) -> 100.00% | F32: =IF(F15="","",SUM(F15:F31)) -> 1000 kg | H32: ADFom | I32: g | J32: =IF(Futterberechnung!$W$63="","",Futterberechnung!$W$63) -> 47 | K32: =IF(Futterberechnung!$W$64="","",Futterberechnung!$W$64) -> 46 | L32: =IF(Futterberechnung!$W$66=0,"",Futterberechnung!$W$66) -> < 70 | M32: =IF($L$32="","",Futterberechnung!$W$67) -> -24
B33: Futterkosten auf 88% TM umgerechnet | C33: =IF(Futterberechnung!E31="","",Futterberechnung!E31) -> 18.92 € | F33: =IF(Futterberechnung!H31="","",Futterberechnung!H31) ->  | H33: BfS | I33: g | J33: =IF(Futterberechnung!$U$63="","",Futterberechnung!$U$63) -> 70 | K33: =IF(Futterberechnung!$U$64="","",Futterberechnung!$U$64) -> 69 | L33: =IF(Futterberechnung!$U$66=0,"",Futterberechnung!$U$66) ->  | M33: =IF($L$33="","",Futterberechnung!$U$67) -> 
H34: Ca | I34: g | J34: =IF(Futterberechnung!$W$30="","",Futterberechnung!$W$30) -> 6.1 | K34: =IF(Futterberechnung!$W$31="","",Futterberechnung!$W$31) -> 6.0 | L34: =IF(Futterberechnung!$W$33="","",Futterberechnung!$W$33) -> 5.9 | M34: =IF(Futterberechnung!$W$34="","",Futterberechnung!$W$34) -> 0.1
H35: P | I35: g | J35: =IF(Futterberechnung!$X$30="","",Futterberechnung!$X$30) -> 4.1 | K35: =IF(Futterberechnung!$X$31="","",Futterberechnung!$X$31) -> 4.1 | L35: =IF(Futterberechnung!$X$33="","",Futterberechnung!$X$33) -> 4.4 | M35: =IF(Futterberechnung!$X$34="","",Futterberechnung!$X$34) -> -0.3
H36: v.P | I36: g | J36: =IF(Futterberechnung!$Y$30="","",Futterberechnung!$Y$30) -> 2.2 | K36: =IF(Futterberechnung!$Y$31="","",Futterberechnung!$Y$31) -> 2.2 | L36: =IF(Futterberechnung!$Y$33="","",Futterberechnung!$Y$33) -> 2.7 | M36: =IF(Futterberechnung!$Y$34="","",Futterberechnung!$Y$34) -> -0.5
H37: v.P + Phytase | I37: g | J37: =IF(Futterberechnung!$Z$30="","",Futterberechnung!$Z$30) -> 2.7 | K37: =IF(Futterberechnung!$Z$31="","",Futterberechnung!$Z$31) -> 2.7 | L37: =IF(Futterberechnung!$Z$33="","",Futterberechnung!$Z$33) -> 2.7 | M37: =IF(Futterberechnung!$Z$34="","",Futterberechnung!$Z$34) -> 0.0
H38: Na | I38: g | J38: =IF(Futterberechnung!$AB$30="","",Futterberechnung!$AB$30) -> 1.9 | K38: =IF(Futterberechnung!$AB$31="","",Futterberechnung!$AB$31) -> 1.9 | L38: =IF(Futterberechnung!$AB$33="","",Futterberechnung!$AB$33) -> 1.8 | M38: =IF(Futterberechnung!$AB$34="","",Futterberechnung!$AB$34) -> 0.1
H39: Mg | I39: g | J39: =IF(Futterberechnung!$AA$30="","",Futterberechnung!$AA$30) -> 1.3 | K39: =IF(Futterberechnung!$AA$31="","",Futterberechnung!$AA$31) -> 1.3 | L39: =IF(Futterberechnung!$AA$33="","",Futterberechnung!$AA$33) -> 1.0 | M39: =IF(Futterberechnung!$AA$34="","",Futterberechnung!$AA$34) -> 0.3
H40: Polyensäuren | I40: g | J40: =IF(Futterberechnung!$M$63="","",Futterberechnung!$M$63) -> 14.3 | K40: =IF(Futterberechnung!$M$64="","",Futterberechnung!$M$64) -> 14.2 | L40: =IF(Futterberechnung!$M$66="","",Futterberechnung!$M$66) -> < 18 | M40: =IF(Futterberechnung!$M$67="","",Futterberechnung!$M$67) -> -3.5
H41: Vit. A | I41: IE | J41: =IF(Futterberechnung!$P$63="","",Futterberechnung!$P$63) -> 6055 | K41: =IF(Futterberechnung!$P$64="","",Futterberechnung!$P$64) -> 6017 | L41: =IF(Futterberechnung!$P$66="","",Futterberechnung!$P$66) -> 6000 | M41: =IF(Futterberechnung!$P$67="","",Futterberechnung!$P$67) -> 17
H42: Vit. D3 | I42: IE | J42: =IF(Futterberechnung!$Q$63="","",Futterberechnung!$Q$63) -> 1514 | K42: =IF(Futterberechnung!$Q$64="","",Futterberechnung!$Q$64) -> 1504 | L42: =IF(Futterberechnung!$Q$66="","",Futterberechnung!$Q$66) -> 1500 | M42: =IF(Futterberechnung!$Q$67="","",Futterberechnung!$Q$67) -> 4
H43: Vit. E | I43: mg | J43: =IF(Futterberechnung!$R$63="","",Futterberechnung!$R$63) -> 61 | K43: =IF(Futterberechnung!$R$64="","",Futterberechnung!$R$64) -> 61 | L43: =IF(Futterberechnung!$R$66="","",Futterberechnung!$R$66) -> 60 | M43: =IF(Futterberechnung!$R$67="","",Futterberechnung!$R$67) -> 1
B45: Aminosäurenverhältnis (AS-Verältnis) | C45: pcv M + C | D45: pcv Thr | E45: pcv Trp | H45: Ca / P | I45: /1 | J45: =IF(K45="","",K45) -> 1.48 | K45: =IF(Futterberechnung!$T$40="","",Futterberechnung!$T$40) -> 1.48 | L45: =IF(Futterberechnung!$T$41="","",Futterberechnung!$T$41) -> 1.35 | M45: =IF(K45="","",K45-L45) -> 0.13
B46: AS-Verhältnis in der Ration pcv Lysin 1 / | C46: =IF(Futterberechnung!N40="","",Futterberechnung!N40) -> 0.57 / | D46: =IF(Futterberechnung!P40="","",Futterberechnung!P40) -> 0.65 / | E46: =IF(Futterberechnung!R40="","",Futterberechnung!R40) -> 0.20 | H46: Ca / vP | I46: /1 | J46: 2.79 | K46: =IF(Futterberechnung!$X$40="","",Futterberechnung!$X$40) -> 2.79 | L46: =IF(Futterberechnung!$X$41="","",Futterberechnung!$X$41) -> 2.20 | M46: 0.59
B47: Orientierungswert AS-Verhältnis pcv Lysin 1 / | C47: =IF(Futterberechnung!N41="","",Futterberechnung!N41) -> 0.55 / | D47: =IF(Futterberechnung!P41="","",Futterberechnung!P41) -> 0.65 / | E47: =IF(Futterberechnung!R41="","",Futterberechnung!R41) -> 0.18 | H47: Ca / vP + Phytase | I47: /1 | J47: 2.23 | K47: =IF(Futterberechnung!$X$39="","",Futterberechnung!$X$39) -> 2.23 | L47: =IF(Futterberechnung!$X$41="","",Futterberechnung!$X$41) -> 2.20 | M47: 0.03
B48: Differenz | C48: =IF(C46="","",C46-C47) -> 0.02 | D48: =IF(D46="","",D46-D47) -> -0.00 | E48: =IF(E46="","",E46-E47) -> 0.02 | H48: Lys / MES EFF* | I48: g/MJ | J48: 0.77 | K48: =IF(Futterberechnung!$F$40="","",Futterberechnung!$F$40) -> 0.77 | L48: =IF(Futterberechnung!$F$41="","",Futterberechnung!$F$41) -> 0.77 | M48: -0.00
H49: pcv Lys / MES EFF* | I49: g/MJ | J49: 0.68 | K49: =IF(Futterberechnung!$I$40="","",Futterberechnung!$I$40) -> 0.68 | L49: =IF(Futterberechnung!$I$41="","",Futterberechnung!$I$41) -> 0.68 | M49: 0.00
H50: Lys in 100g RP | I50: g | J50: 5.52 | K50: =IF(Futterberechnung!$AA$40="","",Futterberechnung!$AA$40) -> 5.52 | L50: =IF(Futterberechnung!$AA$41="","",Futterberechnung!$AA$41) -> 5.46 | M50: 0.06
H51: Kosten / 10 MJ MES EFF* | J51: =IF(Futterberechnung!$M$31="","",$C$32/100/Futterberechnung!$M$30*10) -> 0.14 € | K51: =IF(Futterberechnung!$M$31="","",$C$33/100/Futterberechnung!$M$31*10) -> 0.14 €
H53: * EFF=Einzelfutterformel und MFF=Mischfutterformel (EFF ist genauer!)
B54: KAB oder DCAB oder BE in 100% TM der Ration | C54: =IF(Futterberechnung!S64="","",Futterberechnung!S64/88*100) -> 340
B55: Harn-pH bei Fütterung dieser Ration | C55: =IF(C54="","",6.19+0.0031*C54+3*10^-6*C54^2) -> 7.6
B57: Basenüberschuß (BE) | D57: Harn pH
B58: 100 % TM | C58: in 88 %TM
B59: 500 | C59: =B59*0.88 -> 440 | D59: 8.5
B60: 400 | C60: =B60*0.88 -> 352 | D60: 7.9
B61: 300 | C61: 264 | D61: 7.4
B62: 200 | C62: 176 | D62: 6.9
B63: 100 | C63: 88 | D63: 6.5
B64: 0 | C64: 0 | D64: 6.2
B65: -100 | C65: -88 | D65: 5.9
B66: -200 | C66: -176 | D66: 5.7
B67: -400 | C67: -352 | D67: 5.4

Sheet Futterberechnung
Z3: Ausgabe XXII Okt. 2016
C4: Landesbetrieb Landwirtschaft Hessen (LLH)
C5: Zentrale Kassel | E5: Betrieb: | H5: Mustermann | X5: Datum: | Z5: =TODAY() -> 2016-11-07
E6: Berater: | H6: ………………………………………………………. | X6: Tel.Nr.: | Z6: ……………………………
E7: Futtermischung für: | H7: =C33&" " -> Anfangsmast ab 40 Kg LM für 850 g TZ* | P7: ………………………………………………………….. | X7: Tel.Nr.: | Z7: ……………………………
E8: Mischergröße in t: | H8: 1 | J8: =IF(OR(B10="m",B10="w",'Futterkurve Mast'!T6="HP"),Orientierungswerte!D26,"") ->  | X8: gültig bis: | Z8: ……………………………
C10: Geschlecht
E11: Netto-Preis | F11: Anteil in FM | G11: Anteil bei 88% TM | H11: in Mi-scher | I11: TM | J11: Roh-pro-tein XP | K11: pcv XP | L11: Roh-faser XF | M11: ME EFF | N11: ME MFF | O11: Lys | P11: pcv Lys | Q11: M&C | R11: pcv M+C | S11: Thr | T11: pcv Thr | U11: Trp | V11: pcv Trp | W11: Ca | X11: P | Y11: v. P | Z11: v. P m. Phy | AA11: Mg | AB11: Na | AC11: €/dt
B12: FM-Nr. | C12: Futtermittel + % RP in der FM | E12: €/dt | F12: % | G12: % | H12: kg | I12: Anteil in g/kg | M12: MJ/kg | O12: Anteile in g je kg | AC12: Anteil
B13: =IF($C13=""," ",VLOOKUP($C13,Futtermittel!$A$8:$CG$171,2,FALSE)) -> 49 | C13: eigener Weizen 11% RP Ø 2016 | E13: 12.68 € | F13: 52.00% | G13: =IF(F13="","",I13/I$30) -> 51.67% | H13: =IF(F13=""," ",$H$8*F13*1000) -> 520.0 | I13: =IF($C13=""," ",VLOOKUP($C13,Futtermittel!$A$8:$CG$171,8,FALSE)*$F13) -> 458 | J13: =IF($C13=""," ",VLOOKUP($C13,Futtermittel!$A$8:$CG$171,9,FALSE)*$F13) -> 56 | K13: =IF($C13=""," ",VLOOKUP($C13,Futtermittel!$A$8:$CG$171,10,FALSE)*$F13) -> 51 | L13: =IF($C13=""," ",VLOOKUP($C13,Futtermittel!$A$8:$CG$171,11,FALSE)*$F13) -> 14 | M13: =IF($C13=""," ",VLOOKUP($C13,Futtermittel!$A$8:$CG$171,12,FALSE)*$F13) -> 7.11 | N13: =IF($C13=""," ",VLOOKUP(C13,Futtermittel!$A$8:$CG$171,13,FALSE)*$F13) -> 7.16 | O13: =IF($C13=""," ",VLOOKUP($C13,Futtermittel!$A$8:$CG$171,14,FALSE)*$F13) -> 1.6 | P13: =IF($C13=""," ",VLOOKUP($C13,Futtermittel!$A$8:$CG$171,15,FALSE)*$F13) -> 1.4 | Q13: =IF($C13=""," ",VLOOKUP($C13,Futtermittel!$A$8:$CG$171,16,FALSE)*$F13) -> 2.1 | R13: =IF($C13=""," ",VLOOKUP($C13,Futtermittel!$A$8:$CG$171,17,FALSE)*$F13) -> 1.9 | S13: =IF($C13=""," ",VLOOKUP($C13,Futtermittel!$A$8:$CG$171,18,FALSE)*$F13) -> 1.6 | T13: =IF($C13=""," ",VLOOKUP($C13,Futtermittel!$A$8:$CG$171,19,FALSE)*$F13) -> 1.4 | U13: =IF($C13=""," ",VLOOKUP($C13,Futtermittel!$A$8:$CG$171,20,FALSE)*$F13) -> 0.7 | V13: =IF($C13=""," ",VLOOKUP($C13,Futtermittel!$A$8:$CG$171,21,FALSE)*$F13) -> 0.7 | W13: =IF($C13=""," ",VLOOKUP($C13,Futtermittel!$A$8:$CG$171,22,FALSE)*$F13) -> 0.4 | X13: =IF($C13=""," ",VLOOKUP($C13,Futtermittel!$A$8:$CG$171,23,FALSE)*$F13) -> 1.7 | Y13: =IF($C13=""," ",VLOOKUP($C13,Futtermittel!$A$8:$CG$171,24,FALSE)*$F13) -> 1.0 | Z13: =IF($C13=""," ",VLOOKUP($C13,Futtermittel!$A$8:$CG$171,25,FALSE)*$F13) -> 1.1 | AA13: =IF($C13=""," ",VLOOKUP($C13,Futtermittel!$A$8:$CG$171,26,FALSE)*$F13) -> 0.6 | AB13: =IF($C13=""," ",VLOOKUP($C13,Futtermittel!$A$8:$CG$171,27,FALSE)*$F13) -> 0.1 | AC13: =IF(E13*F13=0," ",E13*F13) -> 6.59 €
B14: =IF($C14=""," ",VLOOKUP($C14,Futtermittel!$A$8:$CG$171,2,FALSE)) -> 11 | C14: eigene Gerste 11% RP Ø 2016 | E14: 11.22 € | F14: 28.00% | G14: =IF(F14="","",I14/I$30) -> 27.82% | H14: =IF(F14=""," ",$H$8*F14*1000) -> 280.0 | I14: =IF($C14=""," ",VLOOKUP($C14,Futtermittel!$A$8:$CG$171,8,FALSE)*$F14) -> 246 | J14: =IF($C14=""," ",VLOOKUP($C14,Futtermittel!$A$8:$CG$171,9,FALSE)*$F14) -> 30 | K14: =IF($C14=""," ",VLOOKUP($C14,Futtermittel!$A$8:$CG$171,10,FALSE)*$F14) -> 22 | L14: =IF($C14=""," ",VLOOKUP($C14,Futtermittel!$A$8:$CG$171,11,FALSE)*$F14) -> 15 | M14: =IF($C14=""," ",VLOOKUP($C14,Futtermittel!$A$8:$CG$171,12,FALSE)*$F14) -> 3.52 | N14: =IF($C14=""," ",VLOOKUP(C14,Futtermittel!$A$8:$CG$171,13,FALSE)*$F14) -> 3.53 | O14: =IF($C14=""," ",VLOOKUP($C14,Futtermittel!$A$8:$CG$171,14,FALSE)*$F14) -> 1.1 | P14: =IF($C14=""," ",VLOOKUP($C14,Futtermittel!$A$8:$CG$171,15,FALSE)*$F14) -> 0.8 | Q14: =IF($C14=""," ",VLOOKUP($C14,Futtermittel!$A$8:$CG$171,16,FALSE)*$F14) -> 1.1 | R14: =IF($C14=""," ",VLOOKUP($C14,Futtermittel!$A$8:$CG$171,17,FALSE)*$F14) -> 0.9 | S14: =IF($C14=""," ",VLOOKUP($C14,Futtermittel!$A$8:$CG$171,18,FALSE)*$F14) -> 1.0 | T14: =IF($C14=""," ",VLOOKUP($C14,Futtermittel!$A$8:$CG$171,19,FALSE)*$F14) -> 0.8 | U14: =IF($C14=""," ",VLOOKUP($C14,Futtermittel!$A$8:$CG$171,20,FALSE)*$F14) -> 0.4 | V14: =IF($C14=""," ",VLOOKUP($C14,Futtermittel!$A$8:$CG$171,21,FALSE)*$F14) -> 0.3 | W14: =IF($C14=""," ",VLOOKUP($C14,Futtermittel!$A$8:$CG$171,22,FALSE)*$F14) -> 0.1 | X14: =IF($C14=""," ",VLOOKUP($C14,Futtermittel!$A$8:$CG$171,23,FALSE)*$F14) -> 1.0 | Y14: =IF($C14=""," ",VLOOKUP($C14,Futtermittel!$A$8:$CG$171,24,FALSE)*$F14) -> 0.4 | Z14: =IF($C14=""," ",VLOOKUP($C14,Futtermittel!$A$8:$CG$171,25,FALSE)*$F14) -> 0.6 | AA14: =IF($C14=""," ",VLOOKUP($C14,Futtermittel!$A$8:$CG$171,26,FALSE)*$F14) -> 0.3 | AB14: =IF($C14=""," ",VLOOKUP($C14,Futtermittel!$A$8:$CG$171,27,FALSE)*$F14) -> 0.0 | AC14: =IF(E14*F14=0," ",E14*F14) -> 3.14 €
B15: =IF($C15=""," ",VLOOKUP($C15,Futtermittel!$A$8:$CG$171,2,FALSE)) -> 100 | C15: Sojaschrot HP 47% RP | E15: 35.50 € | F15: 15.50% | G15: =IF(F15="","",I15/I$30) -> 15.58% | H15: 155.0 | I15: =IF($C15=""," ",VLOOKUP($C15,Futtermittel!$A$8:$CG$171,8,FALSE)*$F15) -> 138 | J15: =IF($C15=""," ",VLOOKUP($C15,Futtermittel!$A$8:$CG$171,9,FALSE)*$F15) -> 73 | K15: =IF($C15=""," ",VLOOKUP($C15,Futtermittel!$A$8:$CG$171,10,FALSE)*$F15) -> 60 | L15: =IF($C15=""," ",VLOOKUP($C15,Futtermittel!$A$8:$CG$171,11,FALSE)*$F15) -> 8 | M15: =IF($C15=""," ",VLOOKUP($C15,Futtermittel!$A$8:$CG$171,12,FALSE)*$F15) -> 2.15 | N15: =IF($C15=""," ",VLOOKUP(C15,Futtermittel!$A$8:$CG$171,13,FALSE)*$F15) -> 2.15 | O15: =IF($C15=""," ",VLOOKUP($C15,Futtermittel!$A$8:$CG$171,14,FALSE)*$F15) -> 4.5 | P15: =IF($C15=""," ",VLOOKUP($C15,Futtermittel!$A$8:$CG$171,15,FALSE)*$F15) -> 3.9 | Q15: =IF($C15=""," ",VLOOKUP($C15,Futtermittel!$A$8:$CG$171,16,FALSE)*$F15) -> 2.0 | R15: =IF($C15=""," ",VLOOKUP($C15,Futtermittel!$A$8:$CG$171,17,FALSE)*$F15) -> 1.7 | S15: =IF($C15=""," ",VLOOKUP($C15,Futtermittel!$A$8:$CG$171,18,FALSE)*$F15) -> 2.9 | T15: =IF($C15=""," ",VLOOKUP($C15,Futtermittel!$A$8:$CG$171,19,FALSE)*$F15) -> 2.5 | U15: =IF($C15=""," ",VLOOKUP($C15,Futtermittel!$A$8:$CG$171,20,FALSE)*$F15) -> 1.0 | V15: =IF($C15=""," ",VLOOKUP($C15,Futtermittel!$A$8:$CG$171,21,FALSE)*$F15) -> 0.8 | W15: =IF($C15=""," ",VLOOKUP($C15,Futtermittel!$A$8:$CG$171,22,FALSE)*$F15) -> 0.5 | X15: =IF($C15=""," ",VLOOKUP($C15,Futtermittel!$A$8:$CG$171,23,FALSE)*$F15) -> 1.0 | Y15: =IF($C15=""," ",VLOOKUP($C15,Futtermittel!$A$8:$CG$171,24,FALSE)*$F15) -> 0.4 | Z15: =IF($C15=""," ",VLOOKUP($C15,Futtermittel!$A$8:$CG$171,25,FALSE)*$F15) -> 0.7 | AA15: =IF($C15=""," ",VLOOKUP($C15,Futtermittel!$A$8:$CG$171,26,FALSE)*$F15) -> 0.4 | AB15: =IF($C15=""," ",VLOOKUP($C15,Futtermittel!$A$8:$CG$171,27,FALSE)*$F15) -> 0.0 | AC15: 5.50 €
B16: =IF($C16=""," ",VLOOKUP($C16,Futtermittel!$A$8:$CG$171,2,FALSE)) -> 140 | C16: Rapsöl / Pflanzenöl DLG 2014 | E16: 97.00 € | F16: 1.00% | G16: 1.13% | H16: 10.0 | I16: =IF($C16=""," ",VLOOKUP($C16,Futtermittel!$A$8:$CG$171,8,FALSE)*$F16) -> 10 | J16: =IF($C16=""," ",VLOOKUP($C16,Futtermittel!$A$8:$CG$171,9,FALSE)*$F16) -> 0 | K16: =IF($C16=""," ",VLOOKUP($C16,Futtermittel!$A$8:$CG$171,10,FALSE)*$F16) -> 0 | L16: =IF($C16=""," ",VLOOKUP($C16,Futtermittel!$A$8:$CG$171,11,FALSE)*$F16) -> 0 | M16: =IF($C16=""," ",VLOOKUP($C16,Futtermittel!$A$8:$CG$171,12,FALSE)*$F16) -> 0.39 | N16: =IF($C16=""," ",VLOOKUP(C16,Futtermittel!$A$8:$CG$171,13,FALSE)*$F16) -> 0.32 | O16: =IF($C16=""," ",VLOOKUP($C16,Futtermittel!$A$8:$CG$171,14,FALSE)*$F16) -> 0.0 | P16: =IF($C16=""," ",VLOOKUP($C16,Futtermittel!$A$8:$CG$171,15,FALSE)*$F16) -> 0.0 | Q16: =IF($C16=""," ",VLOOKUP($C16,Futtermittel!$A$8:$CG$171,16,FALSE)*$F16) -> 0.0 | R16: =IF($C16=""," ",VLOOKUP($C16,Futtermittel!$A$8:$CG$171,17,FALSE)*$F16) -> 0.0 | S16: =IF($C16=""," ",VLOOKUP($C16,Futtermittel!$A$8:$CG$171,18,FALSE)*$F16) -> 0.0 | T16: =IF($C16=""," ",VLOOKUP($C16,Futtermittel!$A$8:$CG$171,19,FALSE)*$F16) -> 0.0 | U16: =IF($C16=""," ",VLOOKUP($C16,Futtermittel!$A$8:$CG$171,20,FALSE)*$F16) -> 0.0 | V16: =IF($C16=""," ",VLOOKUP($C16,Futtermittel!$A$8:$CG$171,21,FALSE)*$F16) -> 0.0 | W16: =IF($C16=""," ",VLOOKUP($C16,Futtermittel!$A$8:$CG$171,22,FALSE)*$F16) -> 0.0 | X16: =IF($C16=""," ",VLOOKUP($C16,Futtermittel!$A$8:$CG$171,23,FALSE)*$F16) -> 0.0 | Y16: =IF($C16=""," ",VLOOKUP($C16,Futtermittel!$A$8:$CG$171,24,FALSE)*$F16) -> 0.0 | Z16: =IF($C16=""," ",VLOOKUP($C16,Futtermittel!$A$8:$CG$171,25,FALSE)*$F16) -> 0.0 | AA16: =IF($C16=""," ",VLOOKUP($C16,Futtermittel!$A$8:$CG$171,26,FALSE)*$F16) -> 0.0 | AB16: =IF($C16=""," ",VLOOKUP($C16,Futtermittel!$A$8:$CG$171,27,FALSE)*$F16) -> 0.0 | AC16: 0.97 €
B17: =IF($C17=""," ",VLOOKUP($C17,Futtermittel!$A$8:$CG$171,2,FALSE)) ->  | I17: =IF($C17=""," ",VLOOKUP($C17,Futtermittel!$A$8:$CG$171,8,FALSE)*$F17) ->  | J17: =IF($C17=""," ",VLOOKUP($C17,Futtermittel!$A$8:$CG$171,9,FALSE)*$F17) ->  | K17: =IF($C17=""," ",VLOOKUP($C17,Futtermittel!$A$8:$CG$171,10,FALSE)*$F17) ->  | L17: =IF($C17=""," ",VLOOKUP($C17,Futtermittel!$A$8:$CG$171,11,FALSE)*$F17) ->  | M17: =IF($C17=""," ",VLOOKUP($C17,Futtermittel!$A$8:$CG$171,12,FALSE)*$F17) ->  | N17: =IF($C17=""," ",VLOOKUP(C17,Futtermittel!$A$8:$CG$171,13,FALSE)*$F17) ->  | O17: =IF($C17=""," ",VLOOKUP($C17,Futtermittel!$A$8:$CG$171,14,FALSE)*$F17) ->  | P17: =IF($C17=""," ",VLOOKUP($C17,Futtermittel!$A$8:$CG$171,15,FALSE)*$F17) ->  | Q17: =IF($C17=""," ",VLOOKUP($C17,Futtermittel!$A$8:$CG$171,16,FALSE)*$F17) ->  | R17: =IF($C17=""," ",VLOOKUP($C17,Futtermittel!$A$8:$CG$171,17,FALSE)*$F17) ->  | S17: =IF($C17=""," ",VLOOKUP($C17,Futtermittel!$A$8:$CG$171,18,FALSE)*$F17) ->  | T17: =IF($C17=""," ",VLOOKUP($C17,Futtermittel!$A$8:$CG$171,19,FALSE)*$F17) ->  | U17: =IF($C17=""," ",VLOOKUP($C17,Futtermittel!$A$8:$CG$171,20,FALSE)*$F17) ->  | V17: =IF($C17=""," ",VLOOKUP($C17,Futtermittel!$A$8:$CG$171,21,FALSE)*$F17) ->  | W17: =IF($C17=""," ",VLOOKUP($C17,Futtermittel!$A$8:$CG$171,22,FALSE)*$F17) ->  | X17: =IF($C17=""," ",VLOOKUP($C17,Futtermittel!$A$8:$CG$171,23,FALSE)*$F17) ->  | Y17: =IF($C17=""," ",VLOOKUP($C17,Futtermittel!$A$8:$CG$171,24,FALSE)*$F17) ->  | Z17: =IF($C17=""," ",VLOOKUP($C17,Futtermittel!$A$8:$CG$171,25,FALSE)*$F17) ->  | AA17: =IF($C17=""," ",VLOOKUP($C17,Futtermittel!$A$8:$CG$171,26,FALSE)*$F17) ->  | AB17: =IF($C17=""," ",VLOOKUP($C17,Futtermittel!$A$8:$CG$171,27,FALSE)*$F17) -> 
B18: =IF($C18=""," ",VLOOKUP($C18,Futtermittel!$A$8:$CG$171,2,FALSE)) ->  | I18: =IF($C18=""," ",VLOOKUP($C18,Futtermittel!$A$8:$CG$171,8,FALSE)*$F18) ->  | J18: =IF($C18=""," ",VLOOKUP($C18,Futtermittel!$A$8:$CG$171,9,FALSE)*$F18) ->  | K18: =IF($C18=""," ",VLOOKUP($C18,Futtermittel!$A$8:$CG$171,10,FALSE)*$F18) ->  | L18: =IF($C18=""," ",VLOOKUP($C18,Futtermittel!$A$8:$CG$171,11,FALSE)*$F18) ->  | M18: =IF($C18=""," ",VLOOKUP($C18,Futtermittel!$A$8:$CG$171,12,FALSE)*$F18) ->  | N18: =IF($C18=""," ",VLOOKUP(C18,Futtermittel!$A$8:$CG$171,13,FALSE)*$F18) ->  | O18: =IF($C18=""," ",VLOOKUP($C18,Futtermittel!$A$8:$CG$171,14,FALSE)*$F18) ->  | P18: =IF($C18=""," ",VLOOKUP($C18,Futtermittel!$A$8:$CG$171,15,FALSE)*$F18) ->  | Q18: =IF($C18=""," ",VLOOKUP($C18,Futtermittel!$A$8:$CG$171,16,FALSE)*$F18) ->  | R18: =IF($C18=""," ",VLOOKUP($C18,Futtermittel!$A$8:$CG$171,17,FALSE)*$F18) ->  | S18: =IF($C18=""," ",VLOOKUP($C18,Futtermittel!$A$8:$CG$171,18,FALSE)*$F18) ->  | T18: =IF($C18=""," ",VLOOKUP($C18,Futtermittel!$A$8:$CG$171,19,FALSE)*$F18) ->  | U18: =IF($C18=""," ",VLOOKUP($C18,Futtermittel!$A$8:$CG$171,20,FALSE)*$F18) ->  | V18: =IF($C18=""," ",VLOOKUP($C18,Futtermittel!$A$8:$CG$171,21,FALSE)*$F18) ->  | W18: =IF($C18=""," ",VLOOKUP($C18,Futtermittel!$A$8:$CG$171,22,FALSE)*$F18) ->  | X18: =IF($C18=""," ",VLOOKUP($C18,Futtermittel!$A$8:$CG$171,23,FALSE)*$F18) ->  | Y18: =IF($C18=""," ",VLOOKUP($C18,Futtermittel!$A$8:$CG$171,24,FALSE)*$F18) ->  | Z18: =IF($C18=""," ",VLOOKUP($C18,Futtermittel!$A$8:$CG$171,25,FALSE)*$F18) ->  | AA18: =IF($C18=""," ",VLOOKUP($C18,Futtermittel!$A$8:$CG$171,26,FALSE)*$F18) ->  | AB18: =IF($C18=""," ",VLOOKUP($C18,Futtermittel!$A$8:$CG$171,27,FALSE)*$F18) -> 
B19: =IF($C19=""," ",VLOOKUP($C19,Futtermittel!$A$8:$CG$171,2,FALSE)) ->  | I19: =IF($C19=""," ",VLOOKUP($C19,Futtermittel!$A$8:$CG$171,8,FALSE)*$F19) ->  | J19: =IF($C19=""," ",VLOOKUP($C19,Futtermittel!$A$8:$CG$171,9,FALSE)*$F19) ->  | K19: =IF($C19=""," ",VLOOKUP($C19,Futtermittel!$A$8:$CG$171,10,FALSE)*$F19) ->  | L19: =IF($C19=""," ",VLOOKUP($C19,Futtermittel!$A$8:$CG$171,11,FALSE)*$F19) ->  | M19: =IF($C19=""," ",VLOOKUP($C19,Futtermittel!$A$8:$CG$171,12,FALSE)*$F19) ->  | N19: =IF($C19=""," ",VLOOKUP(C19,Futtermittel!$A$8:$CG$171,13,FALSE)*$F19) ->  | O19: =IF($C19=""," ",VLOOKUP($C19,Futtermittel!$A$8:$CG$171,14,FALSE)*$F19) ->  | P19: =IF($C19=""," ",VLOOKUP($C19,Futtermittel!$A$8:$CG$171,15,FALSE)*$F19) ->  | Q19: =IF($C19=""," ",VLOOKUP($C19,Futtermittel!$A$8:$CG$171,16,FALSE)*$F19) ->  | R19: =IF($C19=""," ",VLOOKUP($C19,Futtermittel!$A$8:$CG$171,17,FALSE)*$F19) ->  | S19: =IF($C19=""," ",VLOOKUP($C19,Futtermittel!$A$8:$CG$171,18,FALSE)*$F19) ->  | T19: =IF($C19=""," ",VLOOKUP($C19,Futtermittel!$A$8:$CG$171,19,FALSE)*$F19) ->  | U19: =IF($C19=""," ",VLOOKUP($C19,Futtermittel!$A$8:$CG$171,20,FALSE)*$F19) ->  | V19: =IF($C19=""," ",VLOOKUP($C19,Futtermittel!$A$8:$CG$171,21,FALSE)*$F19) ->  | W19: =IF($C19=""," ",VLOOKUP($C19,Futtermittel!$A$8:$CG$171,22,FALSE)*$F19) ->  | X19: =IF($C19=""," ",VLOOKUP($C19,Futtermittel!$A$8:$CG$171,23,FALSE)*$F19) ->  | Y19: =IF($C19=""," ",VLOOKUP($C19,Futtermittel!$A$8:$CG$171,24,FALSE)*$F19) ->  | Z19: =IF($C19=""," ",VLOOKUP($C19,Futtermittel!$A$8:$CG$171,25,FALSE)*$F19) ->  | AA19: =IF($C19=""," ",VLOOKUP($C19,Futtermittel!$A$8:$CG$171,26,FALSE)*$F19) ->  | AB19: =IF($C19=""," ",VLOOKUP($C19,Futtermittel!$A$8:$CG$171,27,FALSE)*$F19) ->  | AC19: =IF(E19*F19=0," ",E19*F19) -> 
B20: =IF($C20=""," ",VLOOKUP($C20,Futtermittel!$A$8:$CG$171,2,FALSE)) ->  | I20: =IF($C20=""," ",VLOOKUP($C20,Futtermittel!$A$8:$CG$171,8,FALSE)*$F20) ->  | J20: =IF($C20=""," ",VLOOKUP($C20,Futtermittel!$A$8:$CG$171,9,FALSE)*$F20) ->  | K20: =IF($C20=""," ",VLOOKUP($C20,Futtermittel!$A$8:$CG$171,10,FALSE)*$F20) ->  | L20: =IF($C20=""," ",VLOOKUP($C20,Futtermittel!$A$8:$CG$171,11,FALSE)*$F20) ->  | M20: =IF($C20=""," ",VLOOKUP($C20,Futtermittel!$A$8:$CG$171,12,FALSE)*$F20) ->  | N20: =IF($C20=""," ",VLOOKUP(C20,Futtermittel!$A$8:$CG$171,13,FALSE)*$F20) ->  | O20: =IF($C20=""," ",VLOOKUP($C20,Futtermittel!$A$8:$CG$171,14,FALSE)*$F20) ->  | P20: =IF($C20=""," ",VLOOKUP($C20,Futtermittel!$A$8:$CG$171,15,FALSE)*$F20) ->  | Q20: =IF($C20=""," ",VLOOKUP($C20,Futtermittel!$A$8:$CG$171,16,FALSE)*$F20) ->  | R20: =IF($C20=""," ",VLOOKUP($C20,Futtermittel!$A$8:$CG$171,17,FALSE)*$F20) ->  | S20: =IF($C20=""," ",VLOOKUP($C20,Futtermittel!$A$8:$CG$171,18,FALSE)*$F20) ->  | T20: =IF($C20=""," ",VLOOKUP($C20,Futtermittel!$A$8:$CG$171,19,FALSE)*$F20) ->  | U20: =IF($C20=""," ",VLOOKUP($C20,Futtermittel!$A$8:$CG$171,20,FALSE)*$F20) ->  | V20: =IF($C20=""," ",VLOOKUP($C20,Futtermittel!$A$8:$CG$171,21,FALSE)*$F20) ->  | W20: =IF($C20=""," ",VLOOKUP($C20,Futtermittel!$A$8:$CG$171,22,FALSE)*$F20) ->  | X20: =IF($C20=""," ",VLOOKUP($C20,Futtermittel!$A$8:$CG$171,23,FALSE)*$F20) ->  | Y20: =IF($C20=""," ",VLOOKUP($C20,Futtermittel!$A$8:$CG$171,24,FALSE)*$F20) ->  | Z20: =IF($C20=""," ",VLOOKUP($C20,Futtermittel!$A$8:$CG$171,25,FALSE)*$F20) ->  | AA20: =IF($C20=""," ",VLOOKUP($C20,Futtermittel!$A$8:$CG$171,26,FALSE)*$F20) ->  | AB20: =IF($C20=""," ",VLOOKUP($C20,Futtermittel!$A$8:$CG$171,27,FALSE)*$F20) ->  | AC20: =IF(E20*F20=0," ",E20*F20) -> 
B21: =IF($C21=""," ",VLOOKUP($C21,Futtermittel!$A$8:$CG$171,2,FALSE)) ->  | I21: =IF($C21=""," ",VLOOKUP($C21,Futtermittel!$A$8:$CG$171,8,FALSE)*$F21) ->  | J21: =IF($C21=""," ",VLOOKUP($C21,Futtermittel!$A$8:$CG$171,9,FALSE)*$F21) ->  | K21: =IF($C21=""," ",VLOOKUP($C21,Futtermittel!$A$8:$CG$171,10,FALSE)*$F21) ->  | L21: =IF($C21=""," ",VLOOKUP($C21,Futtermittel!$A$8:$CG$171,11,FALSE)*$F21) ->  | M21: =IF($C21=""," ",VLOOKUP($C21,Futtermittel!$A$8:$CG$171,12,FALSE)*$F21) ->  | N21: =IF($C21=""," ",VLOOKUP(C21,Futtermittel!$A$8:$CG$171,13,FALSE)*$F21) ->  | O21: =IF($C21=""," ",VLOOKUP($C21,Futtermittel!$A$8:$CG$171,14,FALSE)*$F21) ->  | P21: =IF($C21=""," ",VLOOKUP($C21,Futtermittel!$A$8:$CG$171,15,FALSE)*$F21) ->  | Q21: =IF($C21=""," ",VLOOKUP($C21,Futtermittel!$A$8:$CG$171,16,FALSE)*$F21) ->  | R21: =IF($C21=""," ",VLOOKUP($C21,Futtermittel!$A$8:$CG$171,17,FALSE)*$F21) ->  | S21: =IF($C21=""," ",VLOOKUP($C21,Futtermittel!$A$8:$CG$171,18,FALSE)*$F21) ->  | T21: =IF($C21=""," ",VLOOKUP($C21,Futtermittel!$A$8:$CG$171,19,FALSE)*$F21) ->  | U21: =IF($C21=""," ",VLOOKUP($C21,Futtermittel!$A$8:$CG$171,20,FALSE)*$F21) ->  | V21: =IF($C21=""," ",VLOOKUP($C21,Futtermittel!$A$8:$CG$171,21,FALSE)*$F21) ->  | W21: =IF($C21=""," ",VLOOKUP($C21,Futtermittel!$A$8:$CG$171,22,FALSE)*$F21) ->  | X21: =IF($C21=""," ",VLOOKUP($C21,Futtermittel!$A$8:$CG$171,23,FALSE)*$F21) ->  | Y21: =IF($C21=""," ",VLOOKUP($C21,Futtermittel!$A$8:$CG$171,24,FALSE)*$F21) ->  | Z21: =IF($C21=""," ",VLOOKUP($C21,Futtermittel!$A$8:$CG$171,25,FALSE)*$F21) ->  | AA21: =IF($C21=""," ",VLOOKUP($C21,Futtermittel!$A$8:$CG$171,26,FALSE)*$F21) ->  | AB21: =IF($C21=""," ",VLOOKUP($C21,Futtermittel!$A$8:$CG$171,27,FALSE)*$F21) -> 
B22: =IF($C22=""," ",VLOOKUP($C22,Futtermittel!$A$8:$CG$171,2,FALSE)) ->  | I22: =IF($C22=""," ",VLOOKUP($C22,Futtermittel!$A$8:$CG$171,8,FALSE)*$F22) ->  | J22: =IF($C22=""," ",VLOOKUP($C22,Futtermittel!$A$8:$CG$171,9,FALSE)*$F22) ->  | K22: =IF($C22=""," ",VLOOKUP($C22,Futtermittel!$A$8:$CG$171,10,FALSE)*$F22) ->  | L22: =IF($C22=""," ",VLOOKUP($C22,Futtermittel!$A$8:$CG$171,11,FALSE)*$F22) ->  | M22: =IF($C22=""," ",VLOOKUP($C22,Futtermittel!$A$8:$CG$171,12,FALSE)*$F22) ->  | N22: =IF($C22=""," ",VLOOKUP(C22,Futtermittel!$A$8:$CG$171,13,FALSE)*$F22) ->  | O22: =IF($C22=""," ",VLOOKUP($C22,Futtermittel!$A$8:$CG$171,14,FALSE)*$F22) ->  | P22: =IF($C22=""," ",VLOOKUP($C22,Futtermittel!$A$8:$CG$171,15,FALSE)*$F22) ->  | Q22: =IF($C22=""," ",VLOOKUP($C22,Futtermittel!$A$8:$CG$171,16,FALSE)*$F22) ->  | R22: =IF($C22=""," ",VLOOKUP($C22,Futtermittel!$A$8:$CG$171,17,FALSE)*$F22) ->  | S22: =IF($C22=""," ",VLOOKUP($C22,Futtermittel!$A$8:$CG$171,18,FALSE)*$F22) ->  | T22: =IF($C22=""," ",VLOOKUP($C22,Futtermittel!$A$8:$CG$171,19,FALSE)*$F22) ->  | U22: =IF($C22=""," ",VLOOKUP($C22,Futtermittel!$A$8:$CG$171,20,FALSE)*$F22) ->  | V22: =IF($C22=""," ",VLOOKUP($C22,Futtermittel!$A$8:$CG$171,21,FALSE)*$F22) ->  | W22: =IF($C22=""," ",VLOOKUP($C22,Futtermittel!$A$8:$CG$171,22,FALSE)*$F22) ->  | X22: =IF($C22=""," ",VLOOKUP($C22,Futtermittel!$A$8:$CG$171,23,FALSE)*$F22) ->  | Y22: =IF($C22=""," ",VLOOKUP($C22,Futtermittel!$A$8:$CG$171,24,FALSE)*$F22) ->  | Z22: =IF($C22=""," ",VLOOKUP($C22,Futtermittel!$A$8:$CG$171,25,FALSE)*$F22) ->  | AA22: =IF($C22=""," ",VLOOKUP($C22,Futtermittel!$A$8:$CG$171,26,FALSE)*$F22) ->  | AB22: =IF($C22=""," ",VLOOKUP($C22,Futtermittel!$A$8:$CG$171,27,FALSE)*$F22) -> 
B23: =IF($C23=""," ",VLOOKUP($C23,Futtermittel!$A$8:$CG$171,2,FALSE)) ->  | I23: =IF($C23=""," ",VLOOKUP($C23,Futtermittel!$A$8:$CG$171,8,FALSE)*$F23) ->  | J23: =IF($C23=""," ",VLOOKUP($C23,Futtermittel!$A$8:$CG$171,9,FALSE)*$F23) ->  | K23: =IF($C23=""," ",VLOOKUP($C23,Futtermittel!$A$8:$CG$171,10,FALSE)*$F23) ->  | L23: =IF($C23=""," ",VLOOKUP($C23,Futtermittel!$A$8:$CG$171,11,FALSE)*$F23) ->  | M23: =IF($C23=""," ",VLOOKUP($C23,Futtermittel!$A$8:$CG$171,12,FALSE)*$F23) ->  | N23: =IF($C23=""," ",VLOOKUP(C23,Futtermittel!$A$8:$CG$171,13,FALSE)*$F23) ->  | O23: =IF($C23=""," ",VLOOKUP($C23,Futtermittel!$A$8:$CG$171,14,FALSE)*$F23) ->  | P23: =IF($C23=""," ",VLOOKUP($C23,Futtermittel!$A$8:$CG$171,15,FALSE)*$F23) ->  | Q23: =IF($C23=""," ",VLOOKUP($C23,Futtermittel!$A$8:$CG$171,16,FALSE)*$F23) ->  | R23: =IF($C23=""," ",VLOOKUP($C23,Futtermittel!$A$8:$CG$171,17,FALSE)*$F23) ->  | S23: =IF($C23=""," ",VLOOKUP($C23,Futtermittel!$A$8:$CG$171,18,FALSE)*$F23) ->  | T23: =IF($C23=""," ",VLOOKUP($C23,Futtermittel!$A$8:$CG$171,19,FALSE)*$F23) ->  | U23: =IF($C23=""," ",VLOOKUP($C23,Futtermittel!$A$8:$CG$171,20,FALSE)*$F23) ->  | V23: =IF($C23=""," ",VLOOKUP($C23,Futtermittel!$A$8:$CG$171,21,FALSE)*$F23) ->  | W23: =IF($C23=""," ",VLOOKUP($C23,Futtermittel!$A$8:$CG$171,22,FALSE)*$F23) ->  | X23: =IF($C23=""," ",VLOOKUP($C23,Futtermittel!$A$8:$CG$171,23,FALSE)*$F23) ->  | Y23: =IF($C23=""," ",VLOOKUP($C23,Futtermittel!$A$8:$CG$171,24,FALSE)*$F23) ->  | Z23: =IF($C23=""," ",VLOOKUP($C23,Futtermittel!$A$8:$CG$171,25,FALSE)*$F23) ->  | AA23: =IF($C23=""," ",VLOOKUP($C23,Futtermittel!$A$8:$CG$171,26,FALSE)*$F23) ->  | AB23: =IF($C23=""," ",VLOOKUP($C23,Futtermittel!$A$8:$CG$171,27,FALSE)*$F23) -> 
B24: EF-Nr. | C24: Ergänzungsfutter | D24: VQ in % | G24: =IF(F24="","",I24/I$2941) ->  | AC24: =IF(E24*F24=0," ",E24*F24) -> 
B25: =IF($C25=""," ",VLOOKUP($C25,Ergänzungsfutter!$A$11:$Q$26,3,FALSE)) ->  | D25: 85% | G25: =IF(F25="","",I25/I$30) ->  | I25: =IF($C25=""," ",VLOOKUP($C25,Ergänzungsfutter!$A$11:$BE$26,5,FALSE)*$F25) ->  | J25: =IF($C25=""," ",VLOOKUP($C25,Ergänzungsfutter!$A$11:$BE$26,6,FALSE)*$F25) ->  | K25: =IF($C25=""," ",VLOOKUP($C25,Ergänzungsfutter!$A$11:$BE$26,6,FALSE)*$F25*D25) ->  | L25: =IF($C25=""," ",VLOOKUP($C25,Ergänzungsfutter!$A$11:$BE$26,7,FALSE)*$F25) ->  | M25: =IF($C25=""," ",IF(VLOOKUP($C25,Ergänzungsfutter!$A$11:$BE$26,8,FALSE)=" ",0,VLOOKUP($C25,Ergänzungsfutter!$A$11:$BE$26,8,FALSE)*$F25)) ->  | N25: =IF($C25=""," ",IF(VLOOKUP($C25,Ergänzungsfutter!$A$11:$BE$26,8,FALSE)=" ",0,VLOOKUP($C25,Ergänzungsfutter!$A$11:$BE$26,8,FALSE)*$F25)) ->  | O25: =IF($C25=""," ",VLOOKUP($C25,Ergänzungsfutter!$A$11:$BE$26,9,FALSE)*$F25) ->  | P25: =IF($C25=""," ",VLOOKUP($C25,Ergänzungsfutter!$A$11:$BE$26,9,FALSE)*$F25*D25) ->  | Q25: =IF($C25=""," ",VLOOKUP($C25,Ergänzungsfutter!$A$11:$BE$26,10,FALSE)*$F25) ->  | R25: =IF($C25=""," ",VLOOKUP($C25,Ergänzungsfutter!$A$11:$BE$26,10,FALSE)*$F25*D25) ->  | S25: =IF($C25=""," ",VLOOKUP($C25,Ergänzungsfutter!$A$11:$BE$26,11,FALSE)*$F25) ->  | T25: =IF($C25=""," ",VLOOKUP($C25,Ergänzungsfutter!$A$11:$BE$26,11,FALSE)*$F25*D25) ->  | U25: =IF($C25=""," ",VLOOKUP($C25,Ergänzungsfutter!$A$11:$BE$26,12,FALSE)*$F25) ->  | V25: =IF($C25=""," ",VLOOKUP($C25,Ergänzungsfutter!$A$11:$BE$26,12,FALSE)*$F25*D25) ->  | W25: =IF($C25=""," ",VLOOKUP($C25,Ergänzungsfutter!$A$11:$BE$26,13,FALSE)*$F25) ->  | X25: =IF($C25=""," ",VLOOKUP($C25,Ergänzungsfutter!$A$11:$BE$26,14,FALSE)*$F25) ->  | Y25: =IF($C25=""," ",VLOOKUP($C25,Ergänzungsfutter!$A$11:$BE$26,15,FALSE)*$F25) ->  | Z25: =IF($C25=""," ",IF(Y25>VLOOKUP($C25,Ergänzungsfutter!$A$11:$BE$26,14,FALSE)*$F25*0.65,Y25,VLOOKUP($C25,Ergänzungsfutter!$A$11:$BE$26,14,FALSE)*$F25*0.65)) ->  | AA25: =IF($C25=""," ",VLOOKUP($C25,Ergänzungsfutter!$A$11:$BE$26,16,FALSE)*$F25) ->  | AB25: =IF($C25=""," ",VLOOKUP($C25,Ergänzungsfutter!$A$11:$BE$26,17,FALSE)*$F25) -> 
B26: =IF($C26=""," ",VLOOKUP($C26,Ergänzungsfutter!$A$11:$Q$26,3,FALSE)) ->  | G26: =IF(F26="","",I26/I$30) ->  | I26: =IF($C26=""," ",VLOOKUP($C26,Ergänzungsfutter!$A$11:$BE$26,5,FALSE)*$F26) ->  | J26: =IF($C26=""," ",VLOOKUP($C26,Ergänzungsfutter!$A$11:$BE$26,6,FALSE)*$F26) ->  | K26: =IF($C26=""," ",VLOOKUP($C26,Ergänzungsfutter!$A$11:$BE$26,6,FALSE)*$F26*D26) ->  | L26: =IF($C26=""," ",VLOOKUP($C26,Ergänzungsfutter!$A$11:$BE$26,7,FALSE)*$F26) ->  | M26: =IF($C26=""," ",IF(VLOOKUP($C26,Ergänzungsfutter!$A$11:$BE$26,8,FALSE)=" ",0,VLOOKUP($C26,Ergänzungsfutter!$A$11:$BE$26,8,FALSE)*$F26)) ->  | N26: =IF($C26=""," ",IF(VLOOKUP($C26,Ergänzungsfutter!$A$11:$BE$26,8,FALSE)=" ",0,VLOOKUP($C26,Ergänzungsfutter!$A$11:$BE$26,8,FALSE)*$F26)) ->  | O26: =IF($C26=""," ",VLOOKUP($C26,Ergänzungsfutter!$A$11:$BE$26,9,FALSE)*$F26) ->  | P26: =IF($C26=""," ",VLOOKUP($C26,Ergänzungsfutter!$A$11:$BE$26,9,FALSE)*$F26*D26) ->  | Q26: =IF($C26=""," ",VLOOKUP($C26,Ergänzungsfutter!$A$11:$BE$26,10,FALSE)*$F26) ->  | R26: =IF($C26=""," ",VLOOKUP($C26,Ergänzungsfutter!$A$11:$BE$26,10,FALSE)*$F26*D26) ->  | S26: =IF($C26=""," ",VLOOKUP($C26,Ergänzungsfutter!$A$11:$BE$26,11,FALSE)*$F26) ->  | T26: =IF($C26=""," ",VLOOKUP($C26,Ergänzungsfutter!$A$11:$BE$26,11,FALSE)*$F26*D26) ->  | U26: =IF($C26=""," ",VLOOKUP($C26,Ergänzungsfutter!$A$11:$BE$26,12,FALSE)*$F26) ->  | V26: =IF($C26=""," ",VLOOKUP($C26,Ergänzungsfutter!$A$11:$BE$26,12,FALSE)*$F26*D26) ->  | W26: =IF($C26=""," ",VLOOKUP($C26,Ergänzungsfutter!$A$11:$BE$26,13,FALSE)*$F26) ->  | X26: =IF($C26=""," ",VLOOKUP($C26,Ergänzungsfutter!$A$11:$BE$26,14,FALSE)*$F26) ->  | Y26: =IF($C26=""," ",VLOOKUP($C26,Ergänzungsfutter!$A$11:$BE$26,15,FALSE)*$F26) ->  | Z26: =IF($C26=""," ",IF(Y26>VLOOKUP($C26,Ergänzungsfutter!$A$11:$BE$26,14,FALSE)*$F26*0.65,Y26,VLOOKUP($C26,Ergänzungsfutter!$A$11:$BE$26,14,FALSE)*$F26*0.65)) ->  | AA26: =IF($C26=""," ",VLOOKUP($C26,Ergänzungsfutter!$A$11:$BE$26,16,FALSE)*$F26) ->  | AB26: =IF($C26=""," ",VLOOKUP($C26,Ergänzungsfutter!$A$11:$BE$26,17,FALSE)*$F26) -> 
B27: Nr. | C27: Mineralfutter | G27: =IF(F27="","",I27/I$2944) -> 
A28: 2 | B28: =IF($C28=""," ",VLOOKUP($C28,Mineralfutter!$A$11:$BE$25,3,FALSE)) -> 5 | C28: Optimales MinFu AM 850g TZ 3,5% + Phytase | E28: 81.00 € | F28: 3.50% | G28: =IF(F28="","",I28/I$30) -> 3.79% | H28: 35.0 | I28: =IF($C28=""," ",VLOOKUP($C28,Mineralfutter!$A$11:$BE$25,5,FALSE)*$F28) -> 34 | J28: =IF($C28=""," ",VLOOKUP($C28,Mineralfutter!$A$11:$BE$25,6,FALSE)*$F28) -> 5 | K28: =IF($C28=""," ",VLOOKUP($C28,Mineralfutter!$A$11:$BE$25,6,FALSE)*$F28) -> 5 | L28: =IF($C28=""," ",VLOOKUP($C28,Mineralfutter!$A$11:$BE$25,7,FALSE)*$F28) -> 0 | M28: =IF($C28=""," ",IF(VLOOKUP($C28,Mineralfutter!$A$11:$BE$25,8,FALSE)=" ",0,VLOOKUP($C28,Mineralfutter!$A$11:$BE$25,8,FALSE)*$F28)) -> 0.10 | N28: =IF($C28=""," ",IF(VLOOKUP($C28,Mineralfutter!$A$11:$BE$25,8,FALSE)=" ",0,VLOOKUP($C28,Mineralfutter!$A$11:$BE$25,8,FALSE)*$F28)) -> 0.10 | O28: =IF($C28=""," ",VLOOKUP($C28,Mineralfutter!$A$11:$BE$25,9,FALSE)*$F28) -> 3.0 | P28: =IF($C28=""," ",VLOOKUP($C28,Mineralfutter!$A$11:$BE$25,9,FALSE)*$F28) -> 3.0 | Q28: =IF($C28=""," ",VLOOKUP($C28,Mineralfutter!$A$11:$BE$25,10,FALSE)*$F28) -> 0.6 | R28: =IF($C28=""," ",VLOOKUP($C28,Mineralfutter!$A$11:$BE$25,10,FALSE)*$F28) -> 0.6 | S28: =IF($C28=""," ",VLOOKUP($C28,Mineralfutter!$A$11:$BE$25,11,FALSE)*$F28) -> 1.2 | T28: =IF($C28=""," ",VLOOKUP($C28,Mineralfutter!$A$11:$BE$25,11,FALSE)*$F28) -> 1.2 | U28: =IF($C28=""," ",VLOOKUP($C28,Mineralfutter!$A$11:$BE$25,12,FALSE)*$F28) -> 0.0 | V28: =IF($C28=""," ",VLOOKUP($C28,Mineralfutter!$A$11:$BE$25,12,FALSE)*$F28) -> 0.0 | W28: =IF($C28=""," ",VLOOKUP($C28,Mineralfutter!$A$11:$BE$25,13,FALSE)*$F28) -> 5.1 | X28: =IF($C28=""," ",VLOOKUP($C28,Mineralfutter!$A$11:$BE$25,14,FALSE)*$F28) -> 0.4 | Y28: =IF($C28=""," ",VLOOKUP($C28,Mineralfutter!$A$11:$BE$25,15,FALSE)*$F28) -> 0.3 | Z28: =IF($C28=""," ",VLOOKUP($C28,Mineralfutter!$A$11:$BE$25,15,FALSE)*$F28) -> 0.3 | AA28: =IF($C28=""," ",VLOOKUP($C28,Mineralfutter!$A$11:$BE$25,16,FALSE)*$F28) -> 0.0 | AB28: =IF($C28=""," ",VLOOKUP($C28,Mineralfutter!$A$11:$BE$25,17,FALSE)*$F28) -> 1.8 | AC28: 2.84 €
B29: =IF($C29=""," ",VLOOKUP($C29,Mineralfutter!$A$11:$BE$25,3,FALSE)) ->  | G29: =IF(F29="","",I29/I$30) ->  | I29: =IF($C29=""," ",VLOOKUP($C29,Mineralfutter!$A$11:$BE$25,5,FALSE)*$F29) ->  | J29: =IF($C29=""," ",VLOOKUP($C29,Mineralfutter!$A$11:$BE$25,6,FALSE)*$F29) ->  | K29: =IF($C29=""," ",VLOOKUP($C29,Mineralfutter!$A$11:$BE$25,6,FALSE)*$F29) ->  | L29: =IF($C29=""," ",VLOOKUP($C29,Mineralfutter!$A$11:$BE$25,7,FALSE)*$F29) ->  | M29: =IF($C29=""," ",IF(VLOOKUP($C29,Mineralfutter!$A$11:$BE$25,8,FALSE)=" ",0,VLOOKUP($C29,Mineralfutter!$A$11:$BE$25,8,FALSE)*$F29)) ->  | N29: =IF($C29=""," ",IF(VLOOKUP($C29,Mineralfutter!$A$11:$BE$25,8,FALSE)=" ",0,VLOOKUP($C29,Mineralfutter!$A$11:$BE$25,8,FALSE)*$F29)) ->  | O29: =IF($C29=""," ",VLOOKUP($C29,Mineralfutter!$A$11:$BE$25,9,FALSE)*$F29) ->  | P29: =IF($C29=""," ",VLOOKUP($C29,Mineralfutter!$A$11:$BE$25,9,FALSE)*$F29) ->  | Q29: =IF($C29=""," ",VLOOKUP($C29,Mineralfutter!$A$11:$BE$25,10,FALSE)*$F29) ->  | R29: =IF($C29=""," ",VLOOKUP($C29,Mineralfutter!$A$11:$BE$25,10,FALSE)*$F29) ->  | S29: =IF($C29=""," ",VLOOKUP($C29,Mineralfutter!$A$11:$BE$25,11,FALSE)*$F29) ->  | T29: =IF($C29=""," ",VLOOKUP($C29,Mineralfutter!$A$11:$BE$25,11,FALSE)*$F29) ->  | U29: =IF($C29=""," ",VLOOKUP($C29,Mineralfutter!$A$11:$BE$25,12,FALSE)*$F29) ->  | V29: =IF($C29=""," ",VLOOKUP($C29,Mineralfutter!$A$11:$BE$25,12,FALSE)*$F29) ->  | W29: =IF($C29=""," ",VLOOKUP($C29,Mineralfutter!$A$11:$BE$25,13,FALSE)*$F29) ->  | X29: =IF($C29=""," ",VLOOKUP($C29,Mineralfutter!$A$11:$BE$25,14,FALSE)*$F29) ->  | Y29: =IF($C29=""," ",VLOOKUP($C29,Mineralfutter!$A$11:$BE$25,15,FALSE)*$F29) ->  | Z29: =IF($C29=""," ",VLOOKUP($C29,Mineralfutter!$A$11:$BE$25,15,FALSE)*$F29) ->  | AA29: =IF($C29=""," ",VLOOKUP($C29,Mineralfutter!$A$11:$BE$25,16,FALSE)*$F29) ->  | AB29: =IF($C29=""," ",VLOOKUP($C29,Mineralfutter!$A$11:$BE$25,17,FALSE)*$F29) -> 
C30: Summe | E30: =AC30 -> 19.04 € | F30: =IF(SUM(F13:F29,F36:F37)=0," ",SUM(F13:F29,F36:F37)) -> 100.00% | I30: =IF(F30=" "," ",SUM(I13:I29,I36*$F36,I37*$F37)) -> 886 | J30: =IF(I30=" "," ",SUM(J13:J29,J36*$F36,J37*$F37)) -> 164 | K30: 137 | L30: 37 | M30: =IF(L30=" "," ",SUM(M13:M29,N36*$F36,N37*$F37)) -> 13.27 | N30: =IF(F30=" "," ",SUM(N13:N29,N36*$F36,N37*$F37)) -> 13.26 | O30: =IF(M30=" "," ",SUM(O13:O29,O36*$F36,O37*$F37)) -> 10.1 | P30: 9.1 | Q30: 5.9 | R30: 5.1 | S30: 6.7 | T30: 5.9 | U30: 2.1 | V30: 1.8 | W30: 6.1 | X30: 4.1 | Y30: 2.2 | Z30: 2.7 | AA30: 1.3 | AB30: 1.9 | AC30: =IF(SUM(AC13:AC29,AC36:AC37)=0," ",SUM(AC13:AC29,AC36:AC37)) -> 19.04 €
C31: Summe auf 88% TM umgerechnet | E31: =AC31 -> 18.92 € | F31: =F30 -> 100.00% | I31: 880 | J31: =IF($F31=" "," ",ROUND($I31*J30/$I30*$F31,0)) -> 163 | K31: =IF($F31=" "," ",ROUND($I31*K30/$I30*$F31,0)) -> 137 | L31: =IF($F31=" "," ",ROUND($I31*L30/$I30*$F31,0)) -> 37 | M31: =IF($F31=" "," ",ROUND($I31*M30/$I30*$F31,2)) -> 13.19 | N31: =IF($F31=" "," ",ROUND($I31*N30/$I30*$F31,2)) -> 13.18 | O31: =IF($F31=" "," ",ROUND($I31*O30/$I30*$F31,1)) -> 10.1 | P31: 9.0 | Q31: 5.8 | R31: 5.1 | S31: 6.6 | T31: 5.8 | U31: 2.1 | V31: 1.8 | W31: 6.0 | X31: 4.1 | Y31: 2.2 | Z31: 2.7 | AA31: 1.3 | AB31: 1.9 | AC31: =IF(AC30=" "," ",AC30*I31/I30) -> 18.92 €
B32: OW-Nr. | C32: aus Tabelle Orientierungswerte in g
B33: =IF($C33=""," ",VLOOKUP($C33,Orientierungswerte!A13:AZ117,2,FALSE)) -> 10 | C33: Anfangsmast ab 40 Kg LM für 850 g TZ* | E33: - | F33: =F30 -> 100.00% | I33: =I31 -> 880 | J33: =IF($C33=""," ",ROUND(VLOOKUP($C$33,Orientierungswerte!$A$13:$AZ$117,5,FALSE)*$F$33,0)) -> 163 | K33: =IF($C33=""," ",ROUND(VLOOKUP($C$33,Orientierungswerte!$A$13:$AZ$117,6,FALSE)*$F$33,0)) -> 143 | L33: =IF($C33=""," ",ROUND(VLOOKUP($C33,Orientierungswerte!$A$13:$AZ$117,28,FALSE)*$F$33,0)) -> 40 | M33: =IF($C33=""," ",ROUND(VLOOKUP($C$33,Orientierungswerte!$A$13:$AZ$117,4,FALSE)*$F$33,2)) -> 13.20 | N33: =IF($C33=""," ",ROUND(VLOOKUP($C$33,Orientierungswerte!$A$13:$AZ$117,4,FALSE)*$F$33,2)) -> 13.20 | O33: =IF($C33=""," ",ROUND(VLOOKUP($C$33,Orientierungswerte!$A$13:$AZ$117,7,FALSE)*$F$33,1)) -> 10.2 | P33: =IF($C33=""," ",ROUND(VLOOKUP($C$33,Orientierungswerte!$A$13:$AZ$117,8,FALSE)*$F$33,1)) -> 8.9 | Q33: =IF($C33=""," ",ROUND(VLOOKUP($C$33,Orientierungswerte!$A$13:$AZ$117,9,FALSE)*$F$33,1)) -> 5.6 | R33: =IF($C33=""," ",ROUND(VLOOKUP($C$33,Orientierungswerte!$A$13:$AZ$117,10,FALSE)*$F$33,1)) -> 4.9 | S33: =IF($C33=""," ",ROUND(VLOOKUP($C$33,Orientierungswerte!$A$13:$AZ$117,11,FALSE)*$F$33,1)) -> 6.6 | T33: =IF($C33=""," ",ROUND(VLOOKUP($C$33,Orientierungswerte!$A$13:$AZ$117,12,FALSE)*$F$33,1)) -> 5.8 | U33: =IF($C33=""," ",ROUND(VLOOKUP($C$33,Orientierungswerte!$A$13:$AZ$117,13,FALSE)*$F$33,1)) -> 1.8 | V33: =IF($C33=""," ",ROUND(VLOOKUP($C$33,Orientierungswerte!$A$13:$AZ$117,14,FALSE)*$F$33,1)) -> 1.6 | W33: =IF($C33=""," ",ROUND(VLOOKUP($C$33,Orientierungswerte!$A$13:$AZ$117,15,FALSE)*$F$33,1)) -> 5.9 | X33: =IF($C33=""," ",ROUND(VLOOKUP($C$33,Orientierungswerte!$A$13:$AZ$117,16,FALSE)*$F$33,1)) -> 4.4 | Y33: =IF($C33=""," ",ROUND(VLOOKUP($C$33,Orientierungswerte!$A$13:$AZ$117,17,FALSE)*$F$33,1)) -> 2.7 | Z33: =IF($C33=""," ",ROUND(VLOOKUP($C$33,Orientierungswerte!$A$13:$AZ$117,17,FALSE)*$F$33,1)) -> 2.7 | AA33: =IF($C33=""," ",ROUND(VLOOKUP($C$33,Orientierungswerte!$A$13:$AZ$117,18,FALSE)*$F$33,1)) -> 1.0 | AB33: =IF($C33=""," ",ROUND(VLOOKUP($C$33,Orientierungswerte!$A$13:$AZ$117,19,FALSE)*$F$33,1)) -> 1.8 | AC33: -
C34: Differenz Mischung zu Orientierungswert | E34: - | F34: =IF($C$33=""," ",ROUND((1-F31)*-1,4)) -> 0.00% | I34: =IF($C$33=""," ",ROUND(I31-I33,)) -> 0 | J34: =IF($C$33=""," ",ROUND(J31-J33,)) -> 0 | K34: =IF($C$33=""," ",ROUND(K31-K33,0)) -> -6 | L34: =IF($C$33=""," ",ROUND(L31-L33,0)) -> -3 | M34: =IF($C$33=""," ",ROUND(M31-M33,2)) -> -0.01 | N34: =IF($C$33=""," ",ROUND(N31-N33,2)) -> -0.02 | O34: =IF($C$33=""," ",ROUND(O31-O33,1)) -> -0.1 | P34: 0.1 | Q34: 0.2 | R34: 0.2 | S34: 0.0 | T34: 0.0 | U34: 0.3 | V34: 0.2 | W34: 0.1 | X34: -0.3 | Y34: -0.5 | Z34: 0.0 | AA34: 0.3 | AB34: 0.1 | AC34: -
B35: erforderliches Mineral- oder Ergänzungsfutter | F35: Anteil % | J35: =IF(F$36=0," ",O35*954/780+Q35*584/990+S35*731/980+U35*853/980) ->  | K35: =IF(F$36=0," ",IF(J35>200,J35*0.8,J35)) ->  | M35: =IF(F$36=0," ",O35*21.3/780+Q35*13/990+S35*16.3/980+U35*19/980) -> 
C36: opt. Mineralfutter in g/kg: | G36: =IF(F36="","",I36*F36/I$30) ->  | H36: =IF(F36=""," ",$H$8*F36*1000) ->  | I36: =IF($F36=0,0,960) -> 0 | J36: =IF($F36=0,0,O36*954/780+Q36*584/990+S36*731/980+U36*853/980) -> 0 | K36: =IF(F$36=0,0,J36) -> 0 | M36: =IF($F36=0,0,O36*19.56/780+Q36*11.97/990+S36*14.99/980+U36*17.49/980) -> 0.0 | N36: =M36 -> 0.0 | P36: =O36 -> 0 | R36: =Q36 -> 0 | T36: =S36 -> 0 | V36: =U36 -> 0 | Y36: =IF(F36=0,0,X36*0.8) -> 0 | Z36: =Y36 -> 0 | AC36: =IF(F36*E36=0,0,F36*E36) -> 0.00 €
C37: opt. Ergänzungsfutter in g/kg: | D37: 85% | G37: =IF(F37="","",I37*F37/I$30) ->  | H37: =IF(F37=""," ",$H$8*F37*1000) ->  | I37: =IF($F37=0,0,890) -> 0 | K37: =IF(F37=0,0,J37*D37) -> 0 | M37: =N37 -> 0.0 | P37: =IF(O37=0,0,O37*D37) -> 0 | R37: =IF(Q37=0,0,Q37*D37) -> 0 | T37: =IF(S37=0,0,S37*D37) -> 0 | V37: =IF(U37=0,0,U37*D37) -> 0 | Y37: =IF(F37=0,0,X37*0.65) -> 0 | Z37: =IF(F37=0,0,X37*0.65) -> 0 | AC37: =IF(F37*E37=0,0,F37*E37) -> 0.00 €
B38: pcv VQ Lys | X38: Ca / vP
F39: Lys / ME | I39: pcv Lys/ ME | L39: pcv. Lys. / pcv. M. & C. / pcv. Thr. / pcv. Trp. | T39: Ca / P | W39: mit Phytase | X39: =IF(F30=" "," ",W30/Z30) -> 2.23 | Y39: =IF(F30=0," ",1) -> 1 | Z39: Lys / 100g RP
B40: =IF(F30=" "," ",P31/O31) -> 0.891 | C40: in der Mischung | F40: =IF(F30=" "," ",O31/M31) -> 0.77 | G40: =IF(F30<=0," ",1) -> 1 | I40: =IF(F30=" "," ",P31/M31) -> 0.68 | J40: =IF(L30<=0," ",1) -> 1 | L40: =IF(F30<=0," ",1) -> 1 | M40: / | N40: =IF(F30=" "," ",R30/P30) -> 0.57 | O40: / | P40: =IF(F30=" "," ",T30/P30) -> 0.65 | Q40: / | R40: =IF(F30=" "," ",V30/P30) -> 0.20 | T40: =IF(F30=" "," ",W30/X30) -> 1.48 | U40: =IF(F30=0," ",1) -> 1 | W40: ohne | X40: =IF(F30=" "," ",W30/Y30) -> 2.79 | Y40: =IF(F30=0," ",1) -> 1 | AA40: =IF(L30=" "," ",P31*100/J31) -> 5.52 | AB40: =IF(L30=0," ",100) -> 100
B41: =IF(P33=" "," ",P33/O33) -> 0.873 | C41: Orientierungswerte | F41: =IF($B$33=" "," ",ROUND(VLOOKUP($B$33,Orientierungswerte!$B$13:$X$105,23,TRUE),2)) -> 0.77 | G41: =IF($B$33=" ",1,ROUND(VLOOKUP($B$33,Orientierungswerte!$B$13:$X$105,19,TRUE),2)) -> 1 | I41: =IF($B$33=" "," ",ROUND(VLOOKUP($B$33,Orientierungswerte!$B$13:$AB$105,24,TRUE),2)) -> 0.68 | J41: =IF($B$33=" ",1,ROUND(VLOOKUP($B$33,Orientierungswerte!$B$13:$X$105,19,TRUE),2)) -> 1 | L41: =IF($B$33=" ",1,ROUND(VLOOKUP($B$33,Orientierungswerte!$B$13:$X$105,19,TRUE),2)) -> 1 | M41: / | N41: =IF($B$33=" "," ",ROUND(VLOOKUP($B$33,Orientierungswerte!$B$13:$X$105,20,TRUE),2)) -> 0.55 | O41: / | P41: =IF($B$33=" "," ",ROUND(VLOOKUP($B$33,Orientierungswerte!$B$13:$X$105,21,TRUE),2)) -> 0.65 | Q41: / | R41: =IF($B$33=" "," ",ROUND(VLOOKUP($B$33,Orientierungswerte!$B$13:$X$105,22,TRUE),2)) -> 0.18 | T41: =IF($B$33=" "," ",ROUND(VLOOKUP($B$33,Orientierungswerte!$B$13:$AA$105,25,TRUE),2)) -> 1.35 | U41: =IF($B$33=" ",1,ROUND(VLOOKUP($B$33,Orientierungswerte!$B$13:$X$105,19,TRUE),2)) -> 1 | X41: =IF($B$33=" "," ",ROUND(VLOOKUP($B$33,Orientierungswerte!$B$13:$AA$105,26,TRUE),2)) -> 2.20 | Y41: =IF($B$33=" ",1,ROUND(VLOOKUP($B$33,Orientierungswerte!$B$13:$X$105,19,TRUE),2)) -> 1 | AA41: =IF($B$33=" "," ",ROUND(P33*100/J33,2)) -> 5.46 | AB41: =IF($B$33=" ",1,ROUND(VLOOKUP($B$33,Orientierungswerte!$B$13:$X$105,19,TRUE)*100,0)) -> 100
E44: Preis | F44: Anteil | G44: Met | H44: pcv Met | I44: Roh-fett XL | J44: Stär-ke S | K44: Zu-cker Z | L44: Roh-asche XA | M44: Poly-en-säure | N44: Linol-säure | O44: Lino-len-säure | P44: Vit A in IE | Q44: Vit D in IE | R44: Vit E in mg | S44: KAB BE in mmol | T44: SBK in meq | U44: BfS | V44: NDF om | W44: ADF om | X44: NfE | AA44: Kali-um K
B45: FM-Nr. | C45: Futtermittel + % RP in der FM | E45: €/dt | F45: % | G45: Anteil in g/kg | P45: pro kg | U45: Anteil in g/kg
B46: =B13 -> 49 | C46: =IF(C13=""," ",C13) -> eigener Weizen 11% RP Ø 2016 | E46: =IF(E13=""," ",E13) -> 12.68 € | F46: 52.00% | G46: =IF($C13=""," ",VLOOKUP(C13,Futtermittel!$A$8:$CG$171,29,FALSE)*$F13) -> 0.9 | H46: =IF($C13=""," ",VLOOKUP(C13,Futtermittel!$A$8:$CG$171,30,FALSE)*$F13) -> 0.8 | I46: =IF($C13=""," ",VLOOKUP(C13,Futtermittel!$A$8:$CG$171,31,FALSE)*$F13) -> 9 | J46: =IF($C13=""," ",VLOOKUP(C13,Futtermittel!$A$8:$CG$171,32,FALSE)*$F13) -> 313 | K46: =IF($C13=""," ",VLOOKUP(C13,Futtermittel!$A$8:$CG$171,33,FALSE)*$F13) -> 14 | L46: =IF($C13=""," ",VLOOKUP(C13,Futtermittel!$A$8:$CG$171,34,FALSE)*$F13) -> 9 | M46: =IF($C13=""," ",VLOOKUP($C13,Futtermittel!$A$8:$CG$171,37,FALSE)*$F13) -> 5.6 | N46: =IF($C13=""," ",VLOOKUP($C13,Futtermittel!$A$8:$CG$171,38,FALSE)*$F13) -> 5.2 | O46: =IF($C13=""," ",VLOOKUP($C13,Futtermittel!$A$8:$CG$171,39,FALSE)*$F13) -> 0.5 | P46: =IF($C13=""," ",VLOOKUP($C13,Futtermittel!$A$8:$CG$171,40,FALSE)*$F13) -> 0 | Q46: =IF($C13=""," ",VLOOKUP($C13,Futtermittel!$A$8:$CG$171,41,FALSE)*$F13) -> 0 | R46: =IF($C13=""," ",VLOOKUP($C13,Futtermittel!$A$8:$CG$171,42,FALSE)*$F13) -> 0 | S46: =IF($C13=""," ",VLOOKUP($C13,Futtermittel!$A$8:$CG$171,43,FALSE)*$F13) -> -16 | T46: =IF($C13=""," ",VLOOKUP($C13,Futtermittel!$A$8:$CG$171,44,FALSE)*$F13) -> 176 | U46: =IF($C13=""," ",VLOOKUP($C13,Futtermittel!$A$8:$CG$171,45,FALSE)*$F13) -> 20 | V46: =IF($C13=""," ",VLOOKUP($C13,Futtermittel!$A$8:$CG$171,54,FALSE)*$F13) -> 89 | W46: =IF($C13=""," ",VLOOKUP($C13,Futtermittel!$A$8:$CG$171,53,FALSE)*$F13) -> 19 | X46: =IF($C13=""," ",VLOOKUP($C13,Futtermittel!$A$8:$CG$171,46,FALSE)*$F13) -> 369 | AA46: =IF($C13=""," ",VLOOKUP($C13,Futtermittel!$A$8:$CG$171,28,FALSE)*$F13) -> 2.0
B47: 11 | C47: eigene Gerste 11% RP Ø 2016 | E47: 11.22 € | F47: 28.00% | G47: =IF($C14=""," ",VLOOKUP(C14,Futtermittel!$A$8:$CG$171,29,FALSE)*$F14) -> 0.5 | H47: =IF($C14=""," ",VLOOKUP(C14,Futtermittel!$A$8:$CG$171,30,FALSE)*$F14) -> 0.4 | I47: =IF($C14=""," ",VLOOKUP(C14,Futtermittel!$A$8:$CG$171,31,FALSE)*$F14) -> 7 | J47: =IF($C14=""," ",VLOOKUP(C14,Futtermittel!$A$8:$CG$171,32,FALSE)*$F14) -> 143 | K47: =IF($C14=""," ",VLOOKUP(C14,Futtermittel!$A$8:$CG$171,33,FALSE)*$F14) -> 6 | L47: =IF($C14=""," ",VLOOKUP(C14,Futtermittel!$A$8:$CG$171,34,FALSE)*$F14) -> 7 | M47: =IF($C14=""," ",VLOOKUP($C14,Futtermittel!$A$8:$CG$171,37,FALSE)*$F14) -> 4.2 | N47: =IF($C14=""," ",VLOOKUP($C14,Futtermittel!$A$8:$CG$171,38,FALSE)*$F14) -> 3.9 | O47: =IF($C14=""," ",VLOOKUP($C14,Futtermittel!$A$8:$CG$171,39,FALSE)*$F14) -> 0.3 | P47: =IF($C14=""," ",VLOOKUP($C14,Futtermittel!$A$8:$CG$171,40,FALSE)*$F14) -> 0 | Q47: =IF($C14=""," ",VLOOKUP($C14,Futtermittel!$A$8:$CG$171,41,FALSE)*$F14) -> 0 | R47: =IF($C14=""," ",VLOOKUP($C14,Futtermittel!$A$8:$CG$171,42,FALSE)*$F14) -> 0 | S47: =IF($C14=""," ",VLOOKUP($C14,Futtermittel!$A$8:$CG$171,43,FALSE)*$F14) -> -13 | T47: =IF($C14=""," ",VLOOKUP($C14,Futtermittel!$A$8:$CG$171,44,FALSE)*$F14) -> 93 | U47: =IF($C14=""," ",VLOOKUP($C14,Futtermittel!$A$8:$CG$171,45,FALSE)*$F14) -> 22 | V47: =IF($C14=""," ",VLOOKUP($C14,Futtermittel!$A$8:$CG$171,54,FALSE)*$F14) -> 101 | W47: =IF($C14=""," ",VLOOKUP($C14,Futtermittel!$A$8:$CG$171,53,FALSE)*$F14) -> 13 | X47: =IF($C14=""," ",VLOOKUP($C14,Futtermittel!$A$8:$CG$171,46,FALSE)*$F14) -> 188 | AA47: =IF($C14=""," ",VLOOKUP($C14,Futtermittel!$A$8:$CG$171,28,FALSE)*$F14) -> 1.2
B48: 100 | C48: Sojaschrot HP 47% RP | E48: 35.50 € | F48: 15.50% | G48: =IF($C15=""," ",VLOOKUP(C15,Futtermittel!$A$8:$CG$171,29,FALSE)*$F15) -> 1.0 | H48: =IF($C15=""," ",VLOOKUP(C15,Futtermittel!$A$8:$CG$171,30,FALSE)*$F15) -> 0.9 | I48: =IF($C15=""," ",VLOOKUP(C15,Futtermittel!$A$8:$CG$171,31,FALSE)*$F15) -> 3 | J48: =IF($C15=""," ",VLOOKUP(C15,Futtermittel!$A$8:$CG$171,32,FALSE)*$F15) -> 7 | K48: =IF($C15=""," ",VLOOKUP(C15,Futtermittel!$A$8:$CG$171,33,FALSE)*$F15) -> 14 | L48: =IF($C15=""," ",VLOOKUP(C15,Futtermittel!$A$8:$CG$171,34,FALSE)*$F15) -> 10 | M48: =IF($C15=""," ",VLOOKUP($C15,Futtermittel!$A$8:$CG$171,37,FALSE)*$F15) -> 1.6 | N48: =IF($C15=""," ",VLOOKUP($C15,Futtermittel!$A$8:$CG$171,38,FALSE)*$F15) -> 1.5 | O48: =IF($C15=""," ",VLOOKUP($C15,Futtermittel!$A$8:$CG$171,39,FALSE)*$F15) -> 0.1 | P48: =IF($C15=""," ",VLOOKUP($C15,Futtermittel!$A$8:$CG$171,40,FALSE)*$F15) -> 0 | Q48: =IF($C15=""," ",VLOOKUP($C15,Futtermittel!$A$8:$CG$171,41,FALSE)*$F15) -> 0 | R48: =IF($C15=""," ",VLOOKUP($C15,Futtermittel!$A$8:$CG$171,42,FALSE)*$F15) -> 0 | S48: =IF($C15=""," ",VLOOKUP($C15,Futtermittel!$A$8:$CG$171,43,FALSE)*$F15) -> 55 | T48: =IF($C15=""," ",VLOOKUP($C15,Futtermittel!$A$8:$CG$171,44,FALSE)*$F15) -> 213 | U48: =IF($C15=""," ",VLOOKUP($C15,Futtermittel!$A$8:$CG$171,45,FALSE)*$F15) -> 27 | V48: =IF($C15=""," ",VLOOKUP($C15,Futtermittel!$A$8:$CG$171,54,FALSE)*$F15) -> 20 | W48: =IF($C15=""," ",VLOOKUP($C15,Futtermittel!$A$8:$CG$171,53,FALSE)*$F15) -> 14 | X48: =IF($C15=""," ",VLOOKUP($C15,Futtermittel!$A$8:$CG$171,46,FALSE)*$F15) -> 44 | AA48: =IF($C15=""," ",VLOOKUP($C15,Futtermittel!$A$8:$CG$171,28,FALSE)*$F15) -> 3.2
B49: 140 | C49: Rapsöl / Pflanzenöl DLG 2014 | E49: 97.00 € | F49: 1.00% | G49: =IF($C16=""," ",VLOOKUP(C16,Futtermittel!$A$8:$CG$171,29,FALSE)*$F16) -> 0.0 | H49: =IF($C16=""," ",VLOOKUP(C16,Futtermittel!$A$8:$CG$171,30,FALSE)*$F16) -> 0.0 | I49: =IF($C16=""," ",VLOOKUP(C16,Futtermittel!$A$8:$CG$171,31,FALSE)*$F16) -> 10 | J49: =IF($C16=""," ",VLOOKUP(C16,Futtermittel!$A$8:$CG$171,32,FALSE)*$F16) -> 0 | K49: =IF($C16=""," ",VLOOKUP(C16,Futtermittel!$A$8:$CG$171,33,FALSE)*$F16) -> 0 | L49: =IF($C16=""," ",VLOOKUP(C16,Futtermittel!$A$8:$CG$171,34,FALSE)*$F16) -> 0 | M49: =IF($C16=""," ",VLOOKUP($C16,Futtermittel!$A$8:$CG$171,37,FALSE)*$F16) -> 2.9 | N49: =IF($C16=""," ",VLOOKUP($C16,Futtermittel!$A$8:$CG$171,38,FALSE)*$F16) -> 2.0 | O49: =IF($C16=""," ",VLOOKUP($C16,Futtermittel!$A$8:$CG$171,39,FALSE)*$F16) -> 0.9 | P49: =IF($C16=""," ",VLOOKUP($C16,Futtermittel!$A$8:$CG$171,40,FALSE)*$F16) -> 0 | Q49: =IF($C16=""," ",VLOOKUP($C16,Futtermittel!$A$8:$CG$171,41,FALSE)*$F16) -> 0 | R49: =IF($C16=""," ",VLOOKUP($C16,Futtermittel!$A$8:$CG$171,42,FALSE)*$F16) -> 0 | S49: =IF($C16=""," ",VLOOKUP($C16,Futtermittel!$A$8:$CG$171,43,FALSE)*$F16) -> 0 | T49: =IF($C16=""," ",VLOOKUP($C16,Futtermittel!$A$8:$CG$171,44,FALSE)*$F16) -> 0 | U49: =IF($C16=""," ",VLOOKUP($C16,Futtermittel!$A$8:$CG$171,45,FALSE)*$F16) -> 0 | V49: =IF($C16=""," ",VLOOKUP($C16,Futtermittel!$A$8:$CG$171,54,FALSE)*$F16) -> 0 | W49: =IF($C16=""," ",VLOOKUP($C16,Futtermittel!$A$8:$CG$171,53,FALSE)*$F16) -> 0 | X49: =IF($C16=""," ",VLOOKUP($C16,Futtermittel!$A$8:$CG$171,46,FALSE)*$F16) -> 0 | AA49: =IF($C16=""," ",VLOOKUP($C16,Futtermittel!$A$8:$CG$171,28,FALSE)*$F16) -> 0.0
G50: =IF($C17=""," ",VLOOKUP(C17,Futtermittel!$A$8:$CG$171,29,FALSE)*$F17) ->  | H50: =IF($C17=""," ",VLOOKUP(C17,Futtermittel!$A$8:$CG$171,30,FALSE)*$F17) ->  | I50: =IF($C17=""," ",VLOOKUP(C17,Futtermittel!$A$8:$CG$171,31,FALSE)*$F17) ->  | J50: =IF($C17=""," ",VLOOKUP(C17,Futtermittel!$A$8:$CG$171,32,FALSE)*$F17) ->  | K50: =IF($C17=""," ",VLOOKUP(C17,Futtermittel!$A$8:$CG$171,33,FALSE)*$F17) ->  | L50: =IF($C17=""," ",VLOOKUP(C17,Futtermittel!$A$8:$CG$171,34,FALSE)*$F17) ->  | M50: =IF($C17=""," ",VLOOKUP($C17,Futtermittel!$A$8:$CG$171,37,FALSE)*$F17) ->  | N50: =IF($C17=""," ",VLOOKUP($C17,Futtermittel!$A$8:$CG$171,38,FALSE)*$F17) ->  | O50: =IF($C17=""," ",VLOOKUP($C17,Futtermittel!$A$8:$CG$171,39,FALSE)*$F17) ->  | P50: =IF($C17=""," ",VLOOKUP($C17,Futtermittel!$A$8:$CG$171,40,FALSE)*$F17) ->  | Q50: =IF($C17=""," ",VLOOKUP($C17,Futtermittel!$A$8:$CG$171,41,FALSE)*$F17) ->  | R50: =IF($C17=""," ",VLOOKUP($C17,Futtermittel!$A$8:$CG$171,42,FALSE)*$F17) ->  | S50: =IF($C17=""," ",VLOOKUP($C17,Futtermittel!$A$8:$CG$171,43,FALSE)*$F17) ->  | T50: =IF($C17=""," ",VLOOKUP($C17,Futtermittel!$A$8:$CG$171,44,FALSE)*$F17) ->  | U50: =IF($C17=""," ",VLOOKUP($C17,Futtermittel!$A$8:$CG$171,45,FALSE)*$F17) ->  | V50: =IF($C17=""," ",VLOOKUP($C17,Futtermittel!$A$8:$CG$171,54,FALSE)*$F17) ->  | W50: =IF($C17=""," ",VLOOKUP($C17,Futtermittel!$A$8:$CG$171,53,FALSE)*$F17) ->  | X50: =IF($C17=""," ",VLOOKUP($C17,Futtermittel!$A$8:$CG$171,46,FALSE)*$F17) ->  | AA50: =IF($C17=""," ",VLOOKUP($C17,Futtermittel!$A$8:$CG$171,28,FALSE)*$F17) -> 
G51: =IF($C18=""," ",VLOOKUP(C18,Futtermittel!$A$8:$CG$171,29,FALSE)*$F18) ->  | H51: =IF($C18=""," ",VLOOKUP(C18,Futtermittel!$A$8:$CG$171,30,FALSE)*$F18) ->  | I51: =IF($C18=""," ",VLOOKUP(C18,Futtermittel!$A$8:$CG$171,31,FALSE)*$F18) ->  | J51: =IF($C18=""," ",VLOOKUP(C18,Futtermittel!$A$8:$CG$171,32,FALSE)*$F18) ->  | K51: =IF($C18=""," ",VLOOKUP(C18,Futtermittel!$A$8:$CG$171,33,FALSE)*$F18) ->  | L51: =IF($C18=""," ",VLOOKUP(C18,Futtermittel!$A$8:$CG$171,34,FALSE)*$F18) ->  | M51: =IF($C18=""," ",VLOOKUP($C18,Futtermittel!$A$8:$CG$171,37,FALSE)*$F18) ->  | N51: =IF($C18=""," ",VLOOKUP($C18,Futtermittel!$A$8:$CG$171,38,FALSE)*$F18) ->  | O51: =IF($C18=""," ",VLOOKUP($C18,Futtermittel!$A$8:$CG$171,39,FALSE)*$F18) ->  | P51: =IF($C18=""," ",VLOOKUP($C18,Futtermittel!$A$8:$CG$171,40,FALSE)*$F18) ->  | Q51: =IF($C18=""," ",VLOOKUP($C18,Futtermittel!$A$8:$CG$171,41,FALSE)*$F18) ->  | R51: =IF($C18=""," ",VLOOKUP($C18,Futtermittel!$A$8:$CG$171,42,FALSE)*$F18) ->  | S51: =IF($C18=""," ",VLOOKUP($C18,Futtermittel!$A$8:$CG$171,43,FALSE)*$F18) ->  | T51: =IF($C18=""," ",VLOOKUP($C18,Futtermittel!$A$8:$CG$171,44,FALSE)*$F18) ->  | U51: =IF($C18=""," ",VLOOKUP($C18,Futtermittel!$A$8:$CG$171,45,FALSE)*$F18) ->  | V51: =IF($C18=""," ",VLOOKUP($C18,Futtermittel!$A$8:$CG$171,54,FALSE)*$F18) ->  | W51: =IF($C18=""," ",VLOOKUP($C18,Futtermittel!$A$8:$CG$171,53,FALSE)*$F18) ->  | X51: =IF($C18=""," ",VLOOKUP($C18,Futtermittel!$A$8:$CG$171,46,FALSE)*$F18) ->  | AA51: =IF($C18=""," ",VLOOKUP($C18,Futtermittel!$A$8:$CG$171,28,FALSE)*$F18) -> 
G52: =IF($C19=""," ",VLOOKUP(C19,Futtermittel!$A$8:$CG$171,29,FALSE)*$F19) ->  | H52: =IF($C19=""," ",VLOOKUP(C19,Futtermittel!$A$8:$CG$171,30,FALSE)*$F19) ->  | I52: =IF($C19=""," ",VLOOKUP(C19,Futtermittel!$A$8:$CG$171,31,FALSE)*$F19) ->  | J52: =IF($C19=""," ",VLOOKUP(C19,Futtermittel!$A$8:$CG$171,32,FALSE)*$F19) ->  | K52: =IF($C19=""," ",VLOOKUP(C19,Futtermittel!$A$8:$CG$171,33,FALSE)*$F19) ->  | L52: =IF($C19=""," ",VLOOKUP(C19,Futtermittel!$A$8:$CG$171,34,FALSE)*$F19) ->  | M52: =IF($C19=""," ",VLOOKUP($C19,Futtermittel!$A$8:$CG$171,37,FALSE)*$F19) ->  | N52: =IF($C19=""," ",VLOOKUP($C19,Futtermittel!$A$8:$CG$171,38,FALSE)*$F19) ->  | O52: =IF($C19=""," ",VLOOKUP($C19,Futtermittel!$A$8:$CG$171,39,FALSE)*$F19) ->  | P52: =IF($C19=""," ",VLOOKUP($C19,Futtermittel!$A$8:$CG$171,40,FALSE)*$F19) ->  | Q52: =IF($C19=""," ",VLOOKUP($C19,Futtermittel!$A$8:$CG$171,41,FALSE)*$F19) ->  | R52: =IF($C19=""," ",VLOOKUP($C19,Futtermittel!$A$8:$CG$171,42,FALSE)*$F19) ->  | S52: =IF($C19=""," ",VLOOKUP($C19,Futtermittel!$A$8:$CG$171,43,FALSE)*$F19) ->  | T52: =IF($C19=""," ",VLOOKUP($C19,Futtermittel!$A$8:$CG$171,44,FALSE)*$F19) ->  | U52: =IF($C19=""," ",VLOOKUP($C19,Futtermittel!$A$8:$CG$171,45,FALSE)*$F19) ->  | V52: =IF($C19=""," ",VLOOKUP($C19,Futtermittel!$A$8:$CG$171,54,FALSE)*$F19) ->  | W52: =IF($C19=""," ",VLOOKUP($C19,Futtermittel!$A$8:$CG$171,53,FALSE)*$F19) ->  | X52: =IF($C19=""," ",VLOOKUP($C19,Futtermittel!$A$8:$CG$171,46,FALSE)*$F19) ->  | AA52: =IF($C19=""," ",VLOOKUP($C19,Futtermittel!$A$8:$CG$171,28,FALSE)*$F19) -> 
G53: =IF($C20=""," ",VLOOKUP(C20,Futtermittel!$A$8:$CG$171,29,FALSE)*$F20) ->  | H53: =IF($C20=""," ",VLOOKUP(C20,Futtermittel!$A$8:$CG$171,30,FALSE)*$F20) ->  | I53: =IF($C20=""," ",VLOOKUP(C20,Futtermittel!$A$8:$CG$171,31,FALSE)*$F20) ->  | J53: =IF($C20=""," ",VLOOKUP(C20,Futtermittel!$A$8:$CG$171,32,FALSE)*$F20) ->  | K53: =IF($C20=""," ",VLOOKUP(C20,Futtermittel!$A$8:$CG$171,33,FALSE)*$F20) ->  | L53: =IF($C20=""," ",VLOOKUP(C20,Futtermittel!$A$8:$CG$171,34,FALSE)*$F20) ->  | M53: =IF($C20=""," ",VLOOKUP($C20,Futtermittel!$A$8:$CG$171,37,FALSE)*$F20) ->  | N53: =IF($C20=""," ",VLOOKUP($C20,Futtermittel!$A$8:$CG$171,38,FALSE)*$F20) ->  | O53: =IF($C20=""," ",VLOOKUP($C20,Futtermittel!$A$8:$CG$171,39,FALSE)*$F20) ->  | P53: =IF($C20=""," ",VLOOKUP($C20,Futtermittel!$A$8:$CG$171,40,FALSE)*$F20) ->  | Q53: =IF($C20=""," ",VLOOKUP($C20,Futtermittel!$A$8:$CG$171,41,FALSE)*$F20) ->  | R53: =IF($C20=""," ",VLOOKUP($C20,Futtermittel!$A$8:$CG$171,42,FALSE)*$F20) ->  | S53: =IF($C20=""," ",VLOOKUP($C20,Futtermittel!$A$8:$CG$171,43,FALSE)*$F20) ->  | T53: =IF($C20=""," ",VLOOKUP($C20,Futtermittel!$A$8:$CG$171,44,FALSE)*$F20) ->  | U53: =IF($C20=""," ",VLOOKUP($C20,Futtermittel!$A$8:$CG$171,45,FALSE)*$F20) ->  | V53: =IF($C20=""," ",VLOOKUP($C20,Futtermittel!$A$8:$CG$171,54,FALSE)*$F20) ->  | W53: =IF($C20=""," ",VLOOKUP($C20,Futtermittel!$A$8:$CG$171,53,FALSE)*$F20) ->  | X53: =IF($C20=""," ",VLOOKUP($C20,Futtermittel!$A$8:$CG$171,46,FALSE)*$F20) ->  | AA53: =IF($C20=""," ",VLOOKUP($C20,Futtermittel!$A$8:$CG$171,28,FALSE)*$F20) -> 
B54: =B21 ->  | E54: =IF(E21=""," ",E21) ->  | F54: =IF(F21=""," ",F21) ->  | G54: =IF($C21=""," ",VLOOKUP(C21,Futtermittel!$A$8:$CG$171,29,FALSE)*$F21) ->  | H54: =IF($C21=""," ",VLOOKUP(C21,Futtermittel!$A$8:$CG$171,30,FALSE)*$F21) ->  | I54: =IF($C21=""," ",VLOOKUP(C21,Futtermittel!$A$8:$CG$171,31,FALSE)*$F21) ->  | J54: =IF($C21=""," ",VLOOKUP(C21,Futtermittel!$A$8:$CG$171,32,FALSE)*$F21) ->  | K54: =IF($C21=""," ",VLOOKUP(C21,Futtermittel!$A$8:$CG$171,33,FALSE)*$F21) ->  | L54: =IF($C21=""," ",VLOOKUP(C21,Futtermittel!$A$8:$CG$171,34,FALSE)*$F21) ->  | M54: =IF($C21=""," ",VLOOKUP($C21,Futtermittel!$A$8:$CG$171,37,FALSE)*$F21) ->  | N54: =IF($C21=""," ",VLOOKUP($C21,Futtermittel!$A$8:$CG$171,38,FALSE)*$F21) ->  | O54: =IF($C21=""," ",VLOOKUP($C21,Futtermittel!$A$8:$CG$171,39,FALSE)*$F21) ->  | P54: =IF($C21=""," ",VLOOKUP($C21,Futtermittel!$A$8:$CG$171,40,FALSE)*$F21) ->  | Q54: =IF($C21=""," ",VLOOKUP($C21,Futtermittel!$A$8:$CG$171,41,FALSE)*$F21) ->  | R54: =IF($C21=""," ",VLOOKUP($C21,Futtermittel!$A$8:$CG$171,42,FALSE)*$F21) ->  | S54: =IF($C21=""," ",VLOOKUP($C21,Futtermittel!$A$8:$CG$171,43,FALSE)*$F21) ->  | T54: =IF($C21=""," ",VLOOKUP($C21,Futtermittel!$A$8:$CG$171,44,FALSE)*$F21) ->  | U54: =IF($C21=""," ",VLOOKUP($C21,Futtermittel!$A$8:$CG$171,45,FALSE)*$F21) ->  | V54: =IF($C21=""," ",VLOOKUP($C21,Futtermittel!$A$8:$CG$171,54,FALSE)*$F21) ->  | W54: =IF($C21=""," ",VLOOKUP($C21,Futtermittel!$A$8:$CG$171,53,FALSE)*$F21) ->  | X54: =IF($C21=""," ",VLOOKUP($C21,Futtermittel!$A$8:$CG$171,46,FALSE)*$F21) ->  | AA54: =IF($C21=""," ",VLOOKUP($C21,Futtermittel!$A$8:$CG$171,28,FALSE)*$F21) -> 
F55: =IF(F22=""," ",F22) ->  | G55: =IF($C22=""," ",VLOOKUP(C22,Futtermittel!$A$8:$CG$171,29,FALSE)*$F22) ->  | H55: =IF($C22=""," ",VLOOKUP(C22,Futtermittel!$A$8:$CG$171,30,FALSE)*$F22) ->  | I55: =IF($C22=""," ",VLOOKUP(C22,Futtermittel!$A$8:$CG$171,31,FALSE)*$F22) ->  | J55: =IF($C22=""," ",VLOOKUP(C22,Futtermittel!$A$8:$CG$171,32,FALSE)*$F22) ->  | K55: =IF($C22=""," ",VLOOKUP(C22,Futtermittel!$A$8:$CG$171,33,FALSE)*$F22) ->  | L55: =IF($C22=""," ",VLOOKUP(C22,Futtermittel!$A$8:$CG$171,34,FALSE)*$F22) ->  | M55: =IF($C22=""," ",VLOOKUP($C22,Futtermittel!$A$8:$CG$171,37,FALSE)*$F22) ->  | N55: =IF($C22=""," ",VLOOKUP($C22,Futtermittel!$A$8:$CG$171,38,FALSE)*$F22) ->  | O55: =IF($C22=""," ",VLOOKUP($C22,Futtermittel!$A$8:$CG$171,39,FALSE)*$F22) ->  | P55: =IF($C22=""," ",VLOOKUP($C22,Futtermittel!$A$8:$CG$171,40,FALSE)*$F22) ->  | Q55: =IF($C22=""," ",VLOOKUP($C22,Futtermittel!$A$8:$CG$171,41,FALSE)*$F22) ->  | R55: =IF($C22=""," ",VLOOKUP($C22,Futtermittel!$A$8:$CG$171,42,FALSE)*$F22) ->  | S55: =IF($C22=""," ",VLOOKUP($C22,Futtermittel!$A$8:$CG$171,43,FALSE)*$F22) ->  | T55: =IF($C22=""," ",VLOOKUP($C22,Futtermittel!$A$8:$CG$171,44,FALSE)*$F22) ->  | U55: =IF($C22=""," ",VLOOKUP($C22,Futtermittel!$A$8:$CG$171,45,FALSE)*$F22) ->  | V55: =IF($C22=""," ",VLOOKUP($C22,Futtermittel!$A$8:$CG$171,54,FALSE)*$F22) ->  | W55: =IF($C22=""," ",VLOOKUP($C22,Futtermittel!$A$8:$CG$171,53,FALSE)*$F22) ->  | X55: =IF($C22=""," ",VLOOKUP($C22,Futtermittel!$A$8:$CG$171,46,FALSE)*$F22) ->  | AA55: =IF($C22=""," ",VLOOKUP($C22,Futtermittel!$A$8:$CG$171,28,FALSE)*$F22) -> 
F56: =IF(F23=""," ",F23) ->  | G56: =IF($C23=""," ",VLOOKUP(C23,Futtermittel!$A$8:$CG$171,29,FALSE)*$F23) ->  | H56: =IF($C23=""," ",VLOOKUP(C23,Futtermittel!$A$8:$CG$171,30,FALSE)*$F23) ->  | I56: =IF($C23=""," ",VLOOKUP(C23,Futtermittel!$A$8:$CG$171,31,FALSE)*$F23) ->  | J56: =IF($C23=""," ",VLOOKUP(C23,Futtermittel!$A$8:$CG$171,32,FALSE)*$F23) ->  | K56: =IF($C23=""," ",VLOOKUP(C23,Futtermittel!$A$8:$CG$171,33,FALSE)*$F23) ->  | L56: =IF($C23=""," ",VLOOKUP(C23,Futtermittel!$A$8:$CG$171,34,FALSE)*$F23) ->  | M56: =IF($C23=""," ",VLOOKUP($C23,Futtermittel!$A$8:$CG$171,37,FALSE)*$F23) ->  | N56: =IF($C23=""," ",VLOOKUP($C23,Futtermittel!$A$8:$CG$171,38,FALSE)*$F23) ->  | O56: =IF($C23=""," ",VLOOKUP($C23,Futtermittel!$A$8:$CG$171,39,FALSE)*$F23) ->  | P56: =IF($C23=""," ",VLOOKUP($C23,Futtermittel!$A$8:$CG$171,40,FALSE)*$F23) ->  | Q56: =IF($C23=""," ",VLOOKUP($C23,Futtermittel!$A$8:$CG$171,41,FALSE)*$F23) ->  | R56: =IF($C23=""," ",VLOOKUP($C23,Futtermittel!$A$8:$CG$171,42,FALSE)*$F23) ->  | S56: =IF($C23=""," ",VLOOKUP($C23,Futtermittel!$A$8:$CG$171,43,FALSE)*$F23) ->  | T56: =IF($C23=""," ",VLOOKUP($C23,Futtermittel!$A$8:$CG$171,44,FALSE)*$F23) ->  | U56: =IF($C23=""," ",VLOOKUP($C23,Futtermittel!$A$8:$CG$171,45,FALSE)*$F23) ->  | V56: =IF($C23=""," ",VLOOKUP($C23,Futtermittel!$A$8:$CG$171,54,FALSE)*$F23) ->  | W56: =IF($C23=""," ",VLOOKUP($C23,Futtermittel!$A$8:$CG$171,53,FALSE)*$F23) ->  | X56: =IF($C23=""," ",VLOOKUP($C23,Futtermittel!$A$8:$CG$171,46,FALSE)*$F23) ->  | AA56: =IF($C23=""," ",VLOOKUP($C23,Futtermittel!$A$8:$CG$171,28,FALSE)*$F23) -> 
B57: EF-Nr. | C57: Ergänzungsfutter | D57: VQ in %
C58: =IF(C25=""," ",C25) ->  | D58: 85% | G58: =IF($C25=""," ",VLOOKUP($C25,Ergänzungsfutter!$A$11:$BE$26,20,FALSE)*$F25) ->  | H58: =IF($C25=""," ",VLOOKUP($C25,Ergänzungsfutter!$A$11:$BE$26,20,FALSE)*$F25*D25) ->  | I58: =IF($C25=""," ",VLOOKUP($C25,Ergänzungsfutter!$A$11:$BE$26,21,FALSE)*$F25) ->  | J58: =IF($C25=""," ",VLOOKUP($C25,Ergänzungsfutter!$A$11:$BE$26,22,FALSE)*$F25) ->  | K58: =IF($C25=""," ",VLOOKUP($C25,Ergänzungsfutter!$A$11:$BE$26,23,FALSE)*$F25) ->  | L58: =IF($C25=""," ",VLOOKUP($C25,Ergänzungsfutter!$A$11:$BE$26,24,FALSE)*$F25) ->  | M58: =IF($C25=""," ",VLOOKUP($C25,Ergänzungsfutter!$A$11:$BE$26,27,FALSE)*$F25) ->  | N58: =IF($C25=""," ",VLOOKUP($C25,Ergänzungsfutter!$A$11:$BE$26,28,FALSE)*$F25) ->  | O58: =IF($C25=""," ",VLOOKUP($C25,Ergänzungsfutter!$A$11:$BE$26,29,FALSE)*$F25) ->  | P58: =IF($C25=""," ",VLOOKUP($C25,Ergänzungsfutter!$A$11:$BE$26,30,FALSE)*$F25) ->  | Q58: =IF($C25=""," ",VLOOKUP($C25,Ergänzungsfutter!$A$11:$BE$26,31,FALSE)*$F25) ->  | R58: =IF($C25=""," ",VLOOKUP($C25,Ergänzungsfutter!$A$11:$BE$26,32,FALSE)*$F25) ->  | S58: =IF($C25=""," ",VLOOKUP($C25,Ergänzungsfutter!$A$11:$BE$26,33,FALSE)*$F25) ->  | T58: =IF($C25=""," ",VLOOKUP($C25,Ergänzungsfutter!$A$11:$BE$26,34,FALSE)*$F25) ->  | U58: =IF($C25=""," ",VLOOKUP($C25,Ergänzungsfutter!$A$11:$BE$26,35,FALSE)*$F25) ->  | V58: =IF($C25=""," ",VLOOKUP($C25,Ergänzungsfutter!$A$11:$BE$26,36,FALSE)*$F25) ->  | W58: =IF($C25=""," ",VLOOKUP($C25,Ergänzungsfutter!$A$11:$BE$26,35,FALSE)*$F25) ->  | X58: =IF($C25=""," ",VLOOKUP($C25,Ergänzungsfutter!$A$11:$BE$26,37,FALSE)*$F25) ->  | AA58: =IF($C25=""," ",VLOOKUP($C25,Ergänzungsfutter!$A$11:$BE$26,37,FALSE)*$F25) -> 
C59: =IF(C26=""," ",C26) ->  | G59: =IF($C26=""," ",VLOOKUP($C26,Ergänzungsfutter!$A$11:$BE$26,20,FALSE)*$F26) ->  | H59: =IF($C26=""," ",VLOOKUP($C26,Ergänzungsfutter!$A$11:$BE$26,20,FALSE)*$F26*D26) ->  | I59: =IF($C26=""," ",VLOOKUP($C26,Ergänzungsfutter!$A$11:$BE$26,21,FALSE)*$F26) ->  | J59: =IF($C26=""," ",VLOOKUP($C26,Ergänzungsfutter!$A$11:$BE$26,22,FALSE)*$F26) ->  | K59: =IF($C26=""," ",VLOOKUP($C26,Ergänzungsfutter!$A$11:$BE$26,23,FALSE)*$F26) ->  | L59: =IF($C26=""," ",VLOOKUP($C26,Ergänzungsfutter!$A$11:$BE$26,24,FALSE)*$F26) ->  | M59: =IF($C26=""," ",VLOOKUP($C26,Ergänzungsfutter!$A$11:$BE$26,27,FALSE)*$F26) ->  | N59: =IF($C26=""," ",VLOOKUP($C26,Ergänzungsfutter!$A$11:$BE$26,28,FALSE)*$F26) ->  | O59: =IF($C26=""," ",VLOOKUP($C26,Ergänzungsfutter!$A$11:$BE$26,29,FALSE)*$F26) ->  | P59: =IF($C26=""," ",VLOOKUP($C26,Ergänzungsfutter!$A$11:$BE$26,30,FALSE)*$F26) ->  | Q59: =IF($C26=""," ",VLOOKUP($C26,Ergänzungsfutter!$A$11:$BE$26,31,FALSE)*$F26) ->  | R59: =IF($C26=""," ",VLOOKUP($C26,Ergänzungsfutter!$A$11:$BE$26,32,FALSE)*$F26) ->  | S59: =IF($C26=""," ",VLOOKUP($C26,Ergänzungsfutter!$A$11:$BE$26,33,FALSE)*$F26) ->  | T59: =IF($C26=""," ",VLOOKUP($C26,Ergänzungsfutter!$A$11:$BE$26,34,FALSE)*$F26) ->  | U59: =IF($C26=""," ",VLOOKUP($C26,Ergänzungsfutter!$A$11:$BE$26,35,FALSE)*$F26) ->  | V59: =IF($C26=""," ",VLOOKUP($C26,Ergänzungsfutter!$A$11:$BE$26,36,FALSE)*$F26) ->  | W59: =IF($C26=""," ",VLOOKUP($C26,Ergänzungsfutter!$A$11:$BE$26,35,FALSE)*$F26) ->  | X59: =IF($C26=""," ",VLOOKUP($C26,Ergänzungsfutter!$A$11:$BE$26,37,FALSE)*$F26) ->  | AA59: =IF($C26=""," ",VLOOKUP($C26,Ergänzungsfutter!$A$11:$BE$26,37,FALSE)*$F26) -> 
B60: Nr. | C60: Mineralfutter
B61: =B28 -> 5 | C61: =IF(C28=""," ",C28) -> Optimales MinFu AM 850g TZ 3,5% + Phytase | E61: =IF(E28=""," ",E28) -> 81.00 € | F61: =IF(F28=""," ",F28) -> 3.50% | G61: =IF($C28=""," ",VLOOKUP($C28,Mineralfutter!$A$11:$BE$25,10,FALSE)*$F28) -> 0.6 | H61: =IF($C28=""," ",VLOOKUP($C28,Mineralfutter!$A$11:$BE$25,10,FALSE)*$F28) -> 0.6 | I61: =IF($C28=""," ",VLOOKUP($C28,Mineralfutter!$A$11:$BE$25,21,FALSE)*$F28) -> 0 | J61: =IF($C28=""," ",VLOOKUP($C28,Mineralfutter!$A$11:$BE$25,22,FALSE)*$F28) -> 0 | K61: =IF($C28=""," ",VLOOKUP($C28,Mineralfutter!$A$11:$BE$25,23,FALSE)*$F28) -> 0 | L61: =IF($C28=""," ",VLOOKUP($C28,Mineralfutter!$A$11:$BE$25,24,FALSE)*$F28) -> 25 | M61: =IF($C28=""," ",VLOOKUP($C28,Mineralfutter!$A$11:$BE$25,27,FALSE)*$F28) -> 0.0 | N61: =IF($C28=""," ",VLOOKUP($C28,Mineralfutter!$A$11:$BE$25,28,FALSE)*$F28) -> 0.0 | O61: =IF($C28=""," ",VLOOKUP($C28,Mineralfutter!$A$11:$BE$25,29,FALSE)*$F28) -> 0.0 | P61: =IF($C28=""," ",VLOOKUP($C28,Mineralfutter!$A$11:$BE$25,30,FALSE)*$F28) -> 6055 | Q61: =IF($C28=""," ",VLOOKUP($C28,Mineralfutter!$A$11:$BE$25,31,FALSE)*$F28) -> 1514 | R61: =IF($C28=""," ",VLOOKUP($C28,Mineralfutter!$A$11:$BE$25,32,FALSE)*$F28) -> 61 | S61: =IF($C28=""," ",VLOOKUP($C28,Mineralfutter!$A$11:$BE$25,33,FALSE)*$F28) -> 273 | T61: =IF($C28=""," ",VLOOKUP($C28,Mineralfutter!$A$11:$BE$25,34,FALSE)*$F28) -> 114 | U61: =IF($C28=""," ",VLOOKUP($C28,Mineralfutter!$A$11:$BE$25,35,FALSE)*$F28) -> 0 | X61: =IF($C28=""," ",VLOOKUP($C28,Mineralfutter!$A$11:$BE$25,36,FALSE)*$F28) -> 0 | AA61: =IF($C28=""," ",VLOOKUP($C28,Mineralfutter!$A$11:$BE$25,37,FALSE)*$F28) -> 0.0
B62: =B29 ->  | C62: =IF(C29=""," ",C29) ->  | E62: =IF(E29=""," ",E29) ->  | F62: =IF(F29=""," ",F29) ->  | G62: =IF($C29=""," ",VLOOKUP($C29,Mineralfutter!$A$11:$BE$25,10,FALSE)*$F29) ->  | H62: =IF($C29=""," ",VLOOKUP($C29,Mineralfutter!$A$11:$BE$25,10,FALSE)*$F29) ->  | I62: =IF($C29=""," ",VLOOKUP($C29,Mineralfutter!$A$11:$BE$25,21,FALSE)*$F29) ->  | J62: =IF($C29=""," ",VLOOKUP($C29,Mineralfutter!$A$11:$BE$25,22,FALSE)*$F29) ->  | K62: =IF($C29=""," ",VLOOKUP($C29,Mineralfutter!$A$11:$BE$25,23,FALSE)*$F29) ->  | L62: =IF($C29=""," ",VLOOKUP($C29,Mineralfutter!$A$11:$BE$25,24,FALSE)*$F29) ->  | M62: =IF($C29=""," ",VLOOKUP($C29,Mineralfutter!$A$11:$BE$25,27,FALSE)*$F29) ->  | N62: =IF($C29=""," ",VLOOKUP($C29,Mineralfutter!$A$11:$BE$25,28,FALSE)*$F29) ->  | O62: =IF($C29=""," ",VLOOKUP($C29,Mineralfutter!$A$11:$BE$25,29,FALSE)*$F29) ->  | P62: =IF($C29=""," ",VLOOKUP($C29,Mineralfutter!$A$11:$BE$25,30,FALSE)*$F29) ->  | Q62: =IF($C29=""," ",VLOOKUP($C29,Mineralfutter!$A$11:$BE$25,31,FALSE)*$F29) ->  | R62: =IF($C29=""," ",VLOOKUP($C29,Mineralfutter!$A$11:$BE$25,32,FALSE)*$F29) ->  | S62: =IF($C29=""," ",VLOOKUP($C29,Mineralfutter!$A$11:$BE$25,33,FALSE)*$F29) ->  | T62: =IF($C29=""," ",VLOOKUP($C29,Mineralfutter!$A$11:$BE$25,34,FALSE)*$F29) ->  | U62: =IF($C29=""," ",VLOOKUP($C29,Mineralfutter!$A$11:$BE$25,35,FALSE)*$F29) ->  | X62: =IF($C29=""," ",VLOOKUP($C29,Mineralfutter!$A$11:$BE$25,36,FALSE)*$F29) ->  | AA62: =IF($C29=""," ",VLOOKUP($C29,Mineralfutter!$A$11:$BE$25,37,FALSE)*$F29) -> 
C63: Summe | E63: =AC30 -> 19.04 € | F63: =IF(SUM(F13:F29,F36:F37)=0," ",SUM(F13:F29,F36:F37)) -> 100.00% | G63: =IF(F30=" "," ",SUM(G46:G62,Q36*$F36,Q37*$F37*0.525)) -> 2.9 | H63: =IF(F30=" "," ",SUM(H46:H62,R36*$F36,R37*$F37*0.525)) -> 2.6 | I63: =IF(F30=" "," ",SUM(I46:I62)) -> 29 | J63: =IF(F30=" "," ",SUM(J46:J62)) -> 462 | K63: =IF(F30=" "," ",SUM(K46:K62)) -> 35 | L63: =IF(F30=" "," ",SUM(L46:L62,F36*650)) -> 51 | M63: =IF(F30=" "," ",SUM(M46:M62)) -> 14.3 | N63: =IF(F30=" "," ",SUM(N46:N62)) -> 12.5 | O63: =IF(F30=" "," ",SUM(O46:O62)) -> 1.8 | P63: =IF(F30=" "," ",SUM(P46:P62)) -> 6055 | Q63: =IF(F30=" "," ",SUM(Q46:Q62)) -> 1514 | R63: =IF(F30=" "," ",SUM(R46:R62)) -> 61 | S63: =IF(F30=" "," ",SUM(S46:S62)) -> 300 | T63: =IF(F30=" "," ",SUM(T46:T62)) -> 597 | U63: =IF(F30=" "," ",SUM(U46:U62)) -> 70 | V63: =IF(H30=" "," ",SUM(V46:V62)) -> 210 | W63: =IF(I30=" "," ",SUM(W46:W62)) -> 47 | X63: =IF(H30=" "," ",SUM(X46:X62)) -> 601 | Y63: =IF(K30=" "," ",SUM(Y46:Y62)) -> 0 | Z63: =IF(J30=" "," ",SUM(Z46:Z62)) -> 0 | AA63: =IF(AA30=" "," ",SUM(AA46:AA62,AK36*$F36,AK37*$F37*0.525)) -> 6.4
C64: Summe auf 88% TM umgerechnet | E64: =AC31 -> 18.92 € | F64: =F30 -> 100.00% | G64: =IF($F31=" "," ",ROUND($I31*G63/$I30*$F31,1)) -> 2.9 | H64: =IF($F31=" "," ",ROUND($I31*H63/$I30*$F31,1)) -> 2.6 | I64: =IF($F31=" "," ",ROUND($I31*I63/$I30*$F31,0)) -> 29 | J64: =IF($F31=" "," ",ROUND($I31*J63/$I30*$F31,0)) -> 459 | K64: =IF($F31=" "," ",ROUND($I31*K63/$I30*$F31,0)) -> 35 | L64: =IF($F31=" "," ",ROUND($I31*L63/$I30*$F31,0)) -> 51 | M64: =IF($F31=" "," ",ROUND($I31*M63/$I30*$F31,1)) -> 14.2 | N64: =IF($F31=" "," ",ROUND($I31*N63/$I30*$F31,1)) -> 12.5 | O64: =IF($F31=" "," ",ROUND($I31*O63/$I30*$F31,1)) -> 1.8 | P64: =IF($F31=" "," ",ROUND($I31*P63/$I30*$F31,0)) -> 6017 | Q64: =IF($F31=" "," ",ROUND($I31*Q63/$I30*$F31,0)) -> 1504 | R64: =IF($F31=" "," ",ROUND($I31*R63/$I30*$F31,0)) -> 61 | S64: =IF($F31=" "," ",ROUND($I31*S63/$I30*$F31,0)) -> 299 | T64: =IF($F31=" "," ",ROUND($I31*T63/$I30*$F31,0)) -> 593 | U64: =IF($F31=" "," ",ROUND($I31*U63/$I30*$F31,1)) -> 69 | V64: 209 | W64: 46 | X64: =IF($F31=" "," ",ROUND($I31*X63/$I30*$F31,1)) -> 597 | Y64: 0 | Z64: 0 | AA64: =IF($F31=" "," ",ROUND($I31*AA63/$I30*$F31,1)) -> 6.4
B65: OW-Nr. | C65: aus Tabelle Orientierungswerte in g
B66: =B33 -> 10 | C66: =IF(C33=""," ",C33) -> Anfangsmast ab 40 Kg LM für 850 g TZ* | E66: - | F66: =F30 -> 100.00% | G66: =IF($C33=""," ",ROUND(VLOOKUP($C$33,Orientierungswerte!$A$13:$AZ$117,30,FALSE)*$F$33,1)) -> 2.9 | H66: =IF($C33=""," ",ROUND(VLOOKUP($C$33,Orientierungswerte!$A$13:$AZ$117,31,FALSE)*$F$33,1)) -> 2.6 | I66: =IF($C33=""," ",ROUND(VLOOKUP($C$33,Orientierungswerte!$A$13:$AZ$117,33,FALSE)*$F$33,0)) -> 0.0 | J66: =IF($C33=""," ",ROUND(VLOOKUP($C$33,Orientierungswerte!$A$13:$AZ$117,34,FALSE)*$F$33,0)) -> 0 | K66: =IF($C33=""," ",ROUND(VLOOKUP($C$33,Orientierungswerte!$A$13:$AZ$117,35,FALSE)*$F$33,0)) -> 0 | L66: =IF($C33=""," ",ROUND(VLOOKUP($C$33,Orientierungswerte!$A$13:$AZ$117,36,FALSE)*$F$33,0)) -> 0 | M66: =IF($C33=""," ",ROUND(VLOOKUP($C$33,Orientierungswerte!$A$13:$AZ$117,37,FALSE)*$F$33,1)) -> 17.7 | N66: =IF($C33=""," ",ROUND(VLOOKUP($C$33,Orientierungswerte!$A$13:$AZ$117,38,FALSE)*$F$33,1)) -> 9.9 | O66: =IF($C33=""," ",ROUND(VLOOKUP($C$33,Orientierungswerte!$A$13:$AZ$117,39,FALSE)*$F$33,1)) -> 0.0 | P66: =IF($C33=""," ",ROUND(VLOOKUP($C$33,Orientierungswerte!$A$13:$AZ$117,40,FALSE)*$F$33,0)) -> 6000 | Q66: =IF($C33=""," ",ROUND(VLOOKUP($C$33,Orientierungswerte!$A$13:$AZ$117,41,FALSE)*$F$33,0)) -> 1500 | R66: =IF($C33=""," ",ROUND(VLOOKUP($C$33,Orientierungswerte!$A$13:$AZ$117,42,FALSE)*$F$33,0)) -> 60 | S66: =IF($C33=""," ",ROUND(VLOOKUP($C$33,Orientierungswerte!$A$13:$AZ$117,43,FALSE)*$F$33,1)) -> < 0 | T66: =IF($C33=""," ",ROUND(VLOOKUP($C$33,Orientierungswerte!$A$13:$AZ$117,44,FALSE)*$F$33,1)) -> 0 | U66: =IF($C33=""," ",ROUND(VLOOKUP($C$33,Orientierungswerte!$A$13:$AZ$117,47,FALSE)*$F$33,1)) -> > 0 | V66: =IF($C33=""," ",ROUND(VLOOKUP($C$33,Orientierungswerte!$A$13:$AZ$117,46,FALSE)*$F$33,1)) -> > 120 | W66: =IF($C33=""," ",ROUND(VLOOKUP($C$33,Orientierungswerte!$A$13:$AZ$117,45,FALSE)*$F$33,1)) -> < 70 | X66: =IF($C33=""," ",ROUND(VLOOKUP($C$33,Orientierungswerte!$A$13:$AZ$117,49,FALSE)*$F$33,1)) -> 0 | Z66: =IF($C33=""," ",ROUND(VLOOKUP($C$33,Orientierungswerte!$A$13:$AZ$117,49,FALSE)*$F$33,1)) -> 0 | AA66: =IF($C33=""," ",ROUND(VLOOKUP($C$33,Orientierungswerte!$A$13:$AZ$117,48,FALSE)*$F$33,1)) -> 0.0
C67: Differenz Mischung zu Orientierungswert | E67: - | F67: =IF($C$33=""," ",ROUND((1-F31)*-1,4)) -> 0.00% | G67: =IF($C$33=""," ",ROUND(G64-G66,1)) -> 0.0 | H67: =IF($C$33=""," ",ROUND(H64-H66,1)) -> 0.0 | I67: =IF($C$33=""," ",ROUND(I64-I66,0)) -> 29 | J67: =IF($C$33=""," ",ROUND(J64-J66,0)) -> 459 | K67: =IF($C$33=""," ",ROUND(K64-K66,0)) -> 35 | L67: =IF($C$33=""," ",ROUND(L64-L66,0)) -> 51 | M67: =IF($C$33=""," ",ROUND(M64-M66,1)) -> -3.5 | N67: =IF($C$33=""," ",ROUND(N64-N66,1)) -> 2.6 | O67: =IF($C$33=""," ",ROUND(O64-O66,1)) -> 1.8 | P67: =IF($C$33=""," ",ROUND(P64-P66,0)) -> 17 | Q67: 4 | R67: 1 | S67: 299.0 | T67: 593 | U67: 69 | V67: =IF($C$33=""," ",ROUND(V64-V66,0)) -> 89 | W67: =IF($C$33=""," ",ROUND(W64-W66,1)) -> -23.6 | X67: =IF($C$33=""," ",ROUND(X64-X66,0)) -> 597 | Y67: =IF($C$33=""," ",ROUND(Y64-Y66,1)) -> 0.0 | Z67: 0 | AA67: =IF($C$33=""," ",ROUND(AA64-AA66,0)) -> 6.0

Sheet Futtermittel
A4: Futtermittel zusammengefasst | B4: Nr. | D4: Futtermittel | E4: Roh-protein in der FM | F4: Qualität | G4: Anteil Proben Hessen | H4: Trocken-masse (TM) | I4: Rohprotein (XP) | J4: vd. Roh-protein (XP) | K4: Rohfaser (XF) | L4: ME ** nach Einzelfutter-formel | M4: ME ** nach neuer Mischfutter-formel | N4: Lysin (Lys) | O4: verdaul. Lysin (pcv Lys) | P4: Methionin & Cystin (M & C) | Q4: verdaul. M. & C. (pcv M & C) | R4: Threonin (Thr) | S4: verdaul. Threonin (pcv Thr) | T4: Tryptophan (Trp) | U4: verdaul. Tryptophan (pcv Trp) | V4: Calcium (Ca) | W4: Phosphor (P) | X4: verdaul. Phosphor (v. P) | Y4: verdaul. P. mit Phytase (vPm.Phyt.) | Z4: Magnesium (Mg) | AA4: Natrium (Na) | AB4: Kalium (K) | AC4: Methionin (Met) | AD4: verdaul. Methionin (pcv Met) | AE4: Rohfett (XL) | AF4: Stärke (S) | AG4: Zucker (Z) | AH4: Rohasche (XA) | AI4: organischer Rest Einzelfutter-formel (OR) | AJ4: organischer Rest neu Mischfutter-formel (OR) | AK4: Polyensäure-gehalt | AL4: Linolsäure-gehalt | AM4: Linolensäure-gehalt | AN4: Vitamin A (Vit A) | AO4: Vitamin D (Vit D) | AP4: Vitamin E (Vit E) | AQ4: Kationen / Anionen-Bilanz = Basenüber-schuß (BE) | AR4: Säurebin-dungs-kapazität SBK | AS4: Bakteriell fermentier-bare Substanz (BfS) | AT4: N-freie Extraktstoffe (NfE) | AU4: Verdaulich-keit organische Masse | AV4: Verdaulich-keit Roprotein | AW4: Verdaulich-keit Rohfett | AX4: Verdaulich-keit Rohfaser | AY4: Verdaulich-keit NfE | AZ4: Chlor (Cl) | BA4: Säure-Detergenz-Faser (ADFom) | BB4: Neutrale-Detergenz-Faser (NDFom) | BC4: Nettoenergie (NE 7) Basis Mischfutter-formel
E5: in % | G5: in % * | H5: g | I5: g | J5: g | K5: g | L5: MJ | M5: MJ | N5: g | O5: g | P5: g | Q5: g | R5: g | S5: g | T5: g | U5: g | V5: g | W5: g | X5: g | Y5: g | Z5: g | AA5: g | AB5: g | AC5: g | AD5: g | AE5: g | AF5: g | AG5: g | AH5: g | AI5: g | AJ5: g | AK5: g | AL5: g | AM5: g | AN5: IE | AO5: IE | AP5: mg | AQ5: mmol | AR5: meq | AS5: g | AT5: g | AU5: % | AV5: % | AW5: % | AX5: % | AY5: % | AZ5: g | BA5: g | BB5: g | BC5: MJ NE
A6: Getreide | D6: G E H A L T E J E K G F U T T E R M I T T E L | P6: G E H A L T E J E K G F U T T E R M I T T E L | AC6: G E H A L T E J E K G F U T T E R M I T T E L | AR6: bei ph 3 | AS6: in FM | AT6: in FM | AZ6: in FM | BA6: in FM | BB6: in FM | BC6: in FM
D7: Getreide
A8: =IF(E8=" ",D8&" "&F8,D8&" "&E8&"% RP "&F8) -> CCM, 65 % TM bis 3 % XF auf 88 % TM 9% RP DLG 2014 | B8: =IF(D8=""," ",COUNTA($D$8:D8)) -> 1 | D8: CCM, 65 % TM bis 3 % XF auf 88 % TM | E8: =IF(I8=0," ",ROUND(I8/10,0)) -> 9 % RP | F8: DLG 2014 | H8: 880 | I8: 88 | J8: =I8*0.81 -> 71 | K8: =K9/65*88 -> 22 | L8: =I8*0.0205*AV8+0.0398*AW8*AE8+0.0173*AF8+0.016*$AG8+0.0147*AI8 -> 13.41 | M8: =$I8*0.021503+0.032497*$AE8+0.016309*$AF8+0.014701*$AJ8-0.021071*$K8 -> 14.11 | N8: =IF(I8=0," ",(I8/H8*550*0.0171+0.51)/550*H8) -> 2.3 | O8: =IF(N8=" "," ",N8*0.7) -> 1.6 | P8: =IF(N8=" "," ",(I8/H8*550*0.0215+1.04)/550*H8) -> 3.6 | Q8: =IF(N8=" "," ",P8*(0.88*1.3+1.4*0.85)/2.7) -> 3.1 | R8: =IF(N8=" "," ",(I8/H8*550*0.0301+0.28)/550*H8) -> 3.1 | S8: =IF(N8=" "," ",R8*0.85) -> 2.6 | T8: =T9/650*880 -> 0.7 | U8: =T8*0.71 -> 0.5 | V8: =0.3/65*88 -> 0.4 | W8: 2.8 | X8: =W8*55% -> 1.5 | Y8: =W8*0.65 -> 1.8 | Z8: =0.8/65*88 -> 1.1 | AA8: =AA9/65*88 -> 0.14 | AB8: 4.3 | AC8: =AC9/650*880 -> 1.8 | AD8: =AC8*0.88 -> 1.5 | AE8: =26/$H$9*880 -> 35 | AF8: =423/$H$9*880 -> 573 | AG8: =5/$H$9*880 -> 7 | AH8: =10/$H$9*880 -> 14 | AI8: =(H8-AH8)*AU8-I8*AV8-AE8*AW8-AF8-AG8 -> 73 | AJ8: =$H8-($AE8+$AF8+$AH8+$I8+$K8) -> 149 | AK8: =15/58*H8/10 -> 22.8 | AL8: =$AL$23*AK8/$AK$23 -> 20.9 | AM8: =AK8-AL8 -> 1.8 | AQ8: =IF(H8="","",50*V8+83*Z8+26*AB8+44*AA8-59*W8-13*P8-28*AZ8) -> -16 | AR8: =IF(H8="","",V8/1000*20140+Z8/1000*48600+1100/440*I8) -> 281 | AS8: =AX8*K8+AY8*AT8-AF8-AG8 -> 77 | AT8: =IF(H8=""," ",H8-I8-AE8-AH8-K8) -> 722 | AU8: 86% | AV8: 81% | AW8: 62% | AX8: 33% | AY8: 90% | AZ8: =1.3*880/1000 -> 1.14 | BA8: =BA9/$H$9*$H$8 -> 19 | BB8: =BB9/$H$9*$H$8 -> 60 | BC8: =IF(H8="","",0.73*M8+0.055*AE8+0.015*AF8-0.028*I8-0.041*K8) -> 17.47
A9: =IF(E9=" ",D9&" "&F9,D9&" "&E9&"% RP "&F9) -> CCM, 65 % TM bis 3 % XF in TM 7% RP DLG 2014 | B9: =IF(D9=""," ",COUNTA($D$8:D9)) -> 2 | D9: CCM, 65 % TM bis 3 % XF in TM | E9: 7 % RP | F9: DLG 2014 | H9: 650 | I9: 65 | J9: =I9*0.81 -> 53 | K9: 16 | L9: =I9*0.0205*AV9+0.0398*AW9*AE9+0.0173*AF9+0.016*$AG9+0.0147*AI9 -> 9.91 | M9: =$I9*0.021503+0.032497*$AE9+0.016309*$AF9+0.014701*$AJ9-0.021071*$K9 -> 10.42 | N9: =IF(I9=0," ",(I9/H9*550*0.0171+0.51)/550*H9) -> 1.7 | O9: =IF(N9=" "," ",N9*0.7) -> 1.2 | P9: =IF(N9=" "," ",(I9/H9*550*0.0215+1.04)/550*H9) -> 2.6 | Q9: =IF(N9=" "," ",P9*(0.88*1.3+1.4*0.85)/2.7) -> 2.3 | R9: =IF(N9=" "," ",(I9/H9*550*0.0301+0.28)/550*H9) -> 2.3 | S9: =IF(N9=" "," ",R9*0.85) -> 1.9 | T9: =IF(N9=" "," ",0.5) -> 0.5 | U9: =IF(N9=" "," ",T9*0.71) -> 0.4 | V9: =V8/88*65 -> 0.3 | W9: 2.3 | X9: =W9*55% -> 1.3 | Y9: =W9*0.65 -> 1.5 | Z9: =Z8/88*60 -> 0.7 | AA9: 0.10 | AB9: =AB8/88*61 -> 3.0 | AC9: 1.3 | AD9: =AC9*0.88 -> 1.1 | AE9: 26 | AF9: 423 | AG9: 5 | AH9: 10 | AI9: =(H9-AH9)*AU9-I9*AV9-AE9*AW9-AF9-AG9 -> 54 | AJ9: =$H9-($AE9+$AF9+$AH9+$I9+$K9) -> 110 | AK9: =15/58*H9/10 -> 16.8 | AL9: =$AL$23*AK9/$AK$23 -> 15.5 | AM9: =AK9-AL9 -> 1.4 | AQ9: -35 | AR9: =IF(H9="","",V9/1000*20140+Z9/1000*48600+1100/440*I9) -> 204 | AS9: =AX9*K9+AY9*AT9-AF9-AG9 -> 57 | AT9: =IF(H9=""," ",H9-I9-AE9-AH9-K9) -> 533 | AU9: 86% | AV9: 81% | AW9: 62% | AX9: 33% | AY9: 90% | AZ9: =1.3*H9/1000 -> 0.85 | BA9: 14 | BB9: 44 | BC9: =IF(H9="","",0.73*M9+0.055*AE9+0.015*AF9-0.028*I9-0.041*K9) -> 12.91
A10: =IF(E10=" ",D10&" "&F10,D10&" "&E10&"% RP "&F10) -> CCM, 61 % TM über 3 % XF auf 88 % TM 9% RP DLG 2014 | B10: =IF(D10=""," ",COUNTA($D$8:D10)) -> 3 | D10: CCM, 61 % TM über 3 % XF auf 88 % TM | E10: =IF(I10=0," ",ROUND(I10/10,0)) -> 9 % RP | F10: DLG 2014 | H10: 880 | I10: 88 | J10: =I10*0.81 -> 71 | K10: =K11/61*88 -> 35 | L10: =I10*0.0205*AV10+0.0398*AW10*AE10+0.0173*AF10+0.016*$AG10+0.0147*AI10 -> 13.24 | M10: =$I10*0.021503+0.032497*$AE10+0.016309*$AF10+0.014701*$AJ10-0.021071*$K10 -> 13.65 | N10: =IF(I10=0," ",(I10/H10*550*0.0171+0.51)/550*H10) -> 2.3 | O10: =IF(N10=" "," ",N10*0.67) -> 1.6 | P10: =IF(N10=" "," ",(I10/H10*550*0.0215+1.04)/550*H10) -> 3.6 | Q10: =IF(N10=" "," ",P10*(0.88*1.3+1.4*0.85)/2.7) -> 3.1 | R10: =IF(N10=" "," ",(I10/H10*550*0.0301+0.28)/550*H10) -> 3.1 | S10: =IF(N10=" "," ",R10*0.72) -> 2.2 | T10: =T11/610*880 -> 0.6 | U10: =IF(N10=" "," ",T10*0.65) -> 0.4 | V10: =0.2/61*88 -> 0.3 | W10: =W11/61*88 -> 2.9 | X10: =W10*55% -> 1.6 | Y10: =W10*0.65 -> 1.9 | Z10: =0.8/61*88 -> 1.2 | AA10: =AA11/61*88 -> 0.14 | AB10: 4.3 | AC10: =AC11/610*880 -> 1.7 | AD10: =AC10*0.84 -> 1.5 | AE10: =26/$H$9*880 -> 35 | AF10: =423/$H$9*880 -> 573 | AG10: =5/$H$9*880 -> 7 | AH10: =10/$H$9*880 -> 14 | AI10: =(H10-AH10)*AU10-I10*AV10-AE10*AW10-AF10-AG10 -> 68 | AJ10: =$H10-($AE10+$AF10+$AH10+$I10+$K10) -> 136 | AK10: =15/58*H10/10 -> 22.8 | AL10: =$AL$23*AK10/$AK$23 -> 20.9 | AM10: =AK10-AL10 -> 1.8 | AQ10: =IF(H10="","",50*V10+83*Z10+26*AB10+44*AA10-59*W10-13*P10-28*AZ10) -> -20 | AR10: =IF(H10="","",V10/1000*20140+Z10/1000*48600+1100/440*I10) -> 282 | AS10: =AX10*K10+AY10*AT10-AF10-AG10 -> 70 | AT10: 709 | AU10: 85% | AV10: 78% | AW10: 59% | AX10: 33% | AY10: 90% | AZ10: =1.3*880/1000 -> 1.14 | BA10: =BA11/$H$9*$H$8 -> 27 | BB10: =BB11/$H$9*$H$8 -> 73 | BC10: 16.60
A11: =IF(E11=" ",D11&" "&F11,D11&" "&E11&"% RP "&F11) -> CCM, 61 % TM über 3 % XF in TM 6% RP DLG 2014 | B11: =IF(D11=""," ",COUNTA($D$8:D11)) -> 4 | D11: CCM, 61 % TM über 3 % XF in TM | E11: =IF(I11=0," ",ROUND(I11/10,0)) -> 6 % RP | F11: DLG 2014 | H11: 610 | I11: 61 | J11: =I11*0.78 -> 48 | K11: 24 | L11: =I11*0.0205*AV11+0.0398*AW11*AE11+0.0173*AF11+0.016*$AG11+0.0147*AI11 -> 9.20 | M11: =$I11*0.021503+0.032497*$AE11+0.016309*$AF11+0.014701*$AJ11-0.021071*$K11 -> 9.48 | N11: =IF(I11=0," ",(I11/H11*550*0.0171+0.51)/550*H11) -> 1.6 | O11: =IF(N11=" "," ",N11*0.67) -> 1.1 | P11: =IF(N11=" "," ",(I11/H11*550*0.0215+1.04)/550*H11) -> 2.5 | Q11: =IF(N11=" "," ",P11*(0.84*2+2.2*0.76)/4.2) -> 2.0 | R11: =IF(N11=" "," ",(I11/H11*550*0.0301+0.28)/550*H11) -> 2.1 | S11: =IF(N11=" "," ",R11*0.72) -> 1.5 | T11: 0.4 | U11: =IF(N11=" "," ",T11*0.65) -> 0.3 | V11: 0.2 | W11: 2.0 | X11: =W11*55% -> 1.1 | Y11: =W11*0.65 -> 1.3 | Z11: =Z10/88*60 -> 0.8 | AA11: 0.10 | AB11: =AB10/88*61 -> 3.0 | AC11: 1.2 | AD11: =AC11*0.84 -> 1.0 | AE11: 26 | AF11: 397 | AG11: 5 | AH11: 10 | AI11: =(H11-AH11)*AU11-I11*AV11-AE11*AW11-AF11-AG11 -> 45 | AJ11: =$H11-($AE11+$AF11+$AH11+$I11+$K11) -> 92 | AK11: =15/58*H11/10 -> 15.8 | AL11: =$AL$23*AK11/$AK$23 -> 14.5 | AM11: =AK11-AL11 -> 1.3 | AQ11: =IF(H11="","",50*V11+83*Z11+26*AB11+44*AA11-59*W11-13*P11-28*AZ11) -> -15 | AR11: =IF(H11="","",V11/1000*20140+Z11/1000*48600+1100/440*I11) -> 195 | AS11: =AX11*K11+AY11*AT11-AF11-AG11 -> 46 | AT11: 489 | AU11: 85% | AV11: 78% | AW11: 59% | AX11: 33% | AY11: 90% | AZ11: =1.3*H11/1000 -> 0.79 | BA11: 20 | BB11: 54 | BC11: 11.61
A12: =IF(E12=" ",D12&" "&F12,D12&" "&E12&"% RP "&F12) -> eigenes CCM 5% RP Ø 2015 | B12: =IF(D12=""," ",COUNTA($D$8:D12)) -> 5 | D12: eigenes CCM | E12: 5 % RP | F12: =IF(I12=90/1000*H12,"Ø 2015","") -> Ø 2015 | H12: 604 | I12: =90/1000*H12 -> 54 | J12: =IF(I12=0," ",I12*0.81) -> 44 | K12: =31/1000*H12 -> 19 | L12: =IF($I12=""," ",I12*0.0205*AV12+0.0398*AW12*AE12+0.0173*AF12+0.016*$AG12+0.0147*AI12) -> 9.34 | M12: =IF(I12=""," ",$I12*0.021503+0.032497*$AE12+0.016309*$AF12+0.014701*$AJ12-0.021071*$K12) -> 9.64 | N12: =IF(I12=0," ",(I12/H12*550*0.0171+0.51)/550*H12) -> 1.5 | O12: =IF(N12=" "," ",N12*0.7) -> 1.0 | P12: =IF(N12=" "," ",(I12/H12*550*0.0215+1.04)/550*H12) -> 2.3 | Q12: =IF(N12=" "," ",P12*(0.88*1.3+1.4*0.85)/2.7) -> 2.0 | R12: =IF(N12=" "," ",(I12/H12*550*0.0301+0.28)/550*H12) -> 1.9 | S12: =IF(N12=" "," ",R12*0.85) -> 1.7 | T12: =IF(N12=" "," ",0.5*H12/H9) -> 0.5 | U12: =IF(N12=" "," ",T12*0.71) -> 0.3 | V12: =IF($I12=0," ",V9*$H12/$H9) -> 0.3 | W12: =IF($I12=0," ",W9*$H12/$H9) -> 2.1 | X12: 1.2 | Y12: =IF($I12=0," ",Y9*$H12/$H9) -> 1.4 | Z12: 0.7 | AA12: 0.09 | AB12: 2.8 | AC12: =IF($I12=0," ",AC9/H9*H12) -> 1.2 | AD12: =IF($N12=" "," ",AC12*0.88) -> 1.1 | AE12: =46/1000*H12 -> 28 | AF12: =717/1000*H12 -> 433 | AG12: =AG9/650*H12 -> 5 | AH12: 9 | AI12: =IF($I12=""," ",(H12-AH12)*AU12-I12*AV12-AE12*AW12-AF12-AG12) -> 13 | AJ12: =IF($I12=""," ",$H12-($AE12+$AF12+$AH12+$I12+$K12)) -> 61 | AK12: =IF($I12=0," ",AK9*$H12/$H9) -> 15.6 | AL12: 14.4 | AM12: 1.3 | AN12: 0 | AO12: 0 | AP12: 0 | AQ12: -31 | AR12: 175 | AS12: =IF($I12=0," ",AX12*K12+AY12*AT12-AF12-AG12) -> 13 | AT12: 494 | AU12: =IF($I12=0," ",AU9) -> 86% | AV12: =IF($I12=0," ",AV9) -> 81% | AW12: =IF($I12=0," ",AW9) -> 62% | AX12: 33% | AY12: 90% | AZ12: =IF($I12=0," ",AZ9*$H12/$H9) -> 0.79 | BA12: =IF($I12=0," ",37/1000*H12) -> 22 | BB12: =IF($I12=0," ",102/1000*H12) -> 62 | BC12: 12.77
A13: =IF(E13=" ",D13&" "&F13,D13&" "&E13&"% RP "&F13) -> Gerste 14% RP | B13: =IF(D13=""," ",COUNTA($D$8:D13)) -> 6 | D13: Gerste | E13: 14 % RP | G13: 1 | H13: 880 | I13: 138 | J13: =I13*0.73 -> 101 | K13: 49 | L13: =I13*0.0205*AV13+0.0398*AW13*AE13+0.0173*AF13+0.016*$AG13+0.0147*AI13 -> 12.67 | M13: =$I13*0.021503+0.032497*$AE13+0.016309*$AF13+0.014701*$AJ13-0.021071*$K13 -> 12.98 | N13: =IF(I13=0," ",I13*0.0229+1.38) -> 4.5 | O13: =IF(N13=" "," ",N13*0.73) -> 3.3 | P13: =IF(N13=" "," ",I13*0.0276+1.07) -> 4.9 | Q13: =IF(N13=" "," ",P13*(1.6*0.82+2.2*0.85)/3.8) -> 4.1 | R13: =IF(N13=" "," ",I13*0.0264+0.72) -> 4.4 | S13: =IF(N13=" "," ",R13*0.76) -> 3.3 | T13: =IF(N13=" "," ",I13*0.0099+0.28) -> 1.7 | U13: =IF(N13=" "," ",T13*0.76) -> 1.3 | V13: =0.49*H13/1000 -> 0.4 | W13: 3.5 | X13: =0.45*W13 -> 1.6 | Y13: =W13*0.65 -> 2.3 | Z13: 1.1 | AA13: 0.15 | AB13: 4.4 | AC13: =IF($I13=""," ",$I13*0.0133+0.32) -> 2.2 | AD13: =AC13*0.82 -> 1.8 | AE13: 23 | AF13: 499 | AG13: 22 | AH13: 24 | AI13: =(H13-AH13)*AU13-I13*AV13-AE13*AW13-AF13-AG13 -> 76 | AJ13: =$H13-($AE13+$AF13+$AH13+$I13+$K13) -> 146 | AK13: =AL13+AM13 -> 14.4 | AL13: =57*AE13/100 -> 13.2 | AM13: =5*AE13/100 -> 1.2 | AQ13: -56 | AR13: 408 | AS13: =AX13*K13+AY13*AT13-AF13-AG13 -> 67 | AT13: =IF(H13=""," ",H13-I13-AE13-AH13-K13) -> 645 | AU13: 83% | AV13: 73% | AW13: 53% | AX13: 16% | AY13: 90% | AZ13: =0.8*H13/1000 -> 0.70 | BA13: =$BA$17/$H$17*H13*K13/$K$17 -> 43 | BB13: =$BB$17/$H$17*H13*K13/$K$17 -> 328 | BC13: 12.34
A14: Gerste 13% RP | B14: =IF(D14=""," ",COUNTA($D$8:D14)) -> 7 | D14: Gerste | E14: 13 % RP | G14: 7 | H14: 880 | I14: 128 | J14: =I14*0.73 -> 93 | K14: 52 | L14: =I14*0.0205*AV14+0.0398*AW14*AE14+0.0173*AF14+0.016*$AG14+0.0147*AI14 -> 12.64 | M14: =$I14*0.021503+0.032497*$AE14+0.016309*$AF14+0.014701*$AJ14-0.021071*$K14 -> 12.82 | N14: =IF(I14=0," ",I14*0.0229+1.38) -> 4.3 | O14: 3.1 | P14: =IF(N14=" "," ",I14*0.0276+1.07) -> 4.6 | Q14: 3.9 | R14: =IF(N14=" "," ",I14*0.0264+0.72) -> 4.1 | S14: 3.1 | T14: =IF(N14=" "," ",I14*0.0099+0.28) -> 1.5 | U14: 1.2 | V14: =0.49*H14/1000 -> 0.4 | W14: 3.5 | X14: =0.45*W14 -> 1.6 | Y14: =W14*0.65 -> 2.3 | Z14: 1.1 | AA14: 0.15 | AB14: 4.4 | AC14: =IF($I14=""," ",$I14*0.0133+0.32) -> 2.0 | AD14: =AC14*0.82 -> 1.7 | AE14: 24 | AF14: 502 | AG14: 22 | AH14: 24 | AI14: =(H14-AH14)*AU14-I14*AV14-AE14*AW14-AF14-AG14 -> 81 | AJ14: =$H14-($AE14+$AF14+$AH14+$I14+$K14) -> 151 | AK14: =AL14+AM14 -> 14.8 | AL14: =57*AE14/100 -> 13.6 | AM14: =5*AE14/100 -> 1.2 | AQ14: -52 | AR14: 382 | AS14: =AX14*K14+AY14*AT14-AF14-AG14 -> 72 | AT14: 652 | AU14: 83% | AV14: 73% | AW14: 53% | AX14: 16% | AY14: 90% | AZ14: =0.8*H14/1000 -> 0.70 | BA14: =$BA$17/$H$17*H14*K14/$K$17 -> 45 | BB14: =$BB$17/$H$17*H14*K14/$K$17 -> 347 | BC14: 12.47
A15: Gerste 12% RP | B15: =IF(D15=""," ",COUNTA($D$8:D15)) -> 8 | D15: Gerste | E15: 12 % RP | G15: 19 | H15: 880 | I15: 119 | J15: =I15*0.73 -> 87 | K15: 53 | L15: =I15*0.0205*AV15+0.0398*AW15*AE15+0.0173*AF15+0.016*$AG15+0.0147*AI15 -> 12.62 | M15: =$I15*0.021503+0.032497*$AE15+0.016309*$AF15+0.014701*$AJ15-0.021071*$K15 -> 12.73 | N15: =IF(I15=0," ",I15*0.0229+1.38) -> 4.1 | O15: 3.0 | P15: =IF(N15=" "," ",I15*0.0276+1.07) -> 4.4 | Q15: 3.7 | R15: =IF(N15=" "," ",I15*0.0264+0.72) -> 3.9 | S15: 2.9 | T15: =IF(N15=" "," ",I15*0.0099+0.28) -> 1.5 | U15: 1.1 | V15: =0.49*H15/1000 -> 0.4 | W15: 3.5 | X15: =0.45*W15 -> 1.6 | Y15: =W15*0.65 -> 2.3 | Z15: 1.1 | AA15: 0.15 | AB15: 4.4 | AC15: =IF($I15=""," ",$I15*0.0133+0.32) -> 1.9 | AD15: =AC15*0.82 -> 1.6 | AE15: 24 | AF15: 509 | AG15: 23 | AH15: 24 | AI15: =(H15-AH15)*AU15-I15*AV15-AE15*AW15-AF15-AG15 -> 79 | AJ15: =$H15-($AE15+$AF15+$AH15+$I15+$K15) -> 151 | AK15: =AL15+AM15 -> 14.8 | AL15: =57*AE15/100 -> 13.6 | AM15: =5*AE15/100 -> 1.2 | AQ15: -49 | AR15: 360 | AS15: =AX15*K15+AY15*AT15-AF15-AG15 -> 70 | AT15: 660 | AU15: 83% | AV15: 73% | AW15: 53% | AX15: 16% | AY15: 90% | AZ15: =0.8*H15/1000 -> 0.70 | BA15: =$BA$17/$H$17*H15*K15/$K$17 -> 46 | BB15: =$BB$17/$H$17*H15*K15/$K$17 -> 354 | BC15: 12.72
A16: Gerste 11% RP | B16: =IF(D16=""," ",COUNTA($D$8:D16)) -> 9 | D16: Gerste | E16: 11 % RP | G16: 41 | H16: 880 | I16: 110 | J16: =I16*0.73 -> 80 | K16: 55 | L16: =I16*0.0205*AV16+0.0398*AW16*AE16+0.0173*AF16+0.016*$AG16+0.0147*AI16 -> 12.59 | M16: =$I16*0.021503+0.032497*$AE16+0.016309*$AF16+0.014701*$AJ16-0.021071*$K16 -> 12.60 | N16: =IF(I16=0," ",I16*0.0229+1.38) -> 3.9 | O16: 2.8 | P16: =IF(N16=" "," ",I16*0.0276+1.07) -> 4.1 | Q16: 3.4 | R16: =IF(N16=" "," ",I16*0.0264+0.72) -> 3.6 | S16: 2.8 | T16: =IF(N16=" "," ",I16*0.0099+0.28) -> 1.4 | U16: 1.0 | V16: =0.49*H16/1000 -> 0.4 | W16: 3.5 | X16: =0.45*W16 -> 1.6 | Y16: =W16*0.65 -> 2.3 | Z16: 1.1 | AA16: 0.15 | AB16: 4.4 | AC16: =IF($I16=""," ",$I16*0.0133+0.32) -> 1.8 | AD16: =AC16*0.82 -> 1.5 | AE16: 24 | AF16: 511 | AG16: 23 | AH16: 24 | AI16: =(H16-AH16)*AU16-I16*AV16-AE16*AW16-AF16-AG16 -> 84 | AJ16: =$H16-($AE16+$AF16+$AH16+$I16+$K16) -> 157 | AK16: =AL16+AM16 -> 14.8 | AL16: =57*AE16/100 -> 13.6 | AM16: =5*AE16/100 -> 1.2 | AQ16: -46 | AR16: 337 | AS16: =AX16*K16+AY16*AT16-AF16-AG16 -> 76 | AT16: 667 | AU16: 83% | AV16: 73% | AW16: 53% | AX16: 16% | AY16: 90% | AZ16: =0.8*H16/1000 -> 0.70 | BA16: =$BA$17/$H$17*H16*K16/$K$17 -> 48 | BB16: =$BB$17/$H$17*H16*K16/$K$17 -> 367 | BC16: 12.83
A17: Gerste 10% RP DLG 2014 | B17: =IF(D17=""," ",COUNTA($D$8:D17)) -> 10 | D17: Gerste | E17: 10 % RP | F17: DLG 2014 | H17: 870 | I17: 104 | J17: =I17*0.73 -> 76 | K17: 48 | L17: =I17*0.0205*AV17+0.0398*AW17*AE17+0.0173*AF17+0.016*$AG17+0.0147*AI17 -> 12.47 | M17: =$I17*0.021503+0.032497*$AE17+0.016309*$AF17+0.014701*$AJ17-0.021071*$K17 -> 12.70 | N17: =IF(I17=0," ",I17*0.0229+1.38) -> 3.8 | O17: 2.7 | P17: =IF(N17=" "," ",I17*0.0276+1.07) -> 3.9 | Q17: 3.3 | R17: =IF(N17=" "," ",I17*0.0264+0.72) -> 3.5 | S17: 2.6 | T17: =IF(N17=" "," ",I17*0.0099+0.28) -> 1.3 | U17: 1.0 | V17: =0.49*H17/1000 -> 0.4 | W17: 3.5 | X17: =0.45*W17 -> 1.6 | Y17: =W17*0.65 -> 2.3 | Z17: 1.1 | AA17: 0.15 | AB17: 4.4 | AC17: =IF($I17=""," ",$I17*0.0133+0.32) -> 1.7 | AD17: =AC17*0.82 -> 1.4 | AE17: 24 | AF17: 522 | AG17: 23 | AH17: =27*0.88 -> 24 | AI17: =(H17-AH17)*AU17-I17*AV17-AE17*AW17-AF17-AG17 -> 69 | AJ17: =$H17-($AE17+$AF17+$AH17+$I17+$K17) -> 148 | AK17: =AL17+AM17 -> 14.9 | AL17: =57*AE17/100 -> 13.7 | AM17: =5*AE17/100 -> 1.2 | AQ17: -44 | AR17: 322 | AS17: =AX17*K17+AY17*AT17-AF17-AG17 -> 66 | AT17: =IF(H17=""," ",H17-I17-AE17-AH17-K17) -> 670 | AU17: 83% | AV17: 73% | AW17: 53% | AX17: 16% | AY17: 90% | AZ17: =0.8*H17/1000 -> 0.70 | BA17: 41 | BB17: 315 | BC17: 13.54
A18: eigene Gerste 11% RP Ø 2016 | B18: =IF(D18=""," ",COUNTA($D$8:D18)) -> 11 | D18: eigene Gerste | E18: 11 % RP | F18: =IF(I18=107.8,"Ø 2016","") -> Ø 2016 | H18: 880 | I18: 108 | J18: =IF(I18=0," ",I18*0.73) -> 79 | K18: 54 | L18: =IF($I18=""," ",I18*0.0205*AV18+0.0398*AW18*AE18+0.0173*AF18+0.016*$AG18+0.0147*AI18) -> 12.57 | M18: =IF(I18=""," ",$I18*0.021503+0.032497*$AE18+0.016309*$AF18+0.014701*$AJ18-0.021071*$K18) -> 12.62 | N18: =IF(I18=0," ",(I18/H18*880*0.0229+1.38)/880*H18) -> 3.8 | O18: 2.8 | P18: =IF(N18=" "," ",(I18/H18*880*0.0276+1.07)/880*H18) -> 4.0 | Q18: 3.4 | R18: =IF(N18=" "," ",(I18/H18*880*0.0264+0.72)/880*H18) -> 3.6 | S18: 2.7 | T18: =IF(N18=" "," ",(I18/H18*880*0.0099+0.28)/880*H18) -> 1.3 | U18: 1.0 | V18: =IF($I18=0," ",V$17*$H18/$H$17) -> 0.4 | W18: 3.5 | X18: 1.6 | Y18: 2.3 | Z18: 1.1 | AA18: =IF($I18=0," ",AA17*$H18/$H17) -> 0.15 | AB18: =IF($I18=0," ",AB$17*$H18/$H$17) -> 4.5 | AC18: =IF($I18=""," ",($I18/H18*880*0.0133+0.32)/880*H18) -> 1.8 | AD18: =IF($N18=" "," ",AC18*0.82) -> 1.4 | AE18: 24 | AF18: 509 | AG18: 23 | AH18: 24 | AI18: =IF($I18=""," ",(H18-AH18)*AU18-I18*AV18-AE18*AW18-AF18-AG18) -> 88 | AJ18: =IF($I18=""," ",$H18-($AE18+$AF18+$AH18+$I18+$K18)) -> 161 | AK18: =IF($I18=0," ",AK17*$H18/$H17) -> 15.1 | AL18: 13.8 | AM18: 1.2 | AQ18: -45 | AR18: 332 | AS18: =IF($I18=0," ",AX18*K18+AY18*AT18-AF18-AG18) -> 80 | AT18: 670 | AU18: =IF($I18=0," ",83%) -> 83% | AV18: =IF($I18=0," ",73%) -> 73% | AW18: =IF($I18=0," ",53%) -> 53% | AX18: =IF($I18=0," ",AX17) -> 16% | AY18: =IF($I18=0," ",AY17) -> 90% | AZ18: =IF($I18=0," ",AZ17*$H18/$H17) -> 0.70 | BA18: =IF($I18=0," ",41*$H18/$H$17*K18/$K$17) -> 47 | BB18: =IF($I18=0," ",315*$H18/$H17*K18/$K17) -> 361 | BC18: 12.91
A19: eigene Gerste 2 10% RP Ø 2015 | B19: =IF(D19=""," ",COUNTA($D$8:D19)) -> 12 | D19: eigene Gerste 2 | E19: =IF(I19=0," ",ROUND(I19/10,0)) -> 10 % RP | F19: =IF(I19=96.535,"Ø 2015","") -> Ø 2015 | H19: 880 | I19: 97 | J19: =IF(I19=0," ",I19*0.73) -> 70 | K19: 54 | L19: =IF($I19=""," ",I19*0.0205*AV19+0.0398*AW19*AE19+0.0173*AF19+0.016*$AG19+0.0147*AI19) -> 12.56 | M19: =IF(I19=""," ",$I19*0.021503+0.032497*$AE19+0.016309*$AF19+0.014701*$AJ19-0.021071*$K19) -> 12.59 | N19: =IF(I19=0," ",(I19/H19*880*0.0229+1.38)/880*H19) -> 3.6 | O19: 2.6 | P19: =IF(N19=" "," ",(I19/H19*880*0.0276+1.07)/880*H19) -> 3.7 | Q19: 3.1 | R19: =IF(N19=" "," ",(I19/H19*880*0.0264+0.72)/880*H19) -> 3.3 | S19: 2.5 | T19: =IF(N19=" "," ",(I19/H19*880*0.0099+0.28)/880*H19) -> 1.2 | U19: 0.9 | V19: 0.4 | W19: 3.5 | X19: 1.6 | Y19: 2.3 | Z19: 1.1 | AA19: =IF($I19=0," ",AA18*$H19/$H18) -> 0.15 | AB19: =IF($I19=0," ",AB$17*$H19/$H$17) -> 4.5 | AC19: =IF($I19=""," ",($I19/H19*880*0.0133+0.32)/880*H19) -> 1.6 | AD19: =IF($N19=" "," ",AC19*0.82) -> 1.3 | AE19: 24 | AF19: 523 | AG19: 23 | AH19: 24 | AI19: =IF($I19=""," ",(H19-AH19)*AU19-I19*AV19-AE19*AW19-AF19-AG19) -> 81 | AJ19: =IF($I19=""," ",$H19-($AE19+$AF19+$AH19+$I19+$K19)) -> 159 | AK19: 15.1 | AL19: 13.8 | AM19: 1.2 | AQ19: =IF(H19="","",50*V19+83*Z19+26*AB19+44*AA19-59*W19-13*P19-28*AZ19) -> -41 | AR19: =IF(H19="","",V19/1000*20140+Z19/1000*48600+1100/440*I19) -> 304 | AS19: =IF($I19=0," ",AX19*K19+AY19*AT19-AF19-AG19) -> 77 | AT19: 682 | AU19: =IF($I19=0," ",83%) -> 83% | AV19: =IF($I19=0," ",73%) -> 73% | AW19: =IF($I19=0," ",53%) -> 53% | AX19: =IF($I19=0," ",AX18) -> 16% | AY19: =IF($I19=0," ",AY18) -> 90% | AZ19: =IF($I19=0," ",AZ18*$H19/$H18) -> 0.70 | BA19: =IF($I19=0," ",41*$H19/$H$17*K19/$K$17) -> 46 | BB19: =IF($I19=0," ",315*$H19/$H$17*K19/$K$17) -> 356 | BC19: 13.45
A20: Gerste 10% RP | B20: =IF(D20=""," ",COUNTA($D$8:D20)) -> 13 | D20: Gerste | E20: 10 % RP | G20: 23 | H20: 880 | I20: 101 | J20: =I20*0.73 -> 74 | K20: 54 | L20: =I20*0.0205*AV20+0.0398*AW20*AE20+0.0173*AF20+0.016*$AG20+0.0147*AI20 -> 12.56 | M20: =$I20*0.021503+0.032497*$AE20+0.016309*$AF20+0.014701*$AJ20-0.021071*$K20 -> 12.59 | N20: =IF(I20=0," ",I20*0.0229+1.38) -> 3.7 | O20: 2.7 | P20: =IF(N20=" "," ",I20*0.0276+1.07) -> 3.8 | Q20: 3.2 | R20: =IF(N20=" "," ",I20*0.0264+0.72) -> 3.4 | S20: 2.6 | T20: =IF(N20=" "," ",I20*0.0099+0.28) -> 1.3 | U20: 1.0 | V20: =0.49*H20/1000 -> 0.4 | W20: 3.5 | X20: =0.45*W20 -> 1.6 | Y20: =W20*0.65 -> 2.3 | Z20: 1.1 | AA20: 0.15 | AB20: 4.4 | AC20: =IF($I20=""," ",$I20*0.0133+0.32) -> 1.7 | AD20: =AC20*0.82 -> 1.4 | AE20: 24 | AF20: 514 | AG20: 23 | AH20: 24 | AI20: =(H20-AH20)*AU20-I20*AV20-AE20*AW20-AF20-AG20 -> 87 | AJ20: =$H20-($AE20+$AF20+$AH20+$I20+$K20) -> 163 | AK20: =AL20+AM20 -> 14.8 | AL20: =57*AE20/100 -> 13.6 | AM20: =5*AE20/100 -> 1.2 | AQ20: -42 | AR20: 314 | AS20: =AX20*K20+AY20*AT20-AF20-AG20 -> 81 | AT20: 677 | AU20: 83% | AV20: 73% | AW20: 53% | AX20: 16% | AY20: 90% | AZ20: =0.8*H20/1000 -> 0.70 | BA20: =$BA$17/$H$17*H20*K20/$K$17 -> 47 | BB20: =$BB$17/$H$17*H20*K20/$K$17 -> 358 | BC20: 13.18
A21: Gerste 9% RP | B21: =IF(D21=""," ",COUNTA($D$8:D21)) -> 14 | D21: Gerste | E21: 9 % RP | G21: 9 | H21: 880 | I21: 91 | J21: =I21*0.73 -> 66 | K21: 52 | L21: 12.57 | M21: 12.62 | N21: =IF(I21=0," ",I21*0.0229+1.38) -> 3.5 | O21: 2.5 | P21: =IF(N21=" "," ",I21*0.0276+1.07) -> 3.6 | Q21: 3.0 | R21: =IF(N21=" "," ",I21*0.0264+0.72) -> 3.1 | S21: 2.4 | T21: =IF(N21=" "," ",I21*0.0099+0.28) -> 1.2 | U21: 0.9 | V21: =0.49*H21/1000 -> 0.4 | W21: 3.5 | X21: =0.45*W21 -> 1.6 | Y21: 2.3 | Z21: 1.1 | AA21: 0.15 | AB21: 4.4 | AC21: =IF($I21=""," ",$I21*0.0133+0.32) -> 1.5 | AD21: =AC21*0.82 -> 1.3 | AE21: 24 | AF21: 539 | AG21: 23 | AH21: 24 | AI21: 70 | AJ21: 151 | AK21: =AL21+AM21 -> 14.8 | AL21: =57*AE21/100 -> 13.6 | AM21: =5*AE21/100 -> 1.2 | AQ21: -39 | AR21: 289 | AS21: 67 | AT21: 689 | AU21: 83% | AV21: 73% | AW21: 53% | AX21: 16% | AY21: 90% | AZ21: =0.8*H21/1000 -> 0.70 | BA21: =$BA$17/$H$17*H21*K21/$K$17 -> 45 | BB21: =$BB$17/$H$17*H21*K21/$K$17 -> 347 | BC21: 13.92
A22: Gerste öko 9% RP Ø Hessen | B22: =IF(D22=""," ",COUNTA($D$8:D22)) -> 15 | D22: Gerste öko | E22: 9 % RP | F22: Ø Hessen | G22: 100 | H22: 880 | I22: 87 | J22: =I22*0.73 -> 64 | K22: 59 | L22: 12.56 | M22: 12.37 | N22: =IF(I22=0," ",I22*0.0229+1.38) -> 3.4 | O22: 2.5 | P22: =IF(N22=" "," ",I22*0.0276+1.07) -> 3.5 | Q22: 2.9 | R22: =IF(N22=" "," ",I22*0.0264+0.72) -> 3.0 | S22: 2.3 | T22: =IF(N22=" "," ",I22*0.0099+0.28) -> 1.1 | U22: 0.9 | V22: =0.49*H22/1000 -> 0.4 | W22: 3.5 | X22: =0.45*W22 -> 1.6 | Y22: 2.3 | Z22: 1.1 | AA22: 0.15 | AB22: 4.4 | AC22: =IF($I22=""," ",$I22*0.0133+0.32) -> 1.5 | AD22: =AC22*0.82 -> 1.2 | AE22: 24 | AF22: 539 | AG22: 23 | AH22: 24 | AI22: 73 | AJ22: 148 | AK22: =AL22+AM22 -> 14.8 | AL22: =57*AE22/100 -> 13.6 | AM22: =5*AE22/100 -> 1.2 | AQ22: -38 | AR22: 280 | AS22: 66 | AT22: 686 | AU22: 83% | AV22: 73% | AW22: 53% | AX22: 16% | AY22: 90% | AZ22: =0.8*H22/1000 -> 0.70 | BA22: =$BA$17/$H$17*H22*K22/$K$17 -> 51 | BB22: =$BB$17/$H$17*H22*K22/$K$17 -> 390 | BC22: 13.56
A23: Gerste Sommer 10% RP Ø Hessen | B23: =IF(D23=""," ",COUNTA($D$8:D23)) -> 16 | D23: Gerste Sommer | E23: 10 % RP | F23: Ø Hessen | G23: 100 | H23: 880 | I23: 99 | J23: =I23*0.73 -> 73 | K23: 50 | L23: 12.70 | M23: 12.74 | N23: =IF(I23=0," ",I23*0.0241+1.3) -> 3.7 | O23: 2.7 | P23: =IF(N23=" "," ",I23*0.031+0.86) -> 3.9 | Q23: =IF(N23=" "," ",P23*(1.8*0.82+2.3*0.85)/3.8) -> 3.6 | R23: =IF(N23=" "," ",I23*0.0293+0.48) -> 3.4 | S23: 2.6 | T23: =IF(N23=" "," ",I23*0.0126+0.02) -> 1.3 | U23: 1.0 | V23: =0.8*H23/1000 -> 0.7 | W23: 3.5 | X23: =0.45*W23 -> 1.6 | Y23: 2.3 | Z23: =1.3*H23/1000 -> 1.1 | AA23: 0.15 | AB23: =5*H23/1000 -> 4.4 | AC23: =IF($I23=""," ",$I23*0.015+0.18) -> 1.7 | AD23: =AC23*0.82 -> 1.4 | AE23: 24 | AF23: 524 | AG23: 23 | AH23: 24 | AI23: 87 | AJ23: 159 | AK23: =AL23+AM23 -> 14.8 | AL23: =57*AE23/100 -> 13.6 | AM23: =5*AE23/100 -> 1.2 | AQ23: -44 | AR23: 318 | AS23: 78 | AT23: 683 | AU23: 84% | AV23: 73% | AW23: 53% | AX23: 20% | AY23: 90% | AZ23: =1.5*H23/1000 -> 1.32 | BA23: =$BA$17/$H$17*H23*K23/$K$17 -> 43 | BB23: =$BB$17/$H$17*H23*K23/$K$17 -> 331 | BC23: 13.64
B24: =IF(D24=""," ",COUNTA($D$8:D24)) -> 17 | D24: Gerste Sommer | E24: 10 % RP | F24: DLG 2014 | H24: 870 | I24: 98 | J24: =I24*0.73 -> 72 | K24: 44 | L24: 12.53 | M24: 12.75 | N24: =IF(I24=0," ",I24*0.0241+1.3) -> 3.7 | O24: 2.7 | P24: =IF(N24=" "," ",I24*0.031+0.86) -> 3.9 | Q24: =IF(N24=" "," ",P24*(1.8*0.82+2.3*0.85)/3.8) -> 3.5 | R24: =IF(N24=" "," ",I24*0.0293+0.48) -> 3.4 | S24: 2.5 | T24: =IF(N24=" "," ",I24*0.0126+0.02) -> 1.3 | U24: 1.0 | V24: =0.8*H24/1000 -> 0.7 | W24: 3.5 | X24: =0.45*W24 -> 1.6 | Y24: 2.3 | Z24: =1.3*H24/1000 -> 1.1 | AA24: 0.15 | AB24: =5*H24/1000 -> 4.4 | AC24: =IF($I24=""," ",$I24*0.015+0.18) -> 1.7 | AD24: =AC24*0.82 -> 1.4 | AE24: 23 | AF24: 522 | AG24: 21 | AH24: 26 | AI24: 82 | AJ24: 157 | AK24: =AL24+AM24 -> 14.3 | AL24: =57*AE24/100 -> 13.1 | AM24: =5*AE24/100 -> 1.2 | AQ24: =IF(H24="","",50*V24+83*Z24+26*AB24+44*AA24-59*W24-13*P24-28*AZ24) -> -45 | AR24: =IF(H24="","",V24/1000*20140+Z24/1000*48600+1100/440*I24) -> 314 | AS24: 77 | AT24: 679 | AU24: 84% | AV24: 73% | AW24: 53% | AX24: 20% | AY24: 90% | AZ24: =1.5*H24/1000 -> 1.31 | BA24: =$BA$17/$H$17*H24*K24/$K$17 -> 38 | BB24: =$BB$17/$H$17*H24*K24/$K$17 -> 289 | BC24: 13.85
A25: Hafer 11% RP DLG 2014 | B25: =IF(D25=""," ",COUNTA($D$8:D25)) -> 18 | D25: Hafer | E25: 11 % RP | F25: DLG 2014 | H25: 880 | I25: 108 | J25: =I25*0.88 -> 95 | K25: 97 | L25: 11.68 | M25: 11.26 | N25: =IF(I25=0," ",I25*0.0368+0.4) -> 4.4 | O25: =IF(N25=" "," ",N25*0.95) -> 4.2 | P25: =IF(N25=" "," ",I25*0.0365+0.88) -> 4.8 | Q25: =IF(N25=" "," ",P25*(1.6*0.88+2.6*0.82)/4.2) -> 4.1 | R25: =IF(N25=" "," ",I25*0.0326+0.1) -> 3.6 | S25: =IF(N25=" "," ",R25*0.9) -> 3.3 | T25: =IF(N25=" "," ",I25*0.0139-0.03) -> 1.5 | U25: =IF(N25=" "," ",T25*0.77) -> 1.1 | V25: 1.1 | W25: 3.2 | X25: =W25*0.25 -> 0.8 | Y25: 2.1 | Z25: 1.1 | AA25: 0.16 | AB25: 4.4 | AC25: =IF($I25=""," ",$I25*0.0152+0.1) -> 1.7 | AD25: =AC25*0.88 -> 1.5 | AE25: 47 | AF25: 392 | AG25: 14 | AH25: 28 | AI25: 83 | AJ25: 208 | AK25: 14.0 | AL25: =$AL$23*AK25/$AK$23 -> 12.9 | AM25: =AK25-AL25 -> 1.1 | AQ25: -8 | AR25: 346 | AS25: 68 | AT25: 600 | AU25: 73% | AV25: 88% | AW25: 80% | AX25: 12% | AY25: 77% | AZ25: =1*H25/1000 -> 0.88 | BA25: 143 | BB25: 334 | BC25: 9.68
A26: eigener Hafer 11% RP Ø 2016 | B26: =IF(D26=""," ",COUNTA($D$8:D26)) -> 19 | D26: eigener Hafer | E26: 11 % RP | F26: =IF(I26=110.75,"Ø 2016","") -> Ø 2016 | H26: 880 | I26: 111 | J26: =IF(I26=0," ",I26*0.88) -> 97 | K26: 102 | L26: =IF($I26=""," ",I26*0.0205*AV26+0.0398*AW26*AE26+0.0173*AF26+0.016*$AG26+0.0147*AI26) -> 11.25 | M26: =IF(I26=""," ",$I26*0.021503+0.032497*$AE26+0.016309*$AF26+0.014701*$AJ26-0.021071*$K26) -> 10.66 | N26: =IF(I26=0," ",(I26/H26*880*0.0368+0.4)/880*H26) -> 4.5 | O26: =IF(N26=" "," ",N26*0.95) -> 4.3 | P26: =IF(N26=" "," ",(I26/H26*880*0.0365+0.88)/880*H26) -> 4.9 | Q26: =IF(N26=" "," ",P26*(1.6*0.88+2.6*0.82)/4.2) -> 4.1 | R26: =IF(N26=" "," ",(I26/H26*880*0.0326+0.1)/880*H26) -> 3.7 | S26: =IF(N26=" "," ",R26*0.9) -> 3.3 | T26: =IF(N26=" "," ",(I26/H26*880*0.0139-0.03)/880*H26) -> 1.5 | U26: =IF(N26=" "," ",T26*0.77) -> 1.2 | V26: =IF($I26=0," ",1.093*H26/1000) -> 1.0 | W26: =IF($I26=0," ",3.827*H26/1000) -> 3.4 | X26: =W26*0.25 -> 0.8 | Y26: =IF($I26=0," ",Y25*$H26/$H25) -> 2.1 | Z26: =IF($I26=0," ",Z25*$H26/$H25) -> 1.1 | AA26: =IF($I26=0," ",AA25*$H26/$H25) -> 0.16 | AB26: =IF($I26=0," ",AB25*$H26/$H25) -> 4.4 | AC26: =IF($I26=""," ",($I26/H26*880*0.0152+0.1)/880*H26) -> 1.8 | AD26: =IF($N26=" "," ",AC26*0.88) -> 1.6 | AE26: 32 | AF26: 373 | AG26: 16 | AH26: 37 | AI26: =IF($I26=""," ",(H26-AH26)*AU26-I26*AV26-AE26*AW26-AF26-AG26) -> 103 | AJ26: =IF($I26=""," ",$H26-($AE26+$AF26+$AH26+$I26+$K26)) -> 225 | AK26: =IF($I26=0," ",AK25*$H26/$H25) -> 14.0 | AL26: 12.9 | AM26: 1.1 | AN26: 0 | AO26: 0 | AP26: 0 | AQ26: -26 | AR26: 350 | AS26: =IF($I26=0," ",AX26*K26+AY26*AT26-AF26-AG26) -> 84 | AT26: =IF(H26=""," ",H26-I26-AE26-AH26-K26) -> 598 | AU26: =IF($I26=0," ",AU25) -> 73% | AV26: =IF($I26=0," ",AV25) -> 88% | AW26: =IF($I26=0," ",AW25) -> 80% | AX26: =IF($I26=0," ",AX25) -> 12% | AY26: =IF($I26=0," ",AY25) -> 77% | AZ26: =IF($I26=0," ",AZ25*$H26/$H25) -> 0.88 | BA26: =IF($I26=0," ",BA25*$H26/$H25*K26/K25) -> 151 | BB26: =IF($I26=0," ",315*$H26/$H25*K26/$K25) -> 333 | BC26: 7.86
A27: Hafer 11% RP Ø Hessen | B27: =IF(D27=""," ",COUNTA($D$8:D27)) -> 20 | D27: Hafer | E27: 11 % RP | F27: Ø Hessen | G27: 100 | H27: 880 | I27: 112 | J27: =I27*0.88 -> 99 | K27: 99 | L27: =I27*0.0205*AV27+0.0398*AW27*AE27+0.0173*AF27+0.016*$AG27+0.0147*AI27 -> 11.51 | M27: =$I27*0.021503+0.032497*$AE27+0.016309*$AF27+0.014701*$AJ27-0.021071*$K27 -> 11.05 | N27: =IF(I27=0," ",I27*0.0368+0.4) -> 4.5 | O27: =IF(N27=" "," ",N27*0.95) -> 4.3 | P27: =IF(N27=" "," ",I27*0.0365+0.88) -> 5.0 | Q27: =IF(N27=" "," ",P27*(1.6*0.88+2.6*0.82)/4.2) -> 4.2 | R27: =IF(N27=" "," ",I27*0.0326+0.1) -> 3.8 | S27: =IF(N27=" "," ",R27*0.9) -> 3.4 | T27: =IF(N27=" "," ",I27*0.0139-0.03) -> 1.5 | U27: =IF(N27=" "," ",T27*0.77) -> 1.2 | V27: 1.1 | W27: 3.2 | X27: =W27*0.25 -> 0.8 | Y27: =W27*0.65 -> 2.1 | Z27: 1.1 | AA27: 0.16 | AB27: 4.4 | AC27: =IF($I27=""," ",$I27*0.0152+0.1) -> 1.8 | AD27: =AC27*0.88 -> 1.6 | AE27: 38 | AF27: 394 | AG27: 14 | AH27: =33*0.88 -> 29 | AI27: =(H27-AH27)*AU27-I27*AV27-AE27*AW27-AF27-AG27 -> 85 | AJ27: =$H27-($AE27+$AF27+$AH27+$I27+$K27) -> 209 | AK27: 14.0 | AL27: =$AL$23*AK27/$AK$23 -> 12.9 | AM27: =AK27-AL27 -> 1.1 | AQ27: -10 | AR27: 356 | AS27: =AX27*K27+AY27*AT27-AF27-AG27 -> 68 | AT27: 602 | AU27: 73% | AV27: 88% | AW27: 80% | AX27: 12% | AY27: 77% | AZ27: =1*H27/1000 -> 0.88 | BA27: =IF($I27=0," ",BA25*$H27/$H25*K27/K25) -> 145 | BB27: =IF($I27=0," ",BB25*$H27/$H25*K27/K25) -> 340 | BC27: 8.88
A28: Hirse - Sorghum 10% RP DLG 2014 | B28: =IF(D28=""," ",COUNTA($D$8:D28)) -> 21 | D28: Hirse - Sorghum | E28: =IF(I28=0," ",ROUND(I28/10,0)) -> 10 % RP | F28: DLG 2014 | H28: 880 | I28: 97 | J28: =I28*0.74 -> 72 | K28: 26 | L28: =I28*0.0205*AV28+0.0398*AW28*AE28+0.0173*AF28+0.016*$AG28+0.0147*AI28 -> 13.75 | M28: =$I28*0.021503+0.032497*$AE28+0.016309*$AF28+0.014701*$AJ28-0.021071*$K28 -> 14.07 | N28: =IF(I28=0," ",I28*0.015+0.68) -> 2.1 | O28: =IF(N28=" "," ",N28*0.8) -> 1.7 | P28: =IF(N28=" "," ",I28*0.0269+0.82) -> 3.4 | Q28: =IF(N28=" "," ",P28*(1.6*0.89+1.7*0.86)/3.3) -> 3.0 | R28: =IF(N28=" "," ",I28*0.0272+0.51) -> 3.1 | S28: =IF(N28=" "," ",R28*0.86) -> 2.7 | T28: =IF(N28=" "," ",I28*0.0094+0.18) -> 1.1 | U28: =IF(N28=" "," ",T28*0.86) -> 0.9 | V28: 0.4 | W28: 2.6 | X28: =W28*0.3 -> 0.8 | Y28: =W28*0.65 -> 1.7 | Z28: 1.1 | AA28: 0.20 | AB28: 3.3 | AC28: =IF($I28=""," ",$I28*0.0141+0.32) -> 1.7 | AD28: =AC28*0.89 -> 1.5 | AE28: 35 | AF28: 634 | AG28: 11 | AH28: 16 | AI28: =(H28-AH28)*AU28-I28*AV28-AE28*AW28-AF28-AG28 -> 24 | AJ28: =$H28-($AE28+$AF28+$AH28+$I28+$K28) -> 72 | AK28: =(AK25-AK23)/2+AK23 -> 14.4 | AL28: =$AL$23*AK28/$AK$23 -> 13.2 | AM28: =AK28-AL28 -> 1.2 | AQ28: -9 | AR28: 304 | AS28: =AX28*K28+AY28*AT28-AF28-AG28 -> 43 | AT28: 706 | AU28: 88% | AV28: 74% | AW28: 56% | AX28: 67% | AY28: 95% | AZ28: =0.7*H28/1000 -> 0.62 | BA28: 41 | BB28: 183 | BC28: 17.93
A29: eigene Hirse - Sorghum 10% RP | B29: =IF(D29=""," ",COUNTA($D$8:D29)) -> 22 | D29: eigene Hirse - Sorghum | E29: =IF(I29=0," ",ROUND(I29/10,0)) -> 10 % RP | H29: 880 | I29: 100 | J29: =IF(I29=0," ",I29*0.74) -> 74 | K29: 56 | L29: =IF($I29=""," ",I29*0.0205*AV29+0.0398*AW29*AE29+0.0173*AF29+0.016*$AG29+0.0147*AI29) -> 13.51 | M29: =IF(I29=""," ",$I29*0.021503+0.032497*$AE29+0.016309*$AF29+0.014701*$AJ29-0.021071*$K29) -> 12.75 | N29: =IF(I29=0," ",(I29/H29*880*0.015+0.68)/880*H29) -> 2.2 | O29: =IF(N29=" "," ",N29*0.8) -> 1.7 | P29: =IF(N29=" "," ",(I29/H29*880*0.0269+0.82)/880*H29) -> 3.5 | Q29: =IF(N29=" "," ",P29*(1.6*0.89+1.7*0.86)/3.3) -> 3.1 | R29: =IF(N29=" "," ",(I29/H29*880*0.0272+0.51)/880*H29) -> 3.2 | S29: =IF(N29=" "," ",R29*0.86) -> 2.8 | T29: =IF(N29=" "," ",(I29/H29*880*0.0094+0.18)/880*H29) -> 1.1 | U29: =IF(N29=" "," ",T29*0.86) -> 1.0 | V29: =IF($I29=0," ",V28*$H29/$H28) -> 0.4 | W29: 2.6 | X29: 0.8 | Y29: 1.7 | Z29: 1.1 | AA29: 0.20 | AB29: 3.3 | AC29: =IF($I29=""," ",($I29/H29*880*0.0141+0.32)/880*H29) -> 1.7 | AD29: =IF($N29=" "," ",AC29*0.89) -> 1.5 | AE29: 26 | AF29: 600 | AG29: 24 | AH29: 20 | AI29: =IF($I29=""," ",(H29-AH29)*AU29-I29*AV29-AE29*AW29-AF29-AG29) -> 44 | AJ29: =IF($I29=""," ",$H29-($AE29+$AF29+$AH29+$I29+$K29)) -> 78 | AK29: =IF($I29=0," ",AK28*$H29/$H28) -> 14.4 | AL29: 13.2 | AM29: 1.2 | AN29: 0 | AO29: 0 | AP29: 0 | AQ29: -10 | AR29: 312 | AS29: =IF($I29=0," ",AX29*K29+AY29*AT29-AF29-AG29) -> 58 | AT29: 678 | AU29: =IF($I29=0," ",AU28) -> 88% | AV29: =IF($I29=0," ",AV28) -> 74% | AW29: =IF($I29=0," ",AW28) -> 56% | AX29: =IF($I29=0," ",AX28) -> 67% | AY29: =IF($I29=0," ",AY28) -> 95% | AZ29: =IF($I29=0," ",AZ28*$H29/$H28) -> 0.62 | BA29: =IF($I29=0," ",BA28*$H29/$H28*K29/K28) -> 88 | BB29: =IF($I29=0," ",BB28*$H29/$H28*K29/K28) -> 394 | BC29: 14.64
A30: Mais, Körner 9% RP DLG 2014 | B30: =IF(D30=""," ",COUNTA($D$8:D30)) -> 23 | D30: Mais, Körner | E30: 9 % RP | F30: DLG 2014 | H30: 880 | I30: 92 | J30: =I30*0.82 -> 75 | K30: 23 | L30: =IF($I30=""," ",I30*0.0205*AV30+0.0398*AW30*AE30+0.0173*AF30+0.016*$AG30+0.0147*AI30) -> 14.19 | M30: =$I30*0.021503+0.032497*$AE30+0.016309*$AF30+0.014701*$AJ30-0.021071*$K30 -> 14.21 | N30: =IF(I30=0," ",I30*0.0186+0.85) -> 2.6 | O30: =IF(N30=" "," ",N30*0.85) -> 2.2 | P30: =IF(N30=" "," ",I30*0.0299+1.01) -> 3.8 | Q30: =IF(N30=" "," ",P30*(1.8*0.85+1.8*0.86)/3.6) -> 3.2 | R30: =IF(N30=" "," ",I30*0.032+0.31) -> 3.3 | S30: =IF(N30=" "," ",R30*0.83) -> 2.7 | T30: =IF(N30=" "," ",I30*0.0047+0.24) -> 0.7 | U30: =IF(N30=" "," ",T30*0.82) -> 0.6 | V30: 0.4 | W30: 2.8 | X30: =W30*0.2 -> 0.6 | Y30: =W30*0.65 -> 1.8 | Z30: 1.1 | AA30: 0.20 | AB30: 3.0 | AC30: =IF($I30=""," ",$I30*0.0159+0.37) -> 1.8 | AD30: =AC30*0.85 -> 1.6 | AE30: 40 | AF30: 607 | AG30: 18 | AH30: =17*0.88 -> 15 | AI30: =(H30-AH30)*AU30-I30*AV30-AE30*AW30-AF30-AG30 -> 50 | AJ30: =$H30-($AE30+$AF30+$AH30+$I30+$K30) -> 103 | AK30: =56*AE30/100 -> 22.4 | AL30: =$AL$23*AK30/$AK$23 -> 20.6 | AM30: =AK30-AL30 -> 1.8 | AQ30: -28 | AR30: 292 | AS30: =AX30*K30+AY30*AT30-AF30-AG30 -> 54 | AT30: 710 | AU30: 90% | AV30: 82% | AW30: 70% | AX30: 51% | AY30: 94% | AZ30: =0.5*H30/1000 -> 0.44 | BA30: 33 | BB30: 136 | BC30: 18.16
A31: eigener Mais, Körner | B31: =IF(D31=""," ",COUNTA($D$8:D31)) -> 24 | D31: eigener Mais, Körner | J31: =IF(I31=0," ",I31*0.82) ->  | L31: =IF($I31=""," ",I31*0.0205*AV31+0.0398*AW31*AE31+0.0173*AF31+0.016*$AG31+0.0147*AI31) ->  | M31: =IF(I31=""," ",$I31*0.021503+0.032497*$AE31+0.016309*$AF31+0.014701*$AJ31-0.021071*$K31) ->  | N31: =IF(I31=0," ",(I31/H31*880*0.0186+0.85)/880*H31) ->  | O31: =IF(N31=" "," ",N31*0.85) ->  | P31: =IF(N31=" "," ",(I31/H31*880*0.0299+1.01)/880*H31) ->  | Q31: =IF(N31=" "," ",P31*(1.8*0.85+1.8*0.86)/3.6) ->  | R31: =IF(N31=" "," ",(I31/H31*880*0.032+0.31)/880*H31) ->  | S31: =IF(N31=" "," ",R31*0.83) ->  | T31: =IF(N31=" "," ",(I31/H31*880*0.0047+0.24)/880*H31) ->  | U31: =IF(N31=" "," ",T31*0.82) ->  | V31: =IF($I31=0," ",V30*$H31/$H30) ->  | AC31: =IF($I31=""," ",($I31/H31*880*0.0159+0.37)/880*H31) ->  | AD31: =IF($N31=" "," ",AC31*0.85) ->  | AI31: =IF($I31=""," ",(H31-AH31)*AU31-I31*AV31-AE31*AW31-AF31-AG31) ->  | AJ31: =IF($I31=""," ",$H31-($AE31+$AF31+$AH31+$I31+$K31)) ->  | AK31: =IF($I31=0," ",AK30*$H31/$H30) ->  | AS31: =IF($I31=0," ",AX31*K31+AY31*AT31-AF31-AG31) ->  | AU31: =IF($I31=0," ",AU30) ->  | AV31: =IF($I31=0," ",AV30) ->  | AW31: =IF($I31=0," ",AW30) ->  | AX31: =IF($I31=0," ",AX30) ->  | AY31: =IF($I31=0," ",AY30) ->  | AZ31: =IF($I31=0," ",AZ30*$H31/$H30) ->  | BA31: =IF($I31=0," ",BA30*$H31/$H30*K31/K30) ->  | BB31: =IF($I31=0," ",BB30*$H31/$H30*K31/K30) -> 
A32: Mais, Körner siliert Ganzkorn 7% RP DLG 2014 | B32: =IF(D32=""," ",COUNTA($D$8:D32)) -> 25 | D32: Mais, Körner siliert Ganzkorn | E32: 7 % RP | F32: DLG 2014 | H32: 650 | I32: 65 | J32: =I32*0.89 -> 58 | K32: 16 | L32: =I32*0.0205*AV32+0.0398*AW32*AE32+0.0173*AF32+0.016*$AG32+0.0147*AI32 -> 10.72 | M32: =$I32*0.021503+0.032497*$AE32+0.016309*$AF32+0.014701*$AJ32-0.021071*$K32 -> 10.53 | N32: =IF(I32=0," ",I32*0.0186+0.85) -> 2.1 | O32: =IF(N32=" "," ",N32*0.85) -> 1.8 | P32: =IF(N32=" "," ",I32*0.0299+1.01) -> 3.0 | Q32: =IF(N32=" "," ",P32*(1.8*0.85+1.8*0.86)/3.6) -> 2.5 | R32: =IF(N32=" "," ",I32*0.032+0.31) -> 2.4 | S32: =IF(N32=" "," ",R32*0.83) -> 2.0 | T32: =IF(N32=" "," ",I32*0.0047+0.24) -> 0.5 | U32: =IF(N32=" "," ",T32*0.82) -> 0.4 | V32: 0.3 | W32: 2.1 | X32: =W32*0.5 -> 1.1 | Y32: =W32*0.65 -> 1.4 | Z32: 0.8 | AA32: 0.10 | AB32: 3.0 | AC32: =IF($I32=""," ",$I32*0.0159+0.37) -> 1.4 | AD32: =AC32*0.88 -> 1.2 | AE32: 29 | AF32: 455 | AG32: 3 | AH32: 10 | AI32: =(H32-AH32)*AU32-I32*AV32-AE32*AW32-AF32-AG32 -> 51 | AJ32: =$H32-($AE32+$AF32+$AH32+$I32+$K32) -> 75 | AK32: =56*AE32/100 -> 16.2 | AL32: =$AL$23*AK32/$AK$23 -> 14.9 | AM32: =AK32-AL32 -> 1.3 | AQ32: =IF(H32="","",50*V32+83*Z32+26*AB32+44*AA32-59*W32-13*P32-28*AZ32) -> -8 | AR32: =IF(H32="","",V32/1000*20140+Z32/1000*48600+1100/440*I32) -> 207 | AS32: =AX32*K32+AY32*AT32-AF32-AG32 -> 48 | AT32: 530 | AU32: 92% | AV32: 89% | AW32: 75% | AX32: 51% | AY32: 94% | AZ32: =0.5*H32/1000 -> 0.33 | BA32: 21 | BB32: 131 | BC32: 13.63
A33: Mais, Körner siliert geschrotet 6% RP DLG 2014 | B33: =IF(D33=""," ",COUNTA($D$8:D33)) -> 26 | D33: Mais, Körner siliert geschrotet | E33: 6 % RP | F33: DLG 2014 | H33: 650 | I33: 60 | J33: =I33*0.9 -> 54 | K33: 14 | L33: =I33*0.0205*AV33+0.0398*AW33*AE33+0.0173*AF33+0.016*$AG33+0.0147*AI33 -> 10.96 | M33: =$I33*0.021503+0.032497*$AE33+0.016309*$AF33+0.014701*$AJ33-0.021071*$K33 -> 10.59 | N33: =IF(I33=0," ",I33*0.0186+0.85) -> 2.0 | O33: =IF(N33=" "," ",N33*0.7) -> 1.4 | P33: =IF(N33=" "," ",I33*0.0299+1.01) -> 2.8 | Q33: =IF(N33=" "," ",P33*(1.3*0.88+1.3*0.85)/2.6) -> 2.4 | R33: =IF(N33=" "," ",I33*0.032+0.31) -> 2.2 | S33: =IF(N33=" "," ",R33*0.85) -> 1.9 | T33: =IF(N33=" "," ",I33*0.0047+0.24) -> 0.5 | U33: =IF(N33=" "," ",T33*0.71) -> 0.4 | V33: 0.3 | W33: 2.1 | X33: =W33*0.5 -> 1.1 | Y33: =W33*0.65 -> 1.4 | Z33: 0.8 | AA33: 0.10 | AB33: 3.0 | AC33: =IF($I33=""," ",$I33*0.0159+0.37) -> 1.3 | AD33: =AC33*0.88 -> 1.2 | AE33: 31 | AF33: 449 | AG33: 14 | AH33: 10 | AI33: =(H33-AH33)*AU33-I33*AV33-AE33*AW33-AF33-AG33 -> 60 | AJ33: =$H33-($AE33+$AF33+$AH33+$I33+$K33) -> 86 | AK33: =56*AE33/100 -> 17.4 | AL33: =$AL$23*AK33/$AK$23 -> 16.0 | AM33: =AK33-AL33 -> 1.4 | AQ33: =IF(H33="","",50*V33+83*Z33+26*AB33+44*AA33-59*W33-13*P33-28*AZ33) -> -6 | AR33: =IF(H33="","",V33/1000*20140+Z33/1000*48600+1100/440*I33) -> 195 | AS33: =AX33*K33+AY33*AT33-AF33-AG33 -> 47 | AT33: =IF(H33=""," ",H33-I33-AE33-AH33-K33) -> 535 | AU33: 94% | AV33: 90% | AW33: 80% | AX33: 51% | AY33: 94% | AZ33: =0.5*H33/1000 -> 0.33 | BA33: 21 | BB33: 131 | BC33: 13.92
A34: =IF(E34=" ",D34&" "&F34,D34&" "&E34&"% RP "&F34) -> Mais, siliert 3% RP DLG 2014 | B34: =IF(D34=""," ",COUNTA($D$8:D34)) -> 27 | D34: Mais, siliert | E34: =IF(I34=0," ",ROUND(I34/10,0)) -> 3 % RP | F34: DLG 2014 | H34: 350 | I34: 30 | J34: =I34*0.59 -> 18 | K34: 56 | L34: =I34*0.0205*AV34+0.0398*AW34*AE34+0.0173*AF34+0.016*$AG34+0.0147*AI34 -> 3.75 | M34: =$I34*0.021503+0.032497*$AE34+0.016309*$AF34+0.014701*$AJ34-0.021071*$K34 -> 3.52 | N34: =IF(I34=0," ",(I34/H34*550*0.0171+0.51)/550*H34) -> 0.8 | O34: =IF(N34=" "," ",N34*0.73) -> 0.6 | P34: =IF(N34=" "," ",(I34/H34*550*0.0215+1.04)/550*H34) -> 1.3 | Q34: =IF(N34=" "," ",P34*(0.92*1.3+0.9*0.88)/2.1) -> 1.2 | R34: =IF(N34=" "," ",(I34/H34*550*0.0301+0.28)/550*H34) -> 1.1 | S34: =IF(N34=" "," ",R34*0.88) -> 1.0 | T34: =IF(N34=" "," ",0.2) -> 0.2 | U34: =IF(N34=" "," ",T34*0.76) -> 0.2 | V34: 0.9 | W34: 0.8 | X34: =W34*55% -> 0.4 | Y34: =W34*0.65 -> 0.5 | Z34: =Z33/88*60 -> 0.5 | AA34: =AA33/88*60 -> 0.07 | AB34: 13.1 | AC34: 0.5 | AD34: =AC34*0.76 -> 0.4 | AE34: 12 | AF34: 105 | AG34: 4 | AH34: 14 | AI34: =(H34-AH34)*AU34-I34*AV34-AE34*AW34-AF34-AG34 -> 64 | AJ34: =$H34-($AE34+$AF34+$AH34+$I34+$K34) -> 133 | AK34: =AL34+AM34 -> 7.0 | AL34: =54*AE34/100 -> 6.5 | AM34: =4*AE34/100 -> 0.5 | AQ34: =IF(H34="","",50*V34+83*Z34+26*AB34+44*AA34-59*W34-13*P34-28*AZ34) -> 357 | AR34: =IF(H34="","",V34/1000*20140+Z34/1000*48600+1100/440*I34) -> 120 | AS34: =AX34*K34+AY34*AT34-AF34-AG34 -> 124 | AT34: =IF(H34=""," ",H34-I34-AE34-AH34-K34) -> 238 | AU34: 62% | AV34: 81% | AW34: 88% | AX34: 33% | AY34: 90% | AZ34: =1.3*H34/1000 -> 0.46 | BA34: 95 | BB34: 175 | BC34: 1.67
A35: =IF(E35=" ",D35&" "&F35,D35&" "&E35&"% RP "&F35) -> eigener Mais, siliert | B35: =IF(D35=""," ",COUNTA($D$8:D35)) -> 28 | D35: eigener Mais, siliert | E35: =IF(I35=0," ",ROUND(I35/10,0)) ->  | J35: =IF(I35=0," ",I35*0.59) ->  | L35: =IF($I35=""," ",I35*0.0205*AV35+0.0398*AW35*AE35+0.0173*AF35+0.016*$AG35+0.0147*AI35) ->  | M35: =IF(I35=""," ",$I35*0.021503+0.032497*$AE35+0.016309*$AF35+0.014701*$AJ35-0.021071*$K35) ->  | N35: =IF(I35=0," ",(I35/H35*550*0.0171+0.51)/550*H35) ->  | O35: =IF(N35=" "," ",N35*0.73) ->  | P35: =IF(N35=" "," ",(I35/H35*550*0.0215+1.04)/550*H35) ->  | Q35: =IF(N35=" "," ",P35*(0.92*1.3+0.9*0.88)/2.1) ->  | R35: =IF(N35=" "," ",(I35/H35*550*0.0301+0.28)/550*H35) ->  | S35: =IF(N35=" "," ",R35*0.88) ->  | T35: =IF(N35=" "," ",0.2) ->  | U35: =IF(N35=" "," ",T35*0.76) ->  | V35: =IF($I35=0," ",V34*$H35/$H34) ->  | AC35: =IF($I35=0," ",AC34/H34*H35) ->  | AD35: =IF($N35=" "," ",AC35*0.85) ->  | AI35: =IF($I35=""," ",(H35-AH35)*AU35-I35*AV35-AE35*AW35-AF35-AG35) ->  | AJ35: =IF($I35=""," ",$H35-($AE35+$AF35+$AH35+$I35+$K35)) ->  | AK35: =IF($I35=0," ",AK34*$H35/$H34) ->  | AL35: =IF($I35=0," ",AL34*$H35/$H34) ->  | AM35: =IF($I35=0," ",AM34*$H35/$H34) ->  | AQ35: =IF(H35="","",50*V35+83*Z35+26*AB35+44*AA35-59*W35-13*P35-28*AZ35) ->  | AR35: =IF(H35="","",V35/1000*20140+Z35/1000*48600+1100/440*I35) ->  | AS35: =IF($I35=0," ",AX35*K35+AY35*AT35-AF35-AG35) ->  | AT35: =IF(H35=""," ",H35-I35-AE35-AH35-K35) ->  | AU35: =IF($I35=0," ",AU34) ->  | AV35: =IF($I35=0," ",AV34) ->  | AW35: =IF($I35=0," ",AW34) ->  | AX35: =IF($I35=0," ",AX34) ->  | AY35: =IF($I35=0," ",AY34) ->  | AZ35: =IF($I35=0," ",AZ34*$H35/$H34) ->  | BA35: =IF($I35=0," ",BA34*$H35/$H34*K35/K34) ->  | BB35: =IF($I35=0," ",BB34*$H35/$H34*K35/K34) -> 
A36: Roggen 11% RP | B36: =IF(D36=""," ",COUNTA($D$8:D36)) -> 29 | D36: Roggen | E36: 11 % RP | G36: 4 | H36: 880 | I36: 112 | J36: =I36*0.78 -> 87 | K36: 24 | L36: =I36*0.0205*AV36+0.0398*AW36*AE36+0.0173*AF36+0.016*$AG36+0.0147*AI36 -> 13.35 | M36: =$I36*0.021503+0.032497*$AE36+0.016309*$AF36+0.014701*$AJ36-0.021071*$K36 -> 13.69 | N36: =IF(I36=0," ",I36*0.0272+0.87) -> 3.9 | O36: =IF(N36=" "," ",N36*0.7) -> 2.7 | P36: =IF(N36=" "," ",I36*0.033+0.51) -> 4.2 | Q36: =IF(N36=" "," ",P36*(1.3*0.88+1.3*0.85)/2.6) -> 3.6 | R36: =IF(N36=" "," ",I36*0.0293+0.33) -> 3.6 | S36: =IF(N36=" "," ",R36*0.85) -> 3.1 | T36: =IF(N36=" "," ",I36*0.0082+0.24) -> 1.2 | U36: =IF(N36=" "," ",T36*0.71) -> 0.8 | V36: 0.5 | W36: 3.0 | X36: =W36*0.45 -> 1.4 | Y36: =W36*0.65 -> 2.0 | Z36: 1.0 | AA36: 0.06 | AB36: 4.9 | AC36: =IF($I36=""," ",$I36*0.0136+0.28) -> 1.8 | AD36: =AC36*0.85 -> 1.5 | AE36: 15 | AF36: 540 | AG36: 56 | AH36: =22*0.88 -> 19 | AI36: =(H36-AH36)*AU36-I36*AV36-AE36*AW36-AF36-AG36 -> 79 | AJ36: =$H36-($AE36+$AF36+$AH36+$I36+$K36) -> 169 | AK36: =AL36+AM36 -> 9.9 | AL36: =58*AE36/100 -> 8.9 | AM36: =7*AE36/100 -> 1.1 | AQ36: 1 | AR36: 339 | AS36: =AX36*K36+AY36*AT36-AF36-AG36 -> 72 | AT36: =IF(H36=""," ",H36-I36-AE36-AH36-K36) -> 709 | AU36: 89% | AV36: 78% | AW36: 28% | AX36: 32% | AY36: 93% | AZ36: =0.2*H36/1000 -> 0.18 | BA36: =35/$H$38*$H36*$K36/$K$38 -> 37 | BB36: =235/$H$38*$H36*$K36/$K$38 -> 249 | BC36: 14.81
A37: Roggen 10% RP | B37: =IF(D37=""," ",COUNTA($D$8:D37)) -> 30 | D37: Roggen | E37: 10 % RP | G37: 30 | H37: 880 | I37: 99 | J37: =I37*0.78 -> 77 | K37: 25 | L37: =I37*0.0205*AV37+0.0398*AW37*AE37+0.0173*AF37+0.016*$AG37+0.0147*AI37 -> 13.26 | M37: =$I37*0.021503+0.032497*$AE37+0.016309*$AF37+0.014701*$AJ37-0.021071*$K37 -> 13.57 | N37: =IF(I37=0," ",I37*0.0272+0.87) -> 3.6 | O37: =IF(N37=" "," ",N37*0.8) -> 2.8 | P37: =IF(N37=" "," ",I37*0.033+0.51) -> 3.8 | Q37: =IF(N37=" "," ",P37*(1.5*0.85+2.1*0.9)/3.6) -> 3.3 | R37: =IF(N37=" "," ",I37*0.0293+0.33) -> 3.2 | S37: =IF(N37=" "," ",R37*0.75) -> 2.4 | T37: =IF(N37=" "," ",I37*0.0082+0.24) -> 1.1 | U37: =IF(N37=" "," ",T37*0.78) -> 0.8 | V37: 0.5 | W37: 3.0 | X37: =W37*0.45 -> 1.4 | Y37: =W37*0.65 -> 2.0 | Z37: 1.0 | AA37: 0.06 | AB37: 4.9 | AC37: =IF($I37=""," ",$I37*0.0136+0.28) -> 1.6 | AD37: =AC37*0.85 -> 1.4 | AE37: 16 | AF37: 526 | AG37: 55 | AH37: 19 | AI37: =(H37-AH37)*AU37-I37*AV37-AE37*AW37-AF37-AG37 -> 103 | AJ37: =$H37-($AE37+$AF37+$AH37+$I37+$K37) -> 196 | AK37: =AL37+AM37 -> 10.3 | AL37: =58*AE37/100 -> 9.2 | AM37: =7*AE37/100 -> 1.1 | AQ37: 7 | AR37: 306 | AS37: =AX37*K37+AY37*AT37-AF37-AG37 -> 98 | AT37: =IF(H37=""," ",H37-I37-AE37-AH37-K37) -> 721 | AU37: 89% | AV37: 78% | AW37: 28% | AX37: 32% | AY37: 93% | AZ37: =0.2*H37/1000 -> 0.18 | BA37: =35/$H$38*H37*K37/$K$38 -> 38 | BB37: =235/$H$38*$H37*$K37/$K$38 -> 254 | BC37: 14.89
A38: Roggen 9% RP DLG 2014 | B38: =IF(D38=""," ",COUNTA($D$8:D38)) -> 31 | D38: Roggen | E38: 9 % RP | F38: DLG 2014 | H38: 870 | I38: 91 | J38: =I38*0.78 -> 71 | K38: 23 | L38: =I38*0.0205*AV38+0.0398*AW38*AE38+0.0173*AF38+0.016*$AG38+0.0147*AI38 -> 13.16 | M38: =$I38*0.021503+0.032497*$AE38+0.016309*$AF38+0.014701*$AJ38-0.021071*$K38 -> 13.47 | N38: =IF(I38=0," ",I38*0.0272+0.87) -> 3.3 | O38: =IF(N38=" "," ",N38*0.8) -> 2.7 | P38: =IF(N38=" "," ",I38*0.033+0.51) -> 3.5 | Q38: =IF(N38=" "," ",P38*(1.5*0.85+2.1*0.9)/3.6) -> 3.1 | R38: =IF(N38=" "," ",I38*0.0293+0.33) -> 3.0 | S38: =IF(N38=" "," ",R38*0.75) -> 2.2 | T38: =IF(N38=" "," ",I38*0.0082+0.24) -> 1.0 | U38: =IF(N38=" "," ",T38*0.78) -> 0.8 | V38: 0.5 | W38: 3.0 | X38: =W38*0.45 -> 1.4 | Y38: =W38*0.65 -> 2.0 | Z38: 1.0 | AA38: 0.06 | AB38: 4.9 | AC38: =IF($I38=""," ",$I38*0.0136+0.28) -> 1.5 | AD38: =AC38*0.85 -> 1.3 | AE38: 16 | AF38: 552 | AG38: 55 | AH38: 19 | AI38: =(H38-AH38)*AU38-I38*AV38-AE38*AW38-AF38-AG38 -> 75 | AJ38: =$H38-($AE38+$AF38+$AH38+$I38+$K38) -> 169 | AK38: =AL38+AM38 -> 10.4 | AL38: =58*AE38/100 -> 9.3 | AM38: =7*AE38/100 -> 1.1 | AQ38: 10 | AR38: 286 | AS38: =AX38*K38+AY38*AT38-AF38-AG38 -> 71 | AT38: 721 | AU38: 89% | AV38: 78% | AW38: 28% | AX38: 32% | AY38: 93% | AZ38: =0.2*H38/1000 -> 0.17 | BA38: 35 | BB38: 235 | BC38: 15.50
A39: eigener Roggen 9% RP Ø 2016 | B39: =IF(D39=""," ",COUNTA($D$8:D39)) -> 32 | D39: eigener Roggen | E39: 9 % RP | F39: =IF(I39=85.04,"Ø 2016","") -> Ø 2016 | H39: 880 | I39: 85 | J39: =IF(I39=0," ",I39*0.78) -> 66 | K39: 19 | L39: =IF($I39=""," ",I39*0.0205*AV39+0.0398*AW39*AE39+0.0173*AF39+0.016*$AG39+0.0147*AI39) -> 13.29 | M39: =IF(I39=""," ",$I39*0.021503+0.032497*$AE39+0.016309*$AF39+0.014701*$AJ39-0.021071*$K39) -> 13.72 | N39: =IF(I39=0," ",(I39/H39*880*0.0272+0.87)/880*H39) -> 3.2 | O39: =IF(N39=" "," ",N39*0.8) -> 2.5 | P39: =IF(N39=" "," ",(I39/H39*880*0.033+0.51)/880*H39) -> 3.3 | Q39: =IF(N39=" "," ",P39*(1.5*0.85+2.1*0.9)/3.6) -> 2.9 | R39: =IF(N39=" "," ",(I39/H39*880*0.0293+0.33)/880*H39) -> 2.8 | S39: =IF(N39=" "," ",R39*0.75) -> 2.1 | T39: =IF(N39=" "," ",(I39/H39*880*0.0082+0.24)/880*H39) -> 0.9 | U39: =IF(N39=" "," ",T39*0.78) -> 0.7 | V39: =IF($I39=0," ",V38*$H39/$H38) -> 0.5 | W39: 3.0 | X39: 1.4 | Y39: 2.0 | Z39: 1.0 | AA39: 0.06 | AB39: 5.0 | AC39: =IF($I39=""," ",($I39/H39*880*0.0136+0.28)/880*H39) -> 1.4 | AD39: =IF($N39=" "," ",AC39*0.85) -> 1.2 | AE39: 16 | AF39: 564 | AG39: 55 | AH39: 20 | AI39: =IF($I39=""," ",(H39-AH39)*AU39-I39*AV39-AE39*AW39-AF39-AG39) -> 76 | AJ39: =IF($I39=""," ",$H39-($AE39+$AF39+$AH39+$I39+$K39)) -> 176 | AK39: =IF($I39=0," ",AK38*$H39/$H38) -> 10.5 | AL39: 9.4 | AM39: 1.1 | AN39: 0 | AO39: 0 | AP39: 0 | AQ39: 14 | AR39: 272 | AS39: =IF($I39=0," ",AX39*K39+AY39*AT39-AF39-AG39) -> 75 | AT39: 740 | AU39: =IF($I39=0," ",AU38) -> 89% | AV39: =IF($I39=0," ",AV38) -> 78% | AW39: =IF($I39=0," ",AW38) -> 28% | AX39: =IF($I39=0," ",AX38) -> 32% | AY39: =IF($I39=0," ",AY38) -> 93% | AZ39: =IF($I39=0," ",AZ38*$H39/$H38) -> 0.18 | BA39: =IF($I39=0," ",BA38/$H$38*H37*K37/$K$38) -> 38 | BB39: =IF($I39=0," ",BB38/$H$38*$H37*$K37/$K$38) -> 254 | BC39: 16.17
A40: Roggen 9% RP | B40: =IF(D40=""," ",COUNTA($D$8:D40)) -> 33 | D40: Roggen | E40: 9 % RP | G40: 37 | H40: 880 | I40: 90 | J40: =I40*0.78 -> 70 | K40: 25 | L40: =I40*0.0205*AV40+0.0398*AW40*AE40+0.0173*AF40+0.016*$AG40+0.0147*AI40 -> 13.22 | M40: =$I40*0.021503+0.032497*$AE40+0.016309*$AF40+0.014701*$AJ40-0.021071*$K40 -> 13.52 | N40: =IF(I40=0," ",I40*0.0272+0.87) -> 3.3 | O40: =IF(N40=" "," ",N40*0.8) -> 2.7 | P40: =IF(N40=" "," ",I40*0.033+0.51) -> 3.5 | Q40: =IF(N40=" "," ",P40*(1.5*0.85+2.1*0.9)/3.6) -> 3.1 | R40: =IF(N40=" "," ",I40*0.0293+0.33) -> 3.0 | S40: =IF(N40=" "," ",R40*0.75) -> 2.2 | T40: =IF(N40=" "," ",I40*0.0082+0.24) -> 1.0 | U40: =IF(N40=" "," ",T40*0.78) -> 0.8 | V40: 0.5 | W40: 3.0 | X40: =W40*0.45 -> 1.4 | Y40: =W40*0.65 -> 2.0 | Z40: 1.0 | AA40: 0.06 | AB40: 4.9 | AC40: =IF($I40=""," ",$I40*0.0136+0.28) -> 1.5 | AD40: =AC40*0.85 -> 1.3 | AE40: 16 | AF40: 528 | AG40: 55 | AH40: 19 | AI40: =(H40-AH40)*AU40-I40*AV40-AE40*AW40-AF40-AG40 -> 108 | AJ40: =$H40-($AE40+$AF40+$AH40+$I40+$K40) -> 203 | AK40: =AL40+AM40 -> 10.3 | AL40: =58*AE40/100 -> 9.2 | AM40: =7*AE40/100 -> 1.1 | AQ40: 11 | AR40: 284 | AS40: =AX40*K40+AY40*AT40-AF40-AG40 -> 104 | AT40: 730 | AU40: 89% | AV40: 78% | AW40: 28% | AX40: 32% | AY40: 93% | AZ40: =0.2*H40/1000 -> 0.18 | BA40: =35/$H$38*H40*K40/$K$38 -> 38 | BB40: =235/$H$38*$H40*$K40/$K$38 -> 254 | BC40: 15.11
A41: Roggen 8% RP | B41: =IF(D41=""," ",COUNTA($D$8:D41)) -> 34 | D41: Roggen | E41: 8 % RP | G41: 29 | H41: 880 | I41: 80 | J41: =I41*0.78 -> 62 | K41: 25 | L41: =I41*0.0205*AV41+0.0398*AW41*AE41+0.0173*AF41+0.016*$AG41+0.0147*AI41 -> 13.20 | M41: =$I41*0.021503+0.032497*$AE41+0.016309*$AF41+0.014701*$AJ41-0.021071*$K41 -> 13.46 | N41: =IF(I41=0," ",I41*0.0272+0.87) -> 3.0 | O41: =IF(N41=" "," ",N41*0.8) -> 2.4 | P41: =IF(N41=" "," ",I41*0.033+0.51) -> 3.2 | Q41: =IF(N41=" "," ",P41*(1.5*0.85+2.1*0.9)/3.6) -> 2.8 | R41: =IF(N41=" "," ",I41*0.0293+0.33) -> 2.7 | S41: =IF(N41=" "," ",R41*0.75) -> 2.0 | T41: =IF(N41=" "," ",I41*0.0082+0.24) -> 0.9 | U41: =IF(N41=" "," ",T41*0.78) -> 0.7 | V41: 0.5 | W41: 3.0 | X41: =W41*0.45 -> 1.4 | Y41: =W41*0.65 -> 2.0 | Z41: 1.0 | AA41: 0.06 | AB41: 4.9 | AC41: =IF($I41=""," ",$I41*0.0136+0.28) -> 1.4 | AD41: =AC41*0.85 -> 1.2 | AE41: 16 | AF41: 536 | AG41: 55 | AH41: 19 | AI41: =(H41-AH41)*AU41-I41*AV41-AE41*AW41-AF41-AG41 -> 108 | AJ41: =$H41-($AE41+$AF41+$AH41+$I41+$K41) -> 204 | AK41: =AL41+AM41 -> 10.3 | AL41: =58*AE41/100 -> 9.2 | AM41: =7*AE41/100 -> 1.1 | AQ41: 15 | AR41: 259 | AS41: =AX41*K41+AY41*AT41-AF41-AG41 -> 105 | AT41: 740 | AU41: 89% | AV41: 78% | AW41: 28% | AX41: 32% | AY41: 93% | AZ41: =0.2*H41/1000 -> 0.18 | BA41: =35/$H$38*H41*K41/$K$38 -> 38 | BB41: =235/$H$38*$H41*$K41/$K$38 -> 254 | BC41: 15.48
A42: =IF(E42=" ",D42&" "&F42,D42&" "&E42&"% RP "&F42) -> Triticale 12% RP | B42: =IF(D42=""," ",COUNTA($D$8:D42)) -> 35 | D42: Triticale | E42: =IF(I42=0," ",ROUND(I42/10,0)) -> 12 % RP | G42: 5 | H42: 880 | I42: 119 | J42: =I42*0.84 -> 100 | K42: 26 | L42: =I42*0.0205*AV42+0.0398*AW42*AE42+0.0173*AF42+0.016*$AG42+0.0147*AI42 -> 13.55 | M42: =$I42*0.021503+0.032497*$AE42+0.016309*$AF42+0.014701*$AJ42-0.021071*$K42 -> 13.70 | N42: =IF(I42=0," ",I42*0.0201+1.33) -> 3.7 | O42: =IF(N42=" "," ",N42*0.84) -> 3.1 | P42: =IF(N42=" "," ",I42*0.0292+1.05) -> 4.5 | Q42: =IF(N42=" "," ",P42*(1.8*0.88+2.6*0.87)/4.4) -> 4.0 | R42: =IF(N42=" "," ",I42*0.0255+0.58) -> 3.6 | S42: =IF(N42=" "," ",R42*0.81) -> 2.9 | T42: =IF(N42=" "," ",I42*0.0072+0.4) -> 1.3 | U42: =IF(N42=" "," ",T42*0.77) -> 1.0 | V42: 0.4 | W42: 3.2 | X42: =W42*0.5 -> 1.6 | Y42: =W42*0.65 -> 2.1 | Z42: 1.1 | AA42: 0.10 | AB42: 4.7 | AC42: =IF($I42=""," ",$I42*0.0132+0.35) -> 1.9 | AD42: =AC42*0.88 -> 1.7 | AE42: 16 | AF42: 569 | AG42: 35 | AH42: =23*0.88 -> 20 | AI42: =(H42-AH42)*AU42-I42*AV42-AE42*AW42-AF42-AG42 -> 53 | AJ42: =$H42-($AE42+$AF42+$AH42+$I42+$K42) -> 130 | AK42: =AL42+AM42 -> 10.0 | AL42: =57.5*AE42/100 -> 9.1 | AM42: =6*AE42/100 -> 0.9 | AQ42: =IF(H42="","",50*V42+83*Z42+26*AB42+44*AA42-59*W42-13*P42-28*AZ42) -> -22 | AR42: =IF(H42="","",V42/1000*20140+Z42/1000*48600+1100/440*I42) -> 360 | AS42: =AX42*K42+AY42*AT42-AF42-AG42 -> 53 | AT42: 698 | AU42: 89% | AV42: 84% | AW42: 50% | AX42: 27% | AY42: 93% | AZ42: =0.5*H42/1000 -> 0.44 | BA42: =IF($I42=0," ",$BA$43*$H42/$H$43*K42/$K$43) -> 39 | BB42: =IF($I42=0," ",$BB$43*$H42/$H$43*K42/$K$43) -> 175 | BC42: 14.98
A43: Triticale 11% RP DLG 2014 | B43: =IF(D43=""," ",COUNTA($D$8:D43)) -> 36 | D43: Triticale | E43: 11 % RP | F43: DLG 2014 | H43: 870 | I43: 109 | J43: =I43*0.84 -> 92 | K43: 24 | L43: =I43*0.0205*AV43+0.0398*AW43*AE43+0.0173*AF43+0.016*$AG43+0.0147*AI43 -> 13.38 | M43: =$I43*0.021503+0.032497*$AE43+0.016309*$AF43+0.014701*$AJ43-0.021071*$K43 -> 13.58 | N43: =IF(I43=0," ",I43*0.0201+1.33) -> 3.5 | O43: =IF(N43=" "," ",N43*0.84) -> 3.0 | P43: =IF(N43=" "," ",I43*0.0292+1.05) -> 4.2 | Q43: 3.7 | R43: =IF(N43=" "," ",I43*0.0255+0.58) -> 3.4 | S43: =IF(N43=" "," ",R43*0.81) -> 2.7 | T43: =IF(N43=" "," ",I43*0.0072+0.4) -> 1.2 | U43: =IF(N43=" "," ",T43*0.77) -> 0.9 | V43: 0.4 | W43: 3.2 | X43: =W43*0.5 -> 1.6 | Y43: =W43*0.65 -> 2.1 | Z43: 1.1 | AA43: 0.10 | AB43: 4.7 | AC43: =IF($I43=""," ",$I43*0.0132+0.35) -> 1.8 | AD43: =AC43*0.88 -> 1.6 | AE43: 15 | AF43: 561 | AG43: 39 | AH43: 18 | AI43: =(H43-AH43)*AU43-I43*AV43-AE43*AW43-AF43-AG43 -> 59 | AJ43: =$H43-($AE43+$AF43+$AH43+$I43+$K43) -> 143 | AK43: =AL43+AM43 -> 9.5 | AL43: =57.5*AE43/100 -> 8.6 | AM43: =6*AE43/100 -> 0.9 | AQ43: -18 | AR43: 334 | AS43: =AX43*K43+AY43*AT43-AF43-AG43 -> 61 | AT43: 704 | AU43: 89% | AV43: 84% | AW43: 50% | AX43: 27% | AY43: 93% | AZ43: =0.5*H43/1000 -> 0.44 | BA43: 35 | BB43: 157 | BC43: 15.12
A44: eigene Triticale 10% RP Ø 2016 | B44: =IF(D44=""," ",COUNTA($D$8:D44)) -> 37 | D44: eigene Triticale | E44: 10 % RP | F44: =IF(I44=97.2,"Ø 2016","") -> Ø 2016 | H44: 880 | I44: 97 | J44: =IF(I44=0," ",I44*0.84) -> 82 | K44: 26 | L44: =IF($I44=""," ",I44*0.0205*AV44+0.0398*AW44*AE44+0.0173*AF44+0.016*$AG44+0.0147*AI44) -> 13.53 | M44: =IF(I44=""," ",$I44*0.021503+0.032497*$AE44+0.016309*$AF44+0.014701*$AJ44-0.021071*$K44) -> 13.61 | N44: =IF(I44=0," ",(I44/H44*880*0.0201+1.33)/880*H44) -> 3.3 | O44: 2.8 | P44: =IF(N44=" "," ",(I44/H44*880*0.0292+1.05)/880*H44) -> 3.9 | Q44: 3.4 | R44: =IF(N44=" "," ",(I44/H44*880*0.0255+0.58)/880*H44) -> 3.1 | S44: 2.5 | T44: =IF(N44=" "," ",(I44/H44*880*0.0072+0.4)/880*H44) -> 1.1 | U44: 0.8 | V44: =IF($I44=0," ",V$42*$H44/$H$42) -> 0.4 | W44: =IF($I44=0," ",W$42*$H44/$H$42) -> 3.2 | X44: 1.6 | Y44: =IF($I44=0," ",Y$42*$H44/$H$42) -> 2.1 | Z44: 1.1 | AA44: 0.10 | AB44: 4.7 | AC44: =IF($I44=""," ",($I44/H44*880*0.0132+0.35)/880*H44) -> 1.6 | AD44: =IF($N44=" "," ",AC44*0.88) -> 1.4 | AE44: 16 | AF44: 600 | AG44: 35 | AH44: 20 | AI44: =IF($I44=""," ",(H44-AH44)*AU44-I44*AV44-AE44*AW44-AF44-AG44) -> 41 | AJ44: =IF($I44=""," ",$H44-($AE44+$AF44+$AH44+$I44+$K44)) -> 120 | AK44: =IF($I44=0," ",AK42*$H44/$H42) -> 10.0 | AL44: 9.1 | AM44: 0.9 | AN44: 0 | AO44: 0 | AP44: 0 | AQ44: -14 | AR44: 305 | AS44: =IF($I44=0," ",AX44*K44+AY44*AT44-AF44-AG44) -> 42 | AT44: 720 | AU44: =IF($I44=0," ",AU42) -> 89% | AV44: =IF($I44=0," ",AV42) -> 84% | AW44: =IF($I44=0," ",AW42) -> 50% | AX44: =IF($I44=0," ",AX42) -> 27% | AY44: =IF($I44=0," ",AY42) -> 93% | AZ44: =IF($I44=0," ",AZ$42*$H44/$H$42) -> 0.44 | BA44: =IF($I44=0," ",$BA$43*$H44/$H$43*K44/$K$43) -> 39 | BB44: =IF($I44=0," ",$BB$43*$H44/$H$43*K44/$K$43) -> 175 | BC44: 16.00
A45: eigene Triticale 10% RP Ø 2015 | B45: =IF(D45=""," ",COUNTA($D$8:D45)) -> 38 | D45: eigene Triticale | E45: =IF(I45=0," ",ROUND(I45/10,0)) -> 10 % RP | F45: =IF(I45=97.18,"Ø 2015","") -> Ø 2015 | H45: 880 | I45: 97 | J45: =IF(I45=0," ",I45*0.84) -> 82 | K45: 26 | L45: =IF($I45=""," ",I45*0.0205*AV45+0.0398*AW45*AE45+0.0173*AF45+0.016*$AG45+0.0147*AI45) -> 13.52 | M45: =IF(I45=""," ",$I45*0.021503+0.032497*$AE45+0.016309*$AF45+0.014701*$AJ45-0.021071*$K45) -> 13.61 | N45: =IF(I45=0," ",(I45/H45*880*0.0201+1.33)/880*H45) -> 3.3 | O45: =IF(N45=" "," ",N45*0.84) -> 2.8 | P45: =IF(N45=" "," ",(I45/H45*880*0.0292+1.05)/880*H45) -> 3.9 | Q45: 3.4 | R45: =IF(N45=" "," ",(I45/H45*880*0.0255+0.58)/880*H45) -> 3.1 | S45: =IF(N45=" "," ",R45*0.81) -> 2.5 | T45: =IF(N45=" "," ",(I45/H45*880*0.0072+0.4)/880*H45) -> 1.1 | U45: =IF(N45=" "," ",T45*0.77) -> 0.8 | V45: =IF($I45=0," ",V$42*$H45/$H$42) -> 0.4 | W45: =IF($I45=0," ",W$42*$H45/$H$42) -> 3.2 | X45: 1.6 | Y45: 2.1 | Z45: 1.1 | AA45: 0.10 | AB45: 4.7 | AC45: =IF($I45=""," ",($I45/H45*880*0.0132+0.35)/880*H45) -> 1.6 | AD45: =IF($N45=" "," ",AC45*0.88) -> 1.4 | AE45: 16 | AF45: 590 | AG45: 33 | AH45: 19 | AI45: =IF($I45=""," ",(H45-AH45)*AU45-I45*AV45-AE45*AW45-AF45-AG45) -> 52 | AJ45: =IF($I45=""," ",$H45-($AE45+$AF45+$AH45+$I45+$K45)) -> 130 | AK45: =IF($I45=0," ",AK44*$H45/$H44) -> 10.0 | AL45: 9.1 | AM45: 0.9 | AN45: 0 | AO45: 0 | AP45: 0 | AQ45: =IF(H45="","",50*V45+83*Z45+26*AB45+44*AA45-59*W45-13*P45-28*AZ45) -> -14 | AR45: =IF(H45="","",V45/1000*20140+Z45/1000*48600+1100/440*I45) -> 304 | AS45: =IF($I45=0," ",AX45*K45+AY45*AT45-AF45-AG45) -> 54 | AT45: 721 | AU45: =IF($I45=0," ",AU44) -> 89% | AV45: =IF($I45=0," ",AV44) -> 84% | AW45: =IF($I45=0," ",AW44) -> 50% | AX45: =IF($I45=0," ",AX44) -> 27% | AY45: =IF($I45=0," ",AY44) -> 93% | AZ45: =IF($I45=0," ",AZ$42*$H45/$H$42) -> 0.44 | BA45: 39 | BB45: 175 | BC45: 15.88
A46: Triticale 11% RP | B46: =IF(D46=""," ",COUNTA($D$8:D46)) -> 39 | D46: Triticale | E46: 11 % RP | G46: 24 | H46: 880 | I46: 108 | J46: =I46*0.84 -> 91 | K46: 26 | L46: =I46*0.0205*AV46+0.0398*AW46*AE46+0.0173*AF46+0.016*$AG46+0.0147*AI46 -> 13.49 | M46: =$I46*0.021503+0.032497*$AE46+0.016309*$AF46+0.014701*$AJ46-0.021071*$K46 -> 13.62 | N46: =IF(I46=0," ",I46*0.0201+1.33) -> 3.5 | O46: 2.9 | P46: =IF(N46=" "," ",I46*0.0292+1.05) -> 4.2 | Q46: 3.7 | R46: =IF(N46=" "," ",I46*0.0255+0.58) -> 3.3 | S46: 2.7 | T46: =IF(N46=" "," ",I46*0.0072+0.4) -> 1.2 | U46: 0.9 | V46: 0.4 | W46: 3.2 | X46: 1.6 | Y46: =W46*0.65 -> 2.1 | Z46: 1.1 | AA46: 0.10 | AB46: 4.7 | AC46: =IF($I46=""," ",$I46*0.0132+0.35) -> 1.8 | AD46: =AC46*0.88 -> 1.6 | AE46: 16 | AF46: 566 | AG46: 35 | AH46: 20 | AI46: =(H46-AH46)*AU46-I46*AV46-AE46*AW46-AF46-AG46 -> 66 | AJ46: =$H46-($AE46+$AF46+$AH46+$I46+$K46) -> 144 | AK46: =AL46+AM46 -> 10.0 | AL46: =57.5*AE46/100 -> 9.1 | AM46: =6*AE46/100 -> 0.9 | AQ46: -18 | AR46: 332 | AS46: =AX46*K46+AY46*AT46-AF46-AG46 -> 66 | AT46: 709 | AU46: 89% | AV46: 84% | AW46: 50% | AX46: 27% | AY46: 93% | AZ46: =0.5*H46/1000 -> 0.44 | BA46: 39 | BB46: 175 | BC46: 15.18
A47: Triticale 10% RP | B47: =IF(D47=""," ",COUNTA($D$8:D47)) -> 40 | D47: Triticale | E47: 10 % RP | G47: 42 | H47: 880 | I47: 100 | J47: =I47*0.84 -> 84 | K47: 26 | L47: 13.46 | M47: =$I47*0.021503+0.032497*$AE47+0.016309*$AF47+0.014701*$AJ47-0.021071*$K47 -> 13.57 | N47: =IF(I47=0," ",I47*0.0201+1.33) -> 3.3 | O47: 2.8 | P47: =IF(N47=" "," ",I47*0.0292+1.05) -> 4.0 | Q47: 3.5 | R47: =IF(N47=" "," ",I47*0.0255+0.58) -> 3.1 | S47: 2.5 | T47: =IF(N47=" "," ",I47*0.0072+0.4) -> 1.1 | U47: 0.9 | V47: 0.4 | W47: 3.2 | X47: 1.6 | Y47: 2.1 | Z47: 1.1 | AA47: 0.10 | AB47: 4.7 | AC47: =IF($I47=""," ",$I47*0.0132+0.35) -> 1.7 | AD47: 1.5 | AE47: 16 | AF47: 571 | AG47: 35 | AH47: 20 | AI47: 67 | AJ47: 147 | AK47: 10.1 | AL47: =57.5*AE47/100 -> 9.1 | AM47: =6*AE47/100 -> 1.0 | AQ47: =IF(H47="","",50*V47+83*Z47+26*AB47+44*AA47-59*W47-13*P47-28*AZ47) -> -15 | AR47: =IF(H47="","",V47/1000*20140+Z47/1000*48600+1100/440*I47) -> 310 | AS47: 68 | AT47: 718 | AU47: 89% | AV47: 84% | AW47: 50% | AX47: 27% | AY47: 93% | AZ47: =0.5*H47/1000 -> 0.44 | BA47: 39 | BB47: 175 | BC47: 15.48
A48: Triticale 9% RP | B48: =IF(D48=""," ",COUNTA($D$8:D48)) -> 41 | D48: Triticale | E48: 9 % RP | G48: 26 | H48: 880 | I48: 91 | J48: =I48*0.84 -> 76 | K48: 26 | L48: 13.44 | M48: =$I48*0.021503+0.032497*$AE48+0.016309*$AF48+0.014701*$AJ48-0.021071*$K48 -> 13.53 | N48: =IF(I48=0," ",I48*0.0201+1.33) -> 3.1 | O48: 2.6 | P48: =IF(N48=" "," ",I48*0.0292+1.05) -> 3.7 | Q48: 3.2 | R48: =IF(N48=" "," ",I48*0.0255+0.58) -> 2.9 | S48: 2.3 | T48: =IF(N48=" "," ",I48*0.0072+0.4) -> 1.1 | U48: 0.8 | V48: 0.4 | W48: 3.2 | X48: 1.6 | Y48: 2.1 | Z48: 1.1 | AA48: 0.10 | AB48: 4.7 | AC48: =IF($I48=""," ",$I48*0.0132+0.35) -> 1.5 | AD48: 1.4 | AE48: 16 | AF48: 579 | AG48: 35 | AH48: 20 | AI48: 68 | AJ48: 149 | AK48: 10.0 | AL48: =57.5*AE48/100 -> 9.1 | AM48: =6*AE48/100 -> 0.9 | AQ48: -11 | AR48: 288 | AS48: 70 | AT48: 727 | AU48: 89% | AV48: 84% | AW48: 50% | AX48: 27% | AY48: 93% | AZ48: =0.5*H48/1000 -> 0.44 | BA48: 39 | BB48: 174 | BC48: 15.81
A49: Triticale 8% RP | B49: =IF(D49=""," ",COUNTA($D$8:D49)) -> 42 | D49: Triticale | E49: =IF(I49=0," ",ROUND(I49/10,0)) -> 8 % RP | G49: 3 | H49: 880 | I49: 82 | J49: =I49*0.84 -> 69 | K49: 26 | L49: 13.43 | M49: =$I49*0.021503+0.032497*$AE49+0.016309*$AF49+0.014701*$AJ49-0.021071*$K49 -> 13.49 | N49: =IF(I49=0," ",I49*0.0201+1.33) -> 3.0 | O49: 2.5 | P49: =IF(N49=" "," ",I49*0.0292+1.05) -> 3.4 | Q49: 3.0 | R49: =IF(N49=" "," ",I49*0.0255+0.58) -> 2.7 | S49: =IF(N49=" "," ",R49*0.81) -> 2.2 | T49: =IF(N49=" "," ",I49*0.0072+0.4) -> 1.0 | U49: =IF(N49=" "," ",T49*0.77) -> 0.8 | V49: 0.4 | W49: 3.2 | X49: 1.6 | Y49: 2.1 | Z49: 1.1 | AA49: 0.10 | AB49: 4.7 | AC49: =IF($I49=""," ",$I49*0.0132+0.35) -> 1.4 | AD49: 1.3 | AE49: 16 | AF49: 592 | AG49: 34 | AH49: 20 | AI49: 62 | AJ49: 144 | AK49: 10.2 | AL49: =57.5*AE49/100 -> 9.3 | AM49: =6*AE49/100 -> 1.0 | AQ49: -8 | AR49: 267 | AS49: 65 | AT49: 735 | AU49: 89% | AV49: 84% | AW49: 50% | AX49: 27% | AY49: 93% | AZ49: =0.5*H49/1000 -> 0.44 | BA49: 39 | BB49: 175 | BC49: 16.23
A50: =IF(E50=" ",D50&" "&F50,D50&" "&E50&"% RP "&F50) -> Triticale öko 7% RP Ø Hessen | B50: =IF(D50=""," ",COUNTA($D$8:D50)) -> 43 | D50: Triticale öko | E50: 7 % RP | F50: Ø Hessen | G50: 100 | H50: 880 | I50: 73 | J50: =I50*0.84 -> 61 | K50: 26 | L50: 13.40 | M50: =$I50*0.021503+0.032497*$AE50+0.016309*$AF50+0.014701*$AJ50-0.021071*$K50 -> 13.43 | N50: =IF(I50=0," ",I50*0.0201+1.33) -> 2.8 | O50: 2.3 | P50: =IF(N50=" "," ",I50*0.0292+1.05) -> 3.2 | Q50: 2.8 | R50: =IF(N50=" "," ",I50*0.0255+0.58) -> 2.4 | S50: 2.0 | T50: =IF(N50=" "," ",I50*0.0072+0.4) -> 0.9 | U50: 0.7 | V50: 0.4 | W50: 3.2 | X50: =W50*0.5 -> 1.6 | Y50: 2.1 | Z50: 1.1 | AA50: 0.10 | AB50: 4.7 | AC50: =IF($I50=""," ",$I50*0.0132+0.35) -> 1.3 | AD50: 1.2 | AE50: 16 | AF50: 599 | AG50: 35 | AH50: 20 | AI50: 62 | AJ50: 146 | AK50: 10.0 | AL50: =57.5*AE50/100 -> 9.1 | AM50: =6*AE50/100 -> 0.9 | AQ50: -4 | AR50: 243 | AS50: 65 | AT50: 745 | AU50: 89% | AV50: 84% | AW50: 50% | AX50: 27% | AY50: 93% | AZ50: =0.5*H50/1000 -> 0.44 | BA50: 39 | BB50: 175 | BC50: 16.55
A51: Weizen 14% RP | B51: =IF(D51=""," ",COUNTA($D$8:D51)) -> 44 | D51: Weizen | E51: =IF(I51=0," ",ROUND(I51/10,0)) -> 14 % RP | G51: 2 | H51: 880 | I51: 142 | J51: =I51*0.9 -> 128 | K51: 26 | L51: 13.79 | M51: =IF(I51=""," ",$I51*0.021503+0.032497*$AE51+0.016309*$AF51+0.014701*$AJ51-0.021071*$K51) -> 14.01 | N51: =IF(I51=0," ",I51*0.0182+1.13) -> 3.7 | O51: =IF(N51=" "," ",N51*0.88) -> 3.3 | P51: =IF(N51=" "," ",I51*0.0305+0.75) -> 5.1 | Q51: =IF(N51=" "," ",P51*(2*0.88+2.8*0.92)/4.8) -> 4.6 | R51: =IF(N51=" "," ",I51*0.0233+0.56) -> 3.9 | S51: =IF(N51=" "," ",R51*0.9) -> 3.5 | T51: =IF(N51=" "," ",I51*0.0121+0.12) -> 1.8 | U51: =IF(N51=" "," ",T51*0.88) -> 1.6 | V51: 0.7 | W51: 3.3 | X51: =W51*0.6 -> 2.0 | Y51: 2.1 | Z51: 1.1 | AA51: 0.20 | AB51: 3.8 | AC51: =IF($I51=""," ",$I51*0.0125+0.3) -> 2.1 | AD51: 1.8 | AE51: 22 | AF51: 556 | AG51: 23 | AH51: =19*0.88 -> 17 | AI51: 51 | AJ51: 118 | AK51: 13.6 | AL51: =57*AE51/100 -> 12.5 | AM51: =5*AE51/100 -> 1.1 | AQ51: -43 | AR51: 423 | AS51: 55 | AT51: 673 | AU51: 89% | AV51: 90% | AW51: 50% | AX51: 28% | AY51: 93% | AZ51: =0.66*H51/1000 -> 0.58 | BA51: =$BA$53/$H$53*H51*K51/$K$53 -> 36 | BB51: =$BB$53/$H$53*H51*K51/$K$53 -> 170 | BC51: 14.73
A52: Weizen 13% RP | B52: =IF(D52=""," ",COUNTA($D$8:D52)) -> 45 | D52: Weizen | E52: =IF(I52=0," ",ROUND(I52/10,0)) -> 13 % RP | G52: 12 | H52: 880 | I52: 129 | J52: =I52*0.9 -> 116 | K52: 26 | L52: 13.74 | M52: 13.94 | N52: =IF(I52=0," ",I52*0.0182+1.13) -> 3.5 | O52: =IF(N52=" "," ",N52*0.88) -> 3.1 | P52: =IF(N52=" "," ",I52*0.0305+0.75) -> 4.7 | Q52: 4.2 | R52: =IF(N52=" "," ",I52*0.0233+0.56) -> 3.6 | S52: =IF(N52=" "," ",R52*0.9) -> 3.2 | T52: =IF(N52=" "," ",I52*0.0121+0.12) -> 1.7 | U52: =IF(N52=" "," ",T52*0.88) -> 1.5 | V52: 0.7 | W52: 3.3 | X52: =W52*0.6 -> 2.0 | Y52: 2.1 | Z52: 1.1 | AA52: 0.20 | AB52: 3.8 | AC52: =IF($I52=""," ",$I52*0.0125+0.3) -> 1.9 | AD52: 1.7 | AE52: 22 | AF52: 565 | AG52: 23 | AH52: =19*0.88 -> 17 | AI52: 53 | AJ52: 121 | AK52: 13.5 | AL52: =57*AE52/100 -> 12.4 | AM52: =5*AE52/100 -> 1.1 | AQ52: -38 | AR52: 391 | AS52: 57 | AT52: 686 | AU52: 89% | AV52: 90% | AW52: 50% | AX52: 28% | AY52: 93% | AZ52: =0.66*H52/1000 -> 0.58 | BA52: =$BA$53/$H$53*H52*K52/$K$53 -> 36 | BB52: =$BB$53/$H$53*H52*K52/$K$53 -> 170 | BC52: 15.16
A53: Weizen 12% RP DLG 2014 | B53: =IF(D53=""," ",COUNTA($D$8:D53)) -> 46 | D53: Weizen | E53: 12 % RP | F53: DLG 2014 | H53: 880 | I53: 123 | J53: =I53*0.9 -> 111 | K53: 25 | L53: 13.67 | M53: 13.86 | N53: =IF(I53=0," ",I53*0.0182+1.13) -> 3.4 | O53: =IF(N53=" "," ",N53*0.88) -> 3.0 | P53: =IF(N53=" "," ",I53*0.0305+0.75) -> 4.5 | Q53: =IF(N53=" "," ",P53*(2*0.88+2.8*0.92)/4.8) -> 4.1 | R53: =IF(N53=" "," ",I53*0.0233+0.56) -> 3.4 | S53: =IF(N53=" "," ",R53*0.9) -> 3.1 | T53: =IF(N53=" "," ",I53*0.0121+0.12) -> 1.6 | U53: =IF(N53=" "," ",T53*0.88) -> 1.4 | V53: 0.7 | W53: 3.3 | X53: 2.0 | Y53: 2.1 | Z53: 1.1 | AA53: 0.20 | AB53: 3.8 | AC53: =IF($I53=""," ",$I53*0.0125+0.3) -> 1.8 | AD53: 1.6 | AE53: 18 | AF53: 574 | AG53: 26 | AH53: 18 | AI53: 47 | AJ53: =IF($I53=""," ",$H53-($AE53+$AF53+$AH53+$I53+$K53)) -> 122 | AK53: 11.2 | AL53: =57*AE53/100 -> 10.3 | AM53: =5*AE53/100 -> 0.9 | AQ53: -36 | AR53: 375 | AS53: 54 | AT53: 696 | AU53: 89% | AV53: 90% | AW53: 50% | AX53: 28% | AY53: 93% | AZ53: =0.66*H53/1000 -> 0.58 | BA53: 35 | BB53: 163 | BC53: 15.25
A54: Weizen 12% RP | B54: =IF(D54=""," ",COUNTA($D$8:D54)) -> 47 | D54: Weizen | E54: =IF(I54=0," ",ROUND(I54/10,0)) -> 12 % RP | G54: 23 | H54: 880 | I54: 120 | J54: =I54*0.9 -> 108 | K54: 26 | L54: 13.66 | M54: 13.81 | N54: =IF(I54=0," ",I54*0.0182+1.13) -> 3.3 | O54: =IF(N54=" "," ",N54*0.88) -> 2.9 | P54: =IF(N54=" "," ",I54*0.0305+0.75) -> 4.4 | Q54: 4.0 | R54: =IF(N54=" "," ",I54*0.0233+0.56) -> 3.4 | S54: =IF(N54=" "," ",R54*0.9) -> 3.0 | T54: =IF(N54=" "," ",I54*0.0121+0.12) -> 1.6 | U54: =IF(N54=" "," ",T54*0.88) -> 1.4 | V54: 0.7 | W54: 3.3 | X54: 2.0 | Y54: 2.1 | Z54: 1.1 | AA54: 0.20 | AB54: 3.8 | AC54: =IF($I54=""," ",$I54*0.0125+0.3) -> 1.8 | AD54: 1.6 | AE54: 18 | AF54: 570 | AG54: 28 | AH54: =19*0.88 -> 17 | AI54: 54 | AJ54: 130 | AK54: 11.1 | AL54: =57*AE54/100 -> 10.2 | AM54: =5*AE54/100 -> 0.9 | AQ54: -34 | AR54: 367 | AS54: 60 | AT54: 700 | AU54: 89% | AV54: 90% | AW54: 50% | AX54: 28% | AY54: 93% | AZ54: =0.66*H54/1000 -> 0.58 | BA54: =$BA$53/$H$53*H54*K54/$K$53 -> 36 | BB54: =$BB$53/$H$53*H54*K54/$K$53 -> 170 | BC54: 15.20
A55: Weizen 11% RP | B55: =IF(D55=""," ",COUNTA($D$8:D57)) -> 50 | D55: Weizen | E55: =IF(I55=0," ",ROUND(I55/10,0)) -> 11 % RP | G55: 32 | H55: 880 | I55: 110 | J55: =I55*0.9 -> 99 | K55: 26 | L55: 13.62 | M55: 13.75 | N55: =IF(I55=0," ",I55*0.0182+1.13) -> 3.1 | O55: =IF(N55=" "," ",N55*0.88) -> 2.8 | P55: =IF(N55=" "," ",I55*0.0305+0.75) -> 4.1 | Q55: 3.7 | R55: =IF(N55=" "," ",I55*0.0233+0.56) -> 3.1 | S55: =IF(N55=" "," ",R55*0.9) -> 2.8 | T55: =IF(N55=" "," ",I55*0.0121+0.12) -> 1.4 | U55: =IF(N55=" "," ",T55*0.88) -> 1.3 | V55: 0.7 | W55: 3.3 | X55: 2.0 | Y55: 2.1 | Z55: 1.1 | AA55: 0.20 | AB55: 3.8 | AC55: =IF($I55=""," ",$I55*0.0125+0.3) -> 1.7 | AD55: 1.5 | AE55: 18 | AF55: 576 | AG55: 28 | AH55: 17 | AI55: 57 | AJ55: 134 | AK55: 10.9 | AL55: =57*AE55/100 -> 10.0 | AM55: =5*AE55/100 -> 0.9 | AQ55: -30 | AR55: 342 | AS55: 64 | AT55: 710 | AU55: 89% | AV55: 90% | AW55: 50% | AX55: 28% | AY55: 93% | AZ55: =0.66*H55/1000 -> 0.58 | BA55: =$BA$53/$H$53*H55*K55/$K$53 -> 36 | BB55: =$BB$53/$H$53*H55*K55/$K$53 -> 170 | BC55: 15.49
A56: eigener Weizen 11% RP Ø 2016 | B56: =IF(D56=""," ",COUNTA($D$8:D56)) -> 49 | D56: eigener Weizen | E56: 11 % RP | F56: =IF(I56=108.5,"Ø 2016","") -> Ø 2016 | H56: 880 | I56: 109 | J56: =IF(I56=0," ",I56*0.9) -> 98 | K56: 26 | L56: =IF($I56=""," ",I56*0.0205*AV56+0.0398*AW56*AE56+0.0173*AF56+0.016*$AG56+0.0147*AI56) -> 13.68 | M56: 13.77 | N56: =IF(I56=0," ",(I56/H56*880*0.0182+1.13)/880*H56) -> 3.1 | O56: 2.7 | P56: =IF(N56=" "," ",(I56/H56*880*0.0305+0.75)/880*H56) -> 4.1 | Q56: 3.7 | R56: =IF(N56=" "," ",(I56/H56*880*0.0233+0.56)/880*H56) -> 3.1 | S56: 2.8 | T56: =IF(N56=" "," ",(I56/H56*880*0.0121+0.12)/880*H56) -> 1.4 | U56: 1.3 | V56: 0.7 | W56: =IF($I56=0," ",W$53*$H56/$H$53) -> 3.3 | X56: 2.0 | Y56: 2.1 | Z56: 1.1 | AA56: 0.20 | AB56: 3.8 | AC56: =IF($I56=""," ",($I56/H56*880*0.0125+0.3)/880*H56) -> 1.7 | AD56: =IF($N56=" "," ",AC56*0.88) -> 1.5 | AE56: 18 | AF56: 601 | AG56: 28 | AH56: 17 | AI56: =IF($I56=""," ",(H56-AH56)*AU56-I56*AV56-AE56*AW56-AF56-AG56) -> 33 | AJ56: 110 | AK56: =IF($I56=0," ",AK55*$H56/$H55) -> 10.9 | AL56: 10.0 | AM56: 0.9 | AN56: 0 | AO56: 0 | AP56: 0 | AQ56: -30 | AR56: 339 | AS56: =IF($I56=0," ",AX56*K56+AY56*AT56-AF56-AG56) -> 39 | AT56: 711 | AU56: 89% | AV56: 90% | AW56: 50% | AX56: =IF($I56=0," ",AX55) -> 28% | AY56: =IF($I56=0," ",AY55) -> 93% | AZ56: =IF($I56=0," ",AZ$53*$H56/$H$53) -> 0.58 | BA56: =IF($I56=0," ",BA55*$H56/$H55*K56/K55) -> 37 | BB56: =IF($I56=0," ",BB55*$H56/$H55*K56/K55) -> 171 | BC56: 15.94
A57: eigener Weizen 2 11% RP Ø 2015 | B57: =IF(D57=""," ",COUNTA($D$8:D57)) -> 50 | D57: eigener Weizen 2 | E57: =IF(I57=0," ",ROUND(I57/10,0)) -> 11 % RP | F57: =IF(I57=106.475,"Ø 2015","") -> Ø 2015 | H57: 880 | I57: 106 | J57: =IF(I57=0," ",I57*0.9) -> 96 | K57: 26 | L57: =IF($I57=""," ",I57*0.0205*AV57+0.0398*AW57*AE57+0.0173*AF57+0.016*$AG57+0.0147*AI57) -> 13.65 | M57: =IF(I57=""," ",$I57*0.021503+0.032497*$AE57+0.016309*$AF57+0.014701*$AJ57-0.021071*$K57) -> 13.74 | N57: =IF(I57=0," ",(I57/H57*880*0.0182+1.13)/880*H57) -> 3.1 | O57: =IF(N57=" "," ",N57*0.88) -> 2.7 | P57: =IF(N57=" "," ",(I57/H57*880*0.0305+0.75)/880*H57) -> 4.0 | Q57: 3.6 | R57: =IF(N57=" "," ",(I57/H57*880*0.0233+0.56)/880*H57) -> 3.0 | S57: =IF(N57=" "," ",R57*0.9) -> 2.7 | T57: =IF(N57=" "," ",(I57/H57*880*0.0121+0.12)/880*H57) -> 1.4 | U57: =IF(N57=" "," ",T57*0.88) -> 1.2 | V57: 0.7 | W57: 3.3 | X57: 2.0 | Y57: 2.1 | Z57: 1.1 | AA57: 0.20 | AB57: 3.8 | AC57: =IF($I57=""," ",($I57/H57*880*0.0125+0.3)/880*H57) -> 1.6 | AD57: =IF($N57=" "," ",AC57*0.88) -> 1.4 | AE57: 18 | AF57: 592 | AG57: 28 | AH57: 17 | AI57: =IF($I57=""," ",(H57-AH57)*AU57-I57*AV57-AE57*AW57-AF57-AG57) -> 44 | AJ57: 121 | AK57: 10.9 | AL57: 10.0 | AM57: 0.9 | AN57: 0 | AO57: 0 | AP57: 0 | AQ57: =IF(H57="","",50*V57+83*Z57+26*AB57+44*AA57-59*W57-13*P57-28*AZ57) -> -29 | AR57: =IF(H57="","",V57/1000*20140+Z57/1000*48600+1100/440*I57) -> 334 | AS57: =IF($I57=0," ",AX57*K57+AY57*AT57-AF57-AG57) -> 51 | AT57: 713 | AU57: 89% | AV57: 90% | AW57: 50% | AX57: =IF($I57=0," ",AX56) -> 28% | AY57: =IF($I57=0," ",AY56) -> 93% | AZ57: =IF($I57=0," ",AZ$53*$H57/$H$53) -> 0.58 | BA57: =IF($I57=0," ",BA56*$H57/$H56*K57/K56) -> 37 | BB57: =IF($I57=0," ",BB56*$H57/$H56*K57/K56) -> 172 | BC57: 15.82
A58: Weizen 10% RP | B58: =IF(D58=""," ",COUNTA($D$8:D58)) -> 51 | D58: Weizen | E58: =IF(I58=0," ",ROUND(I58/10,0)) -> 10 % RP | G58: 19 | H58: 880 | I58: 101 | J58: =I58*0.9 -> 91 | K58: 26 | L58: =I58*0.0205*AV58+0.0398*AW58*AE58+0.0173*AF58+0.016*$AG58+0.0147*AI58 -> 13.60 | M58: 13.70 | N58: =IF(I58=0," ",I58*0.0182+1.13) -> 3.0 | O58: 2.6 | P58: =IF(N58=" "," ",I58*0.0305+0.75) -> 3.8 | Q58: 3.5 | R58: =IF(N58=" "," ",I58*0.0233+0.56) -> 2.9 | S58: =IF(N58=" "," ",R58*0.9) -> 2.6 | T58: =IF(N58=" "," ",I58*0.0121+0.12) -> 1.3 | U58: =IF(N58=" "," ",T58*0.88) -> 1.2 | V58: 0.7 | W58: 3.3 | X58: 2.0 | Y58: =W58*0.65 -> 2.1 | Z58: 1.1 | AA58: 0.20 | AB58: 3.8 | AC58: =IF($I58=""," ",$I58*0.0125+0.3) -> 1.6 | AD58: 1.4 | AE58: 18 | AF58: 586 | AG58: 28 | AH58: 17 | AI58: =(H58-AH58)*AU58-I58*AV58-AE58*AW58-AF58-AG58 -> 55 | AJ58: 133 | AK58: =AL58+AM58 -> 10.9 | AL58: =57*AE58/100 -> 10.0 | AM58: =5*AE58/100 -> 0.9 | AQ58: -27 | AR58: 320 | AS58: =AX58*K58+AY58*AT58-AF58-AG58 -> 62 | AT58: 719 | AU58: 89% | AV58: 90% | AW58: 50% | AX58: 28% | AY58: 93% | AZ58: =0.66*H58/1000 -> 0.58 | BA58: =$BA$53/$H$53*H58*K58/$K$53 -> 36 | BB58: =$BB$53/$H$53*H58*K58/$K$53 -> 170 | BC58: 15.86
A59: Weizen 9% RP | B59: =IF(D59=""," ",COUNTA($D$8:D59)) -> 52 | D59: Weizen | E59: 9 % RP | G59: 11 | H59: 880 | I59: 91 | J59: =I59*0.9 -> 82 | K59: 26 | L59: 13.56 | M59: 13.64 | N59: =IF(I59=0," ",I59*0.0182+1.13) -> 2.8 | O59: 2.5 | P59: =IF(N59=" "," ",I59*0.0305+0.75) -> 3.5 | Q59: 3.2 | R59: =IF(N59=" "," ",I59*0.0233+0.56) -> 2.7 | S59: 2.4 | T59: 1.2 | U59: 1.1 | V59: 0.7 | W59: 3.3 | X59: 2.0 | Y59: 2.1 | Z59: 1.1 | AA59: 0.20 | AB59: 3.8 | AC59: =IF($I59=""," ",$I59*0.0125+0.3) -> 1.4 | AD59: 1.3 | AE59: 18 | AF59: 588 | AG59: 28 | AH59: 17 | AI59: 61 | AJ59: 140 | AK59: 10.9 | AL59: 10.0 | AM59: 0.9 | AQ59: -23 | AR59: 295 | AS59: 69 | AT59: 729 | AU59: 89% | AV59: 90% | AW59: 50% | AX59: 28% | AY59: 93% | AZ59: 0.58 | BA59: 36 | BB59: 170 | BC59: 16.14
A60: Weizen 8% RP | B60: =IF(D60=""," ",COUNTA($D$8:D60)) -> 53 | D60: Weizen | E60: =IF(I60=0," ",ROUND(I60/10,0)) -> 8 % RP | G60: 2 | H60: 880 | I60: 83 | J60: =I60*0.9 -> 74 | K60: 27 | L60: 13.55 | M60: 13.57 | N60: =IF(I60=0," ",I60*0.0182+1.13) -> 2.6 | O60: 2.3 | P60: =IF(N60=" "," ",I60*0.0305+0.75) -> 3.3 | Q60: 3.0 | R60: =IF(N60=" "," ",I60*0.0233+0.56) -> 2.5 | S60: =IF(N60=" "," ",R60*0.9) -> 2.2 | T60: 1.1 | U60: =IF(N60=" "," ",T60*0.88) -> 1.0 | V60: 0.7 | W60: 3.3 | X60: 2.0 | Y60: 2.1 | Z60: 1.1 | AA60: 0.20 | AB60: 3.8 | AC60: =IF($I60=""," ",$I60*0.0125+0.3) -> 1.3 | AD60: 1.2 | AE60: 17 | AF60: 607 | AG60: 28 | AH60: 17 | AI60: 50 | AJ60: 130 | AK60: 10.6 | AL60: 9.7 | AM60: 0.9 | AQ60: -20 | AR60: 274 | AS60: 58 | AT60: 737 | AU60: 89% | AV60: 90% | AW60: 50% | AX60: 28% | AY60: 93% | AZ60: 0.58 | BA60: 38 | BB60: 176 | BC60: 16.53
A61: Weizen öko 9% RP Ø Hessen | B61: =IF(D61=""," ",COUNTA($D$8:D61)) -> 54 | D61: Weizen öko | E61: 9 % RP | F61: Ø Hessen | G61: 100 | H61: 880 | I61: 86 | J61: =I61*0.9 -> 77 | K61: 26 | L61: 13.54 | M61: 13.61 | N61: =IF(I61=0," ",I61*0.0182+1.13) -> 2.7 | O61: 2.4 | P61: =IF(N61=" "," ",I61*0.0305+0.75) -> 3.4 | Q61: 3.0 | R61: =IF(N61=" "," ",I61*0.0233+0.56) -> 2.6 | S61: 2.3 | T61: 1.2 | U61: 1.0 | V61: 0.7 | W61: 3.3 | X61: 2.0 | Y61: 2.1 | Z61: 1.1 | AA61: 0.20 | AB61: 3.8 | AC61: =IF($I61=""," ",$I61*0.0125+0.3) -> 1.4 | AD61: 1.2 | AE61: 18 | AF61: 593 | AG61: 28 | AH61: 17 | AI61: 62 | AJ61: 141 | AK61: 10.9 | AL61: 10.0 | AM61: 0.9 | AQ61: -21 | AR61: 282 | AS61: 69 | AT61: 734 | AU61: 89% | AV61: 90% | AW61: 50% | AX61: 28% | AY61: 93% | AZ61: 0.58 | BA61: 36 | BB61: 170 | BC61: 16.33
B62: =IF(D62=""," ",COUNTA($D$8:D62)) -> 55 | D62: Weizen, Sommer | E62: 14 % RP | F62: DLG 2014 | H62: 880 | I62: 138 | J62: =I62*0.9 -> 124 | K62: 25 | L62: 13.81 | M62: =IF(I62=""," ",$I62*0.021503+0.032497*$AE62+0.016309*$AF62+0.014701*$AJ62-0.021071*$K62) -> 14.02 | N62: =IF(I62=0," ",I62*0.0199+0.96) -> 3.7 | O62: 3.3 | P62: =IF(N62=" "," ",I62*0.0308+0.81) -> 5.1 | Q62: 4.6 | R62: =IF(N62=" "," ",I62*0.0247+0.45) -> 3.9 | S62: 3.5 | T62: =IF(N62=" "," ",I62*0.0085+0.44) -> 1.6 | U62: 1.4 | V62: 0.4 | W62: 3.3 | X62: 2.0 | Y62: 2.1 | Z62: 1.1 | AA62: 0.10 | AB62: 4.1 | AC62: =IF($I62=""," ",$I62*0.0125+0.3) -> 2.0 | AD62: 1.8 | AE62: 21 | AF62: 581 | AG62: 28 | AH62: 18 | AI62: 23 | AJ62: 97 | AK62: 13.0 | AL62: 12.0 | AM62: 1.1 | AQ62: -54 | AR62: 407 | AS62: 26 | AT62: 678 | AU62: 89% | AV62: 90% | AW62: 50% | AX62: 19% | AY62: 93% | AZ62: 0.58 | BA62: 35 | BB62: 163 | BC62: 15.22
A63: Weizen, (Hart) durum 13% RP DLG 2014 | B63: =IF(D63=""," ",COUNTA($D$8:D63)) -> 56 | D63: Weizen, (Hart) durum | E63: 13 % RP | F63: DLG 2014 | H63: 880 | I63: 133 | J63: =I63*0.95 -> 126 | K63: 26 | L63: 14.25 | M63: 13.90 | N63: =IF(I63=0," ",(I63/H63*880*0.0442-2.37)/880*H63) -> 3.5 | O63: =IF(N63=" "," ",N63*0.88) -> 3.1 | P63: =IF(N63=" "," ",(I63/H63*880*0.034+0.44)/880*H63) -> 5.0 | Q63: 4.5 | R63: =IF(N63=" "," ",I63*0.038-1.31) -> 3.7 | S63: =IF(N63=" "," ",R63*0.9) -> 3.4 | T63: 1.7 | U63: =IF(N63=" "," ",T63*0.88) -> 1.5 | V63: =0.4*H25/1000 -> 0.4 | W63: =4.2*H63/1000 -> 3.7 | X63: 2.2 | Y63: 2.4 | Z63: =1.2*H63/1000 -> 1.1 | AA63: =0.1*H63/1000 -> 0.09 | AB63: =5*H63/1000 -> 4.4 | AC63: =IF($I63=""," ",($I63/H63*880*0.0164+0.07)/880*H63) -> 2.3 | AD63: =AC63*0.88 -> 2.0 | AE63: 21 | AF63: 570 | AG63: 33 | AH63: =23*0.88 -> 20 | AI63: 47 | AJ63: 110 | AK63: 13.0 | AL63: 12.0 | AM63: 1.1 | AQ63: -75 | AR63: 391 | AS63: 47 | AT63: 680 | AU63: 92% | AV63: 95% | AW63: 70% | AX63: 94% | AY63: 92% | AZ63: 0.58 | BA63: 36 | BB63: 170 | BC63: 15.07
A64: eigener Weizen, (Hart) | B64: =IF(D64=""," ",COUNTA($D$8:D64)) -> 57 | D64: eigener Weizen, (Hart) | F64: =IF(I64=112,"Ø 2007","") ->  | J64: =IF(I64=0," ",I64*0.95) ->  | L64: =IF($I64=""," ",I64*0.0205*AV64+0.0398*AW64*AE64+0.0173*AF64+0.016*$AG64+0.0147*AI64) ->  | N64: =IF(I64=0," ",(I64/H64*880*0.0442-2.37)/880*H64) ->  | O64: =IF(N64=" "," ",N64*0.88) ->  | P64: =IF(N64=" "," ",(I64/H64*880*0.034+0.44)/880*H64) ->  | Q64: =IF(N64=" "," ",P64*0.89) ->  | R64: =IF(N64=" "," ",(I64/H64*880*0.038-1.31)/880*H64) ->  | S64: =IF(N64=" "," ",R64*0.9) ->  | T64: =IF(N64=" "," ",(I64/H64*880*0.0121+0.12)/880*H64) ->  | U64: =IF(N64=" "," ",T64*0.88) ->  | V64: =IF($I64=0," ",V$53*$H64/$H$53) ->  | AC64: =IF($I64=""," ",($I64/H64*880*0.0164+0.07)/880*H64) ->  | AD64: =IF($N64=" "," ",AC64*0.88) ->  | AI64: =IF($I64=""," ",(H64-AH64)*AU64-I64*AV64-AE64*AW64-AF64-AG64) ->  | AK64: =IF($I64=0," ",AK63*$H64/$H63) ->  | AS64: =IF($I64=0," ",AX64*K64+AY64*AT64-AF64-AG64) ->  | AU64: =IF($I64=0," ",AU63) ->  | AV64: =IF($I64=0," ",AV63) ->  | AW64: =IF($I64=0," ",AW63) ->  | AX64: =IF($I64=0," ",AX63) ->  | AY64: =IF($I64=0," ",AY63) ->  | AZ64: =IF($I64=0," ",AZ$53*$H64/$H$53) ->  | BA64: =IF($I64=0," ",BA63*$H64/$H63*K64/K63) ->  | BB64: =IF($I64=0," ",BB63*$H64/$H63*K64/K63) -> 
A65: Altbrot (Brotmehl, getrocknet) 12% RP DLG 2014 | B65: =IF(D65=""," ",COUNTA($D$8:D65)) -> 58 | D65: Altbrot (Brotmehl, getrocknet) | E65: 12 % RP | F65: DLG 2014 | H65: 800 | I65: 120 | J65: =IF(I65=0," ",I65*0.93) -> 112 | K65: 12 | L65: =M65 -> 13.06 | M65: 13.06 | N65: =IF(I65=0," ",(I65/H65*880*0.0314-0.52)/880*H65) -> 3.3 | O65: =IF(N65=" "," ",N65*0.92) -> 3.0 | P65: =IF(N65=" "," ",(I65/H65*880*0.0336+0.11)/880*H65) -> 4.1 | Q65: =IF(N65=" "," ",P65*(1.4*0.93+2*0.88)/3.4) -> 3.7 | R65: =IF(N65=" "," ",(I65/H65*880*0.0324-0.23)/880*H65) -> 3.7 | S65: =IF(N65=" "," ",R65*0.92) -> 3.4 | T65: =IF(N65=" "," ",(I65/H65*880*0.0116-0)/880*H65) -> 1.4 | U65: =IF(N65=" "," ",T65*0.91) -> 1.3 | V65: 0.4 | W65: 1.0 | X65: =W65*0.5 -> 0.5 | Y65: 0.7 | Z65: 0.4 | AA65: 3.20 | AB65: =IF($I65=0," ",AB$53*$H65/$H$53) -> 3.5 | AC65: =IF($I65=""," ",$I65*0.0151-0.05) -> 1.8 | AD65: =AC65*0.93 -> 1.6 | AE65: 21 | AF65: 520 | AG65: 16 | AH65: 20 | AI65: =(H65-AH65)*AU65-I65*AV65-AE65*AW65-AF65-AG65 -> 74 | AJ65: 107 | AK65: 13.3 | AL65: =57.5*AE65/100 -> 12.1 | AM65: =6*AE65/100 -> 1.3 | AQ65: 156 | AR65: 327 | AS65: =AX65*K65+AY65*AT65-AF65-AG65 -> 51 | AT65: 627 | AU65: 95% | AV65: 93% | AW65: 93% | AX65: 30% | AY65: 93% | AZ65: 0.53 | BA65: =33*H65/1000*K65/$K$53 -> 13 | BB65: =127*H65/1000*K65/$K$53 -> 49 | BC65: 14.64
A66: eigene Altbrotabfälle | B66: =IF(D66=""," ",COUNTA($D$8:D66)) -> 59 | D66: eigene Altbrotabfälle | J66: =IF(I66=0," ",I66*0.9) ->  | L66: =IF($I66=""," ",I66*0.0205*AV66+0.0398*AW66*AE66+0.0173*AF66+0.016*$AG66+0.0147*AI66) ->  | N66: =IF(I66=0," ",(I66/H66*880*0.0314-0.52)/880*H66) ->  | O66: =IF(N66=" "," ",N66*0.92) ->  | P66: =IF(N66=" "," ",(I66/H66*880*0.0336+0.11)/880*H66) ->  | Q66: =IF(N66=" "," ",P66*(1.4*0.93+2*0.88)/3.4) ->  | R66: =IF(N66=" "," ",(I66/H66*880*0.0324-0.23)/880*H66) ->  | S66: =IF(N66=" "," ",R66*0.92) ->  | T66: =IF(N66=" "," ",(I66/H66*880*0.0116-0)/880*H66) ->  | U66: =IF(N66=" "," ",T66*0.91) ->  | V66: =IF($I66=0," ",V65/$H65*$H66) ->  | W66: =IF($I66=0," ",W65/$H65*$H66) ->  | X66: =IF($I66=0," ",X65/$H65*$H66) ->  | Y66: =IF($I66=0," ",Y65/$H65*$H66) ->  | Z66: =IF($I66=0," ",Z65/$H65*$H66) ->  | AA66: =IF($I66=0," ",AA$65*$H66/$H$65) ->  | AB66: =IF($I66=0," ",AB$53*$H66/$H$53) ->  | AC66: =IF($I66=""," ",($I66/H66*880*0.0151-0.05)/880*H66) ->  | AD66: =IF($N66=" "," ",AC66*0.93) ->  | AI66: =IF($I66=""," ",(H66-AH66)*AU66-I66*AV66-AE66*AW66-AF66-AG66) ->  | AK66: =IF($I66=0," ",AK65*$H66/$H65) ->  | AS66: =IF($I66=0," ",AX66*K66+AY66*AT66-AF66-AG66) ->  | AU66: =IF($I66=0," ",AU65) ->  | AV66: =IF($I66=0," ",AV65) ->  | AW66: =IF($I66=0," ",AW65) ->  | AX66: =IF($I66=0," ",AX65) ->  | AY66: =IF($I66=0," ",AY65) ->  | AZ66: =IF($I66=0," ",AZ$65*$H66/$H$65) ->  | BA66: =IF($I66=0," ",BA65*$H66/$H65*K66/K65) ->  | BB66: =IF($I66=0," ",BB65*$H66/$H65*K66/K65) -> 
A67: =IF(E67=" ",D67&" "&F67,D67&" "&E67&"% RP "&F67) -> Altgebäck (Gebäckmehl, getrocknet) 5% RP DLG 2014 | B67: =IF(D67=""," ",COUNTA($D$8:D67)) -> 60 | D67: Altgebäck (Gebäckmehl, getrocknet) | E67: =IF(I67=0," ",ROUND(I67/10,0)) -> 5 % RP | F67: DLG 2014 | H67: 880 | I67: 54 | J67: =IF(I67=0," ",I67*0.93) -> 50 | K67: 22 | L67: =M67 -> 14.22 | M67: =IF(I67=""," ",$I67*0.021503+0.032497*$AE67+0.016309*$AF67+0.014701*$AJ67-0.021071*$K67) -> 14.22 | N67: =IF(I67=0," ",(I67/H67*880*0.0314-0.52)/880*H67) -> 1.2 | O67: =IF(N67=" "," ",N67*0.92) -> 1.1 | P67: =IF(N67=" "," ",(I67/H67*880*0.0336+0.11)/880*H67) -> 1.9 | Q67: =IF(N67=" "," ",P67*(1.5*0.93+2.2*0.88)/3.6) -> 1.8 | R67: =IF(N67=" "," ",(I67/H67*880*0.0324-0.23)/880*H67) -> 1.5 | S67: =IF(N67=" "," ",R67*0.92) -> 1.4 | T67: =IF(N67=" "," ",(I67/H67*880*0.0116-0)/880*H67) -> 0.6 | U67: =IF(N67=" "," ",T67*0.91) -> 0.6 | V67: 0.1 | W67: 2.0 | X67: =W67*0.5 -> 1.0 | Y67: =W67*0.65 -> 1.3 | Z67: 2.3 | AA67: 8.80 | AB67: =IF($I67=0," ",AB$53*$H67/$H$53) -> 3.8 | AC67: =IF($I67=""," ",$I67*0.0151-0.05) -> 0.8 | AD67: =AC67*0.93 -> 0.7 | AE67: 106 | AF67: 528 | AG67: 106 | AH67: 70 | AI67: =(H67-AH67)*AU67-I67*AV67-AE67*AW67-AF67-AG67 -> -13 | AJ67: 100 | AK67: =AK$65/$H65*$H67*AE$67/AE$65 -> 74.0 | AL67: =AL$65/$H65*$H67*AF67/AF$65 -> 13.5 | AM67: =AM$65/$H65*$H67*AG67/AG$65 -> 9.2 | AQ67: =IF(H67="","",50*V67+83*Z67+26*AB67+44*AA67-59*W67-13*P67-28*AZ67) -> 523 | AR67: =IF(H67="","",V67/1000*20140+Z67/1000*48600+1100/440*I67) -> 249 | AS67: =AX67*K67+AY67*AT67-AF67-AG67 -> -43 | AT67: 628 | AU67: 95% | AV67: 93% | AW67: 93% | AX67: 30% | AY67: 93% | AZ67: =0.66*H67/1000 -> 0.58 | BA67: =33*H67/1000*K67/$K$53 -> 26 | BB67: =127*H67/1000*K67/$K$53 -> 98 | BC67: 21.72
A68: Keksmehl 9% RP DLG 2014 | B68: =IF(D68=""," ",COUNTA($D$8:D68)) -> 61 | D68: Keksmehl | E68: 9 % RP | F68: DLG 2014 | H68: 860 | I68: 86 | J68: =IF(I68=0," ",I68*0.93) -> 80 | K68: 11 | L68: =M68 -> 16.80 | M68: 16.80 | N68: =IF(I68=0," ",(I68/H68*880*0.0314-0.52)/880*H68) -> 2.2 | O68: =IF(N68=" "," ",N68*0.92) -> 2.0 | P68: =IF(N68=" "," ",(I68/H68*880*0.0336+0.11)/880*H68) -> 3.0 | Q68: =IF(N68=" "," ",P68*(1.3*0.93+1.6*0.88)/2.9) -> 2.7 | R68: =IF(N68=" "," ",(I68/H68*880*0.0324-0.23)/880*H68) -> 2.6 | S68: =IF(N68=" "," ",R68*0.92) -> 2.4 | T68: =IF(N68=" "," ",(I68/H68*880*0.0116-0)/880*H68) -> 1.0 | U68: =IF(N68=" "," ",T68*0.91) -> 0.9 | V68: 0.9 | W68: 1.1 | X68: =W68*0.5 -> 0.6 | Y68: 0.7 | Z68: 0.4 | AA68: 3.40 | AB68: =IF($I68=0," ",AB$53*$H68/$H$53) -> 3.7 | AC68: =IF($I68=""," ",$I68*0.0151-0.05) -> 1.2 | AD68: =AC68*0.93 -> 1.2 | AE68: 206 | AF68: 344 | AG68: =140*0.92 -> 129 | AH68: 17 | AI68: =(H68-AH68)*AU68-I68*AV68-AE68*AW68-AF68-AG68 -> 5 | AJ68: 196 | AK68: =AK$65/$H65*$H68*AE$68/AE$65 -> 140.6 | AL68: =AL$65/$H65*$H68*AF$68/AF$65 -> 8.6 | AM68: =AM$65/$H65*$H68*AG$68/AG$65 -> 10.9 | AQ68: 205 | AR68: 253 | AS68: =AX68*K68+AY68*AT68-AF68-AG68 -> 32 | AT68: 540 | AU68: 83% | AV68: 93% | AW68: 69% | AX68: 28% | AY68: 93% | AZ68: 0.57 | BA68: =33*H68/1000*K68/$K$53 -> 12 | BB68: =127*H68/1000*K68/$K$53 -> 48 | BC68: 25.90
A69: eigene Keksmehl | B69: =IF(D69=""," ",COUNTA($D$8:D69)) -> 62 | D69: eigene Keksmehl | J69: =IF(I69=0," ",I69*0.93) ->  | L69: =IF($I69=""," ",I69*0.0205*AV69+0.0398*AW69*AE69+0.0173*AF69+0.016*$AG69+0.0147*AI69) ->  | N69: =IF(I69=0," ",(I69/H69*880*0.0314-0.52)/880*H69) ->  | O69: =IF(N69=" "," ",N69*0.92) ->  | P69: =IF(N69=" "," ",(I69/H69*880*0.0336+0.11)/880*H69) ->  | Q69: =IF(N69=" "," ",P69*(1.5*0.93+1.9*0.88)/3.4) ->  | R69: =IF(N69=" "," ",(I69/H69*880*0.0324-0.23)/880*H69) ->  | S69: =IF(N69=" "," ",R69*0.92) ->  | T69: =IF(N69=" "," ",(I69/H69*880*0.0116-0)/880*H69) ->  | U69: =IF(N69=" "," ",T69*0.91) ->  | V69: =IF($H69="","",V68/H68*H69) ->  | W69: =IF($H69="","",W68/I68*I69) ->  | AC69: =IF($I69=""," ",($I69/H69*880*0.0151-0.05)/880*H69) ->  | AD69: =IF($N69=" "," ",AC69*0.93) ->  | AI69: =IF($I69=""," ",(H69-AH69)*AU69-I69*AV69-AE69*AW69-AF69-AG69) ->  | AK69: =IF($I69=0," ",AK68*$H69/$H68) ->  | AS69: =IF($I69=0," ",AX69*K69+AY69*AT69-AF69-AG69) ->  | AU69: =IF($I69=0," ",AU68) ->  | AV69: =IF($I69=0," ",AV68) ->  | AW69: =IF($I69=0," ",AW68) ->  | AX69: =IF($I69=0," ",AX68) ->  | AY69: =IF($I69=0," ",AY68) ->  | AZ69: =IF($I69=0," ",AZ$68*$H69/$H$68) ->  | BA69: =IF($I69=0," ",BA68*$H69/$H68*K69/K68) ->  | BB69: =IF($I69=0," ",BB68*$H69/$H68*K69/K68) -> 
B70: =IF(D70=""," ",COUNTA($D$8:D70)) -> 
A71: Eiweißreiche Futtermittel | B71: =IF(D71=""," ",COUNTA($D$8:D71)) -> 63 | D71: Eiweißreiche Futtermittel
B72: =IF(D72=""," ",COUNTA($D$8:D72)) -> 
A73: Ackerbohnen 26% RP DLG 2014 | B73: =IF(D73=""," ",COUNTA($D$8:D73)) -> 64 | D73: Ackerbohnen | E73: 26 % RP | F73: DLG 2014 | H73: 880 | I73: 264 | J73: =I73*0.77 -> 203 | K73: 77 | L73: =I73*0.0205*AV73+0.0398*AW73*AE73+0.0173*AF73+0.016*$AG73+0.0147*AI73 -> 12.41 | M73: =IF(I73=""," ",$I73*0.021503+0.032497*$AE73+0.016309*$AF73+0.014701*$AJ73-0.021071*$K73) -> 12.30 | N73: =IF(I73=0," ",I73*0.0359+6.84) -> 16.3 | O73: =IF(N73=" "," ",N73*0.82) -> 13.4 | P73: =IF(N73=" "," ",I73*0.0114+2.14) -> 5.1 | Q73: =IF(N73=" "," ",P73*(2*0.61+3.4*0.68)/5.4) -> 3.4 | R73: =IF(N73=" "," ",I73*0.023+2.87) -> 8.9 | S73: =IF(N73=" "," ",R73*0.75) -> 6.7 | T73: =IF(N73=" "," ",I73*0.0066+0.51) -> 2.3 | U73: =IF(N73=" "," ",T73*0.71) -> 1.6 | V73: 1.2 | W73: 4.8 | X73: =W73*0.4 -> 1.9 | Y73: =W73*0.65 -> 3.1 | Z73: 1.4 | AA73: 0.20 | AB73: 10.7 | AC73: =IF($I73=""," ",$I73*0.0048+0.91) -> 2.2 | AD73: =AC73*0.61 -> 1.3 | AE73: 14 | AF73: 365 | AG73: 35 | AH73: 35 | AI73: =IF($I73=""," ",(H73-AH73)*AU73-I73*AV73-AE73*AW73-AF73-AG73) -> 74 | AJ73: =IF($I73=""," ",$H73-($AE73+$AF73+$AH73+$I73+$K73)) -> 125 | AK73: 9.0 | AQ73: =IF(H73="","",50*V73+83*Z73+26*AB73+44*AA73-59*W73-13*P73-28*AZ73) -> 91 | AR73: =IF(H73="","",V73/1000*20140+Z73/1000*48600+1100/440*I73) -> 752 | AS73: =AX73*K73+AY73*AT73-AF73-AG73 -> 64 | AT73: =IF(H73=""," ",H73-I73-AE73-AH73-K73) -> 490 | AU73: 81% | AV73: 77% | AW73: 50% | AX73: 30% | AY73: 90% | AZ73: =0.9*H73/1000 -> 0.79 | BA73: 106 | BB73: 273 | BC73: =IF(H73="","",0.73*M73+0.055*AE73+0.015*AF73-0.028*I73-0.041*K73) -> 4.67
A74: eigene Ackerbohnen 27% RP Ø 2016 | B74: =IF(D74=""," ",COUNTA($D$8:D74)) -> 65 | D74: eigene Ackerbohnen | E74: 27 % RP | F74: =IF(I74=268.6,"Ø 2016","") -> Ø 2016 | H74: 880 | I74: 269 | J74: =IF(I74=0," ",I74*0.77) -> 207 | K74: 88 | L74: =IF($I74=""," ",I74*0.0205*AV74+0.0398*AW74*AE74+0.0173*AF74+0.016*$AG74+0.0147*AI74) -> 12.48 | M74: =IF(I74=""," ",$I74*0.021503+0.032497*$AE74+0.016309*$AF74+0.014701*$AJ74-0.021071*$K74) -> 11.99 | N74: =IF(I74=0," ",(I74/H74*880*0.0359+6.84)/880*H74) -> 16.5 | O74: =IF(N74=" "," ",N74*0.82) -> 13.5 | P74: =IF(N74=" "," ",(I74/H74*880*0.0114+2.14)/880*H74) -> 5.2 | Q74: =IF(N74=" "," ",P74*(2*0.61+3.4*0.68)/5.4) -> 3.4 | R74: =IF(N74=" "," ",(I74/H74*880*0.023+2.87)/880*H74) -> 9.0 | S74: =IF(N74=" "," ",R74*0.75) -> 6.8 | T74: =IF(N74=" "," ",(I74/H74*880*0.0066+0.51)/880*H74) -> 2.3 | U74: =IF(N74=" "," ",T74*0.71) -> 1.6 | V74: =IF($I74=0," ",V73*$H74/$H73) -> 1.2 | W74: 4.8 | X74: 1.9 | Y74: 3.1 | Z74: 1.4 | AA74: 0.20 | AB74: 10.7 | AC74: =IF($I74=""," ",($I74/H74*880*0.0048+0.91)/880*H74) -> 2.2 | AD74: =IF(AC74=" "," ",AC74*0.61) -> 1.3 | AE74: 13 | AF74: 370 | AG74: 35 | AH74: 31 | AI74: 70 | AJ74: 110 | AK74: =IF($I74=0," ",AK73*$H74/$H73) -> 9.0 | AL74: 0.0 | AM74: 0.0 | AN74: 0 | AO74: 0 | AP74: 0 | AQ74: =IF($I74=0," ",91*K74/$K73*$H74/$H73) -> 104 | AR74: 764 | AS74: =IF($I74=0," ",AX74*K74+AY74*AT74-AF74-AG74) -> 54 | AT74: 480 | AU74: =IF($I74=0," ",AU73) -> 81% | AV74: =IF($I74=0," ",AV73) -> 77% | AW74: =IF($I74=0," ",AW73) -> 50% | AX74: =IF($I74=0," ",AX73) -> 30% | AY74: =IF($I74=0," ",AY73) -> 90% | AZ74: =IF($I74=0," ",AZ73*$H74/$H73) -> 0.79 | BA74: =IF($I74=0," ",BA73*$H74/$H73*K74/K73) -> 121 | BB74: =IF($I74=0," ",BB73*$H74/$H73*K74/K73) -> 312 | BC74: 3.87
A75: Bierhefe, getrocknet 44% RP DLG 2014 | B75: =IF(D75=""," ",COUNTA($D$8:D75)) -> 66 | D75: Bierhefe, getrocknet | E75: 44 % RP | F75: DLG 2014 | H75: 880 | I75: 435 | J75: =I75*0.85 -> 370 | K75: =24.15*H75/1000 -> 21 | L75: =I75*0.0205*AV75+0.0398*AW75*AE75+0.0173*AF75+0.016*$AG75+0.0147*AI75 -> 12.15 | M75: 14.09 | N75: 30.8 | O75: =N75*0.88 -> 27.1 | P75: =6+3.8 -> 9.8 | Q75: =P75*(6*0.82+3.8*0.69)/9.8 -> 7.5 | R75: 19.4 | S75: =R75*0.83 -> 16.1 | T75: 5.5 | U75: =T75*0.85 -> 4.7 | V75: 1.6 | W75: 15.0 | X75: =W75*0.5 -> 7.5 | Y75: =W75*0.65 -> 9.8 | Z75: 2.2 | AA75: 0.20 | AB75: 22.6 | AC75: 6.0 | AD75: =AC75*0.82 -> 4.9 | AE75: 14 | AF75: =0*$H75/1000 -> 0 | AG75: 13 | AH75: 88 | AI75: 287 | AJ75: 322 | AK75: =6.8 -> 6.8 | AQ75: =IF(H75="","",50*V75+83*Z75+26*AB75+44*AA75-59*W75-13*P75-28*AZ75) -> -212 | AR75: 1227 | AS75: =AX75*K75+AY75*AT75-AF75-AG75 -> 282 | AT75: 322 | AU75: 85% | AV75: 85% | AW75: 25% | AX75: 12% | AY75: 91% | AZ75: 2.10 | BA75: =229*H75/1000 -> 202 | BB75: =560*H75/1000 -> 493 | BC75: -1.99
A76: Bierhefe frisch (inaktiviert) 5% RP DLG 2014 | B76: =IF(D76=""," ",COUNTA($D$8:D76)) -> 67 | D76: Bierhefe frisch (inaktiviert) | E76: 5 % RP | F76: DLG 2014 | H76: 100 | I76: =525*H76/1000 -> 53 | J76: =I76*0.85 -> 45 | K76: =17*H76/1000 -> 2 | L76: =I76*0.0205*AV76+0.0398*AW76*AE76+0.0173*AF76+0.016*$AG76+0.0147*AI76 -> 1.43 | M76: 1.70 | N76: =35/1000*H76 -> 3.5 | O76: =N76*0.88 -> 3.1 | P76: =(0.8+0.5)/1000*H76 -> 0.1 | Q76: =P76*(6*0.82+3.8*0.69)/9.8 -> 0.1 | R76: =25*H76/1000 -> 2.5 | S76: =R76*0.83 -> 2.1 | T76: =6.15*H76/1000 -> 0.6 | U76: =T76*0.85 -> 0.5 | V76: =1.8*H76/1000 -> 0.2 | W76: =4.5*H76/1000 -> 0.5 | X76: =W76*0.5 -> 0.2 | Y76: =W76*0.65 -> 0.3 | Z76: =1.8*H76/1000 -> 0.2 | AA76: =0.2605*H76/1000 -> 0.03 | AB76: =25.2*H76/1000 -> 2.5 | AC76: =8*H76/1000 -> 0.8 | AD76: =AC76*0.85 -> 0.7 | AE76: 3 | AF76: =0*$H76/1000 -> 0 | AG76: =10*$H76/1000 -> 1 | AH76: 8 | AI76: 32 | AJ76: 35 | AK76: =6.8*H76/900 -> 0.8 | AQ76: 56 | AR76: 144 | AS76: =AX76*K76+AY76*AT76-AF76-AG76 -> 31 | AT76: 35 | AU76: 85% | AV76: 85% | AW76: 25% | AX76: 12% | AY76: 91% | AZ76: =2.1/900*H76 -> 0.23 | BA76: =229*H76/1000 -> 23 | BB76: =560*H76/1000 -> 56 | BC76: -0.13
A77: =IF(E77=" ",D77&" "&F77,D77&" "&E77&"% RP "&F77) -> eigene Bierhefe | B77: =IF(D77=""," ",COUNTA($D$8:D77)) -> 68 | D77: eigene Bierhefe | E77: =IF(I77=0," ",ROUND(I77/10,0)) ->  | F77: =IF(I77=277,"Ø 2007","") ->  | J77: =IF(I77=0," ",I77*0.85) ->  | L77: =IF($I77=""," ",I77*0.0205*AV77+0.0398*AW77*AE77+0.0173*AF77+0.016*$AG77+0.0147*AI77) ->  | M77: =IF(I77=""," ",$I77*0.021503+0.032497*$AE77+0.016309*$AF77+0.014701*$AJ77-0.021071*$K77) ->  | N77: =IF(I77=0," ",(I77/H77*880*0.0694-1.58)/880*H77) ->  | O77: =IF(N77=" "," ",N77*0.82) ->  | P77: =IF(I77="","",P74/H74*H77) ->  | Q77: =IF(N77=" "," ",P77*(2*0.61+3.4*0.68)/5.4) ->  | R77: =IF(N77=" "," ",(I77/H77*880*0.0567-4.46)/880*H77) ->  | S77: =IF(N77=" "," ",R77*0.75) ->  | T77: =IF(I77="","",T75/H74*H77) ->  | U77: =IF(N77=" "," ",T77*0.71) ->  | V77: =IF($I77="","",V75/H75*H77) ->  | W77: =IF($I77="","",W75/H75*H77) ->  | X77: =IF($I77="","",X75/H75*H77) ->  | Y77: =IF($I77="","",Y75/H75*H77) ->  | Z77: =IF($I77="","",Z75/L75*L77) ->  | AA77: =IF($I77="","",AA75/M75*M77) ->  | AB77: =IF($I77="","",AB75/H75*H77) ->  | AC77: =IF($I77=""," ",($I77/H77*880*0.0183-1.32)/880*H77) ->  | AD77: =IF(AC77=" "," ",AC77*0.82) ->  | AI77: =IF($I77=""," ",(H77-AH77)*AU77-I77*AV77-AE77*AW77-AF77-AG77) ->  | AK77: =IF($I77=0," ",AK76*$H77/$H76) ->  | AR77: =IF(H77="","",V77/1000*20140+Z77/1000*48600+1100/440*I77) ->  | AS77: =IF($I77=0," ",AX77*K77+AY77*AT77-AF77-AG77) ->  | AU77: =IF($I77=0," ",AU76) ->  | AV77: =IF($I77=0," ",AV76) ->  | AW77: =IF($I77=0," ",AW76) ->  | AX77: =IF($I77=0," ",AX76) ->  | AY77: =IF($I77=0," ",AY76) ->  | AZ77: =IF($H$77="","",AZ75/$H$75*$K$77/$K$75*$H$77) ->  | BA77: =IF($H$77="","",BA75/$H$75*$K$77/$K$75*$H$77) ->  | BB77: =IF($H$77="","",BB75/$H$75*$K$77/$K$75*$H$77) -> 
A78: Erbsen 22% RP DLG 2014 | B78: =IF(D78=""," ",COUNTA($D$8:D78)) -> 69 | D78: Erbsen | E78: 22 % RP | F78: DLG 2014 | G78: 69 | H78: 880 | I78: 220 | J78: =I78*0.79 -> 174 | K78: 57 | L78: =I78*0.0205*AV78+0.0398*AW78*AE78+0.0173*AF78+0.016*$AG78+0.0147*AI78 -> 13.40 | M78: 12.82 | N78: =IF(I78=0," ",I78*0.0533+4.05) -> 15.8 | O78: =IF(N78=" "," ",N78*0.84) -> 13.3 | P78: =IF(N78=" "," ",I78*0.0114+2.14) -> 4.6 | Q78: =IF(N78=" "," ",P78*(2.1*0.73+3.2*0.66)/5.3) -> 3.2 | R78: =IF(N78=" "," ",I78*0.0249+2.6) -> 8.1 | S78: =IF(N78=" "," ",R78*0.75) -> 6.1 | T78: =IF(N78=" "," ",I78*0.0064+0.57) -> 2.0 | U78: =IF(N78=" "," ",T78*0.7) -> 1.4 | V78: 0.9 | W78: 4.1 | X78: =W78*0.5 -> 2.1 | Y78: =W78*0.65 -> 2.7 | Z78: 1.4 | AA78: 0.19 | AB78: 10.0 | AC78: =IF($I78=""," ",$I78*0.0048+0.91) -> 2.0 | AD78: =AC78*0.73 -> 1.4 | AE78: 13 | AF78: 418 | AG78: 53 | AH78: =37*H78/1000 -> 33 | AI78: 104 | AJ78: 139 | AK78: 8.0 | AQ78: 103 | AR78: 636 | AS78: =AX78*K78+AY78*AT78-AF78-AG78 -> 94 | AT78: 557 | AU78: 89% | AV78: 79% | AW78: 45% | AX78: 62% | AY78: 95% | AZ78: =1*H78/1000 -> 0.88 | BA78: 95 | BB78: 350 | BC78: 7.85
A79: eigene Erbsen 21% RP Ø 2016 | B79: =IF(D79=""," ",COUNTA($D$8:D79)) -> 70 | D79: eigene Erbsen | E79: 21 % RP | F79: =IF(I79=210.9,"Ø 2016","") -> Ø 2016 | H79: 880 | I79: 211 | J79: =IF(I79=0," ",I79*0.79) -> 167 | K79: 58 | L79: =IF($I79=""," ",I79*0.0205*AV79+0.0398*AW79*AE79+0.0173*AF79+0.016*$AG79+0.0147*AI79) -> 13.53 | M79: 12.88 | N79: =IF(I79=0," ",(I79/H79*880*0.0533+4.05)/880*H79) -> 15.3 | O79: =IF(N79=" "," ",N79*0.84) -> 12.8 | P79: =IF(N79=" "," ",(I79/H79*880*0.0114+2.14)/880*H79) -> 4.5 | Q79: =IF(N79=" "," ",P79*(2.1*0.73+3.2*0.66)/5.3) -> 3.1 | R79: =IF(N79=" "," ",(I79/H79*880*0.0249+2.6)/880*H79) -> 7.9 | S79: =IF(N79=" "," ",R79*0.75) -> 5.9 | T79: =IF(N79=" "," ",(I79/H79*880*0.0064+0.57)/880*H79) -> 1.9 | U79: =IF(N79=" "," ",T79*0.7) -> 1.3 | V79: =IF($I79=0," ",V78*$H79/$H78) -> 0.9 | W79: 4.1 | X79: 2.1 | Y79: 2.7 | Z79: 1.4 | AA79: 0.19 | AB79: 10.0 | AC79: =IF($I79=""," ",($I79/H79*880*0.0048+0.91)/880*H79) -> 1.9 | AD79: =IF(AC79=" "," ",AC79*0.73) -> 1.4 | AE79: 15 | AF79: 449 | AG79: 52 | AH79: 26 | AI79: 86 | AJ79: 121 | AK79: =IF($I79=0," ",AK78*$H79/$H78) -> 8.0 | AL79: 0.0 | AM79: 0.0 | AN79: 0 | AO79: 0 | AP79: 0 | AQ79: 104 | AR79: 613 | AS79: =IF($I79=0," ",AX79*K79+AY79*AT79-AF79-AG79) -> 77 | AT79: 570 | AU79: =IF($I79=0," ",AU78) -> 89% | AV79: =IF($I79=0," ",AV78) -> 79% | AW79: =IF($I79=0," ",AW78) -> 45% | AX79: =IF($I79=0," ",AX78) -> 62% | AY79: =IF($I79=0," ",AY78) -> 95% | AZ79: =IF($I79=0," ",AZ78*$H79/$H78) -> 0.88 | BA79: =IF($I79=0," ",$BA$78*$H79/$H$78*K79/$K$78) -> 97 | BB79: =IF($I79=0," ",$BB$78*$H79/$H$78*K79/$K$78) -> 358 | BC79: 8.64
A80: Erbsen 19% RP | B80: =IF(D80=""," ",COUNTA($D$8:D80)) -> 71 | D80: Erbsen | E80: 19 % RP | G80: 31 | H80: 880 | I80: 192 | J80: =I80*0.85 -> 163 | K80: 59 | L80: =I80*0.0205*AV80+0.0398*AW80*AE80+0.0173*AF80+0.016*$AG80+0.0147*AI80 -> 13.40 | M80: 12.68 | N80: =IF(I80=0," ",I80*0.0533+4.05) -> 14.3 | O80: =IF(N80=" "," ",N80*0.84) -> 12.0 | P80: =IF(N80=" "," ",I80*0.0114+2.14) -> 4.3 | Q80: =IF(N80=" "," ",P80*(2.1*0.73+3.2*0.66)/5.3) -> 3.0 | R80: =IF(N80=" "," ",I80*0.0249+2.6) -> 7.4 | S80: =IF(N80=" "," ",R80*0.75) -> 5.5 | T80: =IF(N80=" "," ",I80*0.0064+0.57) -> 1.8 | U80: =IF(N80=" "," ",T80*0.7) -> 1.3 | V80: 0.9 | W80: 4.1 | X80: 1.8 | Y80: =W80*0.65 -> 2.7 | Z80: 1.2 | AA80: 0.19 | AB80: 10.0 | AC80: =IF($I80=""," ",$I80*0.0048+0.91) -> 1.8 | AD80: =AC80*0.73 -> 1.3 | AE80: 12 | AF80: 453 | AG80: 37 | AH80: 27 | AI80: =(H80-AH80)*AU80-I80*AV80-AE80*AW80-AF80-AG80 -> 113 | AJ80: 137 | AK80: =IF($I80=0," ",AK79*$H80/$H78) -> 8.0 | AQ80: 90 | AR80: 556 | AS80: =AX80*K80+AY80*AT80-AF80-AG80 -> 108 | AT80: 590 | AU80: 89% | AV80: 79% | AW80: 45% | AX80: 62% | AY80: 95% | AZ80: =1*H80/1000 -> 0.88 | BA80: =IF($I80=0," ",$BA$78*$H80/$H$78*K80/$K$78) -> 98 | BB80: 319 | BC80: 8.94
A81: Fischmehl 57% RP DLG 2014 | B81: =IF(D81=""," ",COUNTA($D$8:D81)) -> 72 | D81: Fischmehl | E81: =IF(I81=0," ",ROUND(I81/10,0)) -> 57 % RP | F81: DLG 2014 | H81: 910 | I81: 573 | J81: =I81*0.83 -> 476 | K81: 14 | L81: =I81*0.0205*AV81+0.0398*AW81*AE81+0.0173*AF81+0.016*$AG81+0.0147*AI81 -> 12.82 | M81: 14.81 | N81: =IF(I81=0," ",(I81/H81*880*0.1074-23.1)/880*H81) -> 37.7 | O81: =IF(N81=" "," ",N81*0.87) -> 32.8 | P81: =IF(N81=" "," ",(I81/H81*880*0.0483-8.85)/880*H81) -> 18.5 | Q81: =IF(N81=" "," ",P81*(0.88*18+7*0.59)/25) -> 14.8 | R81: =IF(N81=" "," ",(I81/H81*880*0.0528-8.27)/880*H81) -> 21.7 | S81: =IF(N81=" "," ",R81*0.88) -> 19.1 | T81: =IF(N81=" "," ",(I81/H81*880*0.0157-3.57)/880*H81) -> 5.3 | U81: =T81*0.79 -> 4.2 | V81: 63.7 | W81: 30.0 | X81: =W81*0.85 -> 25.5 | Y81: =X81 -> 25.5 | Z81: 2.3 | AA81: 10.00 | AB81: =7*H81/900 -> 7.1 | AC81: =IF($I81=""," ",($I81/H81*880*0.0375-7.21)/880*H81) -> 14.0 | AD81: =AC81*0.88 -> 12.3 | AE81: 55 | AF81: =H81/1000*0 -> 0 | AG81: 0 | AH81: 200 | AI81: =(H81-AH81)*AU81-I81*AV81-AE81*AW81-AF81-AG81 -> 81 | AJ81: 68 | AK81: 22.8 | AL81: =AK81/7*6 -> 19.5 | AM81: =AK81-AL81 -> 3.3 | AQ81: 1232 | AR81: 2827 | AS81: =AX81*K81+AY81*AT81-AF81-AG81 -> 3 | AT81: 68 | AU81: 85% | AV81: 83% | AW81: 86% | AX81: 0% | AY81: 4% | AZ81: =29.7*H81/1000 -> 27.03 | BA81: =K81*153% -> 21 | BB81: =BA81*2.23 -> 48 | BC81: -2.78
A82: Fischmehl proteinreich 69% RP DLG 2014 | B82: =IF(D82=""," ",COUNTA($D$8:D82)) -> 73 | D82: Fischmehl proteinreich | E82: 69 % RP | F82: DLG 2014 | H82: 910 | I82: 692 | J82: =I82*0.9 -> 623 | K82: 6 | L82: =I82*0.0205*AV82+0.0398*AW82*AE82+0.0173*AF82+0.016*$AG82+0.0147*AI82 -> 14.53 | M82: 16.38 | N82: =IF(I82=0," ",(I82/H82*880*0.1074-23.1)/880*H82) -> 50.4 | O82: =IF(N82=" "," ",N82*0.89) -> 44.9 | P82: =IF(N82=" "," ",(I82/H82*880*0.0483-8.85)/880*H82) -> 24.3 | Q82: =IF(N82=" "," ",P82*(17.3*0.89+6.4*0.74)/23.7) -> 20.6 | R82: =IF(N82=" "," ",(I82/H82*880*0.0528-8.27)/880*H82) -> 28.0 | S82: =IF(N82=" "," ",R82*0.88) -> 24.6 | T82: =IF(N82=" "," ",(I82/H82*880*0.0157-3.57)/880*H82) -> 7.2 | U82: =IF(N82=" "," ",T82*0.86) -> 6.2 | V82: 45.5 | W82: 27.3 | X82: =W82*0.85 -> 23.2 | Y82: =X82 -> 23.2 | Z82: 2.7 | AA82: 9.10 | AB82: =7*H82/900 -> 7.1 | AC82: =IF($I82=""," ",($I82/H82*880*0.0375-7.21)/880*H82) -> 18.5 | AD82: =AC82*0.89 -> 16.5 | AE82: 59 | AF82: 0 | AG82: 0 | AH82: 173 | AI82: =(H82-AH82)*AU82-I82*AV82-AE82*AW82-AF82-AG82 -> -18 | AJ82: -20 | AK82: =AK81*$AE$82/$AE$81 -> 24.5 | AL82: =AK82/7*6 -> 21.0 | AM82: =AK82-AL82 -> 3.5 | AQ82: 401 | AR82: 2778 | AS82: =AX82*K82+AY82*AT82-AF82-AG82 -> 0 | AT82: =IF(H82=""," ",0) -> 0 | AU82: 89% | AV82: 90% | AW82: 86% | AX82: 0% | AY82: 4% | AZ82: =29.7*H82/1000 -> 27.03 | BA82: =K82*153% -> 9 | BB82: =BA82*2.23 -> 20 | BC82: -4.42
A83: =IF(E83=" ",D83&" "&F83,D83&" "&E83&"% RP "&F83) -> Fischmehl vom Hering 66% RP DLG 2014 | B83: =IF(D83=""," ",COUNTA($D$8:D83)) -> 74 | D83: Fischmehl vom Hering | E83: =IF(I83=0," ",ROUND(I83/10,0)) -> 66 % RP | F83: DLG 2014 | H83: 910 | I83: 655 | J83: =I83*0.9 -> 590 | K83: 0 | L83: =I83*0.0205*AV83+0.0398*AW83*AE83+0.0173*AF83+0.016*$AG83+0.0147*AI83 -> 15.38 | M83: =IF(I83=""," ",$I83*0.021503+0.032497*$AE83+0.016309*$AF83+0.014701*$AJ83-0.021071*$K83) -> 17.44 | N83: =IF(I83=0," ",(I83/H83*880*0.1074-23.1)/880*H83) -> 46.5 | O83: =IF(N83=" "," ",N83*0.89) -> 41.3 | P83: =IF(N83=" "," ",(I83/H83*880*0.0483-8.85)/880*H83) -> 22.5 | Q83: =IF(N83=" "," ",P83*(0.88*20+6*0.74)/26) -> 19.1 | R83: =IF(N83=" "," ",(I83/H83*880*0.0528-8.27)/880*H83) -> 26.0 | S83: =IF(N83=" "," ",R83*0.86) -> 22.4 | T83: =IF(N83=" "," ",(I83/H83*880*0.0157-3.57)/880*H83) -> 6.6 | U83: =T83*0.79 -> 5.2 | V83: 45.5 | W83: 27.3 | X83: =W83*0.85 -> 23.2 | Y83: =X83 -> 23.2 | Z83: 2.7 | AA83: 9.10 | AB83: =7*H83/900 -> 7.1 | AC83: =IF($I83=""," ",($I83/H83*880*0.0375-7.21)/880*H83) -> 17.1 | AD83: =AC83*0.88 -> 15.1 | AE83: 91 | AF83: =H83/1000*0 -> 0 | AG83: 0 | AH83: 137 | AI83: =(H83-AH83)*AU83-I83*AV83-AE83*AW83-AF83-AG83 -> 12 | AJ83: 27 | AK83: =AK82*$AE$82/$AE$81 -> 26.2 | AL83: =AK83/7*6 -> 22.5 | AM83: =AK83-AL83 -> 3.7 | AQ83: =IF(H83="","",50*V83+83*Z83+26*AB83+44*AA83-59*W83-13*P83-28*AZ83) -> 424 | AR83: =IF(H83="","",V83/1000*20140+Z83/1000*48600+1100/440*I83) -> 2685 | AS83: =AX83*K83+AY83*AT83-AF83-AG83 -> 1 | AT83: 27 | AU83: 88% | AV83: 90% | AW83: 86% | AX83: 0% | AY83: 4% | AZ83: =29.7*H83/1000 -> 27.03 | BA83: =K83*153% -> 0 | BB83: =BA83*2.23 -> 0 | BC83: -0.60
A84: eigenes Fischmehl | B84: =IF(D84=""," ",COUNTA($D$8:D84)) -> 75 | D84: eigenes Fischmehl | J84: =IF(I84=0," ",I84*0.83) ->  | L84: =IF($I84=""," ",I84*0.0205*AV84+0.0398*AW84*AE84+0.0173*AF84+0.016*$AG84+0.0147*AI84) ->  | N84: =IF(I84=0," ",(I84/H84*880*0.1074-23.1)/880*H84) ->  | O84: =IF(N84=" "," ",N84*0.87) ->  | P84: =IF(N84=" "," ",(I84/H84*880*0.0483-8.85)/880*H84) ->  | Q84: =IF(N84=" "," ",P84*0.85) ->  | R84: =IF(N84=" "," ",(I84/H84*880*0.0528-8.27)/880*H84) ->  | S84: =IF(N84=" "," ",R84*0.88) ->  | T84: =IF(N84=" "," ",(I84/H84*880*0.0157-3.57)/880*H84) ->  | U84: =IF(N84=" "," ",T84*0.85) ->  | V84: =IF($I84=0," ",V82*$H84/$H82) ->  | AC84: =IF($I84=""," ",($I84/H84*880*0.0375-7.21)/880*H84) ->  | AD84: =IF(AC84=" "," ",AC84*0.88) ->  | AI84: =IF($I84=""," ",(H84-AH84)*AU84-I84*AV84-AE84*AW84-AF84-AG84) ->  | AK84: =IF($I84=0," ",AK82*$H84/$H82) ->  | AS84: =IF($I84=0," ",AX84*K84+AY84*AT84-AF84-AG84) ->  | AU84: =IF($I84=0," ",AU82) ->  | AV84: =IF($I84=0," ",AV82) ->  | AW84: =IF($I84=0," ",AW82) ->  | AX84: =IF($I84=0," ",AX82) ->  | AY84: =IF($I84=0," ",AY82) ->  | AZ84: =IF($I84=0," ",AZ82*$H84/$H82) ->  | BA84: =IF($I84=0," ",BA82*$H84/$H82*K84/K82) ->  | BB84: =IF($I84=0," ",BB82*$H84/$H82*K84/K82) -> 
A85: Kartoffeleiweiß 38% RP DLG 2014 | B85: =IF(D91=""," ",COUNTA($D$8:D91)) -> 82 | D85: Kartoffeleiweiß | E85: =IF(I91=0," ",ROUND(I91/10,0)) -> 38 % RP | F85: DLG 2014 | H85: 910 | I85: 765 | J85: =I91*0.94 -> 355 | K85: 7 | L85: =IF($I91=""," ",I91*0.0205*AV91+0.0398*AW91*AE91+0.0173*AF91+0.016*$AG91+0.0147*AI91) -> 13.61 | M85: =IF(I91=""," ",$I91*0.021503+0.032497*$AE91+0.016309*$AF91+0.014701*$AJ91-0.021071*$K91) -> 10.54 | N85: =IF(I91=0," ",(I91/H91*880*0.0899-10.12)/880*H91) -> 23.9 | O85: =IF(N91=" "," ",N91*0.9) -> 16.2 | P85: =IF(N91=" "," ",(I91/H91*880*0.037-0.55)/880*H91) -> 13.4 | Q85: =IF(N91=" "," ",P91*0.82) -> 7.0 | R85: =IF(N91=" "," ",(I91/H91*880*0.0565+0.28)/880*H91) -> 21.6 | S85: =IF(N91=" "," ",R91*0.86) -> 10.7 | T85: =IF(N91=" "," ",(I91/H91*880*0.0182-3.12)/880*H91) -> 3.8 | U85: =IF(N91=" "," ",T91*0.8) -> 2.5 | V85: 0.4 | W85: 2.6 | X85: 1.8 | Y85: 1.8 | Z85: 0.5 | AA85: 0.20 | AB85: 8.6 | AC85: =IF($I91=""," ",$P91*0.6074074) -> 5.2 | AD85: =AC91*0.91 -> 2.1 | AE85: 15 | AF85: =0 -> 0 | AG85: =6*H91/1000 -> 5 | AH85: =32*H91/1000 -> 28 | AI85: =(H91-AH91)*AU91-I91*AV91-AE91*AW91-AF91-AG91 -> 274 | AJ85: =IF($I91=""," ",$H91-($AE91+$AF91+$AH91+$I91+$K91)) -> 219 | AK85: 4.9 | AL85: 8.2 | AQ85: =IF(H91="","",50*V91+83*Z91+26*AB91+44*AA91-59*W91-13*P91-28*AZ91) -> 143 | AR85: =IF(H91="","",V91/1000*20140+Z91/1000*48600+1100/440*I91) -> 1088 | AS85: =AX91*K91+AY91*AT91-AF91-AG91 -> 271 | AT85: 95 | AU85: 92% | AV85: 94% | AW85: 32% | AX85: 33% | AY85: 92% | AZ85: =1.09*H91/1000 -> 0.96 | BA85: =K91 -> 148 | BB85: =BA91*2 -> 235 | BC85: -13.19
A86: =IF(E86=" ",D86&" "&F86,D86&" "&E86&"% RP "&F86) -> eigenes Kartoffeleiweiß | B86: =IF(D86=""," ",COUNTA($D$8:D86)) -> 77 | D86: eigenes Kartoffeleiweiß | J86: =IF(I86=0," ",I86*0.94) ->  | L86: =IF($I86=""," ",I86*0.0205*AV86+0.0398*AW86*AE86+0.0173*AF86+0.016*$AG86+0.0147*AI86) ->  | N86: =IF(I86=0," ",(I86/H86*880*0.0899-10.12)/880*H86) ->  | O86: =IF(N86=" "," ",N86*0.9) ->  | P86: =IF(N86=" "," ",(I86/H86*880*0.037-0.55)/880*H86) ->  | Q86: =IF(N86=" "," ",P86*0.82) ->  | R86: =IF(N86=" "," ",(I86/H86*880*0.0565+0.28)/880*H86) ->  | S86: =IF(N86=" "," ",R86*0.86) ->  | T86: =IF(N86=" "," ",(I86/H86*880*0.0182-3.12)/880*H86) ->  | U86: =IF(N86=" "," ",T86*0.8) ->  | V86: =IF($I86=0," ",V91*$H86/$H91) ->  | AC86: =IF($I86=""," ",($P86*0.6074074)) ->  | AD86: =IF(AC86=" "," ",AC86*0.91) ->  | AI86: =IF($I86=""," ",(H86-AH86)*AU86-I86*AV86-AE86*AW86-AF86-AG86) ->  | AK86: =IF($I86=0," ",AK91*$H86/$H91) ->  | AS86: =IF($I86=0," ",AX86*K86+AY86*AT86-AF86-AG86) ->  | AU86: =IF($I86=0," ",AU91) ->  | AV86: =IF($I86=0," ",AV91) ->  | AW86: =IF($I86=0," ",AW91) ->  | AX86: =IF($I86=0," ",AX91) ->  | AY86: =IF($I86=0," ",AY91) ->  | AZ86: =IF($I86=0," ",AZ91*$H86/$H91) ->  | BA86: =IF($I86=0," ",BA91*$H86/$H91*K86/K91) ->  | BB86: =IF($I86=0," ",BB91*$H86/$H91*K86/K91) -> 
A87: Lein, Samen 21% RP DLG 2014 | B87: =IF(D87=""," ",COUNTA($D$8:D87)) -> 78 | D87: Lein, Samen | E87: =IF(I87=0," ",ROUND(I87/10,0)) -> 21 % RP | F87: DLG 2014 | H87: 910 | I87: 207 | J87: =I87*0.77 -> 159 | K87: 64 | L87: =I87*0.0205*AV87+0.0398*AW87*AE87+0.0173*AF87+0.016*$AG87+0.0147*AI87 -> 12.48 | M87: 17.82 | N87: =IF(I87=0," ",I87*0.0275+3.15) -> 8.8 | O87: =IF(N87=" "," ",N87*0.83) -> 7.3 | P87: =IF(N87=" "," ",I87*0.034+0.09) -> 7.1 | Q87: =IF(N87=" "," ",P87*(4.6*0.85+7.1*0.87)/11.7) -> 6.1 | R87: =IF(N87=" "," ",I87*0.0362+0.08) -> 7.6 | S87: =IF(N87=" "," ",R87*0.82) -> 6.2 | T87: =IF(N87=" "," ",I87*0.022-1.52) -> 3.0 | U87: =IF(N87=" "," ",T87*0.86) -> 2.6 | V87: 2.7 | W87: 5.5 | X87: =W87*0.4 -> 2.2 | Y87: =W87*0.65 -> 3.6 | Z87: 4.1 | AA87: 0.70 | AB87: 8.5 | AC87: =IF($I87=""," ",$I87*0.0184-0.16) -> 3.6 | AD87: =AC87*0.85 -> 3.1 | AE87: 337 | AF87: 0 | AG87: 32 | AH87: 46 | AI87: =(H87-AH87)*AU87-I87*AV87-AE87*AW87-AF87-AG87 -> 172 | AJ87: 256 | AK87: =AL87+AM87 -> 239.3 | AL87: =66*AE87/100 -> 222.4 | AM87: =5*AE87/100 -> 16.9 | AQ87: 302 | AR87: 771 | AS87: =AX87*K87+AY87*AT87-AF87-AG87 -> 193 | AT87: 256 | AU87: 60% | AV87: 77% | AW87: 46% | AX87: 28% | AY87: 81% | AZ87: =0.3*H87/1000 -> 0.27 | BA87: 158 | BB87: 237 | BC87: 23.12
A88: Leinextaktionschrot 34% RP DLG 2014 | B88: =IF(D88=""," ",COUNTA($D$8:D88)) -> 79 | D88: Leinextaktionschrot | E88: =IF(I88=0," ",ROUND(I88/10,0)) -> 34 % RP | F88: DLG 2014 | H88: 890 | I88: 338 | J88: =I88*0.66 -> 223 | K88: 93 | L88: 10.86 | M88: 11.68 | N88: =IF(I88=0," ",I88*0.0275+3.15) -> 12.4 | O88: =IF(N88=" "," ",N88*0.64) -> 8.0 | P88: =IF(N88=" "," ",I88*0.034+0.09) -> 11.6 | Q88: =IF(N88=" "," ",P88*(5.3*0.61+5.3*0.73)/10.6) -> 7.8 | R88: =IF(N88=" "," ",I88*0.0362+0.08) -> 12.3 | S88: =IF(N88=" "," ",R88*0.85) -> 10.5 | T88: =IF(N88=" "," ",I88*0.022-1.52) -> 5.9 | U88: =IF(N88=" "," ",T88*0.66) -> 3.9 | V88: 4.1 | W88: 8.5 | X88: =W88*0.3 -> 2.6 | Y88: 5.5 | Z88: 5.1 | AA88: 0.90 | AB88: 8.5 | AC88: =IF($I88=""," ",$I88*0.0184-0.16) -> 6.1 | AD88: =AC88*0.61 -> 3.7 | AE88: 24 | AF88: 36 | AG88: 48 | AH88: =66*H88/1000 -> 59 | AI88: 293 | AJ88: 340 | AK88: =AL88+AM88 -> 17.0 | AL88: =66*AE88/100 -> 15.8 | AM88: =5*AE88/100 -> 1.2 | AQ88: 219 | AR88: 1175 | AS88: 247 | AT88: 376 | AU88: 74% | AV88: 66% | AW88: 61% | AX88: 28% | AY88: 81% | AZ88: =0.7*H88/1000 -> 0.62 | BA88: 103 | BB88: 215 | BC88: -2.89
A89: Leinkuchen / Expeller 4-8% Fett 33% RP DLG 2014 | B89: =IF(D89=""," ",COUNTA($D$8:D89)) -> 80 | D89: Leinkuchen / Expeller 4-8% Fett | E89: =IF(I89=0," ",ROUND(I89/10,0)) -> 33 % RP | F89: DLG 2014 | H89: 900 | I89: 333 | J89: =I89*0.75 -> 250 | K89: 95 | L89: 11.63 | M89: 12.51 | N89: =IF(I89=0," ",I89*0.0275+3.15) -> 12.3 | O89: =IF(N89=" "," ",N89*0.82) -> 10.1 | P89: =IF(N89=" "," ",I89*0.0321+0.9) -> 11.6 | Q89: =IF(N89=" "," ",P89*(6*0.85+5.9*0.85)/11.9) -> 9.9 | R89: =IF(N89=" "," ",I89*0.0362+0.08) -> 12.1 | S89: =IF(N89=" "," ",R89*0.8) -> 9.7 | T89: =IF(N89=" "," ",I89*0.022-1.52) -> 5.8 | U89: =IF(N89=" "," ",T89*0.84) -> 4.9 | V89: 4.1 | W89: 8.1 | X89: =W89*0.35 -> 2.8 | Y89: 5.3 | Z89: 5.0 | AA89: 0.90 | AB89: 10.3 | AC89: =IF($I89=""," ",$I89*0.0184-0.16) -> 6.0 | AD89: =AC89*0.85 -> 5.1 | AE89: 72 | AF89: 0 | AG89: 40 | AH89: 59 | AI89: 280 | AJ89: 341 | AK89: =AL89+AM89 -> 38.2 | AL89: =48*AE89/100 -> 34.6 | AM89: =5*AE89/100 -> 3.6 | AQ89: 284 | AR89: 1158 | AS89: 263 | AT89: 341 | AU89: 73% | AV89: 75% | AW89: 61% | AX89: 28% | AY89: 81% | AZ89: =0.6*H89/1000 -> 0.54 | BA89: =BA88*H89/H88*K88/K89 -> 102 | BB89: =BB88/H88*H89*K89/K88 -> 222 | BC89: -0.13
A90: Lupinen blau 30% RP DLG 2014 | B90: =IF(D90=""," ",COUNTA($D$8:D90)) -> 81 | D90: Lupinen blau | E90: 30 % RP | F90: DLG 2014 | H90: 880 | I90: 295 | J90: =I90*0.85 -> 251 | K90: 143 | L90: 13.47 | M90: 10.30 | N90: =IF(I90=0," ",(I90/H90*880*0.0375+2.56)/880*H90) -> 13.6 | O90: =N90*0.84 -> 11.4 | P90: =IF(N90=" "," ",(I90/H90*880*0.0331-3.93)/880*H90) -> 5.8 | Q90: =P90*(1.8*0.81+4.4*0.91)/6.2 -> 5.1 | R90: =IF(N90=" "," ",(I90/H90*880*0.028+1.65)/880*H90) -> 9.9 | S90: =R90*0.83 -> 8.2 | T90: =IF(N90=" "," ",(I90/H90*880*0.0069+0.53)/880*H90) -> 2.6 | U90: =T90*0.85 -> 2.2 | V90: 1.8 | W90: 2.8 | X90: =W90*0.5 -> 1.4 | Y90: 1.8 | Z90: 1.7 | AA90: 0.35 | AB90: 8.4 | AC90: =IF($I90=""," ",($I90/H90*880*0.0045+0.6)/880*H90) -> 1.9 | AD90: =AC90*0.81 -> 1.6 | AE90: 48 | AF90: 53 | AG90: 49 | AH90: 32 | AI90: 360 | AJ90: 309 | AK90: =78*AE90/$AE$92 -> 48.6 | AQ90: 194 | AR90: 856 | AS90: 349 | AT90: 362 | AU90: 88% | AV90: 85% | AW90: 70% | AX90: 80% | AY90: 93% | AZ90: =1.2*H90/1000 -> 1.06 | BA90: =103*H90/1000*K90/$K$92 -> 114 | BB90: =175*H90/1000*K90/$K$92 -> 193 | BC90: -3.17
A91: Lupinen gelb 38% RP DLG 2014 | B91: =IF(D91=""," ",COUNTA($D$8:D91)) -> 82 | D91: Lupinen gelb | E91: 38 % RP | F91: DLG 2014 | H91: 880 | I91: 378 | J91: =I91*0.88 -> 333 | K91: 148 | L91: 13.61 | M91: 10.54 | N91: =IF(I91=0," ",I91*0.0428+1.85) -> 18.0 | O91: =N91*0.84 -> 15.1 | P91: =IF(N91=" "," ",(I91/H91*880*0.0331-3.93)/880*H91) -> 8.6 | Q91: =P91*(3.1*0.81+8.8*0.91)/11.9 -> 7.6 | R91: =IF(N91=" "," ",(I91/H91*880*0.0225+3.93)/880*H91) -> 12.4 | S91: =R91*0.83 -> 10.3 | T91: =IF(N91=" "," ",(I91/H91*880*0.0069+0.53)/880*H91) -> 3.1 | U91: =T91*0.85 -> 2.7 | V91: 1.8 | W91: 4.9 | X91: =W91*0.5 -> 2.5 | Y91: 3.2 | Z91: 2.2 | AA91: 0.35 | AB91: 10.5 | AC91: =IF($I91=""," ",($I91/H91*880*0.0045+0.6)/880*H91) -> 2.3 | AD91: =AC91*0.81 -> 1.9 | AE91: 51 | AF91: 40 | AG91: 48 | AH91: 44 | AI91: 274 | AJ91: 219 | AK91: =78*AE91/$AE$92 -> 51.7 | AQ91: 143 | AR91: 1088 | AS91: 271 | AT91: 259 | AU91: 87% | AV91: 88% | AW91: 64% | AX91: 80% | AY91: 93% | AZ91: =0.7*H91/1000 -> 0.62 | BA91: =103*H91/1000*K91/$K$92 -> 118 | BB91: =175*H91/1000*K91/$K$92 -> 200 | BC91: -5.55
A92: Lupinen weiß 33% RP DLG 2014 | B92: =IF(D92=""," ",COUNTA($D$8:D92)) -> 83 | D92: Lupinen weiß | E92: 33 % RP | F92: DLG 2014 | H92: 880 | I92: 326 | J92: =I92*0.89 -> 290 | K92: 114 | L92: 13.96 | M92: 12.02 | N92: =IF(I92=0," ",I92*0.0381+3.17) -> 15.6 | O92: =N92*0.84 -> 13.1 | P92: =IF(N92=" "," ",(I92/H92*880*0.0331-3.93)/880*H92) -> 6.9 | Q92: =P92*(2.3*0.81+4.4*0.91)/6.7 -> 6.0 | R92: =IF(N92=" "," ",(I92/H92*880*0.0333+0.24)/880*H92) -> 11.1 | S92: =R92*0.83 -> 9.2 | T92: =IF(N92=" "," ",(I92/H92*880*0.0069+0.53)/880*H92) -> 2.8 | U92: =T92*0.85 -> 2.4 | V92: 1.8 | W92: 4.0 | X92: =W92*0.5 -> 2.0 | Y92: 2.6 | Z92: 1.7 | AA92: 0.35 | AB92: 9.4 | AC92: =IF($I92=""," ",($I92/H92*880*0.0051+0.32)/880*H92) -> 2.0 | AD92: =AC92*0.81 -> 1.6 | AE92: 77 | AF92: 66 | AG92: 62 | AH92: =41*H92/1000 -> 36 | AI92: 267 | AJ92: 261 | AK92: 78.0 | AQ92: 148 | AR92: 934 | AS92: 267 | AT92: 327 | AU92: 87% | AV92: 89% | AW92: 64% | AX92: 80% | AY92: 93% | AZ92: =0.7*H92/1000 -> 0.62 | BA92: =103*H92/1000*K92/$K$92 -> 91 | BB92: =175*H92/1000*K92/$K$92 -> 154 | BC92: 0.20
A93: eigene Lupinen (blau) | B93: =IF(D93=""," ",COUNTA($D$8:D93)) -> 84 | D93: eigene Lupinen (blau) | J93: =IF(I93=0," ",I93*0.85) ->  | L93: =IF($I93=""," ",I93*0.0205*AV93+0.0398*AW93*AE93+0.0173*AF93+0.016*$AG93+0.0147*AI93) ->  | N93: =IF(I93=0," ",(I93/H93*880*0.0375+2.56)/880*H93) ->  | O93: =IF(N93=" "," ",N93*0.84) ->  | P93: =IF(N93=" "," ",(I93/H93*880*0.0331-3.93)/880*H93) ->  | Q93: =IF(N93=" "," ",P93*(1.8*0.81+4.4*0.91)/6.2) ->  | R93: =IF(N93=" "," ",(I93/H93*880*0.028+1.65)/880*H93) ->  | S93: =IF(N93=" "," ",R93*0.81) ->  | T93: =IF(N93=" "," ",(I93/H93*880*0.0069+0.53)/880*H93) ->  | U93: =IF(N93=" "," ",T93*0.85) ->  | V93: =IF($I93=0," ",V90*$H93/$H90) ->  | AC93: =IF($I93=""," ",($I93/H93*880*0.0045+0.6)/880*H93) ->  | AD93: =IF(AC93=" "," ",AC93*0.81) ->  | AI93: =IF($I93=""," ",(H93-AH93)*AU93-I93*AV93-AE93*AW93-AF93-AG93) ->  | AK93: =IF($I93=0," ",AK90*$H93/$H90) ->  | AS93: =IF($I93=0," ",AX93*K93+AY93*AT93-AF93-AG93) ->  | AU93: =IF($I93=0," ",AU90) ->  | AV93: =IF($I93=0," ",AV90) ->  | AW93: =IF($I93=0," ",AW90) ->  | AX93: =IF($I93=0," ",AX90) ->  | AY93: =IF($I93=0," ",AY90) ->  | AZ93: =IF($I93=0," ",AZ90*$H93/$H90) ->  | BA93: =IF($I93=0," ",BA92*$H93/$H92*K93/K92) ->  | BB93: =IF($I93=0," ",BB92*$H93/$H92*K93/K92) -> 
A94: Malzkeime 27% RP DLG 2005 | B94: =IF(D94=""," ",COUNTA($D$8:D94)) -> 85 | D94: Malzkeime | E94: 27 % RP | F94: DLG 2005 | H94: 920 | I94: 273 | J94: =I94*0.75 -> 205 | K94: 133 | L94: =I94*0.0205*AV94+0.0398*AW94*AE94+0.0173*AF94+0.016*$AG94+0.0147*AI94 -> 8.23 | M94: 9.92 | N94: =IF(I94=0," ",(I94/H94*880*0.0561-1.69)/880*H94) -> 13.5 | O94: =N94*0.71 -> 9.6 | P94: =IF(N94=" "," ",(I94/H94*880*0.0212+1.29)/880*H94) -> 7.1 | Q94: =P94*0.71 -> 5.1 | R94: =IF(N94=" "," ",(I94/H94*880*0.0331+0.19)/880*H94) -> 9.2 | S94: =R94*0.71 -> 6.6 | T94: =IF(N94=" "," ",(I94/H94*880*0.01-0.09)/880*H94) -> 2.6 | U94: =T94*0.71 -> 1.9 | V94: 2.7 | W94: 7.2 | X94: 1.8 | Y94: =W94*0.65 -> 4.7 | Z94: 1.6 | AA94: 0.57 | AB94: 16.9 | AC94: =IF($I94=""," ",($I94/H94*880*0.0124+0.46)/880*H94) -> 3.9 | AD94: =AC94*0.71 -> 2.7 | AE94: 10 | AF94: 42 | AG94: 128 | AH94: =70*H94/1000 -> 64 | AI94: =(H94-AH94)*AU94-I94*AV94-AE94*AW94-AF94-AG94 -> 186 | AJ94: 398 | AK94: 4.4 | AQ94: 160 | AR94: 815 | AS94: =AX94*K94+AY94*AT94-AF94-AG94 -> 189 | AT94: 440 | AU94: 57% | AV94: 48% | AW94: 11% | AX94: 35% | AY94: 71% | AZ94: =(0.93*23*AA94)/35.5+Z94 -> 1.94 | BA94: =63*H94/1000*K94/$K$94 -> 58 | BB94: =198*H94/1000*K94/$K$94 -> 182 | BC94: -4.67
A95: Magermilchpulver 35% RP DLG 2014 | B95: =IF(D95=""," ",COUNTA($D$8:D95)) -> 86 | D95: Magermilchpulver | E95: 35 % RP | F95: DLG 2014 | H95: 960 | I95: 350 | J95: =I95*0.95 -> 333 | K95: 0 | L95: =I95*0.0205*AV95+0.0398*AW95*AE95+0.0173*AF95+0.016*$AG95+0.0147*AI95 -> 15.01 | M95: 15.41 | N95: 26.9 | O95: =N95*0.97 -> 26.1 | P95: =8.6+2.9 -> 11.5 | Q95: =P95*(0.97*8.6+2.9*0.91)/11.5 -> 11.0 | R95: 15.4 | S95: =R95*0.93 -> 14.3 | T95: 4.7 | U95: =T95*0.91 -> 4.3 | V95: 13.0 | W95: 10.1 | X95: =W95*0.85 -> 8.6 | Y95: =X95 -> 8.6 | Z95: 1.2 | AA95: 5.20 | AB95: 15.2 | AC95: =IF($I95=""," ",($I95/H95*880*0.0374-4.57)/880*H95) -> 8.1 | AD95: =AC95*0.97 -> 7.9 | AE95: 5 | AF95: 0 | AG95: 470 | AH95: =83*H95/1000 -> 80 | AI95: =(H95-AH95)*AU95-I95*AV95-AE95*AW95-AF95-AG95 -> 41 | AJ95: 525 | AK95: 0.4 | AQ95: 155 | AR95: =IF(H95="","",V95/1000*20140+Z95/1000*48600+1300/430*I95) -> 1378 | AS95: =AX95*K95+AY95*AT95-AF95-AG95 -> 45 | AT95: 525 | AU95: 96% | AV95: 95% | AW95: 38% | AX95: 0% | AY95: 98% | AZ95: =17.6*H95/1000 -> 16.90 | BA95: =K95 -> 0 | BB95: =0*H95/1000 -> 0 | BC95: 1.73
A96: Rapsschrot-00Typ (RES) 36% RP DLG 2014 | B96: =IF(D96=""," ",COUNTA($D$8:D96)) -> 87 | D96: Rapsschrot-00Typ (RES) | E96: 36 % RP | F96: DLG 2014 | G96: 6 | H96: 890 | I96: 355 | J96: =I96*0.71 -> 252 | K96: 116 | L96: =I96*0.0205*AV96+0.0398*AW96*AE96+0.0173*AF96+0.016*$AG96+0.0147*AI96 -> 9.92 | M96: 10.82 | N96: =IF(I96=0," ",(I96/H96*880*0.0547+0.52)/880*H96) -> 19.9 | O96: =IF(N96=" "," ",N96*0.73) -> 14.6 | P96: =IF(N96=" "," ",(I96/H96*880*0.049-2.17)/880*H96) -> 15.2 | Q96: =IF(N96=" "," ",P96*0.82) -> 12.5 | R96: 15.1 | S96: =IF(N96=" "," ",R96*0.68) -> 10.3 | T96: 4.9 | U96: =IF(N96=" "," ",T96*0.72) -> 3.5 | V96: 7.7 | W96: 10.7 | X96: =W96*0.3 -> 3.2 | Y96: =W96*0.65 -> 7.0 | Z96: 5.3 | AA96: 0.50 | AB96: 11.7 | AC96: =IF($I96=""," ",($I96/H96*880*0.0169+0.87)/880*H96) -> 6.9 | AD96: =AC96*0.82 -> 5.6 | AE96: 27 | AF96: 0 | AG96: 71 | AH96: 69 | AI96: =(H96-AH96)*AU96-I96*AV96-AE96*AW96-AF96-AG96 -> 216 | AJ96: 323 | AK96: =AL96+AM96 -> 7.8 | AL96: =20*AE96/100 -> 5.4 | AM96: =9*AE96/100 -> 2.4 | AQ96: 315 | AR96: =IF(H96="","",V96/1000*20140+Z96/1000*48600+1100/440*I96) -> 1300 | AS96: =AX96*K96+AY96*AT96-AF96-AG96 -> 191 | AT96: 323 | AU96: 67% | AV96: 71% | AW96: 42% | AX96: 31% | AY96: 70% | AZ96: =0.3*H96/1000 -> 0.27 | BA96: 193 | BB96: 279 | BC96: -5.32
A97: eigenes Rapsschrot | B97: =IF(D97=""," ",COUNTA($D$8:D97)) -> 88 | D97: eigenes Rapsschrot | J97: =IF(I97=0," ",I97*0.71) ->  | L97: =IF($I97=""," ",I97*0.0205*AV97+0.0398*AW97*AE97+0.0173*AF97+0.016*$AG97+0.0147*AI97) ->  | N97: =IF(I97=0," ",(I97/H97*880*0.0547+0.52)/880*H97) ->  | O97: =IF(N97=" "," ",N97*0.73) ->  | P97: =IF(N97=" "," ",(I97/H97*880*0.049-2.17)/880*H97) ->  | Q97: =IF(N97=" "," ",P97*0.82) ->  | R97: =IF(N97=" "," ",(I97/H97*880*0.0245+6.2)/880*H97) ->  | S97: =IF(N97=" "," ",R97*0.68) ->  | T97: =IF(N97=" "," ",(I97/H97*880*0.0147-0.42)/880*H97) ->  | U97: =IF(N97=" "," ",T97*0.72) ->  | V97: =IF($I97=0," ",V96*$H97/$H96) ->  | AC97: =IF($I97=""," ",($I97/H97*880*0.0169+0.87)/880*H97) ->  | AD97: =IF(AC97=" "," ",AC97*0.82) ->  | AI97: =IF($I97=""," ",(H97-AH97)*AU97-I97*AV97-AE97*AW97-AF97-AG97) ->  | AK97: =IF($I97=0," ",AK96*$H97/$H96) ->  | AS97: =IF($I97=0," ",AX97*K97+AY97*AT97-AF97-AG97) ->  | AT97: =IF(H97=""," ",H97-I97-AE97-AH97-K97) ->  | AU97: =IF($I97=0," ",AU96) ->  | AV97: =IF($I97=0," ",AV96) ->  | AW97: =IF($I97=0," ",AW96) ->  | AX97: =IF($I97=0," ",AX96) ->  | AY97: =IF($I97=0," ",AY96) ->  | AZ97: =IF($I97=0," ",AZ96*$H97/$H96) ->  | BA97: =IF($I97=0," ",BA96*$H97/$H96*K97/K96) ->  | BB97: =IF($I97=0," ",BB96*$H97/$H96*K97/K96) -> 
A98: RES Ø RES-Monitoring 2005-2014 34% RP Ø BRD | B98: =IF(D98=""," ",COUNTA($D$8:D98)) -> 89 | D98: RES Ø RES-Monitoring 2005-2014 | E98: 34 % RP | F98: Ø BRD | H98: 889 | I98: 339 | J98: =I98*0.71 -> 241 | K98: 116 | L98: =I98*0.0205*AV98+0.0398*AW98*AE98+0.0173*AF98+0.016*$AG98+0.0147*AI98 -> 9.86 | M98: 10.71 | N98: 19.6 | O98: =IF(N98=" "," ",N98*0.73) -> 14.3 | P98: =7.9+7 -> 14.9 | Q98: =IF(N98=" "," ",P98*0.82) -> 12.2 | R98: 15.4 | S98: =IF(N98=" "," ",R98*0.68) -> 10.5 | T98: 4.8 | U98: =IF(N98=" "," ",T98*0.72) -> 3.5 | V98: 7.6 | W98: 10.5 | X98: =W98*0.3 -> 3.2 | Y98: =W98*0.65 -> 6.8 | Z98: 5.3 | AA98: 0.50 | AB98: 12.6 | AC98: 7.0 | AD98: =AC98*0.82 -> 5.7 | AE98: 28 | AF98: 0 | AG98: 71 | AH98: 69 | AI98: =IF($I98=""," ",(H98-AH98)*AU98-I98*AV98-AE98*AW98-AF98-AG98) -> 226 | AJ98: 337 | AK98: =AL98+AM98 -> 8.2 | AL98: =20*AE98/100 -> 5.6 | AM98: =9*AE98/100 -> 2.5 | AQ98: 351 | AR98: 1258 | AS98: =AX98*K98+AY98*AT98-AF98-AG98 -> 201 | AT98: 337 | AU98: 67% | AV98: 71% | AW98: 42% | AX98: 31% | AY98: 70% | AZ98: 0.20 | BA98: 206 | BB98: 255 | BC98: -4.88
A99: Rapskuchen > 20 % Fett 22% RP | B99: =IF(D99=""," ",COUNTA($D$8:D99)) -> 90 | D99: Rapskuchen > 20 % Fett | E99: 22 % RP | G99: 1 | H99: 900 | I99: 220 | J99: =I99*0.85 -> 187 | K99: 96 | L99: =I99*0.0205*AV99+0.0398*AW99*AE99+0.0173*AF99+0.016*$AG99+0.0147*AI99 -> 15.19 | M99: 14.44 | N99: 13.8 | O99: =N99*0.74 -> 10.2 | P99: 11.6 | Q99: =P99*(6.3*0.81+7.2*0.7)/13.5 -> 8.7 | R99: 10.1 | S99: =R99*0.71 -> 7.2 | T99: 3.0 | U99: =T99*0.71 -> 2.1 | V99: 5.0 | W99: 9.3 | X99: =W99*0.35 -> 3.3 | Y99: 6.0 | Z99: 3.3 | AA99: 0.10 | AB99: 8.5 | AC99: =IF($I99=""," ",$I99*0.0195-0.01) -> 4.3 | AD99: =AC99*0.81 -> 3.5 | AE99: 214 | AF99: 0 | AG99: 75 | AH99: 45 | AI99: =(H99-AH99)*AU99-I99*AV99-AE99*AW99-AF99-AG99 -> 226 | AJ99: 325 | AK99: 62.1 | AL99: =20*AE99/100 -> 42.8 | AM99: =9*AE99/100 -> 19.3 | AQ99: 39 | AR99: 809 | AS99: =AX99*K99+AY99*AT99-AF99-AG99 -> 234 | AT99: 325 | AU99: 76% | AV99: 76% | AW99: 85% | AX99: 44% | AY99: 82% | AZ99: =0.3*H99/1000 -> 0.27 | BA99: 198 | BB99: 288 | BC99: 12.22
A100: Rapskuchen 16 - 20 % Fett 27% RP | B100: =IF(D100=""," ",COUNTA($D$8:D100)) -> 91 | D100: Rapskuchen 16 - 20 % Fett | E100: 27 % RP | G100: 33 | H100: 900 | I100: 267 | J100: =I100*0.85 -> 227 | K100: 112 | L100: =I100*0.0205*AV100+0.0398*AW100*AE100+0.0173*AF100+0.016*$AG100+0.0147*AI100 -> 14.43 | M100: 13.33 | N100: 16.9 | O100: =N100*0.74 -> 12.5 | P100: 14.0 | Q100: =P100*(6.3*0.81+7.2*0.7)/13.5 -> 10.5 | R100: 12.3 | S100: =R100*0.71 -> 8.7 | T100: 3.6 | U100: =T100*0.71 -> 2.6 | V100: 6.0 | W100: 11.3 | X100: =W100*0.35 -> 3.9 | Y100: 7.3 | Z100: 4.0 | AA100: 0.10 | AB100: 10.3 | AC100: =IF($I100=""," ",$I100*0.0195-0.01) -> 5.2 | AD100: =AC100*0.81 -> 4.2 | AE100: 174 | AF100: 0 | AG100: 75 | AH100: 55 | AI100: =(H100-AH100)*AU100-I100*AV100-AE100*AW100-AF100-AG100 -> 216 | AJ100: 292 | AK100: 50.5 | AL100: =20*AE100/100 -> 34.8 | AM100: =9*AE100/100 -> 15.7 | AQ100: 48 | AR100: 981 | AS100: =AX100*K100+AY100*AT100-AF100-AG100 -> 214 | AT100: 292 | AU100: 76% | AV100: 76% | AW100: 85% | AX100: 44% | AY100: 82% | AZ100: =0.3*H100/1000 -> 0.27 | BA100: 198 | BB100: 288 | BC100: 7.23
A101: Rapskuchen 12 - 16 % Fett 28% RP | B101: =IF(D101=""," ",COUNTA($D$8:D101)) -> 92 | D101: Rapskuchen 12 - 16 % Fett | E101: =IF(I101=0," ",ROUND(I101/10,0)) -> 28 % RP | G101: 42 | H101: 900 | I101: 280 | J101: =I101*0.85 -> 238 | K101: 108 | L101: =I101*0.0205*AV101+0.0398*AW101*AE101+0.0173*AF101+0.016*$AG101+0.0147*AI101 -> 13.69 | M101: 12.89 | N101: 17.4 | O101: =N101*0.74 -> 12.9 | P101: 14.6 | Q101: =P101*(6.3*0.81+7.2*0.7)/13.5 -> 10.9 | R101: 12.8 | S101: =R101*0.71 -> 9.1 | T101: 3.8 | U101: =T101*0.71 -> 2.7 | V101: 6.3 | W101: 11.7 | X101: =W101*0.35 -> 4.1 | Y101: 7.6 | Z101: 4.1 | AA101: 0.10 | AB101: 10.7 | AC101: =IF($I101=""," ",$I101*0.0195-0.01) -> 5.5 | AD101: =AC101*0.81 -> 4.4 | AE101: 138 | AF101: 0 | AG101: 75 | AH101: 57 | AI101: =IF($I101=""," ",(H101-AH101)*AU101-I101*AV101-AE101*AW101-AF101-AG101) -> 236 | AJ101: 317 | AK101: 40.0 | AL101: =20*AE101/100 -> 27.6 | AM101: =9*AE101/100 -> 12.4 | AQ101: 50 | AR101: 1026 | AS101: =AX101*K101+AY101*AT101-AF101-AG101 -> 232 | AT101: =IF(H101=""," ",H101-I101-AE101-AH101-K101) -> 317 | AU101: 76% | AV101: 76% | AW101: 85% | AX101: 44% | AY101: 82% | AZ101: =0.3*H101/1000 -> 0.27 | BA101: 198 | BB101: 288 | BC101: 4.73
A102: Rapskuchen 8 - 12 % Fett 30% RP | B102: =IF(D102=""," ",COUNTA($D$8:D102)) -> 93 | D102: Rapskuchen 8 - 12 % Fett | E102: 30 % RP | G102: 24 | H102: 900 | I102: 299 | J102: =I102*0.85 -> 254 | K102: 114 | L102: =I102*0.0205*AV102+0.0398*AW102*AE102+0.0173*AF102+0.016*$AG102+0.0147*AI102 -> 13.09 | M102: 12.21 | N102: 18.7 | O102: =N102*0.74 -> 13.9 | P102: 15.7 | Q102: =P102*(6.3*0.81+7.2*0.7)/13.5 -> 11.8 | R102: 13.7 | S102: =R102*0.71 -> 9.8 | T102: 4.0 | U102: =T102*0.71 -> 2.9 | V102: 6.7 | W102: 12.6 | X102: =W102*0.35 -> 4.4 | Y102: 8.2 | Z102: 4.4 | AA102: 0.10 | AB102: 11.5 | AC102: =IF($I102=""," ",$I102*0.0195-0.01) -> 5.8 | AD102: =AC102*0.81 -> 4.7 | AE102: 108 | AF102: 0 | AG102: 75 | AH102: 61 | AI102: =(H102-AH102)*AU102-I102*AV102-AE102*AW102-AF102-AG102 -> 244 | AJ102: 318 | AK102: 31.3 | AL102: =20*AE102/100 -> 21.6 | AM102: =9*AE102/100 -> 9.7 | AQ102: 54 | AR102: 1098 | AS102: =AX102*K102+AY102*AT102-AF102-AG102 -> 236 | AT102: =IF(H102=""," ",H102-I102-AE102-AH102-K102) -> 318 | AU102: 76% | AV102: 76% | AW102: 85% | AX102: 44% | AY102: 82% | AZ102: =0.3*H102/1000 -> 0.27 | BA102: 198 | BB102: 288 | BC102: 1.81
A103: =IF(E103=" ",D103&" "&F103,D103&" "&E103&"% RP "&F103) -> Sojabohne (dampferhitzt) 36% RP DLG 2014 | B103: =IF(D103=""," ",COUNTA($D$8:D103)) -> 94 | D103: Sojabohne (dampferhitzt) | E103: 36 % RP | F103: DLG 2014 | H103: 890 | I103: 356 | J103: =IF(I103=0," ",I103*0.76) -> 271 | K103: 55 | L103: =IF($I103=""," ",I103*0.0205*AV103+0.0398*AW103*AE103+0.0173*AF103+0.016*$AG103+0.0147*AI103) -> 15.76 | M103: 16.15 | N103: =IF(I103=0," ",(I103/H103*880*0.0523+4.14)/880*H103) -> 22.8 | O103: =IF(N103=" "," ",N103*0.8) -> 18.2 | P103: =IF(N103=" "," ",(I103/H103*880*0.0274+0.33)/880*H103) -> 10.1 | Q103: =IF(N103=" "," ",P103*(4.8*0.78+5.3*0.75)/10.1) -> 7.7 | R103: =IF(N103=" "," ",(I103/H103*880*0.035+1.52)/880*H103) -> 14.0 | S103: =IF(N103=" "," ",R103*0.74) -> 10.4 | T103: =IF(N103=" "," ",(I103/H103*880*0.0136-0.13)/880*H103) -> 4.7 | U103: =IF(N103=" "," ",T103*0.76) -> 3.6 | V103: =2.8*H103/1000 -> 2.5 | W103: 5.8 | X103: =W103*0.4 -> 2.3 | Y103: =IF($H103=0," ",W103*0.65) -> 3.8 | Z103: 2.5 | AA103: 0.20 | AB103: 14.7 | AC103: =IF($I103=""," ",($I103/H103*880*0.013+0.19)/880*H103) -> 4.8 | AD103: =IF(AC103=" "," ",AC103*0.78) -> 3.8 | AE103: 181 | AF103: 52 | AG103: 71 | AH103: =53*H103/1000 -> 47 | AI103: =IF($I103=""," ",(H103-AH103)*AU103-I103*AV103-AE103*AW103-AF103-AG103) -> 159 | AJ103: 199 | AK103: =116.5*935/1000 -> 108.9 | AL103: =54*AE103/100 -> 97.7 | AM103: =4*AE103/100 -> 7.2 | AN103: =IF($I103=0," ",AN102*$H103/$H102) -> 0 | AO103: =IF($I103=0," ",AO102*$H103/$H102) -> 0 | AP103: =IF($I103=0," ",AP102*$H103/$H102) -> 0 | AQ103: 230 | AR103: 1062 | AS103: =IF($I103=0," ",AX103*K103+AY103*AT103-AF103-AG103) -> 129 | AT103: =IF(H103=""," ",H103-I103-AE103-AH103-K103) -> 251 | AU103: =IF($I103=0," ",83%) -> 83% | AV103: 76% | AW103: =IF($I103=0," ",81%) -> 81% | AX103: =IF($I103=0," ",66%) -> 66% | AY103: =IF($I103=0," ",86%) -> 86% | AZ103: =0.8*H103/1000 -> 0.71 | BA103: 138 | BB103: 168 | BC103: 10.30
A104: Sojakuchen / Expeller, Bioland 42% RP | B104: =IF(D104=""," ",COUNTA($D$8:D104)) -> 95 | D104: Sojakuchen / Expeller, Bioland | E104: 42 % RP | H104: 910 | I104: 420 | J104: =IF(I104=0," ",I104*0.87) -> 365 | K104: 60 | L104: =I104*0.0205*AV104+0.0398*AW104*AE104+0.0173*AF104+0.016*$AG104+0.0147*AI104 -> 14.40 | M104: 14.72 | N104: =IF(I104=0," ",(I104/H104*880*0.0685-3.28)/880*H104) -> 25.4 | O104: =IF(N104=" "," ",N104*0.89) -> 22.6 | P104: =IF(N104=" "," ",(I104/H104*880*0.0252+1.38)/880*H104) -> 12.0 | Q104: =IF(N104=" "," ",P104*(6.1*0.9+8.9*0.83)/15) -> 10.3 | R104: =IF(N104=" "," ",(I104/H104*880*0.034+2.11)/880*H104) -> 16.5 | S104: =IF(N104=" "," ",R104*0.85) -> 14.0 | T104: =IF(N104=" "," ",(I104/H104*880*0.0102+1.32)/880*H104) -> 5.6 | U104: =IF(N104=" "," ",T104*0.88) -> 5.0 | V104: 2.5 | W104: 5.6 | X104: =W104*0.4 -> 2.2 | Y104: =IF($H104=0," ",W104*0.65) -> 3.6 | Z104: 2.5 | AA104: 0.40 | AB104: 14.7 | AC104: =IF($I104=""," ",($I104/H104*880*0.0121+0.68)/880*H104) -> 5.8 | AD104: =AC104*0.88 -> 5.1 | AE104: 80 | AF104: 55 | AG104: 105 | AH104: 60 | AI104: =(H104-AH104)*AU104-I104*AV104-AE104*AW104-AF104-AG104 -> 115 | AJ104: 235 | AK104: 46.4 | AL104: =54*AE104/100 -> 43.2 | AM104: =4*AE104/100 -> 3.2 | AQ104: 218 | AR104: 1222 | AS104: =AX104*K104+AY104*AT104-AF104-AG104 -> 158 | AT104: 290 | AU104: 83% | AV104: 87% | AW104: 81% | AX104: 81% | AY104: 93% | AZ104: =1.1*H104/1000 -> 1.00 | BA104: =91*H104/1000*K104/$K$108 -> 139 | BB104: =152.4*H104/1000*K104/$K$108 -> 233 | BC104: 1.75
A105: =IF(E105=" ",D105&" "&F105,D105&" "&E105&"% RP "&F105) -> Sojakuchen 41% RP DLG 2014 | B105: =IF(D105=""," ",COUNTA($D$8:D105)) -> 96 | D105: Sojakuchen | E105: =IF(I105=0," ",ROUND(I105/10,0)) -> 41 % RP | F105: DLG 2014 | H105: 890 | I105: 405 | J105: =IF(I105=0," ",I105*0.87) -> 352 | K105: 53 | L105: =I105*0.0205*AV105+0.0398*AW105*AE105+0.0173*AF105+0.016*$AG105+0.0147*AI105 -> 14.19 | M105: =IF(I105=""," ",$I105*0.021503+0.032497*$AE105+0.016309*$AF105+0.014701*$AJ105-0.021071*$K105) -> 14.74 | N105: =IF(I105=0," ",(I105/H105*880*0.0685-3.28)/880*H105) -> 24.4 | O105: =IF(N105=" "," ",N105*0.86) -> 21.0 | P105: =IF(N105=" "," ",(I105/H105*880*0.0252+1.38)/880*H105) -> 11.6 | Q105: =IF(N105=" "," ",P105*(6.1*0.9+8.9*0.83)/15) -> 10.0 | R105: =IF(N105=" "," ",(I105/H105*880*0.034+2.11)/880*H105) -> 15.9 | S105: =IF(N105=" "," ",R105*0.85) -> 13.5 | T105: =IF(N105=" "," ",(I105/H105*880*0.0102+1.32)/880*H105) -> 5.5 | U105: =IF(N105=" "," ",T105*0.88) -> 4.8 | V105: 2.7 | W105: 6.1 | X105: =W105*0.4 -> 2.4 | Y105: =IF($H105=0," ",W105*0.65) -> 4.0 | Z105: 2.6 | AA105: 0.20 | AB105: 14.7 | AC105: =IF($I105=""," ",($I105/H105*880*0.0121+0.68)/880*H105) -> 5.6 | AD105: =AC105*0.88 -> 4.9 | AE105: 87 | AF105: 53 | AG105: 62 | AH105: 57 | AI105: 154 | AJ105: 235 | AK105: =AL105+AM105 -> 50.5 | AL105: =54*AE105/100 -> 47.0 | AM105: =4*AE105/100 -> 3.5 | AQ105: =IF(H105="","",50*V105+83*Z105+26*AB105+44*AA105-59*W105-13*P105-28*AZ105) -> 204 | AR105: =IF(H105="","",V105/1000*20140+Z105/1000*48600+1100/440*I105) -> 1193 | AS105: =AX105*K105+AY105*AT105-AF105-AG105 -> 196 | AT105: 288 | AU105: 83% | AV105: 87% | AW105: 81% | AX105: 81% | AY105: 93% | AZ105: =1.1*H105/1000 -> 0.98 | BA105: =91*H105/1000*K105/$K$108 -> 120 | BB105: =152.4*H105/1000*K105/$K$108 -> 201 | BC105: 2.83
A106: Sojaschrot HP 49% RP | B106: =IF(D106=""," ",COUNTA($D$8:D106)) -> 97 | D106: Sojaschrot HP | E106: 49 % RP | G106: 12 | H106: 890 | I106: 485 | J106: =I106*0.82 -> 398 | K106: 44 | L106: 13.96 | M106: =IF(I106=""," ",$I106*0.021503+0.032497*$AE106+0.016309*$AF106+0.014701*$AJ106-0.021071*$K106) -> 14.32 | N106: =IF(I106=0," ",(I106/H106*880*0.0523+4.14)/880*H106) -> 29.6 | O106: =IF(N106=" "," ",N106*0.87) -> 25.7 | P106: =IF(N106=" "," ",(I106/H106*880*0.0274+0.33)/880*H106) -> 13.6 | Q106: =IF(N106=" "," ",P106*(6.2*0.88+6.8*0.79)/13) -> 11.3 | R106: =IF(N106=" "," ",(I106/H106*880*0.0339+2.43)/880*H106) -> 18.9 | S106: =IF(N106=" "," ",R106*0.86) -> 16.3 | T106: =IF(N106=" "," ",(I106/H106*880*0.0109+1.23)/880*H106) -> 6.5 | U106: =IF(N106=" "," ",T106*0.86) -> 5.6 | V106: =IF($I106=0," ",IF(I106>459.99,$V$108*$I$108/$I106,$V$112*$I$112/$I106)) -> 3.1 | W106: =IF($I106=0," ",IF(I106>459.99,$W$108*$I106/$I$108,$W$112*$I106/$I$112)) -> 6.9 | X106: =W106*0.4 -> 2.8 | Y106: 4.5 | Z106: =IF($I106=0," ",IF(I106>459.99,$Z$108*$I$108/$I106,$Z$112*$I$112/$I106)) -> 2.7 | AA106: =IF($I106=0," ",IF(I106>459.99,$AA$108*$I$108/$I106,$AA$112*$I$112/$I106)) -> 0.17 | AB106: =IF($I106=0," ",IF(I106>459.99,$AB$108*$I106/$I$108,$AB$112*$I106/$I$112)) -> 21.1 | AC106: =IF($I106=""," ",($I106/H106*880*0.013+0.19)/880*H106) -> 6.5 | AD106: 5.7 | AE106: 25 | AF106: 44 | AG106: 88 | AH106: 68 | AI106: 227 | AJ106: =IF($I106=""," ",$H106-($AE106+$AF106+$AH106+$I106+$K106)) -> 224 | AK106: 13.5 | AL106: =50*AE106/100 -> 12.5 | AM106: 1.0 | AQ106: 339 | AR106: 1408 | AS106: 155 | AT106: 268 | AU106: 93% | AV106: 82% | AW106: 30% | AX106: 61% | AY106: 97% | AZ106: =0.57*H106/1000 -> 0.51 | BA106: =$BA$107/$H$107*H106*K106/$K$107 -> 79 | BB106: =$BB$107/$H$107*H106*K106/$K$107 -> 109 | BC106: -2.89
A107: =IF(E107=" ",D107&" "&F107,D107&" "&E107&"% RP "&F107) -> Sojaschrot HP 48% RP DLG 2014 | B107: =IF(D107=""," ",COUNTA($D$8:D107)) -> 98 | D107: Sojaschrot HP | E107: =IF(I107=0," ",ROUND(I107/10,0)) -> 48 % RP | F107: DLG 2014 | G107: 6 | H107: 880 | I107: 480 | J107: 394 | K107: 35 | L107: =I107*0.0205*AV107+0.0398*AW107*AE107+0.0173*AF107+0.016*$AG107+0.0147*AI107 -> 13.89 | M107: =IF(I107=""," ",$I107*0.021503+0.032497*$AE107+0.016309*$AF107+0.014701*$AJ107-0.021071*$K107) -> 14.41 | N107: =IF(I107=0," ",(I107/H107*880*0.0523+4.14)/880*H107) -> 29.2 | O107: =IF(N107=" "," ",N107*0.87) -> 25.4 | P107: =IF(N107=" "," ",(I107/H107*880*0.0274+0.33)/880*H107) -> 13.5 | Q107: 11.2 | R107: =IF(N107=" "," ",(I107/H107*880*0.0339+2.43)/880*H107) -> 18.7 | S107: 16.1 | T107: =IF(N107=" "," ",(I107/H107*880*0.0109+1.23)/880*H107) -> 6.5 | U107: =T107*0.86 -> 5.6 | V107: 2.8 | W107: 6.6 | X107: 2.6 | Y107: =W107*0.65 -> 4.3 | Z107: 2.8 | AA107: 0.16 | AB107: 21.6 | AC107: =IF($I107=""," ",($I107/H107*880*0.013+0.19)/880*H107) -> 6.4 | AD107: =AC107*0.88 -> 5.7 | AE107: 13 | AF107: 59 | AG107: 100 | AH107: =67*H107/1000 -> 59 | AI107: 207 | AJ107: =IF($I107=""," ",$H107-($AE107+$AF107+$AH107+$I107+$K107)) -> 234 | AK107: 7.0 | AL107: 6.5 | AM107: 0.5 | AQ107: =IF(H107="","",50*V107+83*Z107+26*AB107+44*AA107-59*W107-13*P107-28*AZ107) -> 362 | AR107: =IF(H107="","",V107/1000*20140+Z107/1000*48600+1100/440*I107) -> 1392 | AS107: =AX107*K107+AY107*AT107-AF107-AG107 -> 147 | AT107: 293 | AU107: 93% | AV107: 82% | AW107: 30% | AX107: 61% | AY107: 97% | AZ107: =0.57*H107/1000 -> 0.50 | BA107: 62 | BB107: 86 | BC107: -2.76
A108: Sojaschrot HP 47% RP DLG FuDb | B108: =IF(D108=""," ",COUNTA($D$8:D108)) -> 99 | D108: Sojaschrot HP | E108: 47 % RP | F108: DLG FuDb | H108: 890 | I108: =532.2*H108/1000 -> 474 | J108: 388 | K108: =40.11*H108/1000 -> 36 | L108: 13.98 | M108: 14.50 | N108: 29.0 | O108: 25.2 | P108: 13.3 | Q108: 11.1 | R108: 18.5 | S108: 15.9 | T108: 6.4 | U108: 5.5 | V108: =3.55*H108/1000 -> 3.2 | W108: =7.59*H108/1000 -> 6.8 | X108: 2.7 | Y108: 4.4 | Z108: 2.8 | AA108: =0.19*$H$108/1000 -> 0.17 | AB108: =23.2*$H$108/1000 -> 20.6 | AC108: 6.3 | AD108: 5.6 | AE108: =18*0.89 -> 16 | AF108: =64*0.89 -> 57 | AG108: =114*0.89 -> 101 | AH108: =69*0.89 -> 61 | AI108: 219 | AJ108: 246 | AK108: 8.7 | AL108: 8.0 | AM108: 0.6 | AQ108: 349 | AR108: 1384 | AS108: 157 | AT108: 303 | AU108: 93% | AV108: 82% | AW108: 30% | AX108: 61% | AY108: 97% | AZ108: 0.51 | BA108: =$BA$107/$H$107*H108*K108/$K$107 -> 64 | BB108: =$BB$107/$H$107*H108*K108/$K$107 -> 89 | BC108: -2.40
A109: Sojaschrot HP 47% RP | B109: =IF(D109=""," ",COUNTA($D$8:D109)) -> 100 | D109: Sojaschrot HP | E109: 47 % RP | G109: 26 | H109: 890 | I109: 470 | J109: 385 | K109: 52 | L109: 13.86 | M109: 13.84 | N109: 28.8 | O109: 25.0 | P109: 13.2 | Q109: 11.0 | R109: 18.4 | S109: 15.8 | T109: 6.4 | U109: 5.5 | V109: =IF($I109=0," ",IF(I109>459.99,$V$108*$I$108/$I109,$V$112*$I$112/$I109)) -> 3.2 | W109: =IF($I109=0," ",IF(I109>459.99,$W$108*$I109/$I$108,$W$112*$I109/$I$112)) -> 6.7 | X109: 2.7 | Y109: =IF($I109=0," ",W109*0.65) -> 4.4 | Z109: =IF($I109=0," ",IF(I109>459.99,$Z$108*$I$108/$I109,$Z$112*$I$112/$I109)) -> 2.8 | AA109: =0.19*$H$108/1000 -> 0.17 | AB109: =23.2*$H$108/1000 -> 20.6 | AC109: 6.3 | AD109: 5.5 | AE109: 19 | AF109: 42 | AG109: 91 | AH109: 67 | AI109: 241 | AJ109: 240 | AK109: 10.3 | AL109: 9.5 | AM109: 0.8 | AQ109: 356 | AR109: 1376 | AS109: 172 | AT109: 282 | AU109: 93% | AV109: 82% | AW109: 30% | AX109: 61% | AY109: 97% | AZ109: 0.51 | BA109: =$BA$107/$H$107*H109*K109/$K$107 -> 93 | BB109: =$BB$107/$H$107*H109*K109/$K$107 -> 129 | BC109: -3.51
A110: Sojaschrot HP 46% RP | B110: =IF(D110=""," ",COUNTA($D$8:D110)) -> 101 | D110: Sojaschrot HP | E110: 46 % RP | G110: 29 | H110: 890 | I110: 459 | J110: 376 | K110: 47 | L110: 13.84 | M110: 13.97 | N110: 28.2 | O110: 24.5 | P110: 12.9 | Q110: 10.8 | R110: 18.0 | S110: 15.5 | T110: 6.2 | U110: 5.4 | V110: =IF($I110=0," ",IF(I110>459.99,$V$108*$I$108/$I110,$V$112*$I$112/$I110)) -> 3.1 | W110: =IF($I110=0," ",IF(I110>459.99,$W$108*$I110/$I$108,$W$112*$I110/$I$112)) -> 6.8 | X110: 2.7 | Y110: =IF($I110=0," ",W110*0.65) -> 4.4 | Z110: =IF($I110=0," ",IF(I110>459.99,$Z$108*$I$108/$I110,$Z$112*$I$112/$I110)) -> 2.7 | AA110: =0.19*$H$108/1000 -> 0.17 | AB110: =23.2*$H$108/1000 -> 20.6 | AC110: 6.2 | AD110: 5.4 | AE110: 20 | AF110: 49 | AG110: 97 | AH110: 67 | AI110: =IF($I110=""," ",(H110-AH110)*AU110-I110*AV110-AE110*AW110-AF110-AG110) -> 237 | AJ110: 248 | AK110: 10.8 | AL110: 10.0 | AM110: 0.8 | AQ110: 345 | AR110: 1343 | AS110: 171 | AT110: 297 | AU110: 93% | AV110: 82% | AW110: 30% | AX110: 61% | AY110: 97% | AZ110: 0.51 | BA110: =$BA$107/$H$107*H110*K110/$K$107 -> 84 | BB110: =$BB$107/$H$107*H110*K110/$K$107 -> 117 | BC110: -2.74
A111: =IF(E111=" ",D111&" "&F111,D111&" "&E111&"% RP "&F111) -> Sojaschrot GVO-frei, Brasil 45% RP | B111: =IF(D111=""," ",COUNTA($D$8:D111)) -> 102 | D111: Sojaschrot GVO-frei, Brasil | E111: =IF(I111=0," ",ROUND(I111/10,0)) -> 45 % RP | H111: 870 | I111: 448 | J111: 367 | K111: =69.4*0.89 -> 62 | L111: 13.63 | M111: 13.27 | N111: 27.5 | O111: =IF(N111=" "," ",N111*0.87) -> 23.9 | P111: =IF(N111=" "," ",(I111/H111*880*0.0274+0.33)/880*H111) -> 12.6 | Q111: 10.5 | R111: 17.6 | S111: 15.1 | T111: 6.1 | U111: =IF(N111=" "," ",T111*0.86) -> 5.2 | V111: 2.9 | W111: 5.5 | X111: 2.2 | Y111: =IF($I111=0," ",W111*0.65) -> 3.6 | Z111: 2.8 | AA111: =0.26*0.89 -> 0.23 | AB111: =22.95*0.89 -> 20.4 | AC111: =IF($I111=""," ",($I111/H111*880*0.013+0.19)/880*H111) -> 6.0 | AD111: =AC111*0.88 -> 5.3 | AE111: 22 | AF111: 44 | AG111: 67 | AH111: 56 | AI111: =(H111-AH111)*AU111-I111*AV111-AE111*AW111-AF111-AG111 -> 272 | AJ111: 238 | AK111: 11.9 | AL111: 11.0 | AM111: 0.9 | AQ111: 416 | AR111: 1314 | AS111: 192 | AT111: 282 | AU111: 93% | AV111: 82% | AW111: 30% | AX111: 61% | AY111: 94% | AZ111: 0.50 | BA111: =$BA$107/$H$107*H111*K111/$K$107 -> 108 | BB111: =$BB$107/$H$107*H111*K111/$K$107 -> 150 | BC111: -3.52
A112: Sojaschrot 45% RP DLG FuDb | B112: =IF(D112=""," ",COUNTA($D$8:D112)) -> 103 | D112: Sojaschrot | E112: 45 % RP | F112: DLG FuDb | H112: 890 | I112: =501.6*0.89 -> 446 | J112: 366 | K112: =69.4*0.89 -> 62 | L112: 13.17 | M112: 13.37 | N112: 27.5 | O112: 24.0 | P112: 12.6 | Q112: =IF(N112=" "," ",P112*0.86) -> 10.8 | R112: 17.6 | S112: =IF(N112=" "," ",R112*0.86) -> 15.1 | T112: 6.1 | U112: 5.3 | V112: =3.618*0.895 -> 3.2 | W112: =7.43*0.89 -> 6.6 | X112: 2.6 | Y112: =IF($I112=0," ",W112*0.65) -> 4.3 | Z112: 2.8 | AA112: =0.26*0.89 -> 0.23 | AB112: =22.95*0.89 -> 20.4 | AC112: 6.0 | AD112: 5.3 | AE112: =17.67*0.89 -> 16 | AF112: =67.86*0.89 -> 60 | AG112: =108.6*0.89 -> 97 | AH112: =69.82*0.89 -> 62 | AI112: =(H112-AH112)*AU112-I112*AV112-AE112*AW112-AF112-AG112 -> 190 | AJ112: 244 | AK112: 8.5 | AL112: 7.9 | AM112: 0.6 | AQ112: 368 | AR112: 1317 | AS112: 173 | AT112: 304 | AU112: 87% | AV112: 82% | AW112: 44% | AX112: 72% | AY112: 94% | AZ112: 0.51 | BA112: =91*H112/1000*K112/$K$108 -> 140 | BB112: =152.4*H112/1000*K112/$K$108 -> 235 | BC112: -3.50
A113: eigenes Sojaschrot | B113: =IF(D113=""," ",COUNTA($D$8:D113)) -> 104 | D113: eigenes Sojaschrot | J113: =IF(I113=0," ",I113*0.82) ->  | L113: =IF($I113=""," ",I113*0.0205*AV113+0.0398*AW113*AE113+0.0173*AF113+0.016*$AG113+0.0147*AI113) ->  | Q113: =IF(N113=" "," ",P113*(5.9*0.88+6.8*0.79)/12.7) ->  | V113: =IF($I113=0," ",IF(I113>459.99,$V$108*$I$108/$I113*$H$113/$H$108,$V$112*$I$112/$I113*$H$113/$H$112)) ->  | W113: =IF($I113=0," ",IF(I113>459.99,$W$108*$I113/$I$108*$H$113/$H$108,$W$112*$I113/I$112*H$113/H$112)) ->  | X113: =IF($I113=0," ",W113*0.4) ->  | Z113: =IF($I113=0," ",IF(I113>459.99,$Z$108*$I$108/$I113*$H$113/$H$108,$Z$112*$I$112/$I113*$H$113/$H$112)) ->  | AA113: =IF($I113=0," ",IF(I113>459.99,$AA$108*$I$108/$I113*$H$113/$H$108,$AA$112*$I$112/$I113*$H$113/$H$112)) ->  | AB113: =IF($I113=0," ",IF(I113>459.99,$AB$108*$I113/$I$108*$H$113/$H$108,$AB$112*$I113/$I$112*$H$113/$H$112)) ->  | AD113: =IF(AC113=" "," ",AC113*0.88) ->  | AI113: =IF($I113=""," ",(H113-AH113)*AU113-I113*AV113-AE113*AW113-AF113-AG113) ->  | AK113: =IF($I113=0," ",AK112*$H113/$H112) ->  | AS113: =IF($I113=0," ",AX113*K113+AY113*AT113-AF113-AG113) ->  | AT113: =IF(H113=""," ",H113-I113-AE113-AH113-K113) ->  | AU113: =IF($I113=0," ",AU112) ->  | AV113: =IF($I113=0," ",AV112) ->  | AW113: =IF($I113=0," ",AW112) ->  | AX113: =IF($I113=0," ",AX112) ->  | AY113: =IF($I113=0," ",AY112) ->  | AZ113: =IF($I113=0," ",AZ112*$H113/$H112) ->  | BA113: =IF($I113=0," ",$BA$115*$H113/$H$115*K113/$K$115) ->  | BB113: =IF($I113=0," ",$BB$115*$H113/$H$115*K113/$K$115) -> 
A114: Sojaschrot 44% RP | B114: =IF(D114=""," ",COUNTA($D$8:D114)) -> 105 | D114: Sojaschrot | E114: 44 % RP | G114: 14 | H114: 890 | I114: 440 | J114: =I114*0.82 -> 361 | K114: 67 | L114: =I114*0.0205*AV114+0.0398*AW114*AE114+0.0173*AF114+0.016*$AG114+0.0147*AI114 -> 13.15 | M114: 13.23 | N114: 27.2 | O114: 23.7 | P114: 12.4 | Q114: =IF(N114=" "," ",P114*(5.9*0.88+6.8*0.79)/12.7) -> 10.3 | R114: 17.4 | S114: 14.9 | T114: 6.0 | U114: 5.2 | V114: 3.1 | W114: 6.1 | X114: =W114*0.4 -> 2.4 | Y114: 4.0 | Z114: =IF($I114=0," ",IF(I114>459.99,$Z$108*$I$108/$I114,$Z$112*$I$112/$I114)) -> 2.8 | AA114: 0.15 | AB114: 20.4 | AC114: 5.9 | AD114: =AC114*0.88 -> 5.2 | AE114: 23 | AF114: 49 | AG114: 90 | AH114: 64 | AI114: =(H114-AH114)*AU114-I114*AV114-AE114*AW114-AF114-AG114 -> 209 | AJ114: 247 | AK114: =AL114+AM114 -> 12.4 | AL114: =50*AE114/100 -> 11.5 | AM114: =4*AE114/100 -> 0.9 | AQ114: 393 | AR114: 1301 | AS114: =AX114*K114+AY114*AT114-AF114-AG114 -> 187 | AT114: 296 | AU114: 87% | AV114: 82% | AW114: 44% | AX114: 72% | AY114: 94% | AZ114: =0.57*H114/1000 -> 0.51 | BA114: =$BA$115/$H$115*H114*K114/$K$115 -> 120 | BB114: =$BB$115/$H$115*H114*K114/$K$115 -> 189 | BC114: -3.41
A115: =IF(E115=" ",D115&" "&F115,D115&" "&E115&"% RP "&F115) -> Sojaschrot 44% RP DLG 2014 | B115: =IF(D115=""," ",COUNTA($D$8:D116)) -> 107 | D115: Sojaschrot | E115: =IF(I115=0," ",ROUND(I115/10,0)) -> 44 % RP | F115: DLG 2014 | H115: 880 | I115: 440 | J115: 361 | K115: 60 | L115: =I115*0.0205*AV115+0.0398*AW115*AE115+0.0173*AF115+0.016*$AG115+0.0147*AI115 -> 13.00 | M115: =IF(I115=""," ",$I115*0.021503+0.032497*$AE115+0.016309*$AF115+0.014701*$AJ115-0.021071*$K115) -> 13.23 | N115: =IF(I115=0," ",(I115/H115*880*0.0523+4.14)/880*H115) -> 27.2 | O115: =IF(N115=" "," ",N115*0.87) -> 23.6 | P115: =IF(N115=" "," ",(I115/H115*880*0.0274+0.33)/880*H115) -> 12.4 | Q115: =IF(N115=" "," ",P115*(5.9*0.88+6.8*0.79)/12.7) -> 10.3 | R115: =IF(N115=" "," ",(I115/H115*880*0.0339+2.43)/880*H115) -> 17.3 | S115: 14.9 | T115: =IF(N115=" "," ",(I115/H115*880*0.0109+1.23)/880*H115) -> 6.0 | U115: =IF(N115=" "," ",T115*0.86) -> 5.2 | V115: 3.0 | W115: 6.4 | X115: 2.6 | Y115: =IF($I115=0," ",W115*0.65) -> 4.2 | Z115: 2.7 | AA115: =IF($I115=0," ",IF(I115>459.99,$AA$108*$I$108/$I115,$AA$112*$I$112/$I115)) -> 0.23 | AB115: 21.2 | AC115: =IF($I115=""," ",($I115/H115*880*0.013+0.19)/880*H115) -> 5.9 | AD115: =AC115*0.88 -> 5.2 | AE115: 13 | AF115: 60 | AG115: 95 | AH115: 60 | AI115: =(H115-AH115)*AU115-I115*AV115-AE115*AW115-AF115-AG115 -> 192 | AJ115: =IF($I115=""," ",$H115-($AE115+$AF115+$AH115+$I115+$K115)) -> 247 | AK115: 7.0 | AL115: 6.5 | AM115: 0.5 | AQ115: =IF(H115="","",50*V115+83*Z115+26*AB115+44*AA115-59*W115-13*P115-28*AZ115) -> 363 | AR115: =IF(H115="","",V115/1000*20140+Z115/1000*48600+1100/440*I115) -> 1292 | AS115: =AX115*K115+AY115*AT115-AF115-AG115 -> 160 | AT115: 307 | AU115: 87% | AV115: 82% | AW115: 44% | AX115: 75% | AY115: 88% | AZ115: =1.4*H115/1000 -> 1.23 | BA115: 106 | BB115: 167 | BC115: -3.51
A116: Sojaschrot 43% RP | B116: =IF(D116=""," ",COUNTA($D$8:D116)) -> 107 | D116: Sojaschrot | E116: =IF(I116=0," ",ROUND(I116/10,0)) -> 43 % RP | G116: 19 | H116: 890 | I116: 429 | J116: 352 | K116: 69 | L116: 13.10 | M116: 13.07 | N116: 26.6 | O116: 23.2 | P116: 12.1 | Q116: =IF(N116=" "," ",P116*(5.9*0.88+6.8*0.79)/12.7) -> 10.1 | R116: 17.0 | S116: 14.6 | T116: 5.9 | U116: =IF(N116=" "," ",T116*0.86) -> 5.1 | V116: 4.0 | W116: 6.1 | X116: 2.4 | Y116: =IF($I116=0," ",W116*0.65) -> 4.0 | Z116: =IF($I116=0," ",IF(I116>459.99,$Z$108*$I$108/$I116,$Z$112*$I$112/$I116)) -> 2.9 | AA116: 0.13 | AB116: 20.4 | AC116: 5.8 | AD116: 5.1 | AE116: 23 | AF116: 52 | AG116: 90 | AH116: 65 | AI116: =IF($I116=""," ",(H116-AH116)*AU116-I116*AV116-AE116*AW116-AF116-AG116) -> 214 | AJ116: 252 | AK116: 12.4 | AL116: 11.5 | AM116: 0.9 | AQ116: 447 | AR116: 1295 | AS116: 193 | AT116: 304 | AU116: 87% | AV116: 82% | AW116: 44% | AX116: 72% | AY116: 94% | AZ116: =0.57*H116/1000 -> 0.51 | BA116: =$BA$115/$H$115*H116*K116/$K$115 -> 123 | BB116: =$BB$115/$H$115*H116*K116/$K$115 -> 194 | BC116: -3.25
A117: =IF(E117=" ",D117&" "&F117,D117&" "&E117&"% RP "&F117) -> Sojaschrot, schalenreich 43% RP DLG 2014 | B117: =IF(D117=""," ",COUNTA($D$8:D117)) -> 108 | D117: Sojaschrot, schalenreich | E117: =IF(I117=0," ",ROUND(I117/10,0)) -> 43 % RP | F117: DLG 2014 | H117: 880 | I117: 427 | J117: 350 | K117: 82 | L117: =I117*0.0205*AV117+0.0398*AW117*AE117+0.0173*AF117+0.016*$AG117+0.0147*AI117 -> 12.59 | M117: =IF(I117=""," ",$I117*0.021503+0.032497*$AE117+0.016309*$AF117+0.014701*$AJ117-0.021071*$K117) -> 12.38 | N117: =IF(I117=0," ",(I117/H117*880*0.0523+4.14)/880*H117) -> 26.5 | O117: =IF(N117=" "," ",N117*0.89) -> 23.6 | P117: =IF(N117=" "," ",(I117/H117*880*0.0274+0.33)/880*H117) -> 12.0 | Q117: =IF(N117=" "," ",P117*(6*0.88+5.7*0.79)/12.7) -> 9.3 | R117: =IF(N117=" "," ",(I117/H117*880*0.0339+2.43)/880*H117) -> 16.9 | S117: 14.5 | T117: =IF(N117=" "," ",(I117/H117*880*0.0109+1.23)/880*H117) -> 5.9 | U117: =IF(N117=" "," ",T117*0.86) -> 5.1 | V117: =3.618*0.885 -> 3.2 | W117: =7.292*0.88 -> 6.4 | X117: 2.6 | Y117: =IF($I117=0," ",W117*0.65) -> 4.2 | Z117: 2.8 | AA117: =0.1835*0.88 -> 0.16 | AB117: =22.96*0.88 -> 20.2 | AC117: =IF($I117=""," ",($I117/H117*880*0.013+0.19)/880*H117) -> 5.7 | AD117: =AC117*0.88 -> 5.1 | AE117: =18.6*0.88 -> 16 | AF117: =60.1*0.88 -> 53 | AG117: =106.3*0.88 -> 94 | AH117: =69.7*0.88 -> 61 | AI117: =(H117-AH117)*AU117-I117*AV117-AE117*AW117-AF117-AG117 -> 183 | AJ117: 240 | AK117: 8.8 | AL117: 8.2 | AM117: 0.7 | AQ117: =IF(H117="","",50*V117+83*Z117+26*AB117+44*AA117-59*W117-13*P117-28*AZ117) -> 355 | AR117: =IF(H117="","",V117/1000*20140+Z117/1000*48600+1100/440*I117) -> 1268 | AS117: =AX117*K117+AY117*AT117-AF117-AG117 -> 173 | AT117: 293 | AU117: 84% | AV117: 82% | AW117: 47% | AX117: 75% | AY117: 88% | AZ117: =1.4*H117/1000 -> 1.23 | BA117: 140 | BB117: 210 | BC117: -4.59
A118: Sojaschrot, schalenreich 42% RP DLG FuDb | B118: =IF(D118=""," ",COUNTA($D$8:D118)) -> 109 | D118: Sojaschrot, schalenreich | E118: =IF(I118=0," ",ROUND(I118/10,0)) -> 42 % RP | F118: DLG FuDb | H118: 880 | I118: =482*0.88 -> 424 | J118: 348 | K118: =94.36*0.88 -> 83 | L118: 12.58 | M118: 12.33 | N118: 26.3 | O118: =IF(N118=" "," ",N118*0.89) -> 23.4 | P118: 12.0 | Q118: =IF(N118=" "," ",P118*(6*0.88+5.7*0.79)/12.7) -> 9.2 | R118: 16.8 | S118: =IF(N118=" "," ",R118*0.86) -> 14.5 | T118: 5.9 | U118: =IF(N118=" "," ",T118*0.86) -> 5.0 | V118: 3.4 | W118: 6.3 | X118: 2.5 | Y118: =IF($I118=0," ",W118*0.65) -> 4.1 | Z118: 2.6 | AA118: =0.1835*0.88 -> 0.16 | AB118: =22.96*0.88 -> 20.2 | AC118: 5.7 | AD118: 5.0 | AE118: =18.6*0.88 -> 16 | AF118: 55 | AG118: 93 | AH118: =69.7*0.88 -> 61 | AI118: =(H118-AH118)*AU118-I118*AV118-AE118*AW118-AF118-AG118 -> 184 | AJ118: 240 | AK118: 8.8 | AL118: 8.2 | AM118: 0.7 | AQ118: 357 | AR118: 1255 | AS118: 174 | AT118: 295 | AU118: 84% | AV118: 82% | AW118: 47% | AX118: 75% | AY118: 88% | AZ118: =1.4*H118/1000 -> 1.23 | BA118: =$BA$117/$H$117*H118*K118/$K$117 -> 142 | BB118: =$BB$117/$H$117*H118*K118/$K$117 -> 213 | BC118: -4.56
A119: Sojaschrot, schalenreich 42% RP | B119: =IF(D119=""," ",COUNTA($D$8:D119)) -> 110 | D119: Sojaschrot, schalenreich | E119: 42 % RP | G119: 13 | H119: 890 | I119: 420 | J119: 344 | K119: 72 | L119: 12.69 | M119: 12.89 | N119: 26.2 | O119: =IF(N119=" "," ",N119*0.89) -> 23.3 | P119: 11.8 | Q119: =IF(N119=" "," ",P119*(6*0.88+5.7*0.79)/12.7) -> 9.1 | R119: 16.7 | S119: =IF(N119=" "," ",R119*0.86) -> 14.4 | T119: 5.8 | U119: 5.0 | V119: 4.5 | W119: 6.3 | X119: 2.5 | Y119: 4.1 | Z119: =IF($I119=0," ",IF(I119>459.99,$Z$108*$I$108/$I119,$Z$112*$I$112/$I119)) -> 3.0 | AA119: 0.13 | AB119: 20.2 | AC119: 5.7 | AD119: 5.0 | AE119: 23 | AF119: 51 | AG119: 88 | AH119: 66 | AI119: 198 | AJ119: 258 | AK119: 12.4 | AL119: 11.5 | AM119: 0.9 | AQ119: 442 | AR119: 1285 | AS119: 187 | AT119: 309 | AU119: 84% | AV119: 82% | AW119: 47% | AX119: 75% | AY119: 88% | AZ119: =1.4*H119/1000 -> 1.25 | BA119: =$BA$117/$H$117*H119*K119/$K$117 -> 124 | BB119: =$BB$117/$H$117*H119*K119/$K$117 -> 186 | BC119: -3.28
A120: =IF(E120=" ",D120&" "&F120,D120&" "&E120&"% RP "&F120) -> Sojaschrot, schalenreich 41% RP | B120: =IF(D120=""," ",COUNTA($D$8:D120)) -> 111 | D120: Sojaschrot, schalenreich | E120: 41 % RP | G120: 6 | H120: 890 | I120: 410 | J120: 336 | K120: 77 | L120: 12.73 | M120: 12.75 | N120: 25.6 | O120: =IF(N120=" "," ",N120*0.89) -> 22.8 | P120: 11.6 | Q120: =IF(N120=" "," ",P120*(6*0.88+5.7*0.79)/12.7) -> 8.9 | R120: 16.4 | S120: =IF(N120=" "," ",R120*0.86) -> 14.1 | T120: 5.7 | U120: 4.9 | V120: 4.0 | W120: 6.1 | X120: 2.4 | Y120: 4.0 | Z120: =IF($I120=0," ",IF(I120>459.99,$Z$108*$I$108/$I120,$Z$112*$I$112/$I120)) -> 3.0 | AA120: 0.13 | AB120: 20.2 | AC120: 5.5 | AD120: 4.9 | AE120: 27 | AF120: 55 | AG120: 91 | AH120: 64 | AI120: 199 | AJ120: 257 | AK120: 14.6 | AL120: 13.5 | AM120: 1.1 | AQ120: 439 | AR120: 1254 | AS120: 186 | AT120: 312 | AU120: 84% | AV120: 82% | AW120: 47% | AX120: 75% | AY120: 88% | AZ120: =1.4*H120/1000 -> 1.25 | BA120: =$BA$117/$H$117*H120*K120/$K$117 -> 133 | BB120: =$BB$117/$H$117*H120*K120/$K$117 -> 199 | BC120: -3.02
A121: Sojaschrot, schalenreich 40% RP | B121: =IF(D121=""," ",COUNTA($D$8:D121)) -> 112 | D121: Sojaschrot, schalenreich | E121: 40 % RP | G121: 3 | H121: 890 | I121: 402 | J121: 330 | K121: 88 | L121: 12.66 | M121: 12.27 | N121: 25.2 | O121: =IF(N121=" "," ",N121*0.89) -> 22.4 | P121: 11.3 | Q121: =IF(N121=" "," ",P121*(6*0.88+5.7*0.79)/12.7) -> 8.7 | R121: 16.1 | S121: =IF(N121=" "," ",R121*0.86) -> 13.8 | T121: 5.6 | U121: 4.8 | V121: 4.0 | W121: 6.1 | X121: 2.4 | Y121: 4.0 | Z121: =IF($I121=0," ",IF(I121>459.99,$Z$108*$I$108/$I121,$Z$112*$I$112/$I121)) -> 3.1 | AA121: 0.13 | AB121: 20.2 | AC121: 5.4 | AD121: 4.8 | AE121: 24 | AF121: 52 | AG121: 84 | AH121: 62 | AI121: 219 | AJ121: 262 | AK121: 13.0 | AL121: 12.0 | AM121: 1.0 | AQ121: 447 | AR121: 1237 | AS121: 206 | AT121: 314 | AU121: 84% | AV121: 82% | AW121: 47% | AX121: 75% | AY121: 88% | AZ121: =1.4*H121/1000 -> 1.25 | BA121: =$BA$117/$H$117*H121*K121/$K$117 -> 152 | BB121: =$BB$117/$H$117*H121*K121/$K$117 -> 228 | BC121: -3.81
A122: =IF(E122=" ",D122&" "&F122,D122&" "&E122&"% RP "&F122) -> Sonnenblumenkuchen kaltgepresst 22% RP | B122: =IF(D122=""," ",COUNTA($D$8:D122)) -> 113 | D122: Sonnenblumenkuchen kaltgepresst | E122: =IF(I122=0," ",ROUND(I122/10,0)) -> 22 % RP | H122: 880 | I122: 219 | J122: =I122*0.8 -> 175 | K122: 278 | L122: 10.94 | M122: 5.77 | N122: =IF(I122=0," ",(I122/H122*880*0.0277+2.37)/880*H122) -> 8.4 | O122: =IF(N122=" "," ",N122*0.79) -> 6.7 | P122: =IF(N122=" "," ",(I122/H122*880*0.0252+1.38)/880*H122) -> 6.9 | Q122: =IF(N122=" "," ",P122*(4.5*0.88+3.6*0.77)/8.1) -> 5.7 | R122: =IF(N122=" "," ",(I122/H122*880*0.034+2.11)/880*H122) -> 9.6 | S122: =IF(N122=" "," ",R122*0.8) -> 7.6 | T122: =IF(N122=" "," ",(I122/H122*880*0.0102+1.32)/880*H122) -> 3.6 | U122: =IF(N122=" "," ",T122*0.83) -> 2.9 | V122: 3.4 | W122: 8.3 | X122: =W122*0.35 -> 2.9 | Y122: =IF($I122=0," ",W122*0.65) -> 5.4 | Z122: 4.9 | AA122: 0.20 | AB122: 11.8 | AC122: =IF($I122=""," ",($I122/H122*880*0.0121+0.68)/880*H122) -> 3.3 | AD122: =AC122*0.88 -> 2.9 | AE122: 122 | AF122: =0 -> 0 | AG122: 77 | AH122: 60 | AI122: 188 | AJ122: 201 | AK122: 23.0 | AL122: =AK122*$AL$104/$AK$104 -> 21.4 | AM122: =AK122*$AM$104/$AK$104 -> 1.6 | AQ122: 286 | AR122: 854 | AS122: 129 | AT122: 201 | AU122: 64% | AV122: 80% | AW122: 69% | AX122: 25% | AY122: 68% | AZ122: =1.1*H122/1000 -> 0.97 | BA122: 250 | BB122: 348 | BC122: -6.61
A123: Sonnenblumenschrot teilgeschält 34% RP DLG 2014 | B123: =IF(D123=""," ",COUNTA($D$8:D123)) -> 114 | D123: Sonnenblumenschrot teilgeschält | E123: 34 % RP | F123: DLG 2014 | H123: 890 | I123: 338 | J123: =I123*0.77 -> 260 | K123: 200 | L123: 9.86 | M123: 7.76 | N123: =IF(I123=0," ",(I123/H123*880*0.0283+2.1)/880*H123) -> 11.7 | O123: =IF(N123=" "," ",N123*0.77) -> 9.0 | P123: =IF(N123=" "," ",(I123/H123*880*0.0356+0.82)/880*H123) -> 12.9 | Q123: =IF(N123=" "," ",P123*(7.1*0.76+5.3*0.81)/12.4) -> 10.1 | R123: =IF(N123=" "," ",(I123/H123*880*0.032+1.34)/880*H123) -> 12.2 | S123: =IF(N123=" "," ",R123*0.77) -> 9.4 | T123: =IF(N123=" "," ",(I123/H123*880*0.0138-0.22)/880*H123) -> 4.4 | U123: =IF(N123=" "," ",T123*0.8) -> 3.6 | V123: 3.9 | W123: 9.8 | X123: =W123*0.4 -> 3.9 | Y123: =IF($I123=0," ",W123*0.65) -> 6.4 | Z123: 4.9 | AA123: 0.20 | AB123: 13.2 | AC123: =IF($I123=""," ",($I123/H123*880*0.0192+0.75)/880*H123) -> 7.2 | AD123: =AC123*0.76 -> 5.5 | AE123: 21 | AF123: =0 -> 0 | AG123: 58 | AH123: 57 | AI123: 211 | AJ123: 274 | AK123: 14.1 | AL123: 13.1 | AM123: 1.0 | AQ123: 153 | AR123: 1162 | AS123: 178 | AT123: 274 | AU123: 65% | AV123: 77% | AW123: 60% | AX123: 25% | AY123: 68% | AZ123: =2.2*H123/1000 -> 1.96 | BA123: 240 | BB123: 320 | BC123: -10.84
A124: Trockenschlempe 29% RP | B124: =IF(D124=""," ",COUNTA($D$8:D124)) -> 115 | D124: Trockenschlempe | E124: 29 % RP | H124: 930 | I124: =314*$H$124/1000 -> 292 | J124: =I124*0.72 -> 210 | K124: =75*$H$124/1000 -> 70 | L124: 11.90 | M124: 13.90 | N124: =7.1*$H$124/1000 -> 6.6 | O124: =IF(N124=" "," ",N124*0.69) -> 4.6 | P124: =IF(N124=" "," ",(I124/H124*880*0.0327+0.39)/880*H124) -> 10.0 | Q124: =IF(N124=" "," ",P124*(5.6*0.67+7*0.7)/12.6) -> 6.8 | R124: =IF(N124=" "," ",(I124/H124*880*0.0243+1.95)/880*H124) -> 9.2 | S124: =IF(N124=" "," ",R124*0.69) -> 6.3 | T124: =IF(N124=" "," ",(I124/H124*880*0.011-0.26)/880*H124) -> 2.9 | U124: =IF(N124=" "," ",T124*0.86) -> 2.5 | V124: =0.9*$H$124/1000 -> 0.8 | W124: =8.7*$H$124/1000 -> 8.1 | X124: =W124*0.65 -> 5.3 | Y124: =W124*0.65 -> 5.3 | Z124: =3.1*$H$124/1000 -> 2.9 | AA124: =5.7*$H$124/1000 -> 5.30 | AB124: =14.8*$H$124/1000 -> 13.8 | AC124: =IF($I124=""," ",($I124/H124*880*0.0139+0.34)/880*H124) -> 4.4 | AD124: =AC124*0.67 -> 3.0 | AE124: =91*$H$124/1000 -> 85 | AF124: =33*$H$124/1000 -> 31 | AG124: =45*$H$124/1000 -> 42 | AH124: =60*$H$124/1000 -> 56 | AI124: 240 | AJ124: =$H124-($AE124+$AF124+$AH124+$I124+$K124) -> 397 | AK124: =32.1/880*H124 -> 33.9 | AL124: 31.6 | AM124: 2.3 | AQ124: 218 | AR124: 887 | AS124: 238 | AT124: 428 | AU124: 68% | AV124: 72% | AW124: 85% | AX124: 41% | AY124: 66% | AZ124: =1.7 -> 1.70 | BA124: =193*H124/1000 -> 179 | BB124: =335*H124/1000 -> 312 | BC124: 4.22
A125: Trockenschlempe Gerste getrocknet 26% RP DLG 2014 | B125: =IF(D125=""," ",COUNTA($D$8:D125)) -> 116 | D125: Trockenschlempe Gerste getrocknet | E125: 26 % RP | F125: DLG 2014 | H125: 910 | I125: 255 | J125: =I125*0.78 -> 199 | K125: 113 | L125: 11.03 | M125: 11.54 | N125: 8.2 | O125: =IF(N125=" "," ",N125*0.82) -> 6.7 | P125: =3.7+4.7 -> 8.4 | Q125: =IF(N125=" "," ",P125*(4.1*0.89+5.2*0.77)/9.3) -> 6.9 | R125: 9.1 | S125: =IF(N125=" "," ",R125*0.82) -> 7.5 | T125: 2.5 | U125: =IF(N125=" "," ",T125*0.83) -> 2.1 | V125: 1.2 | W125: 6.6 | X125: =W125*0.6 -> 4.0 | Y125: =W125*0.65 -> 4.3 | Z125: 2.0 | AA125: 4.00 | AB125: =14.8*$H$124/1000 -> 13.8 | AC125: 3.7 | AD125: =AC125*0.89 -> 3.3 | AE125: 64 | AF125: 39 | AG125: 16 | AH125: 50 | AI125: 257 | AJ125: =$H125-($AE125+$AF125+$AH125+$I125+$K125) -> 389 | AK125: =32.1/880*H125 -> 33.2 | AL125: 30.9 | AM125: 2.3 | AQ125: 214 | AR125: 759 | AS125: 274 | AT125: 428 | AU125: 66% | AV125: 78% | AW125: 88% | AX125: 41% | AY125: 66% | AZ125: =1.7 -> 1.70 | BA125: 170 | BB125: 476 | BC125: 0.75
A126: Trockenschlempe Weizen getrocknet 35% RP DLG 2014 | B126: =IF(D126=""," ",COUNTA($D$8:D126)) -> 117 | D126: Trockenschlempe Weizen getrocknet | E126: 35 % RP | F126: DLG 2014 | H126: 920 | I126: 351 | J126: =I126*0.72 -> 253 | K126: 69 | L126: =I126*0.0205*AV126+0.0398*AW126*AE126+0.0173*AF126+0.016*$AG126+0.0147*AI126 -> 11.45 | M126: =IF(I126=""," ",$I126*0.021503+0.032497*$AE126+0.016309*$AF126+0.014701*$AJ126-0.021071*$K126) -> 13.73 | N126: 7.1 | O126: =IF(N126=" "," ",N126*0.69) -> 4.9 | P126: =5.1+6.3 -> 11.4 | Q126: =IF(N126=" "," ",P126*(5.5*0.67+6.9*0.7)/12.4) -> 7.8 | R126: 10.1 | S126: =IF(N126=" "," ",R126*0.69) -> 7.0 | T126: 3.2 | U126: =IF(N126=" "," ",T126*0.86) -> 2.8 | V126: 1.2 | W126: 8.3 | X126: =W126*0.7 -> 5.8 | Y126: =X126 -> 5.8 | Z126: 2.8 | AA126: 8.10 | AB126: =14.8*$H$124/1000 -> 13.8 | AC126: 5.1 | AD126: =AC126*0.67 -> 3.4 | AE126: 56 | AF126: 25 | AG126: 32 | AH126: 51 | AI126: =(H126-AH126)*AU126-I126*AV126-AE126*AW126-AF126-AG126 -> 234 | AJ126: =$H126-($AE126+$AF126+$AH126+$I126+$K126) -> 368 | AK126: =32.1/880*H126 -> 33.6 | AL126: 31.2 | AM126: 2.3 | AQ126: =IF(H126="","",50*V126+83*Z126+26*AB126+44*AA126-59*W126-13*P126-28*AZ126) -> 321 | AR126: =IF(H126="","",V126/1000*20140+Z126/1000*48600+1100/440*I126) -> 1038 | AS126: =AX126*K126+AY126*AT126-AF126-AG126 -> 231 | AT126: 393 | AU126: 68% | AV126: 72% | AW126: 85% | AX126: 41% | AY126: 66% | AZ126: =1.7 -> 1.70 | BA126: 121 | BB126: 292 | BC126: 0.82
A127: Trockenschlempe Weizen, Gerste getrocknet 34% RP DLG 2014 | B127: =IF(D127=""," ",COUNTA($D$8:D127)) -> 118 | D127: Trockenschlempe Weizen, Gerste getrocknet | E127: 34 % RP | F127: DLG 2014 | H127: 920 | I127: 340 | J127: =I127*0.72 -> 245 | K127: 68 | L127: =I127*0.0205*AV127+0.0398*AW127*AE127+0.0173*AF127+0.016*$AG127+0.0147*AI127 -> 11.55 | M127: =IF(I127=""," ",$I127*0.021503+0.032497*$AE127+0.016309*$AF127+0.014701*$AJ127-0.021071*$K127) -> 13.80 | N127: 7.1 | O127: =IF(N127=" "," ",N127*0.69) -> 4.9 | P127: =5.2+6.4 -> 11.6 | Q127: =IF(N127=" "," ",P127*(5.6*0.67+7*0.7)/12.6) -> 8.0 | R127: 10.2 | S127: =IF(N127=" "," ",R127*0.69) -> 7.0 | T127: 3.2 | U127: =IF(N127=" "," ",T127*0.86) -> 2.8 | V127: 1.2 | W127: 8.2 | X127: =W127*0.65 -> 5.3 | Y127: =W127*0.65 -> 5.3 | Z127: 2.8 | AA127: 8.10 | AB127: =14.8*$H$124/1000 -> 13.8 | AC127: 5.2 | AD127: =AC127*0.67 -> 3.5 | AE127: 63 | AF127: 25 | AG127: 32 | AH127: 52 | AI127: =(H127-AH127)*AU127-I127*AV127-AE127*AW127-AF127-AG127 -> 235 | AJ127: =$H127-($AE127+$AF127+$AH127+$I127+$K127) -> 372 | AK127: =32.1/880*H127 -> 33.6 | AL127: 31.2 | AM127: 2.3 | AQ127: =IF(H127="","",50*V127+83*Z127+26*AB127+44*AA127-59*W127-13*P127-28*AZ127) -> 324 | AR127: =IF(H127="","",V127/1000*20140+Z127/1000*48600+1100/440*I127) -> 1010 | AS127: =AX127*K127+AY127*AT127-AF127-AG127 -> 233 | AT127: 397 | AU127: 68% | AV127: 72% | AW127: 85% | AX127: 41% | AY127: 66% | AZ127: =1.7 -> 1.70 | BA127: 121 | BB127: 292 | BC127: 1.61
B128: =IF(D128=""," ",COUNTA($D$8:D128)) -> 
A129: Aminosäuren*** | B129: =IF(D129=""," ",COUNTA($D$8:D129)) -> 119 | D129: Aminosäuren***
B130: =IF(D130=""," ",COUNTA($D$8:D130)) -> 
A131: L-Lysin-HCL 95% RP | B131: =IF(D131=""," ",COUNTA($D$8:D131)) -> 120 | D131: L-Lysin-HCL | E131: 95 % RP | H131: 995 | I131: 954 | J131: =I131 -> 954 | L131: =I131*0.0205*AV131+0.0398*AW131*AE131+0.0173*AF131+0.016*$AG131+0.0147*AI131 -> 19.56 | M131: =IF(I131=""," ",$I131*0.021503+0.032497*$AE131+0.016309*$AF131+0.014701*$AJ131-0.021071*$K131) -> 20.51 | N131: 780.0 | O131: 780.0 | AR131: =IF(H131="","",V131/1000*20140+Z131/1000*48600+1100/440*I131) -> 2385 | AU131: 100% | AV131: 100% | AW131: 100% | AX131: 100% | AY131: 100% | BC131: -11.74
A132: Methionin (DL-Meth.) 58% RP | B132: =IF(D132=""," ",COUNTA($D$8:D132)) -> 121 | D132: Methionin (DL-Meth.) | E132: 58 % RP | H132: 995 | I132: 584 | J132: =I132 -> 584 | L132: =I132*0.0205*AV132+0.0398*AW132*AE132+0.0173*AF132+0.016*$AG132+0.0147*AI132 -> 11.97 | M132: =IF(I132=""," ",$I132*0.021503+0.032497*$AE132+0.016309*$AF132+0.014701*$AJ132-0.021071*$K132) -> 12.56 | P132: 990.0 | Q132: 990.0 | AC132: 990.0 | AD132: 990.0 | AQ132: =IF(H132="","",50*V132+83*Z132+26*AB132+44*AA132-59*W132-13*P132-28*AZ132) -> -12870 | AR132: =IF(H132="","",V132/1000*20140+Z132/1000*48600+1100/440*I132) -> 1460 | AU132: 100% | AV132: 100% | AW132: 100% | AX132: 100% | AY132: 100% | BC132: -7.18
A133: Threonin (L-Thr.) 73% RP | B133: =IF(D133=""," ",COUNTA($D$8:D133)) -> 122 | D133: Threonin (L-Thr.) | E133: 73 % RP | H133: 995 | I133: 731 | J133: =I133 -> 731 | L133: =I133*0.0205*AV133+0.0398*AW133*AE133+0.0173*AF133+0.016*$AG133+0.0147*AI133 -> 14.99 | M133: =IF(I133=""," ",$I133*0.021503+0.032497*$AE133+0.016309*$AF133+0.014701*$AJ133-0.021071*$K133) -> 15.72 | R133: 980.0 | S133: 980.0 | AR133: =IF(H133="","",V133/1000*20140+Z133/1000*48600+1100/440*I133) -> 1828 | AU133: 100% | AV133: 100% | AW133: 100% | AX133: 100% | AY133: 100% | BC133: -8.99
A134: Tryptophan (L-Try.) 85% RP | B134: =IF(D134=""," ",COUNTA($D$8:D134)) -> 123 | D134: Tryptophan (L-Try.) | E134: 85 % RP | H134: 995 | I134: 853 | J134: =I134 -> 853 | L134: =I134*0.0205*AV134+0.0398*AW134*AE134+0.0173*AF134+0.016*$AG134+0.0147*AI134 -> 17.49 | M134: =IF(I134=""," ",$I134*0.021503+0.032497*$AE134+0.016309*$AF134+0.014701*$AJ134-0.021071*$K134) -> 18.34 | T134: 980.0 | U134: 980.0 | AR134: =IF(H134="","",V134/1000*20140+Z134/1000*48600+1100/440*I134) -> 2133 | AU134: 100% | AV134: 100% | AW134: 100% | AX134: 100% | AY134: 100% | BC134: -10.49
B135: =IF(D135=""," ",COUNTA($D$8:D135)) -> 
A136: Sonstige Futtermittel | B136: =IF(D136=""," ",COUNTA($D$8:D136)) -> 124 | D136: Sonstige Futtermittel
B137: =IF(D137=""," ",COUNTA($D$8:D137)) ->  | BC137: =IF(H137="","",0.73*M137+0.055*AE137+0.015*AF137-0.028*I137-0.041*K137) -> 
A138: Ameisensäure | B138: =IF(D138=""," ",COUNTA($D$8:D138)) -> 125 | D138: Ameisensäure | H138: 850 | L138: 5.80 | M138: 5.80 | AR138: -6500 | BC138: 4.23
A139: Futterkalk CaCO3 | B139: =IF(D139=""," ",COUNTA($D$8:D139)) -> 126 | D139: Futterkalk CaCO3 | E139: =IF(I139=0," ",ROUND(I139/10,0)) ->  | H139: 999 | L139: 0.00 | M139: 0.00 | V139: 381.4 | W139: 0.4 | Z139: 1.6 | AQ139: =IF(H139="","",50*V139+83*Z139+26*AB139+44*AA139-59*W139-13*P139-28*AZ139) -> 19154 | AR139: 20140 | AZ139: 0.90 | BC139: 0.00
A140: =IF(E140=" ",D140&" "&F140,D140&" "&E140&"% RP "&F140) -> Ca-Formiat Ca(COOH)2 | B140: =IF(D140=""," ",COUNTA($D$8:D140)) -> 127 | D140: Ca-Formiat Ca(COOH)2 | E140: =IF(I140=0," ",ROUND(I140/10,0)) ->  | H140: 999 | L140: 0.00 | M140: 0.00 | V140: 303.0 | Z140: 1.6 | AQ140: 15258 | AR140: =AR139/$V$139*V140 -> 16000 | AZ140: 0.90 | BC140: 0.00
A141: =IF(E141=" ",D141&" "&F141,D141&" "&E141&"% RP "&F141) -> Haferschälkleie 6% RP DLG 2014 | B141: =IF(D141=""," ",COUNTA($D$8:D141)) -> 128 | D141: Haferschälkleie | E141: =IF(I141=0," ",ROUND(I141/10,0)) -> 6 % RP | F141: DLG 2014 | H141: 900 | I141: 63 | J141: =0.9*I141 -> 57 | K141: 230 | L141: =I141*0.0205*AV141+0.0398*AW141*AE141+0.0173*AF141+0.016*$AG141+0.0147*AI141 -> 5.41 | M141: =IF(I141=""," ",$I141*0.021503+0.032497*$AE141+0.016309*$AF141+0.014701*$AJ141-0.021071*$K141) -> 5.37 | N141: 2.3 | O141: =N141*0.88 -> 2.0 | P141: =1+0.8 -> 1.8 | Q141: =P141*(0.92+0.8*0.85)/1.8 -> 1.6 | R141: 2.7 | S141: =R141*0.87 -> 2.3 | T141: 1.1 | U141: =T141*0.89 -> 1.0 | V141: 1.3 | W141: 1.5 | X141: =W141*0.25 -> 0.4 | Y141: =W141*0.65 -> 1.0 | Z141: 1.3 | AA141: 0.30 | AB141: 9.1 | AC141: 1.0 | AD141: =AC141*0.92 -> 0.9 | AE141: 27 | AF141: 149 | AG141: 10 | AH141: 53 | AI141: =(H141-AH141)*AU141-I141*AV141-AE141*AW141-AF141-AG141 -> 68 | AJ141: =IF($I141=""," ",$H141-($AE141+$AF141+$AH141+$I141+$K141)) -> 378 | AK141: 11.1 | AQ141: 224 | AR141: =IF(H141="","",V141/1000*20140+Z141/1000*48600+1100/440*I141) -> 247 | AS141: =AX141*K141+AY141*AT141-AF141-AG141 -> 123 | AT141: 527 | AU141: 35% | AV141: 90% | AW141: 48% | AX141: 17% | AY141: 46% | AZ141: 3.10 | BA141: 375 | BB141: 713 | BC141: -3.55
A142: =IF(E142=" ",D142&" "&F142,D142&" "&E142&"% RP "&F142) -> Heu Mitte bis Ende Blüte 11% RP DLG 2014 | B142: =IF(D142=""," ",COUNTA($D$8:D142)) -> 129 | D142: Heu Mitte bis Ende Blüte | E142: =IF(I142=0," ",ROUND(I142/10,0)) -> 11 % RP | F142: DLG 2014 | H142: 880 | I142: 106 | J142: =I142*0.48 -> 51 | K142: 246 | L142: 6.15 | M142: =IF(I142=""," ",$I142*0.021503+0.032497*$AE142+0.016309*$AF142+0.014701*$AJ142-0.021071*$K142) -> 4.18 | N142: =IF(I142=0," ",(I142/H142*880*0.0455-0.09)/880*H142) -> 4.7 | O142: =IF(N142=" "," ",N142*0.31) -> 1.5 | P142: =IF(N142=" "," ",(I142/H142*880*0.0258+0.03)/880*H142) -> 2.8 | Q142: =IF(N142=" "," ",P142*(1.9*0.71+1.3*0.29)/3.2) -> 1.5 | R142: =IF(N142=" "," ",(I142/H142*880*0.0383+0.31)/880*H142) -> 4.4 | S142: =IF(N142=" "," ",R142*0.41) -> 1.8 | T142: =IF(N142=" "," ",(I142/H142*880*0.0152-0.02)/880*H142) -> 1.6 | U142: =IF(N142=" "," ",T142*0.48) -> 0.8 | V142: 4.0 | W142: 2.6 | X142: =W142*0.2 -> 0.5 | Y142: =W142*0.65 -> 1.7 | Z142: 1.6 | AA142: 0.43 | AB142: 18.5 | AC142: =IF($I142=""," ",($I142/H142*880*0.0151+0.05)/880*H142) -> 1.7 | AD142: =AC142*0.71 -> 1.2 | AE142: 24 | AG142: 88 | AH142: 75 | AI142: =(H142-AH142)*AU142-I142*AV142-AE142*AW142-AF142-AG142 -> 220 | AJ142: =IF($I142=""," ",$H142-($AE142+$AF142+$AH142+$I142+$K142)) -> 429 | AK142: 7.2 | AQ142: 367 | AR142: 423 | AS142: 298 | AT142: 429 | AU142: 46% | AV142: 48% | AW142: 49% | AX142: 47% | AY142: 63% | AZ142: =11.2*H142/1000 -> 9.86 | BA142: 317 | BB142: 458 | BC142: -8.68
A143: Lignocellulose (Faserkonzentrat) 1% RP | B143: =IF(D143=""," ",COUNTA($D$8:D143)) -> 130 | D143: Lignocellulose (Faserkonzentrat) | E143: 1 % RP | H143: 927 | I143: 12 | J143: =I143*0.45 -> 5 | K143: 671 | L143: 0.00 | M143: 0.00 | AE143: 2 | AH143: 4 | AQ143: 0 | AR143: 30 | AS143: 188 | AT143: 238 | AX143: 5% | AY143: 65% | AZ143: =(0.93*23*AA143)/35.5+Z143 -> 0.00 | BA143: 700 | BB143: 820 | BC143: -27.74
A144: =IF(E144=" ",D144&" "&F144,D144&" "&E144&"% RP "&F144) -> Luzerne, frisch 4% RP DLG 2014 | B144: =IF(D144=""," ",COUNTA($D$8:D144)) -> 131 | D144: Luzerne, frisch | E144: =IF(I144=0," ",ROUND(I144/10,0)) -> 4 % RP | F144: DLG 2014 | H144: 170 | I144: 37 | J144: =I144*0.47 -> 17 | K144: 43 | L144: 1.56 | M144: =IF(I144=""," ",$I144*0.021503+0.032497*$AE144+0.016309*$AF144+0.014701*$AJ144-0.021071*$K144) -> 1.02 | N144: =IF(I144=0," ",(I144/H144*880*0.0446-0.17)/880*H144) -> 1.6 | O144: =IF(N144=" "," ",N144*0.5) -> 0.8 | P144: =IF(N144=" "," ",(I144/H144*880*0.0213+0.3)/880*H144) -> 0.8 | Q144: =IF(N144=" "," ",P144*(0.5*0.75+0.4*0.1)/0.9) -> 0.4 | R144: =IF(N144=" "," ",(I144/H144*880*0.0405-0.22)/880*H144) -> 1.5 | S144: =IF(N144=" "," ",R144*0.6) -> 0.9 | T144: =IF(N144=" "," ",(I144/H144*880*0.02-0.97)/880*H144) -> 0.6 | U144: =IF(N144=" "," ",T144*0.55) -> 0.3 | V144: 3.1 | W144: 0.5 | X144: =W144*0.5 -> 0.3 | Y144: =W144*0.65 -> 0.3 | Z144: 0.5 | AA144: 0.10 | AB144: =AB146/H146*H144 -> 4.0 | AC144: =IF($I144=""," ",($I144/H144*880*0.012+0.13)/880*H144) -> 0.5 | AD144: =AC144*0.75 -> 0.4 | AE144: 5 | AG144: 7 | AH144: 19 | AI144: =(H144-AH144)*AU144-I144*AV144-AE144*AW144-AF144-AG144 -> 69 | AJ144: =IF($I144=""," ",$H144-($AE144+$AF144+$AH144+$I144+$K144)) -> 66 | AK144: 8.4 | AQ144: =IF(H144="","",50*V144+83*Z144+26*AB144+44*AA144-59*W144-13*P144-28*AZ144) -> 237 | AR144: =IF(H144="","",V144/1000*20140+Z144/1000*48600+1100/440*I144) -> 179 | AS144: 52 | AT144: 66 | AU144: 63% | AV144: 47% | AW144: 40% | AX144: 39% | AY144: 64% | AZ144: =6*H144/1000 -> 1.02 | BA144: 56 | BB144: 70 | BC144: -1.78
A145: Luzernegrünmehl jung unter 23% XF 20% RP DLG 2005 | B145: =IF(D145=""," ",COUNTA($D$8:D145)) -> 132 | D145: Luzernegrünmehl jung unter 23% XF | E145: =IF(I145=0," ",ROUND(I145/10,0)) -> 20 % RP | F145: DLG 2005 | H145: 900 | I145: 196 | J145: =I145*0.45 -> 88 | K145: 200 | L145: 7.21 | M145: =IF(I145=""," ",$I145*0.021503+0.032497*$AE145+0.016309*$AF145+0.014701*$AJ145-0.021071*$K145) -> 6.36 | N145: =IF(I145=0," ",(I145/H145*880*0.0446-0.17)/880*H145) -> 8.6 | O145: =IF(N145=" "," ",N145*0.46) -> 3.9 | P145: =IF(N145=" "," ",(I145/H145*880*0.0213+0.3)/880*H145) -> 4.5 | Q145: =IF(N145=" "," ",P145*(2.3*0.75+1.8*0.09)/4.1) -> 2.1 | R145: =IF(N145=" "," ",(I145/H145*880*0.0405-0.22)/880*H145) -> 7.7 | S145: =IF(N145=" "," ",R145*0.55) -> 4.2 | T145: =IF(N145=" "," ",(I145/H145*880*0.02-0.97)/880*H145) -> 2.9 | U145: =IF(N145=" "," ",T145*0.54) -> 1.6 | V145: 15.4 | W145: 2.6 | X145: =0.5*W145 -> 1.3 | Y145: =W145*0.65 -> 1.7 | Z145: 2.8 | AA145: 0.90 | AB145: 21.4 | AC145: =IF($I145=""," ",($I145/H145*880*0.012+0.13)/880*H145) -> 2.5 | AD145: =AC145*0.72 -> 1.8 | AE145: 32 | AG145: 48 | AH145: =122*H145/1000 -> 110 | AI145: =(H145-AH145)*AU145-I145*AV145-AE145*AW145-AF145-AG145 -> 288 | AJ145: 362 | AK145: 8.4 | AQ145: 1236 | AR145: 936 | AS145: 262 | AT145: 362 | AU145: 55% | AV145: 45% | AW145: 31% | AX145: 39% | AY145: 64% | AZ145: =6*H145/1000 -> 5.40 | BA145: =289*H145/900*K145/K146 -> 244 | BB145: =392*H145/900*K145/K146 -> 331 | BC145: -7.28
A146: Luzernegrünmehl älter über 23% XF 17% RP DLG 2014 | B146: =IF(D146=""," ",COUNTA($D$8:D146)) -> 133 | D146: Luzernegrünmehl älter über 23% XF | E146: =IF(I146=0," ",ROUND(I146/10,0)) -> 17 % RP | F146: DLG 2014 | H146: 900 | I146: 167 | J146: =I146*0.45 -> 75 | K146: 237 | L146: 7.19 | M146: 4.93 | N146: =IF(I146=0," ",(I146/H146*880*0.0446-0.17)/880*H146) -> 7.3 | O146: =IF(N146=" "," ",N146*0.46) -> 3.3 | P146: =IF(N146=" "," ",(I146/H146*880*0.02+0.44)/880*H146) -> 3.8 | Q146: =IF(N146=" "," ",P146*(2.3*0.75+1.8*0.09)/4.1) -> 1.7 | R146: =IF(N146=" "," ",(I146/H146*880*0.0405-0.22)/880*H146) -> 6.5 | S146: =IF(N146=" "," ",R146*0.55) -> 3.6 | T146: =IF(N146=" "," ",(I146/H146*880*0.02-0.97)/880*H146) -> 2.3 | U146: =IF(N146=" "," ",T146*0.54) -> 1.3 | V146: 16.2 | W146: 3.2 | X146: =0.5*W146 -> 1.6 | Y146: =W146*0.65 -> 2.1 | Z146: 2.5 | AA146: 0.50 | AB146: 21.4 | AC146: =IF($I146=""," ",($I146/H146*880*0.012+0.13)/880*H146) -> 2.1 | AD146: =AC146*0.72 -> 1.5 | AE146: 28 | AG146: 45 | AH146: 99 | AI146: =(H146-AH146)*AU146-I146*AV146-AE146*AW146-AF146-AG146 -> 312 | AJ146: 369 | AK146: 8.4 | AQ146: 1207 | AR146: 865 | AS146: 284 | AT146: 369 | AU146: 55% | AV146: 45% | AW146: 31% | AX146: 39% | AY146: 64% | AZ146: =6*H146/1000 -> 5.40 | BA146: 289 | BB146: 392 | BC146: -9.25
A147: eigenes Grünmehl | B147: =IF(D147=""," ",COUNTA($D$8:D147)) -> 134 | D147: eigenes Grünmehl | J147: =IF(I147=0," ",I147*0.6) ->  | L147: =IF($I147=""," ",I147*0.0205*AV147+0.0398*AW147*AE147+0.0173*AF147+0.016*$AG147+0.0147*AI147) ->  | N147: =IF(I147=0," ",(I147/H147*880*0.0446-0.17)/880*H147) ->  | O147: =IF(N147=" "," ",N147*0.46) ->  | P147: =IF(N147=" "," ",(I147/H147*880*0.02+0.44)/880*H147) ->  | Q147: =IF(N147=" "," ",P147*0.46) ->  | R147: =IF(N147=" "," ",(I147/H147*880*0.0405-0.22)/880*H147) ->  | S147: =IF(N147=" "," ",R147*0.55) ->  | T147: =IF(N147=" "," ",(I147/H147*880*0.02-0.97)/880*H147) ->  | U147: =IF(N147=" "," ",T147*0.54) ->  | V147: =IF($I147=0," ",V146*$H147/$H146) ->  | AC147: =IF($I147=""," ",($I147/H147*880*0.012+0.13)/880*H147) ->  | AD147: =IF(AC147=" "," ",AC147*0.72) ->  | AI147: =IF($I147=""," ",(H147-AH147)*AU147-I147*AV147-AE147*AW147-AF147-AG147) ->  | AK147: =IF($I147=0," ",AK146*$H147/$H146) ->  | AS147: =IF($I147=0," ",AX147*K147+AY147*AT147-AF147-AG147) ->  | AU147: =IF($I147=0," ",AU146) ->  | AV147: =IF($I147=0," ",AV146) ->  | AW147: =IF($I147=0," ",AW146) ->  | AX147: =IF($I147=0," ",AX146) ->  | AY147: =IF($I147=0," ",AY146) ->  | AZ147: =IF($I147=0," ",AZ146*$H147/$H146) ->  | BA147: =IF($I147=0," ",BA146*$H147/$H146*K147/K146) ->  | BB147: =IF($I147=0," ",BB146*$H147/$H146*K147/K146) -> 
A148: Melasseschnitzel 9% RP DLG 2014 | B148: =IF(D148=""," ",COUNTA($D$8:D148)) -> 135 | D148: Melasseschnitzel | E148: 9 % RP | F148: DLG 2014 | H148: 910 | I148: 91 | J148: =I148*0.25 -> 23 | K148: 137 | L148: =I148*0.0205*AV148+0.0398*AW148*AE148+0.0173*AF148+0.016*$AG148+0.0147*AI148 -> 10.53 | M148: 8.21 | N148: =IF(I148=0," ",(I148/H148*880*0.0659-1)/880*H148) -> 5.0 | O148: =N148*0.75 -> 3.7 | P148: =IF(N148=" "," ",(I148/H148*880*0.026+0.2)/880*H148) -> 2.6 | Q148: =P148*(1.5*0.74+1.1*0.26)/2.6 -> 1.4 | R148: =IF(N148=" "," ",(I148/H148*880*0.0356+0.81)/880*H148) -> 4.1 | S148: =R148*0.28 -> 1.1 | T148: 0.9 | U148: =T148*0.4 -> 0.4 | V148: 10.0 | W148: 0.7 | X148: =W148*0.1 -> 0.1 | Y148: =W148*0.65 -> 0.5 | Z148: 1.6 | AA148: 1.50 | AB148: 13.7 | AC148: =IF($I148=""," ",($I148/H148*880*0.0158+0.06)/880*H148) -> 1.5 | AD148: =AC148*0.74 -> 1.1 | AE148: 7 | AG148: 182 | AH148: 69 | AI148: =(H148-AH148)*AU148-I148*AV148-AE148*AW148-AF148-AG148 -> 484 | AJ148: 606 | AK148: 3.3 | AQ148: 945 | AR148: 507 | AS148: =AX148*K148+AY148*AT148-AF148-AG148 -> 485 | AT148: 606 | AU148: 82% | AV148: 25% | AW148: 15% | AX148: 84% | AY148: 91% | AZ148: =1.4*H148/1000 -> 1.27 | BA148: 161 | BB148: 322 | BC148: -1.79
A149: Melasseschnitzel zuckerreich 11% RP DLG 2005 | B149: =IF(D149=""," ",COUNTA($D$8:D149)) -> 136 | D149: Melasseschnitzel zuckerreich | E149: =IF(I149=0," ",ROUND(I149/10,0)) -> 11 % RP | F149: DLG 2005 | H149: 900 | I149: 113 | J149: =I149*0.25 -> 28 | K149: 129 | L149: 10.94 | M149: 8.40 | N149: =IF(I149=0," ",(I149/H149*880*0.0659-1)/880*H149) -> 6.4 | O149: =N149*0.75 -> 4.8 | P149: =IF(N149=" "," ",(I149/H149*880*0.026+0.2)/880*H149) -> 3.1 | Q149: =P149*(1.5*0.74+1.1*0.26)/2.6 -> 1.7 | R149: =IF(N149=" "," ",(I149/H149*880*0.0356+0.81)/880*H149) -> 4.9 | S149: =R149*0.28 -> 1.4 | T149: 0.9 | U149: =T149*0.4 -> 0.4 | V149: 7.1 | W149: 0.7 | X149: =W149*0.1 -> 0.1 | Y149: =W149*0.65 -> 0.5 | Z149: 1.4 | AA149: 1.91 | AB149: 18.1 | AC149: =IF($I149=""," ",($I149/H149*880*0.0158+0.06)/880*H149) -> 1.8 | AD149: =AC149*0.74 -> 1.4 | AE149: 7 | AG149: 221 | AH149: =84*H149/1000 -> 76 | AI149: =(H149-AH149)*AU149-I149*AV149-AE149*AW149-AF149-AG149 -> 420 | AJ149: 575 | AK149: 3.3 | AQ149: 904 | AR149: 494 | AS149: =AX149*K149+AY149*AT149-AF149-AG149 -> 420 | AT149: 575 | AU149: 85% | AV149: 53% | AW149: 0% | AX149: 78% | AY149: 94% | AZ149: 1.40 | BA149: =IF($I149=0," ",BA148*$H149/$H148*K149/K148) -> 150 | BB149: =IF($I149=0," ",BB148*$H149/$H148*K149/K148) -> 300 | BC149: -1.94
A150: Obstrester (Apfel), getrocknet 5% RP DLG FuDb | B150: =IF(D150=""," ",COUNTA($D$8:D150)) -> 137 | D150: Obstrester (Apfel), getrocknet | E150: =IF(I150=0," ",ROUND(I150/10,0)) -> 5 % RP | F150: DLG FuDb | H150: 900 | I150: =55.89*0.9 -> 50 | J150: =I150*0.72 -> 36 | K150: =207.1*0.9 -> 186 | L150: 7.58 | M150: 7.23 | N150: =5.4*0.9 -> 4.9 | O150: =IF(N150=" "," ",N150*0.46) -> 2.2 | P150: =3.2*0.9 -> 2.9 | Q150: =IF(N150=" "," ",P150*0.46) -> 1.3 | R150: =4*0.9 -> 3.6 | S150: =R150*0.55 -> 2.0 | T150: =0.9*0.9 -> 0.8 | U150: =IF(N150=" "," ",T150*0.54) -> 0.4 | V150: =2.39*0.9 -> 2.2 | W150: =1.728*0.9 -> 1.6 | X150: =W150*0.5 -> 0.8 | Y150: =W150*0.65 -> 1.0 | Z150: =V150/2.5 -> 0.9 | AA150: =0.3539*0.9 -> 0.32 | AB150: =6.051*0.9 -> 5.4 | AC150: =P150*0.17/0.41 -> 1.2 | AD150: =AC150*0.46 -> 0.5 | AE150: =42.13*0.9 -> 38 | AG150: =267.2*0.9 -> 240 | AH150: =26.35*0.9 -> 24 | AI150: =(H150-AH150)*AU150-I150*AV150-AE150*AW150-AF150-AG150 -> 220 | AJ150: 602 | AK150: 8.2 | AQ150: 176 | AR150: 211 | AS150: =AX150*K150+AY150*AT150-AF150-AG150 -> 224 | AT150: 602 | AU150: 54% | AV150: 0% | AW150: 33% | AX150: 46% | AY150: 63% | AZ150: =(0.93*23*AA150)/35.5+Z150 -> 1.05 | BA150: 470 | BB150: 580 | BC150: -1.69
A151: Propionsäure | B151: =IF(D151=""," ",COUNTA($D$8:D151)) -> 138 | D151: Propionsäure | E151: =IF(I151=0," ",ROUND(I151/10,0)) ->  | H151: 990 | L151: =M151 -> 19.82 | M151: =20.8/0.0341*0.032497 -> 19.82 | AR151: -750 | BC151: 14.47
A152: =IF(E152=" ",D152&" "&F152,D152&" "&E152&"% RP "&F152) -> Fischöl / Lachsöl DLG 2014 | B152: =IF(D152=""," ",COUNTA($D$8:D152)) -> 139 | D152: Fischöl / Lachsöl | E152: =IF(I152=0," ",ROUND(I152/10,0)) ->  | F152: DLG 2014 | H152: 999 | L152: =I152*0.0205*AV152+0.0398*AW152*AE152+0.0173*AF152+0.016*$AG152+0.0147*AI152 -> 38.93 | M152: =IF(I152=" "," ",$I152*0.021503+0.032497*$AE152+0.016309*$AF152+0.014701*$AJ152-0.021071*$K152) -> 32.43 | AE152: 998 | AH152: 1 | AK152: =(43%+35%)*AE152 -> 778.4 | AL152: =24.5%*AE152 -> 244.5 | AM152: =10.5%*AE152 -> 104.8 | AU152: 98% | AW152: 98% | BC152: 78.57
A153: Rapsöl / Pflanzenöl DLG 2014 | B153: =IF(D153=""," ",COUNTA($D$8:D153)) -> 140 | D153: Rapsöl / Pflanzenöl | E153: =IF(I153=0," ",ROUND(I153/10,0)) ->  | F153: DLG 2014 | H153: 999 | L153: 38.93 | M153: =IF(I153=" "," ",$I153*0.021503+0.032497*$AE153+0.016309*$AF153+0.014701*$AJ153-0.021071*$K153) -> 32.43 | AE153: 998 | AK153: 289.0 | AL153: =20*AE153/100 -> 199.6 | AM153: =9*AE153/100 -> 89.8 | AU153: 98% | AW153: 98% | BC153: 78.57
A154: Sojaöl / Pflanzenöl DLG 2014 | B154: =IF(D154=""," ",COUNTA($D$8:D154)) -> 141 | D154: Sojaöl / Pflanzenöl | F154: DLG 2014 | H154: 999 | L154: 38.93 | M154: =IF(I154=" "," ",$I154*0.021503+0.032497*$AE154+0.016309*$AF154+0.014701*$AJ154-0.021071*$K154) -> 32.43 | AE154: 998 | AK154: 579.0 | AL154: =54*AE154/100 -> 538.9 | AM154: =4*AE154/100 -> 39.9 | AU154: 98% | AW154: 98% | BC154: 78.57
A155: Reinglycerin 99,5 - 99,9 % | B155: =IF(D155=""," ",COUNTA($D$8:D155)) -> 142 | D155: Reinglycerin 99,5 - 99,9 % | H155: 997 | L155: 17.50 | M155: 17.50 | BC155: 12.78
A156: Rohglycerin 80 - 82 % DLG 2014 | B156: =IF(D156=""," ",COUNTA($D$8:D156)) -> 143 | D156: Rohglycerin 80 - 82 % | F156: DLG 2014 | H156: 880 | L156: =I156*0.0205*AV156+0.0398*AW156*AE156+0.0173*AF156+0.016*$AG156+0.0147*AI156 -> 14.37 | M156: =L156 -> 14.37 | AA156: 17.60 | AE156: 84 | AG156: 752 | AH156: 48 | AK156: =AK154/AE154/99*AE156*88 -> 43.3 | AL156: =54*AE156/100 -> 45.4 | AM156: =4*AE156/100 -> 3.4 | AQ156: 477 | AU156: 82% | AV156: 0% | AW156: 70% | AZ156: =(0.93*23*AA156)/35.5+Z156 -> 10.60 | BC156: =IF(H156="","",0.73*M156+0.055*AE156+0.015*AF156-0.02148*I156-0.041*K156) -> 15.11
A157: =IF(E157=" ",D157&" "&F157,D157&" "&E157&"% RP "&F157) -> Sojabohnenschalen 12% RP DLG 2014 | B157: =IF(D157=""," ",COUNTA($D$8:D157)) -> 144 | D157: Sojabohnenschalen | E157: =IF(I157=0," ",ROUND(I157/10,0)) -> 12 % RP | F157: DLG 2014 | H157: 880 | I157: 119 | J157: =I157*0.54 -> 64 | K157: 334 | L157: 7.22 | M157: =IF(I157=""," ",$I157*0.021503+0.032497*$AE157+0.016309*$AF157+0.014701*$AJ157-0.021071*$K157) -> 1.60 | N157: =IF(I157=0," ",(I157/H157*880*0.054+1.08)/880*H157) -> 7.5 | O157: =IF(N157=" "," ",N157*0.56) -> 4.2 | P157: =IF(N157=" "," ",(I157/H157*880*0.0262+0.14)/880*H157) -> 3.3 | Q157: =IF(N157=" "," ",P157*(1.1*0.68+1.9*0.62)/3) -> 2.1 | R157: =IF(N157=" "," ",(I157/H157*880*0.0385-0.27)/880*H157) -> 4.3 | S157: =IF(N157=" "," ",R157*0.62) -> 2.7 | T157: =IF(N157=" "," ",(I157/H157*880*0.0118+0.07)/880*H157) -> 1.5 | U157: =IF(N157=" "," ",T157*0.6) -> 0.9 | V157: 4.8 | W157: 1.4 | X157: =W157*0.3 -> 0.4 | Y157: =IF($I157=0," ",W157*0.65) -> 0.9 | Z157: 1.8 | AA157: 0.18 | AB157: 10.8 | AC157: =IF($I157=""," ",($I157/H157*880*0.0149-0.46)/880*H157) -> 1.3 | AD157: =AC157*0.68 -> 0.9 | AE157: 23 | AF157: 26 | AG157: 23 | AH157: 44 | AI157: =(H157-AH157)*AU157-I157*AV157-AE157*AW157-AF157-AG157 -> 334 | AJ157: =IF($I157=""," ",$H157-($AE157+$AF157+$AH157+$I157+$K157)) -> 334 | AK157: 19.8 | AL157: =AK157*$AL$104/$AK$104 -> 18.4 | AM157: =AK157*$AM$104/$AK$104 -> 1.4 | AQ157: 494 | AR157: 1210 | AS157: =AX157*K157+AY157*AT157-AF157-AG157 -> 361 | AT157: =IF(H157=""," ",H157-I157-AE157-AH157-K157) -> 360 | AU157: 54% | AV157: 54% | AW157: 20% | AX157: 44% | AY157: 73% | AZ157: =2.4*H157/1000 -> 2.11 | BA157: 352 | BB157: 528 | BC157: -14.20
A158: Stroh, Gerste 4% RP DLG 2014 | B158: =IF(D158=""," ",COUNTA($D$8:D158)) -> 145 | D158: Stroh, Gerste | E158: 4 % RP | F158: DLG 2014 | H158: 860 | I158: 39 | J158: =I158*0.1 -> 4 | K158: 374 | L158: 1.93 | M158: =IF(I158=""," ",$I158*0.021503+0.032497*$AE158+0.016309*$AF158+0.014701*$AJ158-0.021071*$K158) -> -0.99 | N158: 0.8 | P158: 0.4 | R158: 1.5 | T158: 0.2 | V158: 4.3 | W158: 0.7 | X158: =W158*0.1 -> 0.1 | Y158: =W158*0.65 -> 0.5 | Z158: 0.9 | AA158: 1.70 | AB158: 13.0 | AC158: 0.2 | AE158: 14 | AG158: =7*H158/1000 -> 6 | AH158: 52 | AI158: 119 | AJ158: 381 | AK158: 5.8 | AQ158: 507 | AR158: =IF(H158="","",V158/1000*20140+Z158/1000*48600+1100/440*I158) -> 228 | AS158: 383 | AT158: 381 | AU158: 16% | AV158: 10% | AW158: 0% | AX158: 55% | AY158: 48% | AZ158: =6.2*H158/1000 -> 5.33 | BA158: =509*H158/1000 -> 438 | BB158: =811*H158/1000 -> 697 | BC158: -16.38
A159: =IF(E159=" ",D159&" "&F159,D159&" "&E159&"% RP "&F159) -> Stroh, Weizen 3% RP DLG 2014 | B159: =IF(D159=""," ",COUNTA($D$8:D159)) -> 146 | D159: Stroh, Weizen | E159: =IF(I159=0," ",ROUND(I159/10,0)) -> 3 % RP | F159: DLG 2014 | H159: 860 | I159: 34 | J159: =I159*0.1 -> 3 | K159: 370 | L159: 1.90 | M159: =IF(I159=""," ",$I159*0.021503+0.032497*$AE159+0.016309*$AF159+0.014701*$AJ159-0.021071*$K159) -> -1.12 | N159: 0.7 | P159: 0.3 | R159: 1.4 | T159: 0.2 | V159: 2.6 | W159: 0.7 | X159: =W159*0.1 -> 0.1 | Y159: =W159*0.65 -> 0.5 | Z159: 0.9 | AA159: 1.30 | AB159: 9.0 | AC159: 0.2 | AE159: 11 | AG159: 7 | AH159: 65 | AI159: =(H159-AH159)*AU159-I159*AV159-AE159*AW159-AF159-AG159 -> 117 | AJ159: 380 | AK159: 5.0 | AQ159: =IF(H159="","",50*V159+83*Z159+26*AB159+44*AA159-59*W159-13*P159-28*AZ159) -> 301 | AR159: =IF(H159="","",V159/1000*20140+Z159/1000*48600+1100/440*I159) -> 181 | AS159: =AX159*K159+AY159*AT159-AF159-AG159 -> 379 | AT159: 380 | AU159: 16% | AV159: 10% | AW159: 0% | AX159: 55% | AY159: 48% | AZ159: =6.2*H159/1000 -> 5.33 | BA159: 396 | BB159: 654 | BC159: -16.34
A160: Süßmolke 88 % TM 12% RP DLG 2014 | B160: =IF(D160=""," ",COUNTA($D$8:D160)) -> 147 | D160: Süßmolke 88 % TM | E160: 12 % RP | F160: DLG 2014 | H160: 880 | I160: =I161/$H$161*880 -> 117 | J160: =I160*0.9 -> 106 | K160: =K161/$H$161*880 -> 0 | L160: 12.63 | M160: =IF(I160=""," ",$I160*0.021503+0.032497*$AE160+0.016309*$AF160+0.014701*$AJ160-0.021071*$K160) -> 12.95 | N160: =N161/$H$161*880 -> 8.8 | O160: =O161/$H$161*880 -> 8.5 | P160: 4.1 | Q160: 3.9 | R160: 7.2 | S160: 6.4 | T160: 1.8 | U160: 1.8 | V160: 5.9 | W160: 5.9 | X160: 4.7 | Y160: 3.8 | Z160: 1.5 | AA160: 6.45 | AB160: =AB161/$H$161*880 -> 19.1 | AC160: 1.8 | AD160: 1.7 | AE160: =AE161/$H$161*880 -> 12 | AG160: =AG161/$H$161*880 -> 642 | AH160: =AH161/$H$161*880 -> 69 | AI160: 12 | AJ160: 682 | AK160: 0.4 | AQ160: 332 | AR160: 482 | AS160: 19 | AT160: 682 | AU160: 93% | AV160: 80% | AW160: 50% | AX160: 0% | AY160: 97% | AZ160: =18.8*H160/1000 -> 16.54 | BA160: =K160 -> 0 | BB160: =0*H160/1000 -> 0 | BC160: 6.84
A161: Süßmolke, frisch 1% RP DLG 2014 | B161: =IF(D161=""," ",COUNTA($D$8:D161)) -> 148 | D161: Süßmolke, frisch | E161: 1 % RP | F161: DLG 2014 | H161: 60 | I161: =133.33*H161/1000 -> 8 | J161: =I161*0.8 -> 6 | K161: 0 | L161: 0.86 | M161: 0.88 | N161: =10*H161/1000 -> 0.6 | O161: =N161*0.97 -> 0.6 | P161: =IF(N161=" "," ",(I161/H161*880*0.0401-0.62)/880*H161) -> 0.3 | Q161: =IF(N161=" "," ",P161*(0.98*2+0.93*2.8)/4.8) -> 0.3 | R161: =IF(N161=" "," ",(I161/H161*880*0.0576+0.41)/880*H161) -> 0.5 | S161: =R161*0.89 -> 0.4 | T161: =IF(N161=" "," ",(I161/H161*880*0.0186-0.34)/880*H161) -> 0.1 | U161: =T161*0.97 -> 0.1 | V161: =6.66*$H$161/1000 -> 0.4 | W161: =6.66*$H$161/1000 -> 0.4 | X161: =W161*0.8 -> 0.3 | Y161: =X161*0.8 -> 0.3 | Z161: =1.66*$H$161/1000 -> 0.1 | AA161: =7.33*$H$161/1000 -> 0.44 | AB161: =21.66*$H$161/1000 -> 1.3 | AC161: =IF(H161="","",2/1000*$H161) -> 0.1 | AD161: =AC161*0.98 -> 0.1 | AE161: =14*$H161/1000 -> 1 | AG161: =730*$H161/1000 -> 44 | AH161: =78*$H161/1000 -> 5 | AI161: 1 | AJ161: 46 | AK161: =0.4*H161/H160 -> 0.0 | AQ161: 23 | AR161: 33 | AS161: 1 | AT161: 46 | AU161: 93% | AV161: 80% | AW161: 50% | AX161: 0% | AY161: 97% | AZ161: =18.8*H161/1000 -> 1.13 | BA161: =K161 -> 0 | BB161: =0*H161/1000 -> 0 | BC161: 0.47
A162: Sauermolke, milchsauer 88 % TM 8% RP DLG 2014 | B162: =IF(D162=""," ",COUNTA($D$8:D162)) -> 149 | D162: Sauermolke, milchsauer 88 % TM | E162: 8 % RP | F162: DLG 2014 | H162: 880 | I162: =I163/$H163*880 -> 83 | J162: =I162*0.7 -> 58 | K162: =K163/$H163*880 -> 0 | L162: 11.80 | M162: 12.33 | N162: =N163/$H163*880 -> 9.7 | O162: =N162*0.83 -> 8.0 | P162: =IF(N162=" "," ",(I162/H162*880*0.0401-0.62)/880*H162) -> 2.7 | Q162: =IF(N162=" "," ",P162*(0.1*0.74+0.2*0.66)/0.3) -> 1.8 | R162: =IF(N162=" "," ",(I162/H162*880*0.0576+0.41)/880*H162) -> 5.2 | S162: =R162*0.7 -> 3.6 | T162: =IF(N162=" "," ",(I162/H162*880*0.0186-0.34)/880*H162) -> 1.2 | U162: =T162*0.79 -> 0.9 | V162: =V163/$H163*880 -> 16.1 | W162: =W163/$H163*880 -> 11.0 | X162: =W162*0.8 -> 8.8 | Y162: =X162 -> 8.8 | Z162: =Z163/$H163*880 -> 1.5 | AA162: =AA163/$H163*880 -> 6.60 | AB162: =AB163/$H163*880 -> 23.5 | AC162: =IF(H162="","",1.9/1000*$H162) -> 1.7 | AD162: =AC162*0.74 -> 1.2 | AE162: =16*$H162/1000 -> 14 | AG162: =610*$H162/1000 -> 537 | AH162: =110*$H162/1000 -> 97 | AI162: 119 | AJ162: 687 | AK162: 0.4 | AQ162: 681 | AR162: 602 | AS162: 129 | AT162: 687 | AU162: 92% | AV162: 70% | AW162: 50% | AX162: 0% | AY162: 97% | AZ162: =18.8*H162/1000 -> 16.54 | BA162: =K162 -> 0 | BB162: =0*H162/1000 -> 0 | BC162: 7.46
A163: Sauermolke, milchsauer, frisch 1% RP DLG 2014 | B163: =IF(D163=""," ",COUNTA($D$8:D163)) -> 150 | D163: Sauermolke, milchsauer, frisch | E163: 1 % RP | F163: DLG 2014 | H163: 64 | I163: 6 | J163: =I163*0.7 -> 4 | K163: 0 | L163: 0.86 | M163: 0.90 | N163: =11*$H$163/1000 -> 0.7 | O163: =N163*0.83 -> 0.6 | P163: =IF(N163=" "," ",(I163/H163*880*0.0401-0.62)/880*H163) -> 0.2 | Q163: =IF(N163=" "," ",P163*(0.1*0.74+0.2*0.66)/0.3) -> 0.1 | R163: =IF(N163=" "," ",(I163/H163*880*0.0576+0.41)/880*H163) -> 0.4 | S163: =R163*0.7 -> 0.3 | T163: =IF(N163=" "," ",(I163/H163*880*0.0186-0.34)/880*H163) -> 0.1 | U163: =T163*0.79 -> 0.1 | V163: =18.33*$H$163/1000 -> 1.2 | W163: 0.8 | X163: =W163*0.8 -> 0.6 | Y163: =X163 -> 0.6 | Z163: =1.66*$H$163/1000 -> 0.1 | AA163: =7.5*$H$163/1000 -> 0.48 | AB163: =26.66*$H$163/1000 -> 1.7 | AC163: =IF(H163="","",1.9/1000*$H163) -> 0.1 | AD163: =AC163*0.74 -> 0.1 | AE163: =16*$H163/1000 -> 1 | AG163: =610*$H163/1000 -> 39 | AH163: =110*$H163/1000 -> 7 | AI163: 9 | AJ163: 50 | AK163: =0.4*H163/H162 -> 0.0 | AQ163: 50 | AR163: 44 | AS163: 9 | AT163: 50 | AU163: 92% | AV163: 70% | AW163: 50% | AX163: 0% | AY163: 97% | AZ163: =18.8*H163/1000 -> 1.20 | BA163: =K163 -> 0 | BB163: =0*H163/1000 -> 0 | BC163: 0.54
A164: =IF(E164=" ",D164&" "&F164,D164&" "&E164&"% RP "&F164) -> Trockenschnitzel 8% RP DLG 2014 | B164: =IF(D164=""," ",COUNTA($D$8:D164)) -> 151 | D164: Trockenschnitzel | E164: =IF(I164=0," ",ROUND(I164/10,0)) -> 8 % RP | F164: DLG 2014 | H164: 900 | I164: 75 | J164: =I164*0.4 -> 30 | K164: 171 | L164: 10.14 | M164: 6.86 | N164: =IF(I164=0," ",(I164/H164*880*0.0659-1)/880*H164) -> 3.9 | O164: =N164*0.55 -> 2.2 | P164: =IF(N164=" "," ",(I164/H164*880*0.026+0.2)/880*H164) -> 2.2 | Q164: =IF(N164=" "," ",P164*(1.3*0.59+0.9*0.46)/2.2) -> 1.2 | R164: =IF(N164=" "," ",(I164/H164*880*0.0356+0.81)/880*H164) -> 3.5 | S164: =R164*0.28 -> 1.0 | T164: 0.7 | U164: =T164*0.5 -> 0.4 | V164: 12.6 | W164: 0.9 | X164: =W164*0.1 -> 0.1 | Y164: =W164*0.65 -> 0.6 | Z164: 1.8 | AA164: 0.50 | AB164: 6.5 | AC164: =IF($I164=""," ",($I164/H164*880*0.0158+0.06)/880*H164) -> 1.2 | AD164: =AC164*0.59 -> 0.7 | AE164: 9 | AG164: 81 | AH164: 63 | AI164: 558 | AJ164: 582 | AK164: 3.3 | AQ164: 854 | AR164: 529 | AS164: 581 | AT164: 582 | AU164: 80% | AV164: 40% | AW164: 9% | AX164: 81% | AY164: 90% | AZ164: =1.4*H164/1000 -> 1.26 | BA164: 180 | BB164: 342 | BC164: -3.61
A165: =IF(E165=" ",D165&" "&F165,D165&" "&E165&"% RP "&F165) -> eigenes Trockenschnitzel | B165: =IF(D165=""," ",COUNTA($D$8:D165)) -> 152 | D165: eigenes Trockenschnitzel | E165: =IF(I165=0," ",ROUND(I165/10,0)) ->  | J165: =IF(I165=0," ",I165*0.38) ->  | L165: =IF($I165=""," ",I165*0.0205*AV165+0.0398*AW165*AE165+0.0173*AF165+0.016*$AG165+0.0147*AI165) ->  | N165: =IF(I165=0," ",(I165/H165*880*0.0659-1)/880*H165) ->  | O165: =IF(N165=" "," ",N165*0.55) ->  | P165: =IF(N165=" "," ",(I165/H165*880*0.026+0.2)/880*H165) ->  | Q165: =IF(N165=" "," ",P165*0.53) ->  | R165: =IF(N165=" "," ",(I165/H165*880*0.0356+0.81)/880*H165) ->  | S165: =IF(N165=" "," ",R165*0.28) ->  | T165: =IF(N165=" "," ",0.7*H165/910) ->  | U165: =IF(N165=" "," ",T165*0.4) ->  | V165: =IF($I165=0," ",V164*$H165/$H164) ->  | AC165: =IF($I165=""," ",($I165/H165*880*0.0158+0.06)/880*H165) ->  | AD165: =IF(AC165=" "," ",AC165*0.59) ->  | AI165: =IF($I165=""," ",(H165-AH165)*AU165-I165*AV165-AE165*AW165-AF165-AG165) ->  | AK165: =IF($I165=0," ",AK164*$H165/$H164) ->  | AS165: =IF($I165=0," ",AX165*K165+AY165*AT165-AF165-AG165) ->  | AU165: =IF($I165=0," ",AU164) ->  | AV165: =IF($I165=0," ",AV164) ->  | AW165: =IF($I165=0," ",AW164) ->  | AX165: =IF($I165=0," ",AX164) ->  | AY165: =IF($I165=0," ",AY164) ->  | AZ165: =IF($I165=0," ",AZ164*$H165/$H164) ->  | BA165: =IF($I165=0," ",BA164*$H165/$H164*K165/K164) ->  | BB165: =IF($I165=0," ",BB164*$H165/$H164*K165/K164) -> 
A166: =IF(E166=" ",D166&" "&F166,D166&" "&E166&"% RP "&F166) -> Wasser | B166: =IF(D166=""," ",COUNTA($D$8:D166)) -> 153 | D166: Wasser | E166: =IF(I166=0," ",ROUND(I166/10,0)) ->  | H166: 0 | L166: =I166*0.0205*AV166+0.0398*AW166*AE166+0.0173*AF166+0.016*$AG166+0.0147*AI166 -> 0.00 | M166: 0.00 | V166: 0.5 | AA166: =0.25 -> 0.25 | AB166: =0.25 -> 0.3 | AQ166: 38 | AR166: 10 | AZ166: =(0.93*23*AA166)/35.5+Z166 -> 0.15 | BA166: =K166 -> 0 | BB166: =0*H166/1000 -> 0 | BC166: 0.00
A167: Weizenkleie 14% RP DLG 2014 | B167: =IF(D167=""," ",COUNTA($D$8:D167)) -> 154 | D167: Weizenkleie | E167: 14 % RP | F167: DLG 2014 | H167: 880 | I167: 141 | J167: =I167*0.78 -> 110 | K167: 114 | L167: =I167*0.0205*AV167+0.0398*AW167*AE167+0.0173*AF167+0.016*$AG167+0.0147*AI167 -> 8.82 | M167: =IF(I167=""," ",$I167*0.021503+0.032497*$AE167+0.016309*$AF167+0.014701*$AJ167-0.021071*$K167) -> 9.92 | N167: =IF(I167=0," ",(I167/H167*880*0.0373+0.43)/880*H167) -> 5.7 | O167: =IF(N167=" "," ",N167*0.71) -> 4.0 | P167: =IF(N167=" "," ",(I167/H167*880*0.0307+0.66)/880*H167) -> 5.0 | Q167: =IF(N167=" "," ",P167*(2.1*0.77+3.2*0.68)/5.3) -> 3.6 | R167: =IF(N167=" "," ",(I167/H167*880*0.0295+0.39)/880*H167) -> 4.5 | S167: =IF(N167=" "," ",R167*0.66) -> 3.0 | T167: =IF(N167=" "," ",(I167/H167*880*0.0099+0.65)/880*H167) -> 2.0 | U167: =IF(N167=" "," ",T167*0.75) -> 1.5 | V167: 1.3 | W167: 11.4 | X167: =W167*0.4 -> 4.6 | Y167: =W167*0.65 -> 7.4 | Z167: 4.7 | AA167: 0.40 | AB167: 11.5 | AC167: =IF($I167=""," ",($I167/H167*880*0.0138+0.14)/880*H167) -> 2.1 | AD167: =AC167*0.77 -> 1.6 | AE167: 39 | AF167: 132 | AG167: 56 | AH167: 55 | AI167: =(H167-AH167)*AU167-I167*AV167-AE167*AW167-AF167-AG167 -> 178 | AJ167: =IF($I167=""," ",$H167-($AE167+$AF167+$AH167+$I167+$K167)) -> 399 | AK167: =AL167+AM167 -> 24.2 | AL167: =57*AE167/100 -> 22.2 | AM167: =5*AE167/100 -> 2.0 | AQ167: -0 | AR167: 607 | AS167: =AX167*K167+AY167*AT167-AF167-AG167 -> 175 | AT167: 531 | AU167: 60% | AV167: 78% | AW167: 50% | AX167: 16% | AY167: 65% | AZ167: =1.4*H167/1000 -> 1.23 | BA167: 128 | BB167: 450 | BC167: 2.74
A168: eigene Weizenkleie | B168: =IF(D168=""," ",COUNTA($D$8:D168)) -> 155 | D168: eigene Weizenkleie | J168: =IF(I168=0," ",I168*0.72) ->  | L168: =IF($I168=""," ",I168*0.0205*AV168+0.0398*AW168*AE168+0.0173*AF168+0.016*$AG168+0.0147*AI168) ->  | M168: =IF(I168=""," ",$I168*0.021503+0.032497*$AE168+0.016309*$AF168+0.014701*$AJ168-0.021071*$K168) ->  | N168: =IF(I168=0," ",(I168/H168*880*0.0373+0.43)/880*H168) ->  | O168: =IF(N168=" "," ",N168*0.71) ->  | P168: =IF(N168=" "," ",(I168/H168*880*0.0307+0.66)/880*H168) ->  | Q168: =IF(N168=" "," ",P168*0.73) ->  | R168: =IF(N168=" "," ",(I168/H168*880*0.0295+0.39)/880*H168) ->  | S168: =IF(N168=" "," ",R168*0.66) ->  | T168: =IF(N168=" "," ",(I168/H168*880*0.0099+0.65)/880*H168) ->  | U168: =IF(N168=" "," ",T168*0.75) ->  | V168: =IF($I168=0," ",V167*$H168/$H167) ->  | AC168: =IF($I168=""," ",($I168/H168*880*0.0138+0.14)/880*H168) ->  | AD168: =IF(AC168=" "," ",AC168*0.77) ->  | AI168: =IF($I168=""," ",(H168-AH168)*AU168-I168*AV168-AE168*AW168-AF168-AG168) ->  | AJ168: =IF($I168=""," ",$H168-($AE168+$AF168+$AH168+$I168+$K168)) ->  | AK168: =IF($I168=0," ",AK167*$H168/$H167) ->  | AS168: =IF($I168=0," ",AX168*K168+AY168*AT168-AF168-AG168) ->  | AU168: =IF($I168=0," ",AU167) ->  | AV168: =IF($I168=0," ",AV167) ->  | AW168: =IF($I168=0," ",AW167) ->  | AX168: =IF($I168=0," ",AX167) ->  | AY168: =IF($I168=0," ",AY167) ->  | AZ168: =IF($I168=0," ",AZ167*$H168/$H167) ->  | BA168: =IF($I168=0," ",BA167*$H168/$H167*K168/K167) ->  | BB168: =IF($I168=0," ",BB167*$H168/$H167*K168/K167) -> 
A169: =IF(E169=" ",D169&" "&F169,D169&" "&E169&"% RP "&F169) -> hier neues Futtermittel eingeben % RP | B169: =IF(D169=""," ",COUNTA($D$8:D169)) -> 156 | D169: hier neues Futtermittel eingeben | E169: =IF(I169="","",ROUND(I169/10,0)) ->  | L169: =IF($I169=""," ",I169*0.0205*AV169+0.0398*AW169*AE169+0.0173*AF169+0.016*$AG169+0.0147*AI169) ->  | M169: =IF(I169="","",$I169*0.021503+0.032497*$AE169+0.016309*$AF169+0.014701*$AJ169-0.021071*$K169) ->  | AI169: =IF($I169="","",(H169-AH169)*AU169-I169*AV169-AE169*AW169-AF169-AG169) ->  | AJ169: =IF($I169="","",$H169-($AE169+$AF169+$AH169+$I169+$K169)) ->  | AQ169: =IF(H169="","",50*V169+83*Z169+26*AB169+44*AA169-59*W169-13*P169-28*AZ169) ->  | AR169: =IF(H169="","",V169/1000*20140+Z169/1000*48600+1100/440*I169) ->  | AS169: =IF($H169="","",AX169*K169+AY169*AT169-AF169-AG169) -> 
D171: * Häufigkeitsverteilung hessischer Proben | F171: ** berechnet nach Einzelfutterformel nur in Ausnahmefällen nach Mischfutterformel | L171: ***nach INRA Tab. 2004 (Rohproteinäquivalente; N * 6,25)
D172: Quellenangabe: DLG Futterwerttabellen 2014, und 1991. DLG 2005: Kleiner Helfer für die Berechnung von Futterrationen. DLG 2009: Internet-Futtermitteldatenbank (FuDb).
D173: Aminosäuren für Schweine überwiegend berechnet nach den genaueren Regressionsschätzgleichungen von Evonik (früher Degussa) 1996, 2001, 2006 und 2011
D174: Dr. Thomas Priesmann, Dr. Lindermeyer (Futterberechnung für Schweine 15. Auflage 2007) und Prof. Dr. Uwe Herrmann Dobbin (Fette in der Schweinefütterung).

Sheet Preiswürdigkeit FUMI
B4: Berechnung der Preiswürdigkeit von Einzelfuttermitteln für Schweine nach der Austauschmethode Löhr.
B6: Hierzu werden die Energie MJ ME und das dünndarmverdauliche (dv oder pcv = praecaecal verdauliche) Lysin als wertbestimmende
B7: Inhaltsstoffe berücksichtigt. Als Vergleichsfuttermittel wird hier Weizen (Gerste auch möglich!) als typisches Energiefuttermittel und
B8: Sojaschrot als typisches Eiweißfuttermittel verwendet. Mittels Drop-Down-Menü können auch andere Vergleichsfuttermittel
B9: ausgewählt werden! Bei Öko-Preisvergleichen z.B. Weizen öko und Sojakuchen und bei GVO-freier Fütterung Sojaschrot GVO-frei, Brasil.
B10: Geben Sie bitte 1. nur den Preis des Energieverleichfuttermittels und 2. den Preis des Eiweißvergleichsfuttermittels ein,
B11: die Austauschpreise (preiswürdig bis zu diesem Preis bei den eingegebenen Vergleichsfuttermittelpreisen) werden dann automatisch errechnet!
B13: Futtermittel | C13: % Roh-protein in der FM | D13: Qualität | E13: Proben | F13: Trocken-masse (TM) | G13: Roh-protein (XP) | H13: vd. Roh-protein (XP) | I13: Rohfaser (XF) | J13: ME ** | K13: Lysin (Lys) | L13: verdaul. Lysin (dv. Lys) | M13: Markt-preise Einkauf frei Hof | N13: Austausch-Preis
C14: in % | E14: in % * | F14: g | G14: g | H14: g | I14: g | J14: MJ | K14: g | L14: g
F15: G E H A L T E J E K G F U T T E R M I T T E L | M15: Preis in €/dt
B16: eigener Weizen 11% RP Ø 2016 | C16: =IF($B16=""," ",VLOOKUP($B16,Futtermittel!$A$8:$CG$171,5,FALSE)) -> 11 | D16: =IF($B16=""," ",VLOOKUP($B16,Futtermittel!$A$8:$CG$171,6,FALSE)) -> Ø 2016 | E16: =IF($B16=""," ",VLOOKUP($B16,Futtermittel!$A$8:$CG$171,7,FALSE)) -> 0 | F16: =IF($B16=""," ",VLOOKUP($B16,Futtermittel!$A$8:$CG$171,8,FALSE)) -> 880 | G16: =IF($B16=""," ",VLOOKUP($B16,Futtermittel!$A$8:$CG$171,9,FALSE)) -> 109 | H16: =IF($B16=""," ",VLOOKUP($B16,Futtermittel!$A$8:$CG$171,10,FALSE)) -> 98 | I16: =IF($B16=""," ",VLOOKUP($B16,Futtermittel!$A$8:$CG$171,11,FALSE)) -> 26 | J16: =IF($B16=""," ",VLOOKUP($B16,Futtermittel!$A$8:$CG$171,12,FALSE)) -> 13.68 | K16: =IF($B16=""," ",VLOOKUP($B16,Futtermittel!$A$8:$CG$171,14,FALSE)) -> 3.1 | L16: =IF($B16=""," ",VLOOKUP($B16,Futtermittel!$A$8:$CG$171,15,FALSE)) -> 2.7 | M16: 14.50 €
B17: Sojaschrot 43% RP | C17: =IF($B17=""," ",VLOOKUP($B17,Futtermittel!$A$8:$CG$171,5,FALSE)) -> 43 | D17: =IF($B17=""," ",VLOOKUP($B17,Futtermittel!$A$8:$CG$171,6,FALSE)) -> 0 | E17: =IF($B17=""," ",VLOOKUP($B17,Futtermittel!$A$8:$CG$171,7,FALSE)) -> 19 | F17: =IF($B17=""," ",VLOOKUP($B17,Futtermittel!$A$8:$CG$171,8,FALSE)) -> 890 | G17: =IF($B17=""," ",VLOOKUP($B17,Futtermittel!$A$8:$CG$171,9,FALSE)) -> 429 | H17: =IF($B17=""," ",VLOOKUP($B17,Futtermittel!$A$8:$CG$171,10,FALSE)) -> 352 | I17: =IF($B17=""," ",VLOOKUP($B17,Futtermittel!$A$8:$CG$171,11,FALSE)) -> 69 | J17: =IF($B17=""," ",VLOOKUP($B17,Futtermittel!$A$8:$CG$171,12,FALSE)) -> 13.10 | K17: =IF($B17=""," ",VLOOKUP($B17,Futtermittel!$A$8:$CG$171,14,FALSE)) -> 26.6 | L17: =IF($B17=""," ",VLOOKUP($B17,Futtermittel!$A$8:$CG$171,15,FALSE)) -> 23.2 | M17: 33.50 €
B18: =Futtermittel!A6 -> Getreide | C18: =Futtermittel!E6 -> 0 | D18: =Futtermittel!F6 -> 0 | E18: =Futtermittel!G6 -> 0 | G18: =Futtermittel!I6 -> 0 | H18: =Futtermittel!J6 -> 0 | I18: =Futtermittel!K6 -> 0 | J18: =Futtermittel!L6 -> 0.00 | K18: =Futtermittel!N6 -> 0 | L18: =Futtermittel!O6 -> 0
B19: =Futtermittel!A8 -> CCM, 65 % TM bis 3 % XF auf 88 % TM 9% RP DLG 2014 | C19: =Futtermittel!E8 -> 9 | D19: =Futtermittel!F8 -> DLG 2014 | E19: =Futtermittel!G8 -> 0 | F19: =Futtermittel!H8 -> 880 | G19: =Futtermittel!I8 -> 88 | H19: =Futtermittel!J8 -> 71 | I19: =Futtermittel!K8 -> 22 | J19: =Futtermittel!L8 -> 13.41 | K19: =Futtermittel!N8 -> 2.3 | L19: =Futtermittel!O8 -> 1.6 | M19: 23.47 € | N19: =IF(J19=" "," ",M$16*(J19*(L$17*J19-J$17*L19)/((J$16*(L$17*J19-J$17*L19))+(J$17*(J$16*L19-L$16*J19))))+M$17*((J19*(L$17*J19-J$17*L19)/((J$16*(L$17*J19-J$17*L19))+(J$17*(J$16*L19-L$16*J19))))*((J$16*L19-L$16*J19)/(L$17*J19-J$17*1.00000000000001*L19)))) -> 13.21 €
B20: =Futtermittel!A9 -> CCM, 65 % TM bis 3 % XF in TM 7% RP DLG 2014 | C20: =Futtermittel!E9 -> 7 | D20: =Futtermittel!F9 -> DLG 2014 | E20: =Futtermittel!G9 -> 0 | F20: =Futtermittel!H9 -> 650 | G20: =Futtermittel!I9 -> 65 | H20: =Futtermittel!J9 -> 53 | I20: =Futtermittel!K9 -> 16 | J20: =Futtermittel!L9 -> 9.91 | K20: =Futtermittel!N9 -> 1.7 | L20: =Futtermittel!O9 -> 1.2 | M20: 16.00 € | N20: 9.76 €
B21: =Futtermittel!A10 -> CCM, 61 % TM über 3 % XF auf 88 % TM 9% RP DLG 2014 | C21: =Futtermittel!E10 -> 9 | D21: =Futtermittel!F10 -> DLG 2014 | E21: =Futtermittel!G10 -> 0 | F21: =Futtermittel!H10 -> 880 | G21: =Futtermittel!I10 -> 88 | H21: =Futtermittel!J10 -> 71 | I21: =Futtermittel!K10 -> 35 | J21: =Futtermittel!L10 -> 13.24 | K21: =Futtermittel!N10 -> 2.3 | L21: =Futtermittel!O10 -> 1.6 | N21: =IF(J21=" "," ",M$16*(J21*(L$17*J21-J$17*L21)/((J$16*(L$17*J21-J$17*L21))+(J$17*(J$16*L21-L$16*J21))))+M$17*((J21*(L$17*J21-J$17*L21)/((J$16*(L$17*J21-J$17*L21))+(J$17*(J$16*L21-L$16*J21))))*((J$16*L21-L$16*J21)/(L$17*J21-J$17*1.00000000000001*L21)))) -> 13.00 €
B22: =Futtermittel!A11 -> CCM, 61 % TM über 3 % XF in TM 6% RP DLG 2014 | C22: =Futtermittel!E11 -> 6 | D22: =Futtermittel!F11 -> DLG 2014 | E22: =Futtermittel!G11 -> 0 | F22: =Futtermittel!H11 -> 610 | G22: =Futtermittel!I11 -> 61 | H22: =Futtermittel!J11 -> 48 | I22: =Futtermittel!K11 -> 24 | J22: =Futtermittel!L11 -> 9.20 | K22: =Futtermittel!N11 -> 1.6 | L22: =Futtermittel!O11 -> 1.1 | N22: =IF(J22=" "," ",M$16*(J22*(L$17*J22-J$17*L22)/((J$16*(L$17*J22-J$17*L22))+(J$17*(J$16*L22-L$16*J22))))+M$17*((J22*(L$17*J22-J$17*L22)/((J$16*(L$17*J22-J$17*L22))+(J$17*(J$16*L22-L$16*J22))))*((J$16*L22-L$16*J22)/(L$17*J22-J$17*1.00000000000001*L22)))) -> 9.02 €
B23: =Futtermittel!A12 -> eigenes CCM 5% RP Ø 2015 | C23: =Futtermittel!E12 -> 5 | D23: =Futtermittel!F12 -> Ø 2015 | E23: =Futtermittel!G12 -> 0 | F23: =Futtermittel!H12 -> 604 | G23: =Futtermittel!I12 -> 54 | H23: =Futtermittel!J12 -> 44 | I23: =Futtermittel!K12 -> 19 | J23: =Futtermittel!L12 -> 9.34 | K23: =Futtermittel!N12 -> 1.5 | L23: =Futtermittel!O12 -> 1.0 | M23: 16.00 € | N23: 9.11 €
B24: =Futtermittel!A13 -> Gerste 14% RP | C24: =Futtermittel!E13 -> 14 | D24: =Futtermittel!F13 -> 0 | E24: =Futtermittel!G13 -> 1 | F24: =Futtermittel!H13 -> 880 | G24: =Futtermittel!I13 -> 138 | H24: =Futtermittel!J13 -> 101 | I24: =Futtermittel!K13 -> 49 | J24: =Futtermittel!L13 -> 12.67 | K24: =Futtermittel!N13 -> 4.5 | L24: =Futtermittel!O13 -> 3.3 | M24: 25.00 € | N24: 14.18 €
B25: =Futtermittel!A14 -> Gerste 13% RP | C25: =Futtermittel!E14 -> 13 | D25: =Futtermittel!F14 -> 0 | E25: =Futtermittel!G14 -> 7 | F25: =Futtermittel!H14 -> 880 | G25: =Futtermittel!I14 -> 128 | H25: =Futtermittel!J14 -> 93 | I25: =Futtermittel!K14 -> 52 | J25: =Futtermittel!L14 -> 12.64 | K25: =Futtermittel!N14 -> 4.3 | L25: =Futtermittel!O14 -> 3.1 | M25: 25.00 € | N25: 13.99 €
B26: =Futtermittel!A15 -> Gerste 12% RP | C26: =Futtermittel!E15 -> 12 | D26: =Futtermittel!F15 -> 0 | E26: =Futtermittel!G15 -> 19 | F26: =Futtermittel!H15 -> 880 | G26: =Futtermittel!I15 -> 119 | H26: =Futtermittel!J15 -> 87 | I26: =Futtermittel!K15 -> 53 | J26: =Futtermittel!L15 -> 12.62 | K26: =Futtermittel!N15 -> 4.1 | L26: =Futtermittel!O15 -> 3.0 | M26: 25.00 € | N26: 13.84 €
B27: =Futtermittel!A16 -> Gerste 11% RP | C27: =Futtermittel!E16 -> 11 | D27: =Futtermittel!F16 -> 0 | E27: =Futtermittel!G16 -> 41 | F27: =Futtermittel!H16 -> 880 | G27: =Futtermittel!I16 -> 110 | H27: =Futtermittel!J16 -> 80 | I27: =Futtermittel!K16 -> 55 | J27: =Futtermittel!L16 -> 12.59 | K27: =Futtermittel!N16 -> 3.9 | L27: =Futtermittel!O16 -> 2.8 | M27: 25.00 € | N27: 13.65 €
B28: =Futtermittel!A17 -> Gerste 10% RP DLG 2014 | C28: =Futtermittel!E17 -> 10 | D28: =Futtermittel!F17 -> DLG 2014 | E28: =Futtermittel!G17 -> 0 | F28: =Futtermittel!H17 -> 870 | G28: =Futtermittel!I17 -> 104 | H28: =Futtermittel!J17 -> 76 | I28: =Futtermittel!K17 -> 48 | J28: =Futtermittel!L17 -> 12.47 | K28: =Futtermittel!N17 -> 3.8 | L28: =Futtermittel!O17 -> 2.7 | M28: 25.00 € | N28: 13.46 €
B29: =Futtermittel!A18 -> eigene Gerste 11% RP Ø 2016 | C29: =Futtermittel!E18 -> 11 | D29: =Futtermittel!F18 -> Ø 2016 | E29: =Futtermittel!G18 -> 0 | F29: =Futtermittel!H18 -> 880 | G29: =Futtermittel!I18 -> 108 | H29: =Futtermittel!J18 -> 79 | I29: =Futtermittel!K18 -> 54 | J29: =Futtermittel!L18 -> 12.57 | K29: =Futtermittel!N18 -> 3.8 | L29: =Futtermittel!O18 -> 2.8 | M29: 25.00 € | N29: 13.61 €
B30: =Futtermittel!A19 -> eigene Gerste 2 10% RP Ø 2015 | C30: =Futtermittel!E19 -> 10 | D30: =Futtermittel!F19 -> Ø 2015 | E30: =Futtermittel!G19 -> 0 | F30: =Futtermittel!H19 -> 880 | G30: =Futtermittel!I19 -> 97 | H30: =Futtermittel!J19 -> 70 | I30: =Futtermittel!K19 -> 54 | J30: =Futtermittel!L19 -> 12.56 | K30: =Futtermittel!N19 -> 3.6 | L30: =Futtermittel!O19 -> 2.6 | M30: 25.00 € | N30: 13.42 €
B31: =Futtermittel!A20 -> Gerste 10% RP | C31: =Futtermittel!E20 -> 10 | D31: =Futtermittel!F20 -> 0 | E31: =Futtermittel!G20 -> 23 | F31: =Futtermittel!H20 -> 880 | G31: =Futtermittel!I20 -> 101 | H31: =Futtermittel!J20 -> 74 | I31: =Futtermittel!K20 -> 54 | J31: =Futtermittel!L20 -> 12.56 | K31: =Futtermittel!N20 -> 3.7 | L31: =Futtermittel!O20 -> 2.7 | M31: 25.00 € | N31: 13.48 €
B32: =Futtermittel!A21 -> Gerste 9% RP | C32: =Futtermittel!E21 -> 9 | D32: =Futtermittel!F21 -> 0 | E32: =Futtermittel!G21 -> 9 | F32: =Futtermittel!H21 -> 880 | G32: =Futtermittel!I21 -> 91 | H32: =Futtermittel!J21 -> 66 | I32: =Futtermittel!K21 -> 52 | J32: =Futtermittel!L21 -> 12.57 | K32: =Futtermittel!N21 -> 3.5 | L32: =Futtermittel!O21 -> 2.5 | M32: 25.00 € | N32: 13.34 €
B33: =Futtermittel!A22 -> Gerste öko 9% RP Ø Hessen | C33: =Futtermittel!E22 -> 9 | D33: =Futtermittel!F22 -> Ø Hessen | E33: =Futtermittel!G22 -> 100 | F33: =Futtermittel!H22 -> 880 | G33: =Futtermittel!I22 -> 87 | H33: =Futtermittel!J22 -> 64 | I33: =Futtermittel!K22 -> 59 | J33: =Futtermittel!L22 -> 12.56 | K33: =Futtermittel!N22 -> 3.4 | L33: =Futtermittel!O22 -> 2.5 | M33: 37.00 € | N33: 13.27 €
B34: =Futtermittel!A23 -> Gerste Sommer 10% RP Ø Hessen | C34: =Futtermittel!E23 -> 10 | D34: =Futtermittel!F23 -> Ø Hessen | E34: =Futtermittel!G23 -> 100 | F34: =Futtermittel!H23 -> 880 | G34: =Futtermittel!I23 -> 99 | H34: =Futtermittel!J23 -> 73 | I34: =Futtermittel!K23 -> 50 | J34: =Futtermittel!L23 -> 12.70 | K34: =Futtermittel!N23 -> 3.7 | L34: =Futtermittel!O23 -> 2.7 | M34: 25.00 € | N34: 13.61 €
B35: =Futtermittel!A25 -> Hafer 11% RP DLG 2014 | C35: =Futtermittel!E25 -> 11 | D35: =Futtermittel!F25 -> DLG 2014 | E35: =Futtermittel!G25 -> 0 | F35: =Futtermittel!H25 -> 880 | G35: =Futtermittel!I25 -> 108 | H35: =Futtermittel!J25 -> 95 | I35: =Futtermittel!K25 -> 97 | J35: =Futtermittel!L25 -> 11.68 | K35: =Futtermittel!N25 -> 4.4 | L35: =Futtermittel!O25 -> 4.2 | M35: 24.00 € | N35: 14.12 €
B36: =Futtermittel!A26 -> eigener Hafer 11% RP Ø 2016 | C36: =Futtermittel!E26 -> 11 | D36: =Futtermittel!F26 -> Ø 2016 | E36: =Futtermittel!G26 -> 0 | F36: =Futtermittel!H26 -> 880 | G36: =Futtermittel!I26 -> 111 | H36: =Futtermittel!J26 -> 97 | I36: =Futtermittel!K26 -> 102 | J36: =Futtermittel!L26 -> 11.25 | K36: =Futtermittel!N26 -> 4.5 | L36: =Futtermittel!O26 -> 4.3 | M36: 24.00 € | N36: 13.84 €
B37: =Futtermittel!A27 -> Hafer 11% RP Ø Hessen | C37: =Futtermittel!E27 -> 11 | D37: =Futtermittel!F27 -> Ø Hessen | E37: =Futtermittel!G27 -> 100 | F37: =Futtermittel!H27 -> 880 | G37: =Futtermittel!I27 -> 112 | H37: =Futtermittel!J27 -> 99 | I37: =Futtermittel!K27 -> 99 | J37: =Futtermittel!L27 -> 11.51 | K37: =Futtermittel!N27 -> 4.5 | L37: =Futtermittel!O27 -> 4.3 | M37: 24.00 € | N37: 14.11 €
B38: =Futtermittel!A28 -> Hirse - Sorghum 10% RP DLG 2014 | C38: =Futtermittel!E28 -> 10 | D38: =Futtermittel!F28 -> DLG 2014 | E38: =Futtermittel!G28 -> 0 | F38: =Futtermittel!H28 -> 880 | G38: =Futtermittel!I28 -> 97 | H38: =Futtermittel!J28 -> 72 | I38: =Futtermittel!K28 -> 26 | J38: =Futtermittel!L28 -> 13.75 | K38: =Futtermittel!N28 -> 2.1 | L38: =Futtermittel!O28 -> 1.7 | M38: 28.50 € | N38: 13.58 €
B39: =Futtermittel!A29 -> eigene Hirse - Sorghum 10% RP | C39: =Futtermittel!E29 -> 10 | D39: =Futtermittel!F29 -> 0 | E39: =Futtermittel!G29 -> 0 | F39: =Futtermittel!H29 -> 880 | G39: =Futtermittel!I29 -> 100 | H39: =Futtermittel!J29 -> 74 | I39: =Futtermittel!K29 -> 56 | J39: =Futtermittel!L29 -> 13.51 | K39: =Futtermittel!N29 -> 2.2 | L39: =Futtermittel!O29 -> 1.7 | M39: 28.50 € | N39: 13.41 €
B40: =Futtermittel!A30 -> Mais, Körner 9% RP DLG 2014 | C40: =Futtermittel!E30 -> 9 | D40: =Futtermittel!F30 -> DLG 2014 | E40: =Futtermittel!G30 -> 0 | F40: =Futtermittel!H30 -> 880 | G40: =Futtermittel!I30 -> 92 | H40: =Futtermittel!J30 -> 75 | I40: =Futtermittel!K30 -> 23 | J40: =Futtermittel!L30 -> 14.19 | K40: =Futtermittel!N30 -> 2.6 | L40: =Futtermittel!O30 -> 2.2 | M40: 27.00 € | N40: 14.41 €
B41: =Futtermittel!A31 -> eigener Mais, Körner | C41: =Futtermittel!E31 ->  | D41: =Futtermittel!F31 -> 0 | E41: =Futtermittel!G31 -> 0 | F41: =Futtermittel!H31 -> 0 | G41: =Futtermittel!I31 -> 0 | H41: =Futtermittel!J31 ->  | I41: =Futtermittel!K31 -> 0 | J41: =Futtermittel!L31 ->  | K41: =Futtermittel!N31 ->  | L41: =Futtermittel!O31 ->  | M41: 27.00 €
B42: =Futtermittel!A32 -> Mais, Körner siliert Ganzkorn 7% RP DLG 2014 | C42: =Futtermittel!E32 -> 7 | D42: =Futtermittel!F32 -> DLG 2014 | E42: =Futtermittel!G32 -> 0 | F42: =Futtermittel!H32 -> 650 | G42: =Futtermittel!I32 -> 65 | H42: =Futtermittel!J32 -> 58 | I42: =Futtermittel!K32 -> 16 | J42: =Futtermittel!L32 -> 10.72 | K42: =Futtermittel!N32 -> 2.1 | L42: =Futtermittel!O32 -> 1.8 | N42: =IF(J42=" "," ",M$16*(J42*(L$17*J42-J$17*L42)/((J$16*(L$17*J42-J$17*L42))+(J$17*(J$16*L42-L$16*J42))))+M$17*((J42*(L$17*J42-J$17*L42)/((J$16*(L$17*J42-J$17*L42))+(J$17*(J$16*L42-L$16*J42))))*((J$16*L42-L$16*J42)/(L$17*J42-J$17*1.00000000000001*L42)))) -> 10.99 €
B43: =Futtermittel!A33 -> Mais, Körner siliert geschrotet 6% RP DLG 2014 | C43: =Futtermittel!E33 -> 6 | D43: =Futtermittel!F33 -> DLG 2014 | E43: =Futtermittel!G33 -> 0 | F43: =Futtermittel!H33 -> 650 | G43: =Futtermittel!I33 -> 60 | H43: =Futtermittel!J33 -> 54 | I43: =Futtermittel!K33 -> 14 | J43: =Futtermittel!L33 -> 10.96 | K43: =Futtermittel!N33 -> 2.0 | L43: =Futtermittel!O33 -> 1.4 | N43: =IF(J43=" "," ",M$16*(J43*(L$17*J43-J$17*L43)/((J$16*(L$17*J43-J$17*L43))+(J$17*(J$16*L43-L$16*J43))))+M$17*((J43*(L$17*J43-J$17*L43)/((J$16*(L$17*J43-J$17*L43))+(J$17*(J$16*L43-L$16*J43))))*((J$16*L43-L$16*J43)/(L$17*J43-J$17*1.00000000000001*L43)))) -> 10.84 €
B44: =Futtermittel!A34 -> Mais, siliert 3% RP DLG 2014 | C44: =Futtermittel!E34 -> 3 | D44: =Futtermittel!F34 -> DLG 2014 | E44: =Futtermittel!G34 -> 0 | F44: =Futtermittel!H34 -> 350 | G44: =Futtermittel!I34 -> 30 | H44: =Futtermittel!J34 -> 18 | I44: =Futtermittel!K34 -> 56 | J44: =Futtermittel!L34 -> 3.75 | K44: =Futtermittel!N34 -> 0.8 | L44: =Futtermittel!O34 -> 0.6 | N44: =IF(J44=" "," ",M$16*(J44*(L$17*J44-J$17*L44)/((J$16*(L$17*J44-J$17*L44))+(J$17*(J$16*L44-L$16*J44))))+M$17*((J44*(L$17*J44-J$17*L44)/((J$16*(L$17*J44-J$17*L44))+(J$17*(J$16*L44-L$16*J44))))*((J$16*L44-L$16*J44)/(L$17*J44-J$17*1.00000000000001*L44)))) -> 3.84 €
B45: =Futtermittel!A35 -> eigener Mais, siliert | C45: =Futtermittel!E35 ->  | D45: =Futtermittel!F35 -> 0 | E45: =Futtermittel!G35 -> 0 | F45: =Futtermittel!H35 -> 0 | G45: =Futtermittel!I35 -> 0 | H45: =Futtermittel!J35 ->  | I45: =Futtermittel!K35 -> 0 | J45: =Futtermittel!L35 ->  | K45: =Futtermittel!N35 ->  | L45: =Futtermittel!O35 ->  | N45: =IF(J45=" "," ",M$16*(J45*(L$17*J45-J$17*L45)/((J$16*(L$17*J45-J$17*L45))+(J$17*(J$16*L45-L$16*J45))))+M$17*((J45*(L$17*J45-J$17*L45)/((J$16*(L$17*J45-J$17*L45))+(J$17*(J$16*L45-L$16*J45))))*((J$16*L45-L$16*J45)/(L$17*J45-J$17*1.00000000000001*L45)))) -> 
B46: =Futtermittel!A36 -> Roggen 11% RP | C46: =Futtermittel!E36 -> 11 | D46: =Futtermittel!F36 -> 0 | E46: =Futtermittel!G36 -> 4 | F46: =Futtermittel!H36 -> 880 | G46: =Futtermittel!I36 -> 112 | H46: =Futtermittel!J36 -> 87 | I46: =Futtermittel!K36 -> 24 | J46: =Futtermittel!L36 -> 13.35 | K46: =Futtermittel!N36 -> 3.9 | L46: =Futtermittel!O36 -> 2.7 | M46: 24.50 € | N46: 14.22 €
B47: =Futtermittel!A37 -> Roggen 10% RP | C47: =Futtermittel!E37 -> 10 | D47: =Futtermittel!F37 -> 0 | E47: =Futtermittel!G37 -> 30 | F47: =Futtermittel!H37 -> 880 | G47: =Futtermittel!I37 -> 99 | H47: =Futtermittel!J37 -> 77 | I47: =Futtermittel!K37 -> 25 | J47: =Futtermittel!L37 -> 13.26 | K47: =Futtermittel!N37 -> 3.6 | L47: =Futtermittel!O37 -> 2.8 | M47: 24.50 € | N47: 14.24 €
B48: =Futtermittel!A38 -> Roggen 9% RP DLG 2014 | C48: =Futtermittel!E38 -> 9 | D48: =Futtermittel!F38 -> DLG 2014 | E48: =Futtermittel!G38 -> 0 | F48: =Futtermittel!H38 -> 870 | G48: =Futtermittel!I38 -> 91 | H48: =Futtermittel!J38 -> 71 | I48: =Futtermittel!K38 -> 23 | J48: =Futtermittel!L38 -> 13.16 | K48: =Futtermittel!N38 -> 3.3 | L48: =Futtermittel!O38 -> 2.7 | M48: 24.50 € | N48: 13.99 €
B49: =Futtermittel!A39 -> eigener Roggen 9% RP Ø 2016 | C49: =Futtermittel!E39 -> 9 | D49: =Futtermittel!F39 -> Ø 2016 | E49: =Futtermittel!G39 -> 0 | F49: =Futtermittel!H39 -> 880 | G49: =Futtermittel!I39 -> 85 | H49: =Futtermittel!J39 -> 66 | I49: =Futtermittel!K39 -> 19 | J49: =Futtermittel!L39 -> 13.29 | K49: =Futtermittel!N39 -> 3.2 | L49: =Futtermittel!O39 -> 2.5 | M49: 24.50 € | N49: 13.98 €
B50: =Futtermittel!A40 -> Roggen 9% RP | C50: =Futtermittel!E40 -> 9 | D50: =Futtermittel!F40 -> 0 | E50: =Futtermittel!G40 -> 37 | F50: =Futtermittel!H40 -> 880 | G50: =Futtermittel!I40 -> 90 | H50: =Futtermittel!J40 -> 70 | I50: =Futtermittel!K40 -> 25 | J50: =Futtermittel!L40 -> 13.22 | K50: =Futtermittel!N40 -> 3.3 | L50: =Futtermittel!O40 -> 2.7 | M50: 24.50 € | N50: 14.03 €
B51: =Futtermittel!A41 -> Roggen 8% RP | C51: =Futtermittel!E41 -> 8 | D51: =Futtermittel!F41 -> 0 | E51: =Futtermittel!G41 -> 29 | F51: =Futtermittel!H41 -> 880 | G51: =Futtermittel!I41 -> 80 | H51: =Futtermittel!J41 -> 62 | I51: =Futtermittel!K41 -> 25 | J51: =Futtermittel!L41 -> 13.20 | K51: =Futtermittel!N41 -> 3.0 | L51: =Futtermittel!O41 -> 2.4 | M51: 24.50 € | N51: 13.80 €
B52: =Futtermittel!A43 -> Triticale 11% RP DLG 2014 | C52: =Futtermittel!E43 -> 11 | D52: =Futtermittel!F43 -> DLG 2014 | E52: =Futtermittel!G43 -> 0 | F52: =Futtermittel!H43 -> 870 | G52: =Futtermittel!I43 -> 109 | H52: =Futtermittel!J43 -> 92 | I52: =Futtermittel!K43 -> 24 | J52: =Futtermittel!L43 -> 13.38 | K52: =Futtermittel!N43 -> 3.5 | L52: =Futtermittel!O43 -> 3.0 | M52: 25.00 € | N52: 14.45 €
B53: =Futtermittel!A42 -> Triticale 12% RP | C53: =Futtermittel!E42 -> 12 | D53: =Futtermittel!F42 -> 0 | E53: =Futtermittel!G42 -> 5 | F53: =Futtermittel!H42 -> 880 | G53: =Futtermittel!I42 -> 119 | H53: =Futtermittel!J42 -> 100 | I53: =Futtermittel!K42 -> 26 | J53: =Futtermittel!L42 -> 13.55 | K53: =Futtermittel!N42 -> 3.7 | L53: =Futtermittel!O42 -> 3.1 | M53: 25.00 € | N53: 14.77 €
